Workbook

Sheet PALS POND DATA 2023
A1: SMAST | G1: 1 | H1: Cloudless | J1: 1 | K1: Calm
A2: Umass Dartmouth | G2: 2 | H2: Pt. Cloudy | J2: 2 | K2: Light Breeze
A3: 706 Rodney French Blvd | G3: 3 | H3: Overcast | J3: 3 | K3: Steady Wind
A4: New Bedford, Ma 02744 | G4: 4 | H4: Rain | J4: 4 | K4: Strong Wind
A5: Plymouth Ponds 2021 | G5: 5 | H5: Fog/Haze
G6: 6 | H6: Drizzle
A7: Key | G7: 7 | H7: Intermit. Rain
A8: NS = No Sample
A9: ND = No Data
A13: Town | B13: Pond | C13: Depth (m) | D13: Date | E13: QC | F13: Number of Samples | G13: Sample Time | H13: Total Depth (m) | I13: Secchi Depth (m) | J13: % Secchi | K13: Water Color | L13: Weather | M13: Wind | N13: Plants | O13: Temp C | P13: DO (mg/L) | Q13: pH | R13: Alk (mg CaCO3/L) | S13: CHLA (ug/L) | T13: Phaeo (ug/L) | U13: T-pig ug/L | V13: TP (uM) | W13: TP (µg/L) | X13: TP (mg/L) | Y13: TN (uM) | Z13: TN (ug/L) | AA13: TN (mg/L)
A14: Plymouth | B14: Clear | C14: 0.5 | D14: 2023-05-08 | F14: 0 | G14: 10:00:00 | H14: 7.4 | I14: 3.78 | K14: DARK GREEN | L14: 1 | M14: 2 | N14: LESS THAN !% | O14: 19.2 | P14: 10.1
A15: Plymouth | B15: Clear | C15: 1 | D15: 2023-05-08 | O15: 16.7 | P15: 10.9
A16: Plymouth | B16: Clear | C16: 2 | D16: 2023-05-08 | O16: 15.5 | P16: 11.9
A17: Plymouth | B17: Clear | C17: 3 | D17: 2023-05-08 | O17: 14.7 | P17: 11.9
A18: Plymouth | B18: Clear | C18: 4 | D18: 2023-05-08 | O18: 14.3 | P18: 12
A19: Plymouth | B19: Clear | C19: 5 | D19: 2023-05-08 | O19: 12.9 | P19: 13.5
A20: Plymouth | B20: Clear | C20: 6 | D20: 2023-05-08 | O20: 11.4 | P20: 11.7
A21: Plymouth | B21: Clear | C21: 7 | D21: 2023-05-08 | O21: 10.6 | P21: 7.1
A22: Plymouth | B22: Clear | C22: 0.5 | D22: 2023-06-13 | F22: 0 | G22: 10:00:00 | H22: 7.6 | I22: 2.59 | K22: DARK GREEN | L22: 3 | M22: 2 | N22: LESS THAN !% (pollen) | O22: 21.5 | P22: 9.2
A23: Plymouth | B23: Clear | C23: 1 | D23: 2023-06-13 | O23: 21.5 | P23: 9.1
A24: Plymouth | B24: Clear | C24: 2 | D24: 2023-06-13 | O24: 22 | P24: 10.4
A25: Plymouth | B25: Clear | C25: 3 | D25: 2023-06-13 | O25: 19.2 | P25: 11.1
A26: Plymouth | B26: Clear | C26: 4 | D26: 2023-06-13 | O26: 19.6 | P26: 10.8
A27: Plymouth | B27: Clear | C27: 5 | D27: 2023-06-13 | O27: 17.1 | P27: 11.9
A28: Plymouth | B28: Clear | C28: 6 | D28: 2023-06-13 | O28: 14.2 | P28: 11
A29: Plymouth | B29: Clear | C29: 7 | D29: 2023-06-13 | O29: 12.9 | P29: 5.2
A30: Plymouth | B30: Clear | C30: 0.5 | D30: 2023-07-17 | F30: 0 | G30: 10:00:00 | H30: 7.8 | I30: 3.6 | K30: DARK GREEN | L30: 2 | M30: 1 | O30: 26.7 | P30: 7.3
A31: Plymouth | B31: Clear | C31: 1 | D31: 2023-07-17 | O31: 26.6 | P31: 7.2
A32: Plymouth | B32: Clear | C32: 1.5 | D32: 2023-07-17 | O32: 26.6 | P32: 7.2
A33: Plymouth | B33: Clear | C33: 2 | D33: 2023-07-17 | O33: 26.5 | P33: 7.1
A34: Plymouth | B34: Clear | C34: 2.5 | D34: 2023-07-17 | O34: 26.5 | P34: 7.2
A35: Plymouth | B35: Clear | C35: 3 | D35: 2023-07-17 | O35: 26.4 | P35: 7
A36: Plymouth | B36: Clear | C36: 3.5 | D36: 2023-07-17 | O36: 25.7 | P36: 9.7
A37: Plymouth | B37: Clear | C37: 4 | D37: 2023-07-17 | O37: 23.1 | P37: 13.1
A38: Plymouth | B38: Clear | C38: 4.5 | D38: 2023-07-17 | O38: 21 | P38: 13.6
A39: Plymouth | B39: Clear | C39: 5 | D39: 2023-07-17 | O39: 18.8 | P39: 15.1
A40: Plymouth | B40: Clear | C40: 5.5 | D40: 2023-07-17 | O40: 17.2 | P40: 11
A41: Plymouth | B41: Clear | C41: 6 | D41: 2023-07-17 | O41: 15.8 | P41: 6.7
A42: Plymouth | B42: Clear | C42: 6.5 | D42: 2023-07-17 | O42: 14.7 | P42: 6.5
A43: Plymouth | B43: Clear | C43: 7 | D43: 2023-07-17 | O43: 13.8 | P43: 2.4
A44: Plymouth | B44: Clear | C44: 0.5 | D44: 2023-08-07 | F44: 0 | G44: 10:43:00 | H44: 7.3 | I44: 3.4 | K44: GREEN SPOTS | L44: 3 | M44: 2 | N44: FLOATING GREEN BLOBS (CYANO) 25-50% | O44: 25.6 | P44: 8.7
A45: Plymouth | B45: Clear | C45: 1 | D45: 2023-08-07 | O45: 25.6 | P45: 8.9
A46: Plymouth | B46: Clear | C46: 2 | D46: 2023-08-07 | O46: 25.6 | P46: 8.9
A47: Plymouth | B47: Clear | C47: 3 | D47: 2023-08-07 | O47: 25.6 | P47: 9
A48: Plymouth | B48: Clear | C48: 4 | D48: 2023-08-07 | O48: 25.4 | P48: 9
A49: Plymouth | B49: Clear | C49: 5 | D49: 2023-08-07 | O49: 21.5 | P49: 12.2
A50: Plymouth | B50: Clear | C50: 6 | D50: 2023-08-07 | O50: 19.4 | P50: 11
A51: Plymouth | B51: Clear | C51: 7 | D51: 2023-08-07 | O51: 14.4 | P51: 2
A52: Plymouth | B52: Clear | C52: 0.5 | D52: 2023-09-07 | F52: 2 | G52: 09:58:00 | H52: 7.7 | I52: 3.1 | J52: 0.4025974026 | K52: DARK GREEN, BROWN | L52: 1 | M52: 2 | N52: SUSPENDED GREEN GLOBS, CYANOBACTERIA? | O52: 25.9 | P52: 7.53 | Q52: 6.3 | R52: 19.3 | S52: 3.413839662 | T52: 0.025 | U52: 3.438839662 | V52: 0.6068740243 | W52: =V52*30.973762 -> 18.79717159 | X52: =W52/1000 -> 0.01879717159 | Y52: 22.62990494 | Z52: =Y52*14.0067 -> 316.9702896 | AA52: =Z52/1000 -> 0.3169702896
A53: Plymouth | B53: Clear | C53: 1 | D53: 2023-09-07 | G53: NS | O53: 25.7 | P53: 7.7 | Q53: NS | R53: NS | S53: NS | T53: NS | U53: NS | V53: NS | W53: NS | X53: NS | Y53: NS | Z53: NS | AA53: NS
A54: Plymouth | B54: Clear | C54: 2 | D54: 2023-09-07 | G54: NS | O54: 25.1 | P54: 7.8 | Q54: NS | R54: NS | S54: NS | T54: NS | U54: NS | V54: NS | W54: NS | X54: NS | Y54: NS | Z54: NS | AA54: NS
A55: Plymouth | B55: Clear | C55: 3 | D55: 2023-09-07 | G55: NS | O55: 24 | P55: 7.8 | Q55: NS | R55: NS | S55: NS | T55: NS | U55: NS | V55: NS | W55: NS | X55: NS | Y55: NS | Z55: NS | AA55: NS
A56: Plymouth | B56: Clear | C56: 4 | D56: 2023-09-07 | G56: NS | O56: 23.6 | P56: 7.6 | Q56: NS | R56: NS | S56: NS | T56: NS | U56: NS | V56: NS | W56: NS | X56: NS | Y56: NS | Z56: NS | AA56: NS
A57: Plymouth | B57: Clear | C57: 5 | D57: 2023-09-07 | G57: NS | O57: 22.7 | P57: 6.9 | Q57: NS | R57: NS | S57: NS | T57: NS | U57: NS | V57: NS | W57: NS | X57: NS | Y57: NS | Z57: NS | AA57: NS
A58: Plymouth | B58: Clear | C58: 6 | D58: 2023-09-07 | G58: NS | O58: 19.1 | P58: 6.85 | Q58: NS | R58: NS | S58: NS | T58: NS | U58: NS | V58: NS | W58: NS | X58: NS | Y58: NS | Z58: NS | AA58: NS
A59: Plymouth | B59: Clear | C59: 7 | D59: 2023-09-07 | G59: 10:03:00 | O59: 15.2 | P59: 1.4 | Q59: 6.88 | R59: 40 | S59: 14.50126582 | T59: 1.489400844 | U59: 15.99066667 | V59: 0.8824104265 | W59: =V59*30.973762 -> 27.33157054 | X59: =W59/1000 -> 0.02733157054 | Y59: 52.69169202 | Z59: =Y59*14.0067 -> 738.0367225 | AA59: =Z59/1000 -> 0.7380367225
A60: Plymouth | B60: Bloody | C60: 0.5 | D60: 2023-09-06 | F60: 2 | G60: 12:00:00 | H60: 8.9 | I60: 5.35 | J60: 0.6011235955 | K60: GREEN | L60: 1 | M60: 1 | N60: NONE | O60: 25.4 | P60: 7.4 | Q60: 5.73 | R60: 5.9 | S60: 0.7552742616 | T60: 0.05619240506 | U60: 0.8114666667 | V60: 0.3077198478 | W60: =V60*30.973762 -> 9.53124133 | X60: =W60/1000 -> 0.00953124133 | Y60: 14.97068441 | Z60: =Y60*14.0067 -> 209.6898853 | AA60: =Z60/1000 -> 0.2096898853
A61: Plymouth | B61: Bloody | C61: 1 | D61: 2023-09-06 | G61: NS | O61: 25.3 | P61: 7.3 | Q61: NS | R61: NS | S61: NS | T61: NS | U61: NS | V61: NS | W61: NS | X61: NS | Y61: NS | Z61: NS | AA61: NS
A62: Plymouth | B62: Bloody | C62: 2 | D62: 2023-09-06 | G62: NS | O62: 25.2 | P62: 7.2 | Q62: NS | R62: NS | S62: NS | T62: NS | U62: NS | V62: NS | W62: NS | X62: NS | Y62: NS | Z62: NS | AA62: NS
A63: Plymouth | B63: Bloody | C63: 3 | D63: 2023-09-06 | G63: NS | O63: 25.1 | P63: 7.3 | Q63: NS | R63: NS | S63: NS | T63: NS | U63: NS | V63: NS | W63: NS | X63: NS | Y63: NS | Z63: NS | AA63: NS
A64: Plymouth | B64: Bloody | C64: 4 | D64: 2023-09-06 | G64: NS | O64: 24.2 | P64: 7.4 | Q64: NS | R64: NS | S64: NS | T64: NS | U64: NS | V64: NS | W64: NS | X64: NS | Y64: NS | Z64: NS | AA64: NS
A65: Plymouth | B65: Bloody | C65: 5 | D65: 2023-09-06 | G65: NS | O65: 23.9 | P65: 7.2 | Q65: NS | R65: NS | S65: NS | T65: NS | U65: NS | V65: NS | W65: NS | X65: NS | Y65: NS | Z65: NS | AA65: NS
A66: Plymouth | B66: Bloody | C66: 6 | D66: 2023-09-06 | G66: 12:03:00 | O66: 23.8 | P66: 7.3 | Q66: 5.78 | R66: 4.7 | S66: 1.148016878 | T66: 0.1049831224 | U66: 1.253 | V66: 0.2307898859 | W66: =V66*30.973762 -> 7.148430997 | X66: =W66/1000 -> 0.007148430997 | Y66: 15.25823194 | Z66: =Y66*14.0067 -> 213.7174773 | AA66: =Z66/1000 -> 0.2137174773
A67: Plymouth | B67: Gallows | C67: 0.5 | D67: 2023-09-07 | F67: 3 | G67: 08:30:00 | H67: 9.1 | I67: 5.5 | J67: 0.6043956044 | K67: DARK GREEN | L67: 1 | M67: 1 | N67: NONE | O67: 25.5 | P67: 7.4 | Q67: 5.81 | R67: 3.5 | S67: 0.8519493671 | T67: 0.2650106329 | U67: 1.11696 | V67: 0.4930851447 | W67: =V67*30.973762 -> 15.27270192 | X67: =W67/1000 -> 0.01527270192 | Y67: 16.98351711 | Z67: =Y67*14.0067 -> 237.8830291 | AA67: =Z67/1000 -> 0.2378830291
A68: Plymouth | B68: Gallows | C68: 1 | D68: 2023-09-07 | G68: NS | O68: 25.5 | P68: 7 | Q68: NS | R68: NS | S68: NS | T68: NS | U68: NS | V68: NS | W68: NS | X68: NS | Y68: NS | Z68: NS | AA68: NS
A69: Plymouth | B69: Gallows | C69: 2 | D69: 2023-09-07 | G69: NS | O69: 25.4 | P69: 7.1 | Q69: NS | R69: NS | S69: NS | T69: NS | U69: NS | V69: NS | W69: NS | X69: NS | Y69: NS | Z69: NS | AA69: NS
A70: Plymouth | B70: Gallows | C70: 3 | D70: 2023-09-07 | G70: 08:35:00 | O70: 24.7 | P70: 6.9 | Q70: 5.72 | R70: 3.3 | S70: 0.8912236287 | T70: 0.3379097046 | U70: 1.229133333 | V70: 0.2307898859 | W70: =V70*30.973762 -> 7.148430997 | X70: =W70/1000 -> 0.007148430997 | Y70: 13.32382129 | Z70: =Y70*14.0067 -> 186.6227677 | AA70: =Z70/1000 -> 0.1866227677
A71: Plymouth | B71: Gallows | C71: 4 | D71: 2023-09-07 | G71: NS | O71: 24.1 | P71: 7.3 | Q71: NS | R71: NS | S71: NS | T71: NS | U71: NS | V71: NS | W71: NS | X71: NS | Y71: NS | Z71: NS | AA71: NS
A72: Plymouth | B72: Gallows | C72: 5 | D72: 2023-09-07 | G72: NS | O72: 23.8 | P72: 7.5 | Q72: NS | R72: NS | S72: NS | T72: NS | U72: NS | V72: NS | W72: NS | X72: NS | Y72: NS | Z72: NS | AA72: NS
A73: Plymouth | B73: Gallows | C73: 6 | D73: 2023-09-07 | G73: NS | O73: 23.6 | P73: 7.1 | Q73: NS | R73: NS | S73: NS | T73: NS | U73: NS | V73: NS | W73: NS | X73: NS | Y73: NS | Z73: NS | AA73: NS
A74: Plymouth | B74: Gallows | C74: 7 | D74: 2023-09-07 | G74: NS | O74: 23 | P74: 6.8 | Q74: NS | R74: NS | S74: NS | T74: NS | U74: NS | V74: NS | W74: NS | X74: NS | Y74: NS | Z74: NS | AA74: NS
A75: Plymouth | B75: Gallows | C75: 8 | D75: 2023-09-07 | G75: 08:40:00 | O75: 20.1 | P75: 3 | Q75: 5.07 | R75: 2.9 | S75: 1.64649789 | T75: 1.742568776 | U75: 3.389066667 | V75: 0.6068740243 | W75: =V75*30.973762 -> 18.79717159 | X75: =W75/1000 -> 0.01879717159 | Y75: 15.62420152 | Z75: =Y75*14.0067 -> 218.8435034 | AA75: =Z75/1000 -> 0.2188435034
A76: Plymouth | B76: Gallows | C76: 9 | D76: 2023-09-07 | G76: NS | O76: 17.4 | P76: 1.1 | Q76: NS | R76: NS | S76: NS | T76: NS | U76: NS | V76: NS | W76: NS | X76: NS | Y76: NS | Z76: NS | AA76: NS
A77: Plymouth | B77: Halfway | C77: 0.5 | D77: 2023-09-06 | G77: 10:15:00 | H77: 3.5 | I77: 2.8 | J77: 0.8 | K77: GREEN | L77: 1 | M77: 2 | N77: NONE | O77: 24.6 | P77: 8 | Q77: 6.01 | R77: 8.7 | S77: 1.465232068 | T77: 0.1815679325 | U77: 1.6468 | V77: 0.6068740243 | W77: =V77*30.973762 -> 18.79717159 | X77: =W77/1000 -> 0.01879717159 | Y77: 18.78722433 | Z77: =Y77*14.0067 -> 263.1470151 | AA77: =Z77/1000 -> 0.2631470151
A78: Plymouth | B78: Halfway | C78: 1 | D78: 2023-09-06 | G78: NS | O78: 24.4 | P78: 8.2 | Q78: NS | R78: NS | S78: NS | T78: NS | U78: NS | V78: NS | W78: NS | X78: NS | Y78: NS | Z78: NS | AA78: NS
A79: Plymouth | B79: Halfway | C79: 2 | D79: 2023-09-06 | G79: NS | O79: 24.1 | P79: 8.3 | Q79: NS | R79: NS | S79: NS | T79: NS | U79: NS | V79: NS | W79: NS | X79: NS | Y79: NS | Z79: NS | AA79: NS
A80: Plymouth | B80: Halfway | C80: 3 | D80: 2023-09-06 | G80: 10:25:00 | O80: 23 | P80: 8.7 | Q80: 5.85 | R80: 8.1 | S80: 2.356455696 | T80: 0.4240109705 | U80: 2.780466667 | V80: 0.4615797718 | W80: =V80*30.973762 -> 14.29686199 | X80: =W80/1000 -> 0.01429686199 | Y80: 15.41507605 | Z80: =Y80*14.0067 -> 215.9143456 | AA80: =Z80/1000 -> 0.2159143456
A81: Plymouth | B81: Little Long | C81: 0.5 | D81: 2023-09-07 | F81: 2 | G81: 12:15:00 | H81: 3 | I81: 2.3 | J81: 0.7666666667 | K81: BLUE GREEN | L81: 1 | M81: 1 | N81: NONE | O81: 25.5 | P81: 8.4 | Q81: 6.21 | R81: 12.9 | S81: 1.465232068 | T81: 0.1099679325 | U81: 1.5752 | V81: 0.6448036508 | W81: =V81*30.973762 -> 19.97199482 | X81: =W81/1000 -> 0.01997199482 | Y81: 22.62990494 | Z81: =Y81*14.0067 -> 316.9702896 | AA81: =Z81/1000 -> 0.3169702896
A82: Plymouth | B82: Little Long | C82: 1 | D82: 2023-09-07 | G82: NS | O82: 25.1 | P82: 8.7 | Q82: NS | R82: NS | S82: NS | T82: NS | U82: NS | V82: NS | W82: NS | X82: NS | Y82: NS | Z82: NS | AA82: NS
A83: Plymouth | B83: Little Long | C83: 1.5 | D83: 2023-09-07 | G83: NS | O83: 24.2 | P83: 9.4 | Q83: NS | R83: NS | S83: NS | T83: NS | U83: NS | V83: NS | W83: NS | X83: NS | Y83: NS | Z83: NS | AA83: NS
A84: Plymouth | B84: Little Long | C84: 2 | D84: 2023-09-07 | G84: 12:15:00 | O84: 23.3 | P84: 9.6 | Q84: 6.02 | R84: 11.9 | S84: 2.296033755 | T84: 0.8543662447 | U84: 3.1504 | V84: 0.7585925303 | W84: =V84*30.973762 -> 23.49646449 | X84: =W84/1000 -> 0.02349646449 | Y84: 26.81241445 | Z84: =Y84*14.0067 -> 375.5534455 | AA84: =Z84/1000 -> 0.3755534455
A85: Plymouth | B85: Little Long | C85: 2.5 | D85: 2023-09-07 | G85: NS | O85: 21.8 | P85: 10.5 | Q85: NS | R85: NS | S85: NS | T85: NS | U85: NS | V85: NS | W85: NS | X85: NS | Y85: NS | Z85: NS | AA85: NS
A86: Plymouth | B86: Little Long | C86: 3 | D86: 2023-09-07 | O86: 22 | P86: 0.7 | Q86: NS | R86: NS | S86: NS | T86: NS | U86: NS | V86: NS | W86: NS | X86: NS | Y86: NS | Z86: NS | AA86: NS
A87: Plymouth | B87: Long | C87: 0.5 | D87: 2023-09-07 | F87: 4 | G87: 10:24:00 | H87: 31.2 | I87: 5.05 | J87: 0.1618589744 | K87: GREEN, BLUE | L87: 1 | M87: 1 | N87: NONE | O87: 25.9 | P87: 7.6 | Q87: 6.32 | R87: 12.6 | S87: 0.7930379747 | T87: 0.1914620253 | U87: 0.9845 | V87: 0.5310147712 | W87: =V87*30.973762 -> 16.44752514 | X87: =W87/1000 -> 0.01644752514 | Y87: 21.00918251 | Z87: =Y87*14.0067 -> 294.2693167 | AA87: =Z87/1000 -> 0.2942693167
A88: Plymouth | B88: Long | C88: 1 | D88: 2023-09-07 | G88: NS | O88: 25.5 | P88: 7.6 | Q88: NS | R88: NS | S88: NS | T88: NS | U88: NS | V88: NS | W88: NS | X88: NS | Y88: NS | Z88: NS | AA88: NS
A89: Plymouth | B89: Long | C89: 2 | D89: 2023-09-07 | G89: NS | O89: 25.3 | P89: 7.8 | Q89: NS | R89: NS | S89: NS | T89: NS | U89: NS | V89: NS | W89: NS | X89: NS | Y89: NS | Z89: NS | AA89: NS
A90: Plymouth | B90: Long | C90: 3 | D90: 2023-09-07 | G90: 10:30:00 | O90: 25.2 | P90: 7.9 | Q90: 6.4 | R90: 12.3 | S90: 1.049831224 | T90: 0.0540021097 | U90: 1.103833333 | V90: 0.6068740243 | W90: =V90*30.973762 -> 18.79717159 | X90: =W90/1000 -> 0.01879717159 | Y90: 19.62372624 | Z90: =Y90*14.0067 -> 274.8636463 | AA90: =Z90/1000 -> 0.2748636463
A91: Plymouth | B91: Long | C91: 4 | D91: 2023-09-07 | G91: NS | O91: 24.4 | P91: 8.4 | Q91: NS | R91: NS | S91: NS | T91: NS | U91: NS | V91: NS | W91: NS | X91: NS | Y91: NS | Z91: NS | AA91: NS
A92: Plymouth | B92: Long | C92: 5 | D92: 2023-09-07 | G92: NS | O92: 24 | P92: 8.5 | Q92: NS | R92: NS | S92: NS | T92: NS | U92: NS | V92: NS | W92: NS | X92: NS | Y92: NS | Z92: NS | AA92: NS
A93: Plymouth | B93: Long | C93: 6 | D93: 2023-09-07 | G93: NS | O93: 23.8 | P93: 8.5 | Q93: NS | R93: NS | S93: NS | T93: NS | U93: NS | V93: NS | W93: NS | X93: NS | Y93: NS | Z93: NS | AA93: NS
A94: Plymouth | B94: Long | C94: 7 | D94: 2023-09-07 | G94: NS | O94: 23.6 | P94: 8.5 | Q94: NS | R94: NS | S94: NS | T94: NS | U94: NS | V94: NS | W94: NS | X94: NS | Y94: NS | Z94: NS | AA94: NS
A95: Plymouth | B95: Long | C95: 8 | D95: 2023-09-07 | G95: NS | O95: 23.3 | P95: 8.6 | Q95: NS | R95: NS | S95: NS | T95: NS | U95: NS | V95: NS | W95: NS | X95: NS | Y95: NS | Z95: NS | AA95: NS
A96: Plymouth | B96: Long | C96: 9 | D96: 2023-09-07 | G96: 10:35:00 | O96: 18.9 | P96: 13.6 | Q96: 5.69 | R96: 10.9 | S96: 5.483291139 | T96: 0.025 | U96: 5.508291139 | V96: 0.5689443977 | W96: =V96*30.973762 -> 17.62234837 | X96: =W96/1000 -> 0.01762234837 | Y96: 30.47211027 | Z96: =Y96*14.0067 -> 426.8137069 | AA96: =Z96/1000 -> 0.4268137069
A97: Plymouth | B97: Long | C97: 10 | D97: 2023-09-07 | G97: NS | O97: 15.5 | P97: 14 | Q97: NS | R97: NS | S97: NS | T97: NS | U97: NS | V97: NS | W97: NS | X97: NS | Y97: NS | Z97: NS | AA97: NS
A98: Plymouth | B98: Long | C98: 11 | D98: 2023-09-07 | G98: NS | O98: 12.6 | P98: 13.8 | Q98: NS | R98: NS | S98: NS | T98: NS | U98: NS | V98: NS | W98: NS | X98: NS | Y98: NS | Z98: NS | AA98: NS
A99: Plymouth | B99: Long | C99: 12 | D99: 2023-09-07 | G99: NS | O99: 10.8 | P99: 12.8 | Q99: NS | R99: NS | S99: NS | T99: NS | U99: NS | V99: NS | W99: NS | X99: NS | Y99: NS | Z99: NS | AA99: NS
A100: Plymouth | B100: Long | C100: 13 | D100: 2023-09-07 | G100: NS | O100: 9.4 | P100: 9.6 | Q100: NS | R100: NS | S100: NS | T100: NS | U100: NS | V100: NS | W100: NS | X100: NS | Y100: NS | Z100: NS | AA100: NS
A101: Plymouth | B101: Long | C101: 14 | D101: 2023-09-07 | G101: NS | O101: 8.2 | P101: 5.6 | Q101: NS | R101: NS | S101: NS | T101: NS | U101: NS | V101: NS | W101: NS | X101: NS | Y101: NS | Z101: NS | AA101: NS
A102: Plymouth | B102: Long | C102: 15 | D102: 2023-09-07 | G102: NS | O102: 7.9 | P102: 4.3 | Q102: NS | R102: NS | S102: NS | T102: NS | U102: NS | V102: NS | W102: NS | X102: NS | Y102: NS | Z102: NS | AA102: NS
A103: Plymouth | B103: Long | C103: 16 | D103: 2023-09-07 | G103: NS | O103: 7.6 | P103: 2.5 | Q103: NS | R103: NS | S103: NS | T103: NS | U103: NS | V103: NS | W103: NS | X103: NS | Y103: NS | Z103: NS | AA103: NS
A104: Plymouth | B104: Long | C104: 17 | D104: 2023-09-07 | G104: NS | O104: 7.5 | P104: 2.3 | Q104: NS | R104: NS | S104: NS | T104: NS | U104: NS | V104: NS | W104: NS | X104: NS | Y104: NS | Z104: NS | AA104: NS
A105: Plymouth | B105: Long | C105: 18 | D105: 2023-09-07 | G105: NS | O105: 7.3 | P105: 1.4 | Q105: NS | R105: NS | S105: NS | T105: NS | U105: NS | V105: NS | W105: NS | X105: NS | Y105: NS | Z105: NS | AA105: NS
A106: Plymouth | B106: Long | C106: 19 | D106: 2023-09-07 | G106: NS | O106: 7.2 | P106: 1.2 | Q106: NS | R106: NS | S106: NS | T106: NS | U106: NS | V106: NS | W106: NS | X106: NS | Y106: NS | Z106: NS | AA106: NS
A107: Plymouth | B107: Long | C107: 20 | D107: 2023-09-07 | G107: NS | O107: 7.1 | P107: 1.3 | Q107: NS | R107: NS | S107: NS | T107: NS | U107: NS | V107: NS | W107: NS | X107: NS | Y107: NS | Z107: NS | AA107: NS
A108: Plymouth | B108: Long | C108: 22 | D108: 2023-09-07 | G108: 10:44:00 | O108: 7.1 | P108: 1.2 | Q108: 8.4 | R108: 12.3 | S108: 1.087594937 | T108: 0.94107173 | U108: 2.028666667 | V108: 0.784736114 | W108: =V108*30.973762 -> 24.30622963 | X108: =W108/1000 -> 0.02430622963 | Y108: 45.37230038 | Z108: =Y108*14.0067 -> 635.5161997 | AA108: =Z108/1000 -> 0.6355161997
A109: Plymouth | B109: Long | C109: 24 | D109: 2023-09-07 | G109: NS | O109: 7 | P109: 1.2 | Q109: NS | R109: NS | S109: NS | T109: NS | U109: NS | V109: NS | W109: NS | X109: NS | Y109: NS | Z109: NS | AA109: NS
A110: Plymouth | B110: Long | C110: 26 | D110: 2023-09-07 | G110: NS | O110: 7 | P110: 1.2 | Q110: NS | R110: NS | S110: NS | T110: NS | U110: NS | V110: NS | W110: NS | X110: NS | Y110: NS | Z110: NS | AA110: NS
A111: Plymouth | B111: Long | C111: 28 | D111: 2023-09-07 | G111: NS | O111: 7 | P111: 1.2 | Q111: NS | R111: NS | S111: NS | T111: NS | U111: NS | V111: NS | W111: NS | X111: NS | Y111: NS | Z111: NS | AA111: NS
A112: Plymouth | B112: Long | C112: 30 | D112: 2023-09-07 | G112: NS | O112: 7 | P112: 1.2 | Q112: NS | R112: NS | S112: NS | T112: NS | U112: NS | V112: NS | W112: NS | X112: NS | Y112: NS | Z112: NS | AA112: NS
A113: Plymouth | B113: Round | C113: 0.5 | D113: 2023-09-06 | F113: 2 | G113: 08:00:00 | H113: 6.3 | I113: 5.2 | J113: 0.8253968254 | K113: DARK GREEN | L113: 1 | M113: 1 | N113: NONE | O113: 24.9 | P113: 7.8 | Q113: 5.64 | R113: 3.3 | S113: 0.7024050633 | T113: 0.03149493671 | U113: 0.7339 | V113: 0.4551555182 | W113: =V113*30.973762 -> 14.09787869 | X113: =W113/1000 -> 0.01409787869 | Y113: 16.27771863 | Z113: =Y113*14.0067 -> 227.9971216 | AA113: =Z113/1000 -> 0.2279971216
A114: Plymouth | B114: Round | C114: 1 | D114: 2023-09-06 | G114: NS | O114: 25 | P114: 7.8 | Q114: NS | R114: NS | S114: NS | T114: NS | U114: NS | V114: NS | W114: NS | X114: NS | Y114: NS | Z114: NS | AA114: NS
A115: Plymouth | B115: Round | C115: 2 | D115: 2023-09-06 | G115: NS | O115: 24.9 | P115: 7.8 | Q115: NS | R115: NS | S115: NS | T115: NS | U115: NS | V115: NS | W115: NS | X115: NS | Y115: NS | Z115: NS | AA115: NS
A116: Plymouth | B116: Round | C116: 3 | D116: 2023-09-06 | G116: NS | O116: 24.6 | P116: 7.9 | Q116: NS | R116: NS | S116: NS | T116: NS | U116: NS | V116: NS | W116: NS | X116: NS | Y116: NS | Z116: NS | AA116: NS
A117: Plymouth | B117: Round | C117: 4 | D117: 2023-09-06 | G117: NS | O117: 24.3 | P117: 7.9 | Q117: NS | R117: NS | S117: NS | T117: NS | U117: NS | V117: NS | W117: NS | X117: NS | Y117: NS | Z117: NS | AA117: NS
A118: Plymouth | B118: Round | C118: 5 | D118: 2023-09-06 | G118: NS | O118: 24.1 | P118: 8.1 | Q118: NS | R118: NS | S118: NS | T118: NS | U118: NS | V118: NS | W118: NS | X118: NS | Y118: NS | Z118: NS | AA118: NS
A119: Plymouth | B119: Round | C119: 6 | D119: 2023-09-06 | G119: 08:10:00 | O119: 24 | P119: 8.1 | Q119: 5.64 | R119: 3.9 | S119: 0.8005907173 | T119: 0.3092092827 | U119: 1.1098 | V119: 0.3077198478 | W119: =V119*30.973762 -> 9.53124133 | X119: =W119/1000 -> 0.00953124133 | Y119: 15.17980989 | Z119: =Y119*14.0067 -> 212.6190431 | AA119: =Z119/1000 -> 0.2126190431
A120: Plymouth | B120: Savery | C120: 0.5 | D120: 2023-07-18 | F120: 2 | G120: 07:30:00 | H120: 3.6 | I120: 2.75 | J120: 0.7638888889 | K120: CLEAR WITH BROWN CAST | L120: 2 | M120: 2 | N120: UP TO 10% OF WATERLILIES, EMERGENT GRASSES/SEDGES, AND PURPLE BLADDERWORT | O120: 26.2 | P120: 7.4 | Q120: 5.77 | R120: 6.5 | S120: 1.631392405 | T120: 1.617457595 | U120: 3.24885 | V120: 0.6274162371 | W120: =V120*30.973762 -> 19.4334412 | X120: =W120/1000 -> 0.0194334412 | Y120: 35.4388403 | Z120: =Y120*14.0067 -> 496.3812045 | AA120: =Z120/1000 -> 0.4963812045
A121: Plymouth | B121: Savery | C121: 1 | D121: 2023-07-18 | G121: NS | O121: 26.5 | P121: 7.3 | Q121: NS | R121: NS | S121: NS | T121: NS | U121: NS | V121: NS | W121: NS | X121: NS | Y121: NS | Z121: NS | AA121: NS
A122: Plymouth | B122: Savery | C122: 1.5 | D122: 2023-07-18 | G122: NS | O122: 26.7 | P122: 7.2 | Q122: NS | R122: NS | S122: NS | T122: NS | U122: NS | V122: NS | W122: NS | X122: NS | Y122: NS | Z122: NS | AA122: NS
A123: Plymouth | B123: Savery | C123: 2 | D123: 2023-07-18 | G123: NS | O123: 26.7 | P123: 7.2 | Q123: NS | R123: NS | S123: NS | T123: NS | U123: NS | V123: NS | W123: NS | X123: NS | Y123: NS | Z123: NS | AA123: NS
A124: Plymouth | B124: Savery | C124: 2.5 | D124: 2023-07-18 | G124: NS | O124: 26.5 | P124: 6.2 | Q124: NS | R124: NS | S124: NS | T124: NS | U124: NS | V124: NS | W124: NS | X124: NS | Y124: NS | Z124: NS | AA124: NS
A125: Plymouth | B125: Savery | C125: 3 | D125: 2023-07-18 | G125: 07:35:00 | O125: 26.1 | P125: 4.8 | Q125: 5.37 | R125: 5.6 | S125: 1.087594937 | T125: 7.361205063 | U125: 8.4488 | V125: 0.8680914554 | W125: =V125*30.973762 -> 26.88805814 | X125: =W125/1000 -> 0.02688805814 | Y125: 28.64226236 | Z125: =Y125*14.0067 -> 401.1835762 | AA125: =Z125/1000 -> 0.4011835762
A126: Plymouth | B126: Savery | C126: 3.5 | D126: 2023-07-18 | G126: NS | O126: 25.2 | P126: 2 | Q126: NS | R126: NS | S126: NS | T126: NS | U126: NS | V126: NS | W126: NS | X126: NS | Y126: NS | Z126: NS | AA126: NS
A127: Plymouth | B127: Savery | C127: 0.5 | D127: 2023-08-29 | F127: 2 | G127: 09:45:00 | H127: 3.8 | I127: 2.9 | J127: 0.7631578947 | K127: CLEAR BLACK | L127: 5 | M127: 1 | N127: UP TO 10% OF WATERLILIES, EMERGENT GRASSES/SEDGES, AND PURPLE BLADDERWORT | O127: 22.9 | P127: 6.9 | Q127: 5.85 | R127: 7.9 | S127: 10.75510549 | T127: 0.7963611814 | U127: 11.55146667 | V127: 0.5000447527 | W127: =V127*30.973762 -> 15.48826716 | X127: =W127/1000 -> 0.01548826716 | Y127: 29.16507605 | Z127: =Y127*14.0067 -> 408.5064706 | AA127: =Z127/1000 -> 0.4085064706
A128: Plymouth | B128: Savery | C128: 1 | D128: 2023-08-29 | G128: NS | O128: 22.9 | P128: 6.9 | Q128: NS | R128: NS | S128: NS | T128: NS | U128: NS | V128: NS | W128: NS | X128: NS | Y128: NS | Z128: NS | AA128: NS
A129: Plymouth | B129: Savery | C129: 1.5 | D129: 2023-08-29 | G129: NS | O129: 22.8 | P129: 6.5 | Q129: NS | R129: NS | S129: NS | T129: NS | U129: NS | V129: NS | W129: NS | X129: NS | Y129: NS | Z129: NS | AA129: NS
A130: Plymouth | B130: Savery | C130: 2 | D130: 2023-08-29 | G130: NS | O130: 22.8 | P130: 6.5 | Q130: NS | R130: NS | S130: NS | T130: NS | U130: NS | V130: NS | W130: NS | X130: NS | Y130: NS | Z130: NS | AA130: NS
A131: Plymouth | B131: Savery | C131: 2.5 | D131: 2023-08-29 | G131: NS | O131: 22.8 | P131: 5.8 | Q131: NS | R131: NS | S131: NS | T131: NS | U131: NS | V131: NS | W131: NS | X131: NS | Y131: NS | Z131: NS | AA131: NS
A132: Plymouth | B132: Savery | C132: 3 | D132: 2023-08-29 | G132: 09:40:00 | O132: 22.7 | P132: 5.9 | Q132: 5.66 | R132: 7.5 | S132: 13.89704641 | T132: 2.570953586 | U132: 16.468 | V132: 0.5769747147 | W132: =V132*30.973762 -> 17.87107749 | X132: =W132/1000 -> 0.01787107749 | Y132: 30.73351711 | Z132: =Y132*14.0067 -> 430.4751541 | AA132: =Z132/1000 -> 0.4304751541
A133: Plymouth | B133: Great Herring | C133: 0.5 | D133: 2023-04-20 | E133: Sample | F133: 7 | G133: 10:35:00 | H133: 14 | I133: 6 | J133: 0.4285714286 | K133: CLEAR LIGHT GREEN | L133: 1 | M133: ND | N133: NONE | O133: 12.64 | P133: 9.73 | Q133: 5.96 | R133: 14.6 | S133: 0.9516455696 | T133: 0.3908544304 | U133: 1.3425 | V133: 0.9118111011 | W133: =V133*30.973762 -> 28.24222003 | X133: =W133/1000 -> 0.02824222003 | Y133: 33.34758555 | Z133: =Y133*14.0067 -> 467.0896265 | AA133: =Z133/1000 -> 0.4670896265
A134: Plymouth | B134: Great Herring | C134: 0.5 | D134: 2023-04-20 | E134: FD | G134: 10:39:00 | O134: 12.64 | P134: 9.73 | Q134: 5.31 | R134: 14.4 | S134: 0.6231012658 | T134: 0.9520987342 | U134: 1.5752 | V134: 0.9422048045 | W134: =V134*30.973762 -> 29.18362737 | X134: =W134/1000 -> 0.02918362737 | Y134: 27.59663498 | Z134: =Y134*14.0067 -> 386.5377872 | AA134: 0.3865377872
A135: Plymouth | B135: Great Herring | C135: 1 | D135: 2023-04-20 | G135: NS | O135: 12.63 | P135: 9.61 | Q135: NS | R135: NS | S135: NS | T135: NS | U135: NS | V135: NS | W135: NS | X135: NS | Y135: NS | Z135: NS | AA135: NS
A136: Plymouth | B136: Great Herring | C136: 2 | D136: 2023-04-20 | G136: NS | O136: 12.63 | P136: 9.65 | Q136: NS | R136: NS | S136: NS | T136: NS | U136: NS | V136: NS | W136: NS | X136: NS | Y136: NS | Z136: NS | AA136: NS
A137: Plymouth | B137: Great Herring | C137: 3 | D137: 2023-04-20 | G137: 10:43:00 | O137: 12.57 | P137: 9.63 | Q137: 5.15 | R137: 12.8 | S137: 0.4758227848 | T137: 0.7682272152 | U137: 1.24405 | V137: 1.002992211 | W137: =V137*30.973762 -> 31.06644204 | X137: =W137/1000 -> 0.03106644204 | Y137: 29.16507605 | Z137: =Y137*14.0067 -> 408.5064706 | AA137: =Z137/1000 -> 0.4085064706
A138: Plymouth | B138: Great Herring | C138: 4 | D138: 2023-04-20 | G138: NS | O138: 12.5 | P138: 9.66 | Q138: NS | R138: NS | S138: NS | T138: NS | U138: NS | V138: NS | W138: NS | X138: NS | Y138: NS | Z138: NS | AA138: NS
A139: Plymouth | B139: Great Herring | C139: 5 | D139: 2023-04-20 | G139: NS | O139: 12.47 | P139: 9.64 | Q139: NS | R139: NS | S139: NS | T139: NS | U139: NS | V139: NS | W139: NS | X139: NS | Y139: NS | Z139: NS | AA139: NS
A140: Plymouth | B140: Great Herring | C140: 6 | D140: 2023-04-20 | G140: NS | O140: 12.44 | P140: 9.64 | Q140: NS | R140: NS | S140: NS | T140: NS | U140: NS | V140: NS | W140: NS | X140: NS | Y140: NS | Z140: NS | AA140: NS
A141: Plymouth | B141: Great Herring | C141: 7 | D141: 2023-04-20 | G141: NS | O141: 12.43 | P141: 9.7 | Q141: NS | R141: NS | S141: NS | T141: NS | U141: NS | V141: NS | W141: NS | X141: NS | Y141: NS | Z141: NS | AA141: NS
A142: Plymouth | B142: Great Herring | C142: 8 | D142: 2023-04-20 | G142: 10:47:00 | O142: 12.42 | P142: 9.76 | Q142: 5.23 | R142: 13.3 | S142: 0.6570886076 | T142: 0.8107113924 | U142: 1.4678 | V142: 1.063779618 | W142: =V142*30.973762 -> 32.94925671 | X142: =W142/1000 -> 0.03294925671 | Y142: 36.74587452 | Z142: =Y142*14.0067 -> 514.6884407 | AA142: =Z142/1000 -> 0.5146884407
A143: Plymouth | B143: Great Herring | C143: 9 | D143: 2023-04-20 | G143: 10:50:00 | O143: 12.24 | P143: 9.73 | Q143: 5.28 | R143: 13.5 | S143: 0.2265822785 | T143: 1.652917722 | U143: 1.8795 | V143: 1.246141838 | W143: 38.59770071 | X143: 0.03859770071 | Y143: 23.41412548 | Z143: 327.9546313 | AA143: 0.3279546313
A144: Plymouth | B144: Great Herring | C144: 10 | D144: 2023-04-20 | G144: 10:59:00 | O144: 12.07 | P144: 9.77 | Q144: 5.3 | R144: 12.7 | S144: 0.2718987342 | T144: 1.840301266 | U144: 2.1122 | V144: 1.124567025 | W144: 34.83207138 | X144: 0.03483207138 | Y144: 32.04055133 | Z144: 448.7823903 | AA144: 0.4487823903
A145: Plymouth | B145: Great Herring | C145: 11 | D145: 2023-04-20 | G145: 11:04:00 | O145: 11.99 | P145: 9.7 | Q145: 5.25 | R145: 15.8 | S145: 0.9289873418 | T145: 1.433812658 | U145: 2.3628 | V145: 1.033385915 | W145: 32.00784937 | X145: 0.03200784937 | Y145: 20.3556654 | Z145: 285.1156985 | AA145: 0.2851156985
A146: Plymouth | B146: Carters Brook | D146: 2023-04-20 | F146: 1 | G146: 09:10:00 | O146: ND | P146: ND | Q146: 5.35 | R146: 19.5 | S146: 5.551265823 | T146: 9.037234177 | U146: 14.5885 | V146: 1.276535542 | W146: 39.53910805 | X146: 0.03953910805 | Y146: 85.52069412 | Z146: 1197.862706 | AA146: 1.197862706
A147: Plymouth | B147: Herring Brook | D147: 2023-04-20 | F147: 1 | G147: 09:25:00 | O147: ND | P147: ND | Q147: 5.2 | R147: 11.7 | S147: 0.5777848101 | T147: 0.3709151899 | U147: 0.9487 | V147: 0.9725985078 | W147: 30.1250347 | X147: 0.0301250347 | Y147: 21.57120722 | Z147: 302.1414282 | AA147: 0.3021414282
A148: Plymouth | B148: Great Herring | C148: 0.5 | D148: 2023-05-25 | E148: Sample | F148: 7 | G148: 10:14:00 | H148: 12.8 | I148: 3 | J148: 0.234375 | K148: DARK GREEN | L148: 3 | M148: 4 | N148: NONE | O148: 17.57 | P148: 3.44 | Q148: 5.92 | R148: 12.5 | S148: 2.646481013 | T148: 0.5182389873 | U148: 3.16472 | V148: 0.9725985078 | W148: 30.1250347 | X148: 0.0301250347 | Y148: 34.78532319 | Z148: 487.2275864 | AA148: 0.4872275864
A149: Plymouth | B149: Great Herring | C149: 0.5 | D149: 2023-05-25 | E149: FD | G149: 10:12:00 | O149: 17.57 | P149: 3.44 | Q149: 6.04 | R149: 12.9 | S149: 1.921417722 | T149: 1.171702278 | U149: 3.09312 | V149: 1.094173321 | W149: 33.89066404 | X149: 0.03389066404 | Y149: 26.28960076 | Z149: 368.230551 | AA149: 0.368230551
A150: Plymouth | B150: Great Herring | C150: 1 | D150: 2023-05-25 | G150: NS | O150: 17.6 | P150: 3.46 | Q150: NS | R150: NS | S150: NS | T150: NS | U150: NS | V150: NS | W150: NS | X150: NS | Y150: NS | Z150: NS | AA150: NS
A151: Plymouth | B151: Great Herring | C151: 2 | D151: 2023-05-25 | G151: NS | O151: 17.6 | P151: 3.46 | Q151: NS | R151: NS | S151: NS | T151: NS | U151: NS | V151: NS | W151: NS | X151: NS | Y151: NS | Z151: NS | AA151: NS
A152: Plymouth | B152: Great Herring | C152: 3 | D152: 2023-05-25 | G152: 10:07:00 | O152: 17.6 | P152: 3.46 | Q152: 5.88 | R152: 13.2 | S152: 2.374582278 | T152: 1.291337722 | U152: 3.66592 | V152: 0.9725985078 | W152: =V152*30.973762 -> 30.1250347 | X152: =W152/1000 -> 0.0301250347 | Y152: 21.84568441 | Z152: =Y152*14.0067 -> 305.9859478 | AA152: =Z152/1000 -> 0.3059859478
A153: Plymouth | B153: Great Herring | C153: 4 | D153: 2023-05-25 | G153: NS | O153: 17.62 | P153: 3.46 | Q153: NS | R153: NS | S153: NS | T153: NS | U153: NS | V153: NS | W153: NS | X153: NS | Y153: NS | Z153: NS | AA153: NS
A154: Plymouth | B154: Great Herring | C154: 5 | D154: 2023-05-25 | G154: NS | O154: 17.62 | P154: 3.46 | Q154: NS | R154: NS | S154: NS | T154: NS | U154: NS | V154: NS | W154: NS | X154: NS | Y154: NS | Z154: NS | AA154: NS
A155: Plymouth | B155: Great Herring | C155: 6 | D155: 2023-05-25 | G155: NS | O155: 17.61 | P155: 6.46 | Q155: NS | R155: NS | S155: NS | T155: NS | U155: NS | V155: NS | W155: NS | X155: NS | Y155: NS | Z155: NS | AA155: NS
A156: Plymouth | B156: Great Herring | C156: 7 | D156: 2023-05-25 | G156: NS | O156: 17.6 | P156: 3.45 | Q156: NS | R156: NS | S156: NS | T156: NS | U156: NS | V156: NS | W156: NS | X156: NS | Y156: NS | Z156: NS | AA156: NS
A157: Plymouth | B157: Great Herring | C157: 8 | D157: 2023-05-25 | G157: 10:02:00 | O157: 17.59 | P157: 3.45 | Q157: 6 | R157: 12.4 | S157: 1.395746835 | T157: 2.026733165 | U157: 3.42248 | V157: 1.063779618 | W157: =V157*30.973762 -> 32.94925671 | X157: =W157/1000 -> 0.03294925671 | Y157: 54.78294677 | Z157: =Y157*14.0067 -> 767.3283005 | AA157: =Z157/1000 -> 0.7673283005
A158: Plymouth | B158: Great Herring | C158: 9 | D158: 2023-05-25 | G158: 09:56:00 | O158: 17.59 | P158: 3.44 | Q158: 5.99 | R158: 12.3 | S158: 2.202379747 | T158: 1.205780253 | U158: 3.40816 | V158: 0.9725985078 | W158: 30.1250347 | X158: 0.0301250347 | Y158: 30.21070342 | Z158: 423.1522596 | AA158: 0.4231522596
A159: Plymouth | B159: Great Herring | C159: 10 | D159: 2023-05-25 | G159: 09:50:00 | O159: 17.51 | P159: 3.34 | Q159: 6 | R159: 12.9 | S159: 2.755240506 | T159: 0.4452794937 | U159: 3.20052 | V159: 1.337322948 | W159: 41.42192272 | X159: 0.04142192272 | Y159: 30.73351711 | Z159: 430.4751541 | AA159: 0.4304751541
A160: Plymouth | B160: Great Herring | C160: 11 | D160: 2023-05-25 | G160: NS | O160: 17.5 | P160: 3.35 | Q160: NS | R160: NS | S160: NS | T160: NS | U160: NS | V160: NS | W160: NS | X160: NS | Y160: NS | Z160: NS | AA160: NS
A161: Plymouth | B161: Great Herring | C161: 12 | D161: 2023-05-25 | G161: 09:43:00 | O161: 17.5 | P161: 3.35 | Q161: NS | R161: NS | S161: NS | T161: NS | U161: NS | V161: NS | W161: NS | X161: NS | Y161: NS | Z161: NS | AA161: NS
A162: Plymouth | B162: Great Herring | C162: 12.8 | D162: 2023-05-25 | G162: NS | O162: 17.48 | P162: 3.36 | Q162: 6.07 | R162: 12.5 | S162: 2.682734177 | T162: 0.5177858228 | U162: 3.20052 | V162: 0.9725985078 | W162: =V162*30.973762 -> 30.1250347 | X162: =W162/1000 -> 0.0301250347 | Y162: 21.84568441 | Z162: =Y162*14.0067 -> 305.9859478 | AA162: =Z162/1000 -> 0.3059859478
A163: Plymouth | B163: Carters Brook | D163: 2023-05-25 | F163: 1 | G163: 11:20:00 | O163: ND | P163: ND | Q163: 6.09 | R163: 19.4 | S163: 0.03 | T163: 3.125113418 | U163: 3.155113418 | V163: 1.337322948 | W163: 41.42192272 | X163: 0.04142192272 | Y163: 51.64606464 | Z163: 723.3909336 | AA163: 0.7233909336
A164: Plymouth | B164: Herring Brook | D164: 2023-05-25 | F164: 1 | G164: 10:55:00 | O164: ND | P164: ND | Q164: 6.03 | R164: 12.6 | S164: 2.474278481 | T164: 1.714321519 | U164: 4.1886 | V164: 1.337322948 | W164: 41.42192272 | X164: 0.04142192272 | Y164: 33.6089924 | Z164: 470.7510738 | AA164: 0.4707510738
A165: Plymouth | B165: Great Herring | C165: 0.5 | D165: 2023-06-29 | E165: Sample | F165: 7 | G165: 09:12:00 | H165: ND | I165: ND | J165: ND | K165: ND | L165: ND | M165: ND | N165: ND | O165: ND | P165: ND | Q165: 5.75 | R165: 12.9 | S165: 2.356455696 | T165: 1.134044304 | U165: 3.4905 | V165: 0.5225447043 | W165: 16.1851753 | X165: 0.0161851753 | Y165: 20.25110266 | Z165: 283.6511197 | AA165: 0.2836511197
A166: Plymouth | B166: Great Herring | C166: 0.5 | D166: 2023-06-29 | E166: FD | G166: 09:17:00 | O166: ND | P166: ND | Q166: 6.1 | R166: 13.3 | S166: 2.220506329 | T166: 0.9656936709 | U166: 3.1862 | V166: 0.4852200825 | W166: 15.02909135 | X166: 0.01502909135 | Y166: 20.63014259 | Z166: 288.9602182 | AA166: 0.2889602182
A167: Plymouth | B167: Great Herring | C167: 1 | D167: 2023-06-29 | G167: NS | O167: ND | P167: ND | Q167: NS | R167: NS | S167: NS | T167: NS | U167: NS | V167: NS | W167: NS | X167: NS | Y167: NS | Z167: NS | AA167: NS
A168: Plymouth | B168: Great Herring | C168: 2 | D168: 2023-06-29 | G168: NS | O168: ND | P168: ND | Q168: NS | R168: NS | S168: NS | T168: NS | U168: NS | V168: NS | W168: NS | X168: NS | Y168: NS | Z168: NS | AA168: NS
A169: Plymouth | B169: Great Herring | C169: 3 | D169: 2023-06-29 | G169: 09:22:00 | O169: ND | P169: ND | Q169: 5.97 | R169: 13.9 | S169: 1.200886076 | T169: 3.095113924 | U169: 4.296 | V169: 0.4852200825 | W169: =V169*30.973762 -> 15.02909135 | X169: =W169/1000 -> 0.01502909135 | Y169: 20.46022814 | Z169: =Y169*14.0067 -> 286.5802774 | AA169: =Z169/1000 -> 0.2865802774
A170: Plymouth | B170: Great Herring | C170: 4 | D170: 2023-06-29 | G170: NS | O170: ND | P170: ND | Q170: NS | R170: NS | S170: NS | T170: NS | U170: NS | V170: NS | W170: NS | X170: NS | Y170: NS | Z170: NS | AA170: NS
A171: Plymouth | B171: Great Herring | C171: 5 | D171: 2023-06-29 | G171: NS | O171: ND | P171: ND | Q171: NS | R171: NS | S171: NS | T171: NS | U171: NS | V171: NS | W171: NS | X171: NS | Y171: NS | Z171: NS | AA171: NS
A172: Plymouth | B172: Great Herring | C172: 6 | D172: 2023-06-29 | G172: NS | O172: ND | P172: ND | Q172: NS | R172: NS | S172: NS | T172: NS | U172: NS | V172: NS | W172: NS | X172: NS | Y172: NS | Z172: NS | AA172: NS
A173: Plymouth | B173: Great Herring | C173: 7 | D173: 2023-06-29 | G173: NS | O173: ND | P173: ND | Q173: NS | R173: NS | S173: NS | T173: NS | U173: NS | V173: NS | W173: NS | X173: NS | Y173: NS | Z173: NS | AA173: NS
A174: Plymouth | B174: Great Herring | C174: 8 | D174: 2023-06-29 | G174: 09:32:00 | O174: ND | P174: ND | Q174: 5.58 | R174: 22.7 | S174: 2.673670886 | T174: 3.994079114 | U174: 6.66775 | V174: 0.8957909216 | W174: =V174*30.973762 -> 27.74601481 | X174: =W174/1000 -> 0.02774601481 | Y174: 37.53009506 | Z174: =Y174*14.0067 -> 525.6727824 | AA174: =Z174/1000 -> 0.5256727824
A175: Plymouth | B175: Great Herring | C175: 9 | D175: 2023-06-29 | G175: 09:37:00 | O175: ND | P175: ND | Q175: 5.7 | R175: 25.2 | S175: 2.016582278 | T175: 4.042567722 | U175: 6.05915 | V175: 0.8957909216 | W175: 27.74601481 | X175: 0.02774601481 | Y175: 45.63370722 | Z175: 639.177647 | AA175: 0.639177647
A176: Plymouth | B176: Great Herring | C176: 10 | D176: 2023-06-29 | G176: 09:42:00 | O176: ND | P176: ND | Q176: 5.7 | R176: 32.7 | S176: 1.019620253 | T176: 5.191679747 | U176: 6.2113 | V176: 0.8797713239 | W176: 27.2498276 | X176: 0.0272498276 | Y176: 35.70024715 | Z176: 500.0426517 | AA176: 0.5000426517
A177: Plymouth | B177: Great Herring | C177: 11 | D177: 2023-06-29 | G177: 09:47:00 | O177: ND | P177: ND | Q177: 5.71 | R177: 19.8 | S177: 2.922911392 | T177: 1.328338608 | U177: 4.25125 | V177: 0.9812833998 | W177: 30.39403848 | X177: 0.03039403848 | Y177: 35.96165399 | Z177: 503.704099 | AA177: 0.503704099
A178: Plymouth | B178: Carters Brook | D178: 2023-06-29 | F178: 1 | G178: 11:20:00 | O178: ND | P178: ND | Q178: 5.88 | R178: 24.7 | S178: 0.4871518987 | T178: 1.410248101 | U178: 1.8974 | V178: 0.8957909216 | W178: 27.74601481 | X178: 0.02774601481 | Y178: 52.43028517 | Z178: 734.3752753 | AA178: 0.7343752753
A179: Plymouth | B179: Herring Brook | D179: 2023-06-29 | F179: 1 | G179: 10:55:00 | O179: ND | P179: ND | Q179: 5.86 | R179: 12.8 | S179: 2.786962025 | T179: 1.016787975 | U179: 3.80375 | V179: 0.5225447043 | W179: 16.1851753 | X179: 0.0161851753 | Y179: 30.73351711 | Z179: 430.4751541 | AA179: 0.4304751541
A180: Plymouth | B180: Great Herring | C180: 0.5 | D180: 2023-07-19 | E180: Sample | F180: 7 | G180: ND | H180: 13 | I180: 3 | J180: 0.2307692308 | K180: ND | L180: 3 | M180: 2 | N180: NONE | O180: 27.59 | P180: 8.5 | Q180: 5.87 | R180: 9 | S180: 2.241351899 | T180: 0.4078481013 | U180: 2.6492 | V180: 0.5283505155 | W180: =V180*30.973762 -> 16.36500312 | X180: =W180/1000 -> 0.01636500312 | Y180: 17.45404943 | Z180: =Y180*14.0067 -> 244.4736341 | AA180: =Z180/1000 -> 0.2444736341
A181: Plymouth | B181: Great Herring | C181: 0.5 | D181: 2023-07-19 | E181: FD | G181: ND | O181: 27.59 | P181: 8.5 | Q181: 5.85 | R181: 14.5 | S181: 3.020341772 | T181: 0.03 | U181: 3.050341772 | V181: 0.5283505155 | W181: 16.36500312 | X181: 0.01636500312 | Y181: 20.30338403 | Z181: 284.3834091 | AA181: 0.2843834091
A182: Plymouth | B182: Great Herring | C182: 1 | D182: 2023-07-19 | G182: ND | O182: 27.3 | P182: 8.54 | Q182: NS | R182: NS | S182: NS | T182: NS | U182: NS | V182: NS | W182: NS | X182: NS | Y182: NS | Z182: NS | AA182: NS
A183: Plymouth | B183: Great Herring | C183: 2 | D183: 2023-07-19 | G183: ND | O183: 27 | P183: 8.5 | Q183: NS | R183: NS | S183: NS | T183: NS | U183: NS | V183: NS | W183: NS | X183: NS | Y183: NS | Z183: NS | AA183: NS
A184: Plymouth | B184: Great Herring | C184: 3 | D184: 2023-07-19 | G184: ND | O184: 26.95 | P184: 8.38 | Q184: 5.33 | R184: 17.2 | S184: 0.3172151899 | T184: 3.54918481 | U184: 3.8664 | V184: 0.462306701 | W184: =V184*30.973762 -> 14.31937773 | X184: =W184/1000 -> 0.01431937773 | Y184: 24.45975285 | Z184: =Y184*14.0067 -> 342.6004203 | AA184: =Z184/1000 -> 0.3426004203
A185: Plymouth | B185: Great Herring | C185: 4 | D185: 2023-07-19 | G185: ND | O185: 26.79 | P185: 8.04 | Q185: NS | R185: NS | S185: NS | T185: NS | U185: NS | V185: NS | W185: NS | X185: NS | Y185: NS | Z185: NS | AA185: NS
A186: Plymouth | B186: Great Herring | C186: 5 | D186: 2023-07-19 | G186: ND | O186: 26.64 | P186: 8.39 | Q186: NS | R186: NS | S186: NS | T186: NS | U186: NS | V186: NS | W186: NS | X186: NS | Y186: NS | Z186: NS | AA186: NS
A187: Plymouth | B187: Great Herring | C187: 6 | D187: 2023-07-19 | G187: ND | O187: 26.38 | P187: 8.33 | Q187: NS | R187: NS | S187: NS | T187: NS | U187: NS | V187: NS | W187: NS | X187: NS | Y187: NS | Z187: NS | AA187: NS
A188: Plymouth | B188: Great Herring | C188: 7 | D188: 2023-07-19 | G188: ND | O188: 22.62 | P188: 6.32 | Q188: NS | R188: NS | S188: NS | T188: NS | U188: NS | V188: NS | W188: NS | X188: NS | Y188: NS | Z188: NS | AA188: NS
A189: Plymouth | B189: Great Herring | C189: 8 | D189: 2023-07-19 | G189: ND | O189: 20.33 | P189: 2.82 | Q189: 5.58 | R189: 9.9 | S189: 0.6344303797 | T189: 7.90386962 | U189: 8.5383 | V189: 0.8359399201 | W189: =V189*30.973762 -> 25.89220413 | X189: =W189/1000 -> 0.02589220413 | Y189: 38.83712928 | Z189: =Y189*14.0067 -> 543.9800187 | AA189: =Z189/1000 -> 0.5439800187
A190: Plymouth | B190: Great Herring | C190: 9 | D190: 2023-07-19 | G190: ND | O190: 19.26 | P190: 2.74 | Q190: 5.49 | R190: 34.3 | S190: 0.5664556962 | T190: 8.455144304 | U190: 9.0216 | V190: 1.061000668 | W190: 32.86318217 | X190: 0.03286318217 | Y190: 40.1441635 | Z190: 562.2872549 | AA190: 0.5622872549
A191: Plymouth | B191: Great Herring | C191: 10 | D191: 2023-07-19 | G191: ND | O191: 18.94 | P191: 2.69 | Q191: 5.54 | R191: 22.9 | S191: 1.346817739 | T191: 1.863916527 | U191: 3.210734266 | V191: 0.9645460616 | W191: 29.87562015 | X191: 0.02987562015 | Y191: 43.54245247 | Z191: 609.886069 | AA191: 0.609886069
A192: Plymouth | B192: Great Herring | C192: 11 | D192: 2023-07-19 | G192: ND | O192: 18.86 | P192: 2.67 | Q192: NS | R192: NS | S192: NS | T192: NS | U192: NS | V192: NS | W192: NS | X192: NS | Y192: NS | Z192: NS | AA192: NS
A193: Plymouth | B193: Great Herring | C193: 12 | D193: 2023-07-19 | G193: ND | O193: 18.71 | P193: 2.66 | Q193: 5.68 | R193: 23.9 | S193: 0.9244556962 | T193: 1.674624304 | U193: 2.59908 | V193: 1.061000668 | W193: 32.86318217 | X193: =W193/1000 -> 0.03286318217 | Y193: 47.98636882 | Z193: =Y193*14.0067 -> 672.1306722 | AA193: =Z193/1000 -> 0.6721306722
A194: Plymouth | B194: Carters Brook | D194: 2023-07-19 | F194: 1 | G194: ND | O194: ND | P194: ND | Q194: 6.2 | R194: 24.3 | S194: 0.0453164557 | T194: 2.299583544 | U194: 2.3449 | V194: 0.5943943299 | W194: 18.41062851 | X194: 0.01841062851 | Y194: 38.57572243 | Z194: 540.3185714 | AA194: 0.5403185714
A195: Plymouth | B195: Herring Brook | D195: 2023-07-19 | F195: 1 | G195: ND | O195: ND | P195: ND | Q195: 5.78 | R195: 11.3 | S195: 0.03 | T195: 1.874741772 | U195: 1.904741772 | V195: 1.093152203 | W195: 33.85903617 | X195: 0.03385903617 | Y195: 24.06764259 | Z195: 337.1082494 | AA195: 0.3371082494
A196: Plymouth | B196: Great Herring | C196: 0.5 | D196: 2023-08-16 | E196: Sample | F196: 7 | G196: 09:43:00 | H196: 12.04 | I196: 3 | J196: 0.2491694352 | K196: ND | L196: 3 | M196: 2 | N196: NONE | O196: 24.87 | P196: 9.43 | Q196: 5.7 | R196: 10.9 | S196: 2.356455696 | T196: 0.3762776371 | U196: 2.732733333 | V196: 0.6154396957 | W196: 19.06248266 | X196: 0.01906248266 | Y196: 20.56479087 | Z196: 288.0448563 | AA196: 0.2880448563
A197: Plymouth | B197: Great Herring | C197: 0.5 | D197: 2023-08-16 | E197: FD | G197: 09:48:00 | O197: 24.87 | P197: 9.43 | Q197: 6.13 | R197: 10.3 | S197: 2.635067979 | T197: 0.5935616503 | U197: 3.22862963 | V197: 0.6154396957 | W197: 19.06248266 | X197: 0.01906248266 | Y197: 20.09425856 | Z197: 281.4542513 | AA197: 0.2814542513
A198: Plymouth | B198: Great Herring | C198: 1 | D198: 2023-08-16 | G198: NS | O198: 24.88 | P198: 9.47 | Q198: NS | R198: NS | S198: NS | T198: NS | U198: NS | V198: NS | W198: NS | X198: NS | Y198: NS | Z198: NS | AA198: NS
A199: Plymouth | B199: Great Herring | C199: 2 | D199: 2023-08-16 | G199: NS | O199: 24.88 | P199: 9.33 | Q199: NS | R199: NS | S199: NS | T199: NS | U199: NS | V199: NS | W199: NS | X199: NS | Y199: NS | Z199: NS | AA199: NS
A200: Plymouth | B200: Great Herring | C200: 3 | D200: 2023-08-16 | G200: 09:50:00 | O200: 24.87 | P200: 9.17 | Q200: 6.09 | R200: 11.5 | S200: 5.060337553 | T200: 1.300129114 | U200: 6.360466667 | V200: 0.3846498098 | W200: =V200*30.973762 -> 11.91405166 | X200: =W200/1000 -> 0.01191405166 | Y200: 17.00965779 | Z200: =Y200*14.0067 -> 238.2491738 | AA200: =Z200/1000 -> 0.2382491738
A201: Plymouth | B201: Great Herring | C201: 4 | D201: 2023-08-16 | G201: NS | O201: 24.87 | P201: 9.2 | Q201: NS | R201: NS | S201: NS | T201: NS | U201: NS | V201: NS | W201: NS | X201: NS | Y201: NS | Z201: NS | AA201: NS
A202: Plymouth | B202: Great Herring | C202: 5 | D202: 2023-08-16 | G202: NS | O202: 24.87 | P202: 8.99 | Q202: NS | R202: NS | S202: NS | T202: NS | U202: NS | V202: NS | W202: NS | X202: NS | Y202: NS | Z202: NS | AA202: NS
A203: Plymouth | B203: Great Herring | C203: 6 | D203: 2023-08-16 | G203: NS | O203: 24.88 | P203: 8.62 | Q203: NS | R203: NS | S203: NS | T203: NS | U203: NS | V203: NS | W203: NS | X203: NS | Y203: NS | Z203: NS | AA203: NS
... 41 more rows

Sheet PALS POND DATA 2022
A1: Coastal Systems Program | K1: Weather Conditions: | M1: Wind:
A2: SMAST | K2: 1 | L2: Cloudless | M2: 1 | N2: Calm
A3: Umass Dartmouth | K3: 2 | L3: Pt. Cloudy | M3: 2 | N3: Light Breeze
A4: 706 Rodney French Blvd | K4: 3 | L4: Overcast | M4: 3 | N4: Steady Wind
A5: New Bedford, Ma 02744 | K5: 4 | L5: Rain | M5: 4 | N5: Strong Wind
A6: Plymouth Ponds 2021 | K6: 5 | L6: Fog/Haze
K7: 6 | L7: Drizzle
A8: Key | K8: 7 | L8: Intermit. Rain
A9: NS = No Sample
A10: ND = No Data
A11: TBD = To be determined
A14: Town | B14: Pond | C14: Depth (m) | D14: Date | E14: QC | F14: Number of Samples | G14: Sample Time | H14: Total Depth (m) | I14: Secchi Depth (m) | J14: % Secchi | K14: Water Color | L14: Weather | M14: Wind | N14: Plants | O14: Temp C | P14: DO (mg/L) | Q14: pH | R14: Alk (mg CaCO3/L) | S14: CHLA (ug/L) | T14: Phaeo (ug/L) | U14: T-pig ug/L | V14: TP (uM) | W14: TP (µg/L) | X14: TP (mg/L) | Y14: TN (uM) | Z14: TN (ug/L) | AA14: TN (mg/L)
A15: Plymouth | B15: BIG SANDY | C15: 0.5 | D15: 2022-05-26 | F15: 4 | G15: 11:40:00 | H15: 13 | I15: 4.5 | J15: 0.3461538462 | K15: CLEAR/BLUE | L15: 2 | M15: 2 | N15: <1% | O15: 19.5 | P15: 9.22 | Q15: 5.97 | R15: 4.3 | S15: 0.065134375 | T15: 0.025 | U15: 0.090134375 | V15: 0.3850083003 | W15: =V15*30.973762 -> 11.92515546 | X15: =W15/1000 -> 0.01192515546 | Y15: 41.94360228 | Z15: =Y15*14.0067 -> 587.4914541 | AA15: =Z15/1000 -> 0.5874914541
A16: Plymouth | B16: BIG SANDY | C16: 1 | D16: 2022-05-26 | H16: 13 | I16: 4.5 | J16: 0.3461538462 | O16: 19.56 | P16: 9.19 | Q16: NS | R16: NS | S16: NS | T16: NS | U16: NS | V16: NS | Y16: NS
A17: Plymouth | B17: BIG SANDY | C17: 2 | D17: 2022-05-26 | H17: 13 | I17: 4.5 | J17: 0.3461538462 | O17: 19.51 | P17: 9.24 | Q17: NS | R17: NS | S17: NS | T17: NS | U17: NS | V17: NS | Y17: NS
A18: Plymouth | B18: BIG SANDY | C18: 3 | D18: 2022-05-26 | H18: 13 | I18: 4.5 | J18: 0.3461538462 | O18: 19.51 | P18: 9.09 | Q18: 6.14 | R18: 4.1 | S18: 0.05626770833 | T18: 0.025 | U18: 0.08126770833 | V18: 0.3850083003 | W18: =V18*30.973762 -> 11.92515546 | X18: =W18/1000 -> 0.01192515546 | Y18: 47.36332518 | Z18: =Y18*14.0067 -> 663.4038868 | AA18: =Z18/1000 -> 0.6634038868
A19: Plymouth | B19: BIG SANDY | C19: 4 | D19: 2022-05-26 | H19: 13 | I19: 4.5 | J19: 0.3461538462 | O19: 19.44 | P19: 9.01 | Q19: NS | R19: NS | S19: NS | T19: NS | U19: NS | V19: NS | Y19: NS
A20: Plymouth | B20: BIG SANDY | C20: 5 | D20: 2022-05-26 | H20: 13 | I20: 4.5 | J20: 0.3461538462 | O20: 17.71 | P20: 10.09 | Q20: NS | R20: NS | S20: NS | T20: NS | U20: NS | V20: NS | Y20: NS
A21: Plymouth | B21: BIG SANDY | C21: 6 | D21: 2022-05-26 | H21: 13 | I21: 4.5 | J21: 0.3461538462 | O21: 14.65 | P21: 10.95 | Q21: NS | R21: NS | S21: NS | T21: NS | U21: NS | V21: NS | Y21: NS
A22: Plymouth | B22: BIG SANDY | C22: 7 | D22: 2022-05-26 | H22: 13 | I22: 4.5 | J22: 0.3461538462 | O22: 13.63 | P22: 10.94 | Q22: NS | R22: NS | S22: NS | T22: NS | U22: NS | V22: NS | Y22: NS
A23: Plymouth | B23: BIG SANDY | C23: 8 | D23: 2022-05-26 | H23: 13 | I23: 4.5 | J23: 0.3461538462 | O23: 13.36 | P23: 9.62 | Q23: NS | R23: NS | S23: NS | T23: NS | U23: NS | V23: NS | Y23: NS
A24: Plymouth | B24: BIG SANDY | C24: 9 | D24: 2022-05-26 | H24: 13 | I24: 4.5 | J24: 0.3461538462 | O24: 13.42 | P24: 8.42 | Q24: 6.16 | R24: 7 | S24: 0.5499510417 | T24: 0.025 | U24: 0.5749510417 | V24: 0.5775124505 | W24: 17.88773319 | X24: 0.01788773319 | Y24: 40.80260799 | Z24: 571.5098893 | AA24: 0.5715098893
A25: Plymouth | B25: BIG SANDY | C25: 10 | D25: 2022-05-26 | H25: 13 | I25: 4.5 | J25: 0.3461538462 | O25: 12.79 | P25: 7.33 | Q25: NS | R25: NS | S25: NS | T25: NS | U25: NS | V25: NS | Y25: NS
A26: Plymouth | B26: BIG SANDY | C26: 11 | D26: 2022-05-26 | H26: 13 | I26: 4.5 | J26: 0.3461538462 | O26: 12.63 | P26: 5.68 | Q26: NS | R26: NS | S26: NS | T26: NS | U26: NS | V26: NS | Y26: NS
A27: Plymouth | B27: BIG SANDY | C27: 12 | D27: 2022-05-26 | H27: 13 | I27: 4.5 | J27: 0.3461538462 | O27: 12.58 | P27: 4.7 | Q27: 5.98 | R27: 6.5 | S27: 1.121534375 | T27: 0.025 | U27: 1.146534375 | V27: 0.5133444005 | W27: 15.90020728 | X27: 0.01590020728 | Y27: 44.22559087 | Z27: 619.4545837 | AA27: 0.6194545837
A28: Plymouth | B28: BIG SANDY | C28: 0.5 | D28: 2022-06-13 | E28: Sample | F28: 5 | G28: 12:25:00 | H28: 12 | I28: 5.5 | J28: 0.4583333333 | K28: CLEAR/BLUE | L28: 2 | M28: 2 | N28: ND | O28: 22.89 | P28: 8.39 | Q28: 6.38 | R28: 5.7 | S28: 0.1006010417 | T28: 0.025 | U28: 0.1256010417 | V28: 0.3850083003 | W28: 11.92515546 | X28: 0.01192515546 | Y28: 39.66161369 | Z28: 555.5283245 | AA28: 0.5555283245
A29: Plymouth | B29: BIG SANDY | C29: 0.5 | D29: 2022-06-13 | E29: FD | H29: 12 | I29: 5.5 | J29: 0.4583333333 | O29: 22.89 | P29: 8.39 | Q29: 6.38 | R29: 5.3 | S29: 0.09236770833 | T29: 0.025 | U29: 0.1173677083 | V29: 0.3208402503 | W29: 9.937629552 | X29: 0.009937629552 | Y29: 43.08459658 | Z29: 603.4730189 | AA29: 0.6034730189
A30: Plymouth | B30: BIG SANDY | C30: 1 | D30: 2022-06-13 | H30: 12 | I30: 5.5 | J30: 0.4583333333 | O30: 22.41 | P30: 8.09 | Q30: NS | R30: NS | S30: NS | T30: NS | U30: NS | V30: NS | Y30: NS
A31: Plymouth | B31: BIG SANDY | C31: 2 | D31: 2022-06-13 | H31: 12 | I31: 5.5 | J31: 0.4583333333 | O31: 22.95 | P31: 8.38 | Q31: NS | R31: NS | S31: NS | T31: NS | U31: NS | V31: NS | Y31: NS
A32: Plymouth | B32: BIG SANDY | C32: 3 | D32: 2022-06-13 | H32: 12 | I32: 5.5 | J32: 0.4583333333 | O32: 22.21 | P32: 9.95 | Q32: 5.88 | R32: 10.8 | S32: 0.1728010417 | T32: 0.025 | U32: 0.1978010417 | V32: 0.3208402503 | W32: 9.937629552 | X32: 0.009937629552 | Y32: 38.23537082 | Z32: 535.5513685 | AA32: 0.5355513685
A33: Plymouth | B33: BIG SANDY | C33: 4 | D33: 2022-06-13 | H33: 12 | I33: 5.5 | J33: 0.4583333333 | O33: 22.11 | P33: 9.42 | Q33: NS | R33: NS | S33: NS | T33: NS | U33: NS | V33: NS | Y33: NS
A34: Plymouth | B34: BIG SANDY | C34: 5 | D34: 2022-06-13 | H34: 12 | I34: 5.5 | J34: 0.4583333333 | O34: 21.95 | P34: 9.34 | Q34: NS | R34: NS | S34: NS | T34: NS | U34: NS | V34: NS | Y34: NS
A35: Plymouth | B35: BIG SANDY | C35: 6 | D35: 2022-06-13 | H35: 12 | I35: 5.5 | J35: 0.4583333333 | O35: 21.39 | P35: 9.38 | Q35: NS | R35: NS | S35: NS | T35: NS | U35: NS | V35: NS | Y35: NS
A36: Plymouth | B36: BIG SANDY | C36: 7 | D36: 2022-06-13 | H36: 12 | I36: 5.5 | J36: 0.4583333333 | O36: 19.45 | P36: 9.75 | Q36: NS | R36: NS | S36: NS | T36: NS | U36: NS | V36: NS | Y36: NS
A37: Plymouth | B37: BIG SANDY | C37: 8 | D37: 2022-06-13 | H37: 12 | I37: 5.5 | J37: 0.4583333333 | O37: 15.61 | P37: 10.1 | Q37: NS | R37: NS | S37: NS | T37: NS | U37: NS | V37: NS | Y37: NS
A38: Plymouth | B38: BIG SANDY | C38: 9 | D38: 2022-06-13 | H38: 12 | I38: 5.5 | J38: 0.4583333333 | O38: 14.04 | P38: 9.4 | Q38: 5.61 | R38: 5.2 | S38: 0.3229010417 | T38: 0.025 | U38: 0.3479010417 | V38: 0.4491763504 | W38: 13.91268137 | X38: 0.01391268137 | Y38: 46.79282804 | Z38: 655.4131044 | AA38: 0.6554131044
A39: Plymouth | B39: BIG SANDY | C39: 10 | D39: 2022-06-13 | H39: 12 | I39: 5.5 | J39: 0.4583333333 | O39: 14.13 | P39: 8.21 | Q39: NS | R39: NS | S39: NS | T39: NS | U39: NS | V39: NS | Y39: NS
A40: Plymouth | B40: BIG SANDY | C40: 11 | D40: 2022-06-13 | H40: 12 | I40: 5.5 | J40: 0.4583333333 | O40: 13.6 | P40: 7.22 | Q40: 4.61 | R40: 5.8 | S40: 0.8473010417 | T40: 0.025 | U40: 0.8723010417 | V40: 0.6095964755 | W40: 18.88149615 | X40: 0.01888149615 | Y40: 43.36984515 | Z40: 607.4684101 | AA40: 0.6074684101
A41: Plymouth | B41: BIG SANDY | C41: 0.5 | D41: 2022-07-20 | F41: 4 | G41: 12:20:00 | H41: 13 | I41: 4.7 | J41: 0.3615384615 | K41: CLEAR | L41: 2 | M41: 2 | N41: ND | O41: 27 | P41: 8.16 | Q41: 6.67 | R41: 8.1 | S41: 1.615957037 | T41: 0.3382916574 | U41: 1.954248694 | V41: 0.4012483281 | W41: 12.42817022 | X41: 0.01242817022 | Y41: 32.81564792 | Z41: 459.6389357 | AA41: 0.4596389357
A42: Plymouth | B42: BIG SANDY | C42: 1 | D42: 2022-07-20 | H42: 13 | I42: 4.7 | J42: 0.3615384615 | O42: 26.86 | P42: 8.1 | Q42: NS | R42: NS | S42: NS | T42: NS | U42: NS | V42: NS | Y42: NS
A43: Plymouth | B43: BIG SANDY | C43: 2 | D43: 2022-07-20 | H43: 13 | I43: 4.7 | J43: 0.3615384615 | O43: 26.71 | P43: 7.7 | Q43: NS | R43: NS | S43: NS | T43: NS | U43: NS | V43: NS | Y43: NS
A44: Plymouth | B44: BIG SANDY | C44: 3 | D44: 2022-07-20 | H44: 13 | I44: 4.7 | J44: 0.3615384615 | O44: 26.64 | P44: 7.84 | Q44: 6.6 | R44: 6.9 | S44: 1.704749139 | T44: 0.7421822222 | U44: 2.446931361 | V44: 0.2674988854 | W44: 8.285446812 | X44: 0.008285446812 | Y44: 26.25493073 | Z44: 367.7449382 | AA44: 0.3677449382
A45: Plymouth | B45: BIG SANDY | C45: 4 | D45: 2022-07-20 | H45: 13 | I45: 4.7 | J45: 0.3615384615 | O45: 26.47 | P45: 8.1 | Q45: NS | R45: NS | S45: NS | T45: NS | U45: NS | V45: NS | Y45: NS
A46: Plymouth | B46: BIG SANDY | C46: 5 | D46: 2022-07-20 | H46: 13 | I46: 4.7 | J46: 0.3615384615 | O46: 26.26 | P46: 8.06 | Q46: NS | R46: NS | S46: NS | T46: NS | U46: NS | V46: NS | Y46: NS
A47: Plymouth | B47: BIG SANDY | C47: 6 | D47: 2022-07-20 | H47: 13 | I47: 4.7 | J47: 0.3615384615 | O47: 25.91 | P47: 7.9 | Q47: NS | R47: NS | S47: NS | T47: NS | U47: NS | V47: NS | Y47: NS
A48: Plymouth | B48: BIG SANDY | C48: 7 | D48: 2022-07-20 | H48: 13 | I48: 4.7 | J48: 0.3615384615 | O48: 24.33 | P48: 7.92 | Q48: NS | R48: NS | S48: NS | T48: NS | U48: NS | V48: NS | Y48: NS
A49: Plymouth | B49: BIG SANDY | C49: 8 | D49: 2022-07-20 | H49: 13 | I49: 4.7 | J49: 0.3615384615 | O49: 19.44 | P49: 6.75 | Q49: NS | R49: NS | S49: NS | T49: NS | U49: NS | V49: NS | Y49: NS
A50: Plymouth | B50: BIG SANDY | C50: 9 | D50: 2022-07-20 | H50: 13 | I50: 4.7 | J50: 0.3615384615 | O50: 16.82 | P50: 5.43 | Q50: 6.54 | R50: 7.2 | S50: 1.568583704 | T50: 0.7646516574 | U50: 2.333235361 | V50: 0.4346856888 | W50: 13.46385107 | X50: 0.01346385107 | Y50: 33.67139364 | Z50: 471.6251093 | AA50: 0.4716251093
A51: Plymouth | B51: BIG SANDY | C51: 10 | D51: 2022-07-20 | H51: 13 | I51: 4.7 | J51: 0.3615384615 | O51: 14.97 | P51: 3.25 | Q51: NS | R51: NS | S51: NS | T51: NS | U51: NS | V51: NS | Y51: NS
A52: Plymouth | B52: BIG SANDY | C52: 11 | D52: 2022-07-20 | H52: 13 | I52: 4.7 | J52: 0.3615384615 | O52: 14.27 | P52: 1.93 | Q52: NS | R52: NS | S52: NS | T52: NS | U52: NS | V52: NS | Y52: NS
A53: Plymouth | B53: BIG SANDY | C53: 12 | D53: 2022-07-20 | H53: 13 | I53: 4.7 | J53: 0.3615384615 | O53: 14.19 | P53: 1.35 | Q53: 6.31 | R53: 7.8 | S53: 2.405512593 | T53: 1.647374769 | U53: 4.052887361 | V53: 0.5349977708 | W53: 16.57089362 | X53: 0.01657089362 | Y53: 35.52551 | Z53: 497.5951609 | AA53: 0.4975951609
A54: Plymouth | B54: BILLINGTON SEA SITE 2 WEST | C54: 0.5 | D54: 2022-06-13 | F54: 2 | G54: 11:40:00 | H54: 2.3 | I54: 2.1 | J54: 0.9130434783 | K54: BROWN | L54: 2 | M54: 2 | N54: ND | O54: 23.2 | P54: 8.79 | Q54: 6.9 | R54: 30.9 | S54: 2.004717708 | T54: 0.025 | U54: 2.029717708 | V54: 0.7058485506 | W54: 21.86278502 | X54: 0.02186278502 | Y54: 86.72762836 | Z54: 1214.767872 | AA54: 1.214767872
A55: Plymouth | B55: BILLINGTON SEA SITE 2 WEST | C55: 1 | D55: 2022-06-13 | H55: 2.3 | I55: 2.1 | J55: 0.9130434783 | O55: 23 | P55: 8.95 | Q55: NS | R55: NS | S55: NS | T55: NS | U55: NS | V55: NS | Y55: NS
A56: Plymouth | B56: BILLINGTON SEA SITE 2 WEST | C56: 1.5 | D56: 2022-06-13 | H56: 2.3 | I56: 2.1 | J56: 0.9130434783 | O56: 22.36 | P56: 9.34 | Q56: 6.96 | R56: 29.9 | S56: 2.661801042 | T56: 0.025 | U56: 2.686801042 | V56: 0.731356342 | W56: 22.65285727 | X56: 0.02265285727 | Y56: 84.30302 | Z56: 1180.80711 | AA56: 1.18080711
A57: Plymouth | B57: BILLINGTON SEA SITE 2 WEST | C57: 2 | D57: 2022-06-13 | H57: 2.3 | I57: 2.1 | J57: 0.9130434783 | O57: 21.88 | P57: 9.71 | Q57: NS | R57: NS | S57: NS | T57: NS | U57: NS | V57: NS | Y57: NS
A58: Plymouth | B58: BILLINGTON SEA SITE 2 WEST | C58: 0.5 | D58: 2022-07-20 | F58: 2 | G58: 11:00:00 | H58: 2.2 | I58: 2.2 | J58: 1 | K58: CLEAR/BROWN | L58: ND | M58: ND | N58: ND | O58: 26.87 | P58: 9 | Q58: 7.47 | R58: 33 | S58: 1.617111111 | T58: 0.025 | U58: 1.642111111 | V58: 0.3343736068 | W58: 10.35680852 | X58: 0.01035680852 | Y58: 68.75696822 | Z58: 963.0582267 | AA58: 0.9630582267
A59: Plymouth | B59: BILLINGTON SEA SITE 2 WEST | C59: 1 | D59: 2022-07-20 | H59: 2.2 | I59: 2.2 | J59: 1 | O59: 26.88 | P59: 8.78 | Q59: NS | R59: NS | S59: NS | T59: NS | U59: NS | V59: NS | Y59: NS
A60: Plymouth | B60: BILLINGTON SEA SITE 2 WEST | C60: 1.5 | D60: 2022-07-20 | H60: 2.2 | I60: 2.2 | J60: 1 | O60: 26.58 | P60: 8.94 | Q60: 7.34 | R60: 34.7 | S60: 3.668801481 | T60: 1.772124546 | U60: 5.440926028 | V60: 0.4012483281 | W60: 12.42817022 | X60: 0.01242817022 | Y60: 69.04222 | Z60: 967.0536629 | AA60: 0.9670536629
A61: Plymouth | B61: BILLINGTON SEA SITE 5 EAST | C61: 0.5 | D61: 2022-06-13 | E61: Sample | F61: 3 | G61: ND | H61: 3.2 | I61: 2.1 | J61: 0.65625 | K61: BROWN | L61: 2 | M61: 2 | N61: ND | O61: 23.49 | P61: 8.5 | Q61: 5.72 | R61: 28.1 | S61: 2.170334375 | T61: 0.025 | U61: 2.195334375 | V61: 0.6416805006 | W61: 19.8752591 | X61: 0.0198752591 | Y61: 74.17669112 | Z61: 1038.970659 | AA61: 1.038970659
A62: Plymouth | B62: BILLINGTON SEA SITE 5 EAST | C62: 0.5 | D62: 2022-06-13 | E62: FD | H62: 3.2 | I62: 2.1 | J62: 0.65625 | O62: 23.49 | P62: 8.5 | Q62: 5.45 | R62: 28.7 | S62: 2.280217708 | T62: 0.025 | U62: 2.305217708 | V62: 0.7631544438 | W62: 23.63776411 | X62: 0.02363776411 | Y62: 61.91100244 | Z62: 867.1688379 | AA62: 0.8671688379
A63: Plymouth | B63: BILLINGTON SEA SITE 5 EAST | C63: 1 | D63: 2022-06-13 | H63: 3.2 | I63: 2.1 | J63: 0.65625 | O63: 23.32 | P63: 8.53 | Q63: NS | R63: NS | S63: NS | T63: NS | U63: NS | V63: NS | Y63: NS
A64: Plymouth | B64: BILLINGTON SEA SITE 5 EAST | C64: 1.5 | D64: 2022-06-13 | H64: 3.2 | I64: 2.1 | J64: 0.65625 | O64: 23.27 | P64: 8.58 | Q64: NS | R64: NS | S64: NS | T64: NS | U64: NS | V64: NS | Y64: NS
A65: Plymouth | B65: BILLINGTON SEA SITE 5 EAST | C65: 2 | D65: 2022-06-13 | H65: 3.2 | I65: 2.1 | J65: 0.65625 | O65: 23.1 | P65: 8.41 | Q65: NS | R65: NS | S65: NS | T65: NS | U65: NS | V65: NS | Y65: NS
A66: Plymouth | B66: BILLINGTON SEA SITE 5 EAST | C66: 2.5 | D66: 2022-06-13 | H66: 3.2 | I66: 2.1 | J66: 0.65625 | O66: 22.9 | P66: 8.09 | Q66: 7.1 | R66: 29.2 | S66: 2.135184375 | T66: 0.025 | U66: 2.160184375 | V66: 0.6416805006 | W66: 19.8752591 | X66: 0.0198752591 | Y66: 84.44563977 | Z66: 1182.804743 | AA66: 1.182804743
A67: Plymouth | B67: BILLINGTON SEA SITE 5 EAST | C67: 0.5 | D67: 2022-07-20 | E67: Sample | F67: 3 | G67: 11:00:00 | H67: 3 | I67: 2.9 | J67: 0.9666666667 | K67: GREEN | L67: 3 | M67: 2 | N67: ND | O67: 27.36 | P67: 9.2 | Q67: 9.04 | R67: 33 | S67: 2.068635556 | T67: 0.09405580556 | U67: 2.162691361 | V67: 0.5684351315 | W67: 17.60657448 | X67: 0.01760657448 | Y67: 43.08459658 | Z67: 603.4730189 | AA67: 0.6034730189
A68: Plymouth | B68: BILLINGTON SEA SITE 5 EAST | C68: 0.5 | D68: 2022-07-20 | E68: FD | F68: 3 | G68: 11:00:00 | H68: 3 | I68: 2.9 | J68: 0.9666666667 | K68: GREEN | L68: 3 | M68: 2 | N68: ND | O68: 27.36 | P68: 9.2 | Q68: 8.96 | R68: 31.3 | S68: 1.258025185 | T68: 0.4688315093 | U68: 1.726856694 | V68: 0.5684351315 | W68: 17.60657448 | X68: 0.01760657448 | Y68: 39.66161369 | Z68: 555.5283245 | AA68: 0.5555283245
A69: Plymouth | B69: BILLINGTON SEA SITE 5 EAST | C69: 1 | D69: 2022-07-20 | H69: 3 | I69: 2.9 | J69: 0.9666666667 | O69: 27.08 | P69: 9.08 | Q69: NS | R69: NS | S69: NS | T69: NS | U69: NS | V69: NS | Y69: NS
A70: Plymouth | B70: BILLINGTON SEA SITE 5 EAST | C70: 1.5 | D70: 2022-07-20 | H70: 3 | I70: 2.9 | J70: 0.9666666667 | O70: 26.96 | P70: 8.75 | Q70: NS | R70: NS | S70: NS | T70: NS | U70: NS | V70: NS | Y70: NS
A71: Plymouth | B71: BILLINGTON SEA SITE 5 EAST | C71: 2 | D71: 2022-07-20 | H71: 3 | I71: 2.9 | J71: 0.9666666667 | O71: 26.74 | P71: 8.55 | Q71: 9.02 | R71: 45.7 | S71: 2.042317037 | T71: 3.573890324 | U71: 5.616207361 | V71: 0.6687472136 | W71: 20.71361703 | X71: 0.02071361703 | Y71: 44.22559087 | Z71: 619.4545837 | AA71: 0.6194545837
A72: Plymouth | B72: BILLINGTON SEA SITE 5 EAST | C72: 2.5 | D72: 2022-07-20 | H72: 3 | I72: 2.9 | J72: 0.9666666667 | O72: 26.73 | P72: 8.46 | Q72: NS | R72: NS | S72: NS | T72: NS | U72: NS | V72: NS | Y72: NS
A73: PLYMOUTH | B73: Bloody Pond | C73: 0.5 | D73: 2022-05-14 | F73: 0 | G73: 09:30:00 | H73: 10 | I73: =(4+3.1)/2 -> 3.55 | J73: =I73/H73 -> 0.355 | K73: Blue/Green | L73: Pt. Cloudy | M73: Light Breeze | N73: NONE | O73: 16.6 | P73: 11.8 | Q73: NS | R73: NS | S73: NS | T73: NS | U73: NS | V73: NS | W73: NS
A74: PLYMOUTH | B74: Bloody Pond | C74: 1 | D74: 2022-05-14 | O74: 15.8 | P74: 12.2 | Q74: NS | R74: NS | S74: NS | T74: NS | U74: NS | V74: NS | W74: NS
A75: PLYMOUTH | B75: Bloody Pond | C75: 2 | D75: 2022-05-14 | O75: 14.8 | P75: 12.6 | Q75: NS | R75: NS | S75: NS | T75: NS | U75: NS | V75: NS | W75: NS
A76: PLYMOUTH | B76: Bloody Pond | C76: 3 | D76: 2022-05-14 | O76: 14 | P76: 12.9 | Q76: NS | R76: NS | S76: NS | T76: NS | U76: NS | V76: NS | W76: NS
A77: PLYMOUTH | B77: Bloody Pond | C77: 4 | D77: 2022-05-14 | O77: ND | P77: ND | Q77: NS | R77: NS | S77: NS | T77: NS | U77: NS | V77: NS | W77: NS
A78: PLYMOUTH | B78: Bloody Pond | C78: 5 | D78: 2022-05-14 | O78: ND | P78: ND | Q78: NS | R78: NS | S78: NS | T78: NS | U78: NS | V78: NS | W78: NS
A79: PLYMOUTH | B79: Bloody Pond | C79: 6 | D79: 2022-05-14 | O79: ND | P79: ND | Q79: NS | R79: NS | S79: NS | T79: NS | U79: NS | V79: NS | W79: NS
A80: PLYMOUTH | B80: Bloody Pond | C80: 7 | D80: 2022-05-14 | O80: ND | P80: ND | Q80: NS | R80: NS | S80: NS | T80: NS | U80: NS | V80: NS | W80: NS
A81: PLYMOUTH | B81: Bloody Pond | C81: 8 | D81: 2022-05-14 | O81: ND | P81: ND | Q81: NS | R81: NS | S81: NS | T81: NS | U81: NS | V81: NS | W81: NS
A82: PLYMOUTH | B82: Bloody Pond | C82: 9 | D82: 2022-05-14 | O82: ND | P82: ND | Q82: NS | R82: NS | S82: NS | T82: NS | U82: NS | V82: NS | W82: NS
A83: PLYMOUTH | B83: Bloody Pond | C83: 10 | D83: 2022-05-14 | O83: ND | P83: ND | Q83: NS | R83: NS | S83: NS | T83: NS | U83: NS | V83: NS | W83: NS
A84: PLYMOUTH | B84: Bloody Pond | C84: 11 | D84: 2022-05-14 | O84: ND | P84: ND | Q84: NS | R84: NS | S84: NS | T84: NS | U84: NS | V84: NS | W84: NS
A85: Plymouth | B85: BLOODY | C85: 0.5 | D85: 2022-09-07 | F85: 2 | G85: 12:13:00 | H85: 11.1 | I85: 4.57 | J85: 0.4117117117 | K85: BLUE/GREEN | L85: 3 | M85: 3 | N85: <1% | O85: 24.6 | P85: 7.8 | Q85: 6.22 | R85: 5.5 | S85: 1.126432593 | T85: 0.4772534352 | U85: 1.603686028 | V85: 0.4681230495 | W85: 14.49953192 | X85: 0.01449953192 | Y85: 17.15550122 | Z85: 240.291959 | AA85: 0.240291959
A86: Plymouth | B86: BLOODY | C86: 1 | D86: 2022-09-07 | H86: 11.1 | I86: 4.57 | J86: 0.4117117117 | O86: 24.7 | P86: 7.7 | Q86: NS | R86: NS | S86: NS | T86: NS | U86: NS | V86: NS | Y86: NS
A87: Plymouth | B87: BLOODY | C87: 2 | D87: 2022-09-07 | H87: 11.1 | I87: 4.57 | J87: 0.4117117117 | O87: 24.7 | P87: 7.6 | Q87: NS | R87: NS | S87: NS | T87: NS | U87: NS | V87: NS | Y87: NS
A88: Plymouth | B88: BLOODY | C88: 3 | D88: 2022-09-07 | H88: 11.1 | I88: 4.57 | J88: 0.4117117117 | O88: 24.7 | P88: 7.7 | Q88: NS | R88: NS | S88: NS | T88: NS | U88: NS | V88: NS | Y88: NS
A89: Plymouth | B89: BLOODY | C89: 4 | D89: 2022-09-07 | H89: 11.1 | I89: 4.57 | J89: 0.4117117117 | O89: 24.7 | P89: 7.8 | Q89: NS | R89: NS | S89: NS | T89: NS | U89: NS | V89: NS | Y89: NS
A90: Plymouth | B90: BLOODY | C90: 5 | D90: 2022-09-07 | H90: 11.1 | I90: 4.57 | J90: 0.4117117117 | O90: 24.7 | P90: 7.8 | Q90: NS | R90: NS | S90: NS | T90: NS | U90: NS | V90: NS | Y90: NS
A91: Plymouth | B91: BLOODY | C91: 6 | D91: 2022-09-07 | H91: 11.1 | I91: 4.57 | J91: 0.4117117117 | O91: 24.7 | P91: 7.8 | Q91: NS | R91: NS | S91: NS | T91: NS | U91: NS | V91: NS | Y91: NS
A92: Plymouth | B92: BLOODY | C92: 7 | D92: 2022-09-07 | H92: 11.1 | I92: 4.57 | J92: 0.4117117117 | O92: 24.7 | P92: 7.8 | Q92: NS | R92: NS | S92: NS | T92: NS | U92: NS | V92: NS | Y92: NS
A93: Plymouth | B93: BLOODY | C93: 8 | D93: 2022-09-07 | H93: 11.1 | I93: 4.57 | J93: 0.4117117117 | O93: 24.7 | P93: 7.7 | Q93: NS | R93: NS | S93: NS | T93: NS | U93: NS | V93: NS | Y93: NS
A94: Plymouth | B94: BLOODY | C94: 9 | D94: 2022-09-07 | H94: 11.1 | I94: 4.57 | J94: 0.4117117117 | O94: 21.2 | P94: 6 | Q94: NS | R94: NS | S94: NS | T94: NS | U94: NS | V94: NS | Y94: NS
A95: Plymouth | B95: BLOODY | C95: 10 | D95: 2022-09-07 | H95: 11.1 | I95: 4.57 | J95: 0.4117117117 | O95: 18.8 | P95: 1.7 | Q95: 5.79 | R95: 5.7 | S95: 2.237074074 | T95: 0.7404386204 | U95: 2.977512694 | V95: 0.5349977708 | W95: =V95*30.973762 -> 16.57089362 | X95: =W95/1000 -> 0.01657089362 | Y95: 18.12534637 | Z95: =Y95*14.0067 -> 253.876289 | AA95: =Z95/1000 -> 0.253876289
A96: PLYMOUTH | B96: Gallows Pond | C96: 0.5 | D96: 2022-05-13 | F96: 0 | G96: 17:00:00 | H96: 10 | I96: =(5.5+5.2)/2 -> 5.35 | J96: =I96/H96 -> 0.535 | K96: Green | L96: Cloudless | M96: Steady Wind | N96: NONE | O96: 16.9 | P96: 14.9 | Q96: NS | R96: NS | S96: NS | T96: NS | U96: NS | V96: NS | W96: NS
A97: PLYMOUTH | B97: Gallows Pond | C97: 1 | D97: 2022-05-13 | O97: 16.8 | P97: 14.6 | Q97: NS | R97: NS | S97: NS | T97: NS | U97: NS | V97: NS | W97: NS
A98: PLYMOUTH | B98: Gallows Pond | C98: 2 | D98: 2022-05-13 | O98: 15.3 | P98: 15.4 | Q98: NS | R98: NS | S98: NS | T98: NS | U98: NS | V98: NS | W98: NS
A99: PLYMOUTH | B99: Gallows Pond | C99: 3 | D99: 2022-05-13 | O99: 14.1 | P99: 16.2 | Q99: NS | R99: NS | S99: NS | T99: NS | U99: NS | V99: NS | W99: NS
A100: PLYMOUTH | B100: Gallows Pond | C100: 4 | D100: 2022-05-13 | O100: 13.7 | P100: 15.7 | Q100: NS | R100: NS | S100: NS | T100: NS | U100: NS | V100: NS | W100: NS
A101: PLYMOUTH | B101: Gallows Pond | C101: 5 | D101: 2022-05-13 | O101: 13.6 | P101: 15.8 | Q101: NS | R101: NS | S101: NS | T101: NS | U101: NS | V101: NS | W101: NS
A102: PLYMOUTH | B102: Gallows Pond | C102: 6 | D102: 2022-05-13 | O102: 13.5 | P102: 15.9 | Q102: NS | R102: NS | S102: NS | T102: NS | U102: NS | V102: NS | W102: NS
A103: PLYMOUTH | B103: Gallows Pond | C103: 7 | D103: 2022-05-13 | O103: 13.4 | P103: 16 | Q103: NS | R103: NS | S103: NS | T103: NS | U103: NS | V103: NS | W103: NS
A104: PLYMOUTH | B104: Gallows Pond | C104: 8 | D104: 2022-05-13 | O104: 13.3 | P104: 16 | Q104: NS | R104: NS | S104: NS | T104: NS | U104: NS | V104: NS | W104: NS
A105: PLYMOUTH | B105: Gallows Pond | C105: 9 | D105: 2022-05-13 | O105: 13.2 | P105: 16.1 | Q105: NS | R105: NS | S105: NS | T105: NS | U105: NS | V105: NS | W105: NS
A106: Plymouth | B106: GALLOWS | C106: 0.5 | D106: 2022-09-07 | F106: 3 | G106: 09:51:00 | H106: 9.2 | I106: 5.6 | J106: 0.6086956522 | K106: BROWN | L106: 3 | M106: 3 | N106: <1% | O106: 24.5 | P106: 7.5 | Q106: 5.93 | R106: 3.7 | S106: 1.068531852 | T106: 1.738436843 | U106: 2.806968694 | V106: 0.3343736068 | W106: 10.35680852 | X106: 0.01035680852 | Y106: 14.90203749 | Z106: 208.7283685 | AA106: 0.2087283685
A107: Plymouth | B107: GALLOWS | C107: 1 | D107: 2022-09-07 | H107: 9.2 | I107: 5.6 | J107: 0.6086956522 | O107: 24.5 | P107: 7.5 | Q107: NS | R107: NS | S107: NS | T107: NS | U107: NS | V107: NS | Y107: NS
A108: Plymouth | B108: GALLOWS | C108: 2 | D108: 2022-09-07 | H108: 9.2 | I108: 5.6 | J108: 0.6086956522 | O108: 24.5 | P108: 7.5 | Q108: NS | R108: NS | S108: NS | T108: NS | U108: NS | V108: NS | Y108: NS
A109: Plymouth | B109: GALLOWS | C109: 3 | D109: 2022-09-07 | H109: 9.2 | I109: 5.6 | J109: 0.6086956522 | O109: 24.5 | P109: 7.4 | Q109: 5.92 | R109: 3.5 | S109: 0.8264014815 | T109: 1.13732188 | U109: 1.963723361 | V109: 0.2340615247 | W109: 7.249765961 | X109: 0.007249765961 | Y109: 13.87514262 | Z109: 194.3449602 | AA109: 0.1943449602
A110: Plymouth | B110: GALLOWS | C110: 4 | D110: 2022-09-07 | H110: 9.2 | I110: 5.6 | J110: 0.6086956522 | O110: 24.5 | P110: 7.4 | Q110: NS | R110: NS | S110: NS | T110: NS | U110: NS | V110: NS | Y110: NS
A111: Plymouth | B111: GALLOWS | C111: 5 | D111: 2022-09-07 | H111: 9.2 | I111: 5.6 | J111: 0.6086956522 | O111: 24.5 | P111: 7.4 | Q111: NS | R111: NS | S111: NS | T111: NS | U111: NS | V111: NS | Y111: NS
A112: Plymouth | B112: GALLOWS | C112: 6 | D112: 2022-09-07 | H112: 9.2 | I112: 5.6 | J112: 0.6086956522 | O112: 24.5 | P112: 7.3 | Q112: NS | R112: NS | S112: NS | T112: NS | U112: NS | V112: NS | Y112: NS
A113: Plymouth | B113: GALLOWS | C113: 7 | D113: 2022-09-07 | H113: 9.2 | I113: 5.6 | J113: 0.6086956522 | O113: 24.4 | P113: 7.2 | Q113: NS | R113: NS | S113: NS | T113: NS | U113: NS | V113: NS | Y113: NS
A114: Plymouth | B114: GALLOWS | C114: 8 | D114: 2022-09-07 | H114: 9.2 | I114: 5.6 | J114: 0.6086956522 | O114: 20.9 | P114: 2.6 | Q114: 5.56 | R114: 5.6 | S114: 0.905357037 | T114: 3.412820991 | U114: 4.318178028 | V114: 0.6018724922 | W114: 18.64225533 | X114: 0.01864225533 | Y114: 16.21418093 | Z114: 227.107168 | AA114: 0.227107168
A115: Plymouth | B115: GALLOWS | C115: 9 | D115: 2022-09-07 | H115: 9.2 | I115: 5.6 | J115: 0.6086956522 | O115: 18.3 | P115: 1.1 | Q115: NS | R115: NS | S115: NS | T115: NS | U115: NS | V115: NS | Y115: NS
A116: Plymouth | B116: GREAT HERRING | C116: 0.5 | D116: 2022-04-25 | F116: 4 | G116: 08:30:00 | H116: 13.5 | I116: 7.2 | J116: 0.5333333333 | K116: CLEAR | L116: 3 | M116: 2 | N116: ND | O116: 12.55 | P116: 9.63 | Q116: 6.52 | R116: 13 | S116: 0.181984375 | T116: 0.025 | U116: 0.206984375 | V116: 0.3850083003 | W116: 11.92515546 | X116: 0.01192515546 | Y116: 38.66324 | Z116: 541.5444037 | AA116: 0.5415444037
A117: Plymouth | B117: GREAT HERRING | C117: 1 | D117: 2022-04-25 | H117: 13.5 | I117: 7.2 | J117: 0.5333333333 | O117: 12.55 | P117: 9.57 | Q117: NS | R117: NS | S117: NS | T117: NS | U117: NS | V117: NS | Y117: NS
A118: Plymouth | B118: GREAT HERRING | C118: 2 | D118: 2022-04-25 | H118: 13.5 | I118: 7.2 | J118: 0.5333333333 | O118: 12.55 | P118: 9.71 | Q118: NS | R118: NS | S118: NS | T118: NS | U118: NS | V118: NS | Y118: NS
A119: Plymouth | B119: GREAT HERRING | C119: 3 | D119: 2022-04-25 | H119: 13.5 | I119: 7.2 | J119: 0.5333333333 | O119: 12.54 | P119: 9.32 | Q119: 6.45 | R119: 14.4 | S119: 0.2282177083 | T119: 0.025 | U119: 0.2532177083 | V119: 0.6416805006 | W119: 19.8752591 | X119: 0.0198752591 | Y119: 36.80912795 | Z119: 515.5744125 | AA119: 0.5155744125
A120: Plymouth | B120: GREAT HERRING | C120: 4 | D120: 2022-04-25 | H120: 13.5 | I120: 7.2 | J120: 0.5333333333 | O120: 12.54 | P120: 9.84 | Q120: NS | R120: NS | S120: NS | T120: NS | U120: NS | V120: NS | Y120: NS
A121: Plymouth | B121: GREAT HERRING | C121: 5 | D121: 2022-04-25 | H121: 13.5 | I121: 7.2 | J121: 0.5333333333 | O121: 12.54 | P121: 10.01 | Q121: NS | R121: NS | S121: NS | T121: NS | U121: NS | V121: NS | Y121: NS
A122: Plymouth | B122: GREAT HERRING | C122: 6 | D122: 2022-04-25 | H122: 13.5 | I122: 7.2 | J122: 0.5333333333 | O122: 12.54 | P122: 9.81 | Q122: NS | R122: NS | S122: NS | T122: NS | U122: NS | V122: NS | Y122: NS
A123: Plymouth | B123: GREAT HERRING | C123: 7 | D123: 2022-04-25 | H123: 13.5 | I123: 7.2 | J123: 0.5333333333 | O123: 12.54 | P123: 9.8 | Q123: NS | R123: NS | S123: NS | T123: NS | U123: NS | V123: NS | Y123: NS
A124: Plymouth | B124: GREAT HERRING | C124: 8 | D124: 2022-04-25 | H124: 13.5 | I124: 7.2 | J124: 0.5333333333 | O124: 12.53 | P124: 9.96 | Q124: NS | R124: NS | S124: NS | T124: NS | U124: NS | V124: NS | Y124: NS
A125: Plymouth | B125: GREAT HERRING | C125: 9 | D125: 2022-04-25 | H125: 13.5 | I125: 7.2 | J125: 0.5333333333 | O125: 12.52 | P125: 10.12 | Q125: 6.52 | R125: 13.4 | S125: 0.1785010417 | T125: 0.025 | U125: 0.2035010417 | V125: 0.4491763504 | W125: 13.91268137 | X125: 0.01391268137 | Y125: 39.09111654 | Z125: 547.5375421 | AA125: 0.5475375421
A126: Plymouth | B126: GREAT HERRING | C126: 10 | D126: 2022-04-25 | H126: 13.5 | I126: 7.2 | J126: 0.5333333333 | O126: 12.51 | P126: 10.41 | Q126: NS | R126: NS | S126: NS | T126: NS | U126: NS | V126: NS | Y126: NS
A127: Plymouth | B127: GREAT HERRING | C127: 11 | D127: 2022-04-25 | H127: 13.5 | I127: 7.2 | J127: 0.5333333333 | O127: 14.42 | P127: 9.45 | Q127: NS | R127: NS | S127: NS | T127: NS | U127: NS | V127: NS | Y127: NS
A128: Plymouth | B128: GREAT HERRING | C128: 12 | D128: 2022-04-25 | H128: 13.5 | I128: 7.2 | J128: 0.5333333333 | O128: 12.42 | P128: 9.7 | Q128: NS | R128: NS | S128: NS | T128: NS | U128: NS | V128: NS | Y128: NS
A129: Plymouth | B129: GREAT HERRING | C129: 12.5 | D129: 2022-04-25 | H129: 13.5 | I129: 7.2 | J129: 0.5333333333 | O129: ND | P129: ND | Q129: NS | R129: NS | S129: NS | T129: NS | U129: NS | V129: NS | Y129: NS
A130: Plymouth | B130: GREAT HERRING | C130: 13 | D130: 2022-04-25 | H130: 13.5 | I130: 7.2 | J130: 0.5333333333 | O130: 12.4 | P130: 10.05 | Q130: 6.51 | R130: 14.4 | S130: 0.3517177083 | T130: 0.025 | U130: 0.3767177083 | V130: 0.3850083003 | W130: 11.92515546 | X130: 0.01192515546 | Y130: 43.9403423 | Z130: 615.4591925 | AA130: 0.6154591925
A131: Plymouth | B131: GREAT HERRING | C131: 0.5 | D131: 2022-05-25 | E131: Sample | F131: 5 | G131: 09:10:00 | H131: 13.1 | I131: 5.2 | J131: 0.3969465649 | K131: CLEAR/BROWN | L131: 1 | M131: 2 | N131: <1% | O131: 18.78 | P131: 7.46 | Q131: 6.65 | R131: 16.4 | S131: 0.7868177083 | T131: 0.025 | U131: 0.8118177083 | V131: 0.3850083003 | W131: 11.92515546 | X131: 0.01192515546 | Y131: 35.66813366 | Z131: 499.5928477 | AA131: 0.4995928477
A132: Plymouth | B132: GREAT HERRING | C132: 0.5 | D132: 2022-05-25 | E132: FD | H132: 13.1 | I132: 5.2 | J132: 0.3969465649 | O132: 18.78 | P132: 7.46 | Q132: 6.72 | R132: 12.4 | S132: 0.6120177083 | T132: 0.025 | U132: 0.6370177083 | V132: 0.3850083003 | W132: 11.92515546 | X132: 0.01192515546 | Y132: 36.23863081 | Z132: 507.5836301 | AA132: 0.5075836301
A133: Plymouth | B133: GREAT HERRING | C133: 1 | D133: 2022-05-25 | H133: 13.1 | I133: 5.2 | J133: 0.3969465649 | O133: 18.69 | P133: 7.72 | Q133: NS | R133: NS | S133: NS | T133: NS | U133: NS | V133: NS | Y133: NS
A134: Plymouth | B134: GREAT HERRING | C134: 2 | D134: 2022-05-25 | H134: 13.1 | I134: 5.2 | J134: 0.3969465649 | O134: 18.62 | P134: 8.2 | Q134: NS | R134: NS | S134: NS | T134: NS | U134: NS | V134: NS | Y134: NS
A135: Plymouth | B135: GREAT HERRING | C135: 3 | D135: 2022-05-25 | H135: 13.1 | I135: 5.2 | J135: 0.3969465649 | O135: 18.55 | P135: 7.3 | Q135: 6.72 | R135: 13.1 | S135: 1.053767708 | T135: 0.025 | U135: 1.078767708 | V135: 0.4491763504 | W135: 13.91268137 | X135: 0.01391268137 | Y135: 36.80912795 | Z135: 515.5744125 | AA135: 0.5155744125
A136: Plymouth | B136: GREAT HERRING | C136: 4 | D136: 2022-05-25 | H136: 13.1 | I136: 5.2 | J136: 0.3969465649 | O136: 18.48 | P136: 7.55 | Q136: NS | R136: NS | S136: NS | T136: NS | U136: NS | V136: NS | Y136: NS
A137: Plymouth | B137: GREAT HERRING | C137: 5 | D137: 2022-05-25 | H137: 13.1 | I137: 5.2 | J137: 0.3969465649 | O137: 18.44 | P137: 7.3 | Q137: NS | R137: NS | S137: NS | T137: NS | U137: NS | V137: NS | Y137: NS
A138: Plymouth | B138: GREAT HERRING | C138: 6 | D138: 2022-05-25 | H138: 13.1 | I138: 5.2 | J138: 0.3969465649 | O138: 18.12 | P138: 7.39 | Q138: NS | R138: NS | S138: NS | T138: NS | U138: NS | V138: NS | Y138: NS
A139: Plymouth | B139: GREAT HERRING | C139: 7 | D139: 2022-05-25 | H139: 13.1 | I139: 5.2 | J139: 0.3969465649 | O139: 16.94 | P139: 8.63 | Q139: NS | R139: NS | S139: NS | T139: NS | U139: NS | V139: NS | Y139: NS
A140: Plymouth | B140: GREAT HERRING | C140: 8 | D140: 2022-05-25 | H140: 13.1 | I140: 5.2 | J140: 0.3969465649 | O140: 15.49 | P140: 7.65 | Q140: NS | R140: NS | S140: NS | T140: NS | U140: NS | V140: NS | Y140: NS
A141: Plymouth | B141: GREAT HERRING | C141: 9 | D141: 2022-05-25 | H141: 13.1 | I141: 5.2 | J141: 0.3969465649 | O141: 15.13 | P141: 7.23 | Q141: 6.59 | R141: 13 | S141: 3.093734375 | T141: 0.025 | U141: 3.118734375 | V141: 0.5133444005 | W141: 15.90020728 | X141: 0.01590020728 | Y141: 38.5206194 | Z141: 539.5467597 | AA141: 0.5395467597
A142: Plymouth | B142: GREAT HERRING | C142: 10 | D142: 2022-05-25 | H142: 13.1 | I142: 5.2 | J142: 0.3969465649 | O142: 14.89 | P142: 6.48 | Q142: NS | R142: NS | S142: NS | T142: NS | U142: NS | V142: NS | Y142: NS
A143: Plymouth | B143: GREAT HERRING | C143: 11 | D143: 2022-05-25 | H143: 13.1 | I143: 5.2 | J143: 0.3969465649 | O143: 14.78 | P143: 6.18 | Q143: NS | R143: NS | S143: NS | T143: NS | U143: NS | V143: NS | Y143: NS
A144: Plymouth | B144: GREAT HERRING | C144: 12 | D144: 2022-05-25 | H144: 13.1 | I144: 5.2 | J144: 0.3969465649 | O144: 14.77 | P144: 5.7 | Q144: NS | R144: NS | S144: NS | T144: NS | U144: NS | V144: NS | Y144: NS
A145: Plymouth | B145: GREAT HERRING | C145: 12.5 | D145: 2022-05-25 | H145: 13.1 | I145: 5.2 | J145: 0.3969465649 | O145: 14.76 | P145: 5.89 | Q145: 6.45 | R145: 14.8 | S145: 3.507301042 | T145: 0.025 | U145: 3.532301042 | V145: 0.5775124505 | W145: 17.88773319 | X145: 0.01788773319 | Y145: 67.90122249 | Z145: 951.0720531 | AA145: 0.9510720531
A146: Plymouth | B146: GREAT HERRING | C146: 0.5 | D146: 2022-06-21 | F146: 4 | G146: 09:00:00 | H146: 13.2 | I146: 4 | J146: 0.303030303 | K146: BROWN/GREEN | L146: 1 | M146: 2 | N146: ND | O146: 21.54 | P146: 8 | Q146: 6.94 | R146: 12.7 | S146: 1.134517708 | T146: 0.025 | U146: 1.159517708 | V146: 0.5133444005 | W146: 15.90020728 | X146: 0.01590020728 | Y146: 35.66813366 | Z146: 499.5928477 | AA146: 0.4995928477
A147: Plymouth | B147: GREAT HERRING | C147: 1 | D147: 2022-06-21 | H147: 13.2 | I147: 4 | J147: 0.303030303 | O147: 21.5 | P147: 8.29 | Q147: NS | R147: NS | S147: NS | T147: NS | U147: NS | V147: NS | Y147: NS
A148: Plymouth | B148: GREAT HERRING | C148: 2 | D148: 2022-06-21 | H148: 13.2 | I148: 4 | J148: 0.303030303 | O148: 21.46 | P148: 8.3 | Q148: NS | R148: NS | S148: NS | T148: NS | U148: NS | V148: NS | Y148: NS
A149: Plymouth | B149: GREAT HERRING | C149: 3 | D149: 2022-06-21 | H149: 13.2 | I149: 4 | J149: 0.303030303 | O149: 21.41 | P149: 8.14 | Q149: 6.92 | R149: 13.1 | S149: 1.537634375 | T149: 0.025 | U149: 1.562634375 | V149: 0.6095964755 | W149: 18.88149615 | X149: 0.01888149615 | Y149: 29.10741646 | Z149: 407.6988502 | AA149: 0.4076988502
A150: Plymouth | B150: GREAT HERRING | C150: 4 | D150: 2022-06-21 | H150: 13.2 | I150: 4 | J150: 0.303030303 | O150: 21.37 | P150: 8.1 | Q150: NS | R150: NS | S150: NS | T150: NS | U150: NS | V150: NS | Y150: NS
A151: Plymouth | B151: GREAT HERRING | C151: 5 | D151: 2022-06-21 | H151: 13.2 | I151: 4 | J151: 0.303030303 | O151: 21.22 | P151: 7.7 | Q151: NS | R151: NS | S151: NS | T151: NS | U151: NS | V151: NS | Y151: NS
A152: Plymouth | B152: GREAT HERRING | C152: 6 | D152: 2022-06-21 | H152: 13.2 | I152: 4 | J152: 0.303030303 | O152: 21.17 | P152: 7.33 | Q152: NS | R152: NS | S152: NS | T152: NS | U152: NS | V152: NS | Y152: NS
A153: Plymouth | B153: GREAT HERRING | C153: 7 | D153: 2022-06-21 | H153: 13.2 | I153: 4 | J153: 0.303030303 | O153: 21.07 | P153: 7.86 | Q153: NS | R153: NS | S153: NS | T153: NS | U153: NS | V153: NS | Y153: NS
A154: Plymouth | B154: GREAT HERRING | C154: 8 | D154: 2022-06-21 | H154: 13.2 | I154: 4 | J154: 0.303030303 | O154: 20.9 | P154: 6.93 | Q154: NS | R154: NS | S154: NS | T154: NS | U154: NS | V154: NS | Y154: NS
A155: Plymouth | B155: GREAT HERRING | C155: 9 | D155: 2022-06-21 | H155: 13.2 | I155: 4 | J155: 0.303030303 | O155: 20.06 | P155: 2.89 | Q155: 6.57 | R155: 15.4 | S155: 2.938251042 | T155: 0.025 | U155: 2.963251042 | V155: 0.8267506475 | W155: 25.60757779 | X155: 0.02560757779 | Y155: 41.65835371 | Z155: 583.4960629 | AA155: 0.5834960629
A156: Plymouth | B156: GREAT HERRING | C156: 10 | D156: 2022-06-21 | H156: 13.2 | I156: 4 | J156: 0.303030303 | O156: 19.46 | P156: 1.47 | Q156: NS | R156: NS | S156: NS | T156: NS | U156: NS | V156: NS | Y156: NS
A157: Plymouth | B157: GREAT HERRING | C157: 11 | D157: 2022-06-21 | H157: 13.2 | I157: 4 | J157: 0.303030303 | O157: 18.77 | P157: 0.2 | Q157: NS | R157: NS | S157: NS | T157: NS | U157: NS | V157: NS | Y157: NS
A158: Plymouth | B158: GREAT HERRING | C158: 12 | D158: 2022-06-21 | H158: 13.2 | I158: 4 | J158: 0.303030303 | O158: 18.25 | P158: 0 | Q158: 6.44 | R158: 19.4 | S158: 3.942401042 | T158: 0.025 | U158: 3.967401042 | V158: 0.8903468511 | W158: 27.57739146 | X158: 0.02757739146 | Y158: 45.08133659 | Z158: 631.4407573 | AA158: 0.6314407573
A159: Plymouth | B159: GREAT HERRING | C159: 0.5 | D159: 2022-07-14 | F159: 4 | G159: 09:00:00 | H159: 12.5 | I159: 3.2 | J159: 0.256 | K159: CLEAR/BROWN | L159: 2 | M159: 2 | N159: ND | O159: 25.15 | P159: 8.33 | Q159: 7 | R159: 12.4 | S159: 0.9485354167 | T159: 0.025 | U159: 0.9735354167 | V159: 0.3343736068 | W159: 10.35680852 | X159: 0.01035680852 | Y159: 28.53691932 | Z159: 399.7080678 | AA159: 0.3997080678
A160: Plymouth | B160: GREAT HERRING | C160: 1 | D160: 2022-07-14 | H160: 12.5 | I160: 3.2 | J160: 0.256 | O160: 25.11 | P160: 8.36 | Q160: NS | R160: NS | S160: NS | T160: NS | U160: NS | V160: NS | Y160: NS
A161: Plymouth | B161: GREAT HERRING | C161: 2 | D161: 2022-07-14 | H161: 12.5 | I161: 3.2 | J161: 0.256 | O161: 25.08 | P161: 8.37 | Q161: NS | R161: NS | S161: NS | T161: NS | U161: NS | V161: NS | Y161: NS
A162: Plymouth | B162: GREAT HERRING | C162: 3 | D162: 2022-07-14 | H162: 12.5 | I162: 3.2 | J162: 0.256 | O162: 25.05 | P162: 8.32 | Q162: 6.94 | R162: 12.8 | S162: 1.19046875 | T162: 0.025 | U162: 1.21546875 | V162: 0.4012483281 | W162: 12.42817022 | X162: 0.01242817022 | Y162: 26.82542787 | Z162: 375.7357206 | AA162: 0.3757357206
A163: Plymouth | B163: GREAT HERRING | C163: 4 | D163: 2022-07-14 | H163: 12.5 | I163: 3.2 | J163: 0.256 | O163: 24.39 | P163: 7.73 | Q163: NS | R163: NS | S163: NS | T163: NS | U163: NS | V163: NS | Y163: NS
A164: Plymouth | B164: GREAT HERRING | C164: 5 | D164: 2022-07-14 | H164: 12.5 | I164: 3.2 | J164: 0.256 | O164: 24.25 | P164: 7.64 | Q164: NS | R164: NS | S164: NS | T164: NS | U164: NS | V164: NS | Y164: NS
A165: Plymouth | B165: GREAT HERRING | C165: 6 | D165: 2022-07-14 | H165: 12.5 | I165: 3.2 | J165: 0.256 | O165: 24.16 | P165: 7.52 | Q165: NS | R165: NS | S165: NS | T165: NS | U165: NS | V165: NS | Y165: NS
A166: Plymouth | B166: GREAT HERRING | C166: 7 | D166: 2022-07-14 | H166: 12.5 | I166: 3.2 | J166: 0.256 | O166: 23.97 | P166: 7.35 | Q166: NS | R166: NS | S166: NS | T166: NS | U166: NS | V166: NS | Y166: NS
A167: Plymouth | B167: GREAT HERRING | C167: 8 | D167: 2022-07-14 | H167: 12.5 | I167: 3.2 | J167: 0.256 | O167: 23.89 | P167: 6.95 | Q167: NS | R167: NS | S167: NS | T167: NS | U167: NS | V167: NS | Y167: NS
A168: Plymouth | B168: GREAT HERRING | C168: 9 | D168: 2022-07-14 | H168: 12.5 | I168: 3.2 | J168: 0.256 | O168: 23.5 | P168: 5.03 | Q168: 6.37 | R168: 14.2 | S168: 4.112035417 | T168: 0.025 | U168: 4.137035417 | V168: 0.8717575754 | W168: =V168*30.973762 -> 27.00161166 | X168: =W168/1000 -> 0.02700161166 | Y168: 38.80586797 | Z168: =Y168*14.0067 -> 543.5421509 | AA168: =Z168/1000 -> 0.5435421509
A169: Plymouth | B169: GREAT HERRING | C169: 10 | D169: 2022-07-14 | H169: 12.5 | I169: 3.2 | J169: 0.256 | O169: 23.34 | P169: 4.23 | Q169: NS | R169: NS | S169: NS | T169: NS | U169: NS | V169: NS | Y169: NS
A170: Plymouth | B170: GREAT HERRING | C170: 11 | D170: 2022-07-14 | H170: 12.5 | I170: 3.2 | J170: 0.256 | O170: 23.09 | P170: 3.3 | Q170: NS | R170: NS | S170: NS | T170: NS | U170: NS | V170: NS | Y170: NS
A171: Plymouth | B171: GREAT HERRING | C171: 11.5 | D171: 2022-07-14 | H171: 12.5 | I171: 3.2 | J171: 0.256 | O171: ND | P171: ND | Q171: 6.64 | R171: 14.3 | S171: 4.471135417 | T171: 0.025 | U171: 4.496135417 | V171: 0.8046993003 | W171: 24.92456461 | X171: 0.02492456461 | Y171: 34.52713936 | Z171: 483.6112829 | AA171: 0.4836112829
A172: Plymouth | B172: GREAT HERRING | C172: 0.5 | D172: 2022-09-01 | E172: Sample | F172: 5 | G172: 09:00:00 | H172: 12.2 | I172: 2 | J172: 0.1639344262 | K172: GREEN | L172: 1 | M172: 2 | N172: ND | O172: 25.9 | P172: 7.26 | Q172: 6.51 | R172: 9.6 | S172: 7.121791111 | T172: 0.025 | U172: 7.146791111 | V172: 0.6687472136 | W172: 20.71361703 | X172: 0.02071361703 | Y172: 20.46438468 | Z172: 286.6384969 | AA172: 0.2866384969
A173: Plymouth | B173: GREAT HERRING | C173: 0.5 | D173: 2022-09-01 | E173: FD | H173: 12.2 | I173: 2 | J173: 0.1639344262 | O173: 25.9 | P173: 7.26 | Q173: 6.54 | R173: 7.5 | S173: 7.079681481 | T173: 0.8909805463 | U173: 7.970662028 | V173: 0.4012483281 | W173: 12.42817022 | X173: 0.01242817022 | Y173: 20.80668297 | Z173: 291.4329663 | AA173: 0.2914329663
A174: Plymouth | B174: GREAT HERRING | C174: 1 | D174: 2022-09-01 | H174: 12.2 | I174: 2 | J174: 0.1639344262 | O174: 25.9 | P174: 7.29 | Q174: NS | R174: NS | S174: NS | T174: NS | U174: NS | V174: NS | Y174: NS
A175: Plymouth | B175: GREAT HERRING | C175: 2 | D175: 2022-09-01 | H175: 12.2 | I175: 2 | J175: 0.1639344262 | O175: 25.89 | P175: 7.27 | Q175: NS | R175: NS | S175: NS | T175: NS | U175: NS | V175: NS | Y175: NS
A176: Plymouth | B176: GREAT HERRING | C176: 3 | D176: 2022-09-01 | H176: 12.2 | I176: 2 | J176: 0.1639344262 | O176: 25.84 | P176: 7.21 | Q176: 6.53 | R176: 9.6 | S176: 4.747860741 | T176: 0.9536186204 | U176: 5.701479361 | V176: 0.6687472136 | W176: 20.71361703 | X176: 0.02071361703 | Y176: 21.40570497 | Z176: 299.8232878 | AA176: 0.2998232878
A177: Plymouth | B177: GREAT HERRING | C177: 4 | D177: 2022-09-01 | H177: 12.2 | I177: 2 | J177: 0.1639344262 | O177: 25.8 | P177: 6.97 | Q177: NS | R177: NS | S177: NS | T177: NS | U177: NS | V177: NS | Y177: NS
A178: Plymouth | B178: GREAT HERRING | C178: 5 | D178: 2022-09-01 | H178: 12.2 | I178: 2 | J178: 0.1639344262 | O178: 25.75 | P178: 6.98 | Q178: NS | R178: NS | S178: NS | T178: NS | U178: NS | V178: NS | Y178: NS
A179: Plymouth | B179: GREAT HERRING | C179: 6 | D179: 2022-09-01 | H179: 12.2 | I179: 2 | J179: 0.1639344262 | O179: 25.7 | P179: 6.9 | Q179: NS | R179: NS | S179: NS | T179: NS | U179: NS | V179: NS | Y179: NS
A180: Plymouth | B180: GREAT HERRING | C180: 7 | D180: 2022-09-01 | H180: 12.2 | I180: 2 | J180: 0.1639344262 | O180: 25.67 | P180: 6.53 | Q180: NS | R180: NS | S180: NS | T180: NS | U180: NS | V180: NS | Y180: NS
A181: Plymouth | B181: GREAT HERRING | C181: 8 | D181: 2022-09-01 | H181: 12.2 | I181: 2 | J181: 0.1639344262 | O181: 25.65 | P181: 6.48 | Q181: NS | R181: NS | S181: NS | T181: NS | U181: NS | V181: NS | Y181: NS
A182: Plymouth | B182: GREAT HERRING | C182: 9 | D182: 2022-09-01 | H182: 12.2 | I182: 2 | J182: 0.1639344262 | O182: 25.49 | P182: 5.65 | Q182: 6.62 | R182: 10.1 | S182: 3.621428148 | T182: 3.899187213 | U182: 7.520615361 | V182: 0.6687472136 | W182: 20.71361703 | X182: 0.02071361703 | Y182: 26.25493073 | Z182: 367.7449382 | AA182: 0.3677449382
A183: Plymouth | B183: GREAT HERRING | C183: 10 | D183: 2022-09-01 | H183: 12.2 | I183: 2 | J183: 0.1639344262 | O183: 25.39 | P183: 4.9 | Q183: NS | R183: NS | S183: NS | T183: NS | U183: NS | V183: NS | Y183: NS
A184: Plymouth | B184: GREAT HERRING | C184: 11 | D184: 2022-09-01 | H184: 12.2 | I184: 2 | J184: 0.1639344262 | O184: 25.34 | P184: 4.38 | Q184: NS | R184: NS | S184: NS | T184: NS | U184: NS | V184: NS | Y184: NS
A185: Plymouth | B185: GREAT HERRING | C185: 11.5 | D185: 2022-09-01 | H185: 12.2 | I185: 2 | J185: 0.1639344262 | O185: 25.34 | P185: 4.3 | Q185: 6.43 | R185: 11.9 | S185: 5.026837037 | T185: 9.239740991 | U185: 14.26657803 | V185: 0.9388158504 | W185: 29.07865871 | X185: 0.02907865871 | Y185: 26.25493073 | Z185: 367.7449382 | AA185: 0.3677449382
A186: Plymouth | B186: GREAT HERRING | C186: 0.5 | D186: 2022-09-19 | F186: 4 | G186: 09:00:00 | H186: 13.5 | I186: 2 | J186: 0.1481481481 | K186: BROWN/GREEN | L186: 3 | M186: 2 | N186: ND | O186: 22.77 | P186: 8 | Q186: 6.24 | R186: 11.3 | S186: 2.737125926 | T186: 3.400188102 | U186: 6.137314028 | V186: 0.4012483281 | W186: 12.42817022 | X186: 0.01242817022 | Y186: 27.93230721 | Z186: 391.2394473 | AA186: 0.3912394473
A187: Plymouth | B187: GREAT HERRING | C187: 1 | D187: 2022-09-19 | H187: 13.5 | I187: 2 | J187: 0.1481481481 | O187: 22.78 | P187: 7.99 | Q187: NS | R187: NS | S187: NS | T187: NS | U187: NS | V187: NS | Y187: NS
A188: Plymouth | B188: GREAT HERRING | C188: 2 | D188: 2022-09-19 | H188: 13.5 | I188: 2 | J188: 0.1481481481 | O188: 22.77 | P188: 8.05 | Q188: NS | R188: NS | S188: NS | T188: NS | U188: NS | V188: NS | Y188: NS
A189: Plymouth | B189: GREAT HERRING | C189: 3 | D189: 2022-09-19 | H189: 13.5 | I189: 2 | J189: 0.1481481481 | O189: 22.77 | P189: 7.98 | Q189: 6.27 | R189: 11.1 | S189: 5.679536296 | T189: 5.105101731 | U189: 10.78463803 | V189: 0.4681230495 | W189: 14.49953192 | X189: 0.01449953192 | Y189: 24.51890645 | Z189: 343.4289669 | AA189: 0.3434289669
A190: Plymouth | B190: GREAT HERRING | C190: 4 | D190: 2022-09-19 | H190: 13.5 | I190: 2 | J190: 0.1481481481 | O190: 22.78 | P190: 7.83 | Q190: NS | R190: NS | S190: NS | T190: NS | U190: NS | V190: NS | Y190: NS
A191: Plymouth | B191: GREAT HERRING | C191: 5 | D191: 2022-09-19 | H191: 13.5 | I191: 2 | J191: 0.1481481481 | O191: 22.79 | P191: 7.72 | Q191: NS | R191: NS | S191: NS | T191: NS | U191: NS | V191: NS | Y191: NS
A192: Plymouth | B192: GREAT HERRING | C192: 6 | D192: 2022-09-19 | H192: 13.5 | I192: 2 | J192: 0.1481481481 | O192: 22.78 | P192: 7.77 | Q192: NS | R192: NS | S192: NS | T192: NS | U192: NS | V192: NS | Y192: NS
A193: Plymouth | B193: GREAT HERRING | C193: 7 | D193: 2022-09-19 | H193: 13.5 | I193: 2 | J193: 0.1481481481 | O193: 22.78 | P193: 7.71 | Q193: NS | R193: NS | S193: NS | T193: NS | U193: NS | V193: NS | Y193: NS
A194: Plymouth | B194: GREAT HERRING | C194: 8 | D194: 2022-09-19 | H194: 13.5 | I194: 2 | J194: 0.1481481481 | O194: 22.78 | P194: 7.71 | Q194: NS | R194: NS | S194: NS | T194: NS | U194: NS | V194: NS | Y194: NS
A195: Plymouth | B195: GREAT HERRING | C195: 9 | D195: 2022-09-19 | H195: 13.5 | I195: 2 | J195: 0.1481481481 | O195: 22.78 | P195: 7.56 | Q195: 6.17 | R195: 10.1 | S195: 3.557238202 | T195: 1.316395738 | U195: 4.87363394 | V195: 0.8046993003 | W195: 24.92456461 | X195: 0.02492456461 | Y195: 23.29577118 | Z195: 326.2968781 | AA195: 0.3262968781
A196: Plymouth | B196: GREAT HERRING | C196: 10 | D196: 2022-09-19 | H196: 13.5 | I196: 2 | J196: 0.1481481481 | O196: 22.78 | P196: 7.6 | Q196: NS | R196: NS | S196: NS | T196: NS | U196: NS | V196: NS | Y196: NS
A197: Plymouth | B197: GREAT HERRING | C197: 11 | D197: 2022-09-19 | H197: 13.5 | I197: 2 | J197: 0.1481481481 | O197: 22.78 | P197: 7.52 | Q197: NS | R197: NS | S197: NS | T197: NS | U197: NS | V197: NS | Y197: NS
A198: Plymouth | B198: GREAT HERRING | C198: 12 | D198: 2022-09-19 | H198: 13.5 | I198: 2 | J198: 0.1481481481 | O198: 22.72 | P198: 7.1 | Q198: NS | R198: NS | S198: NS | T198: NS | U198: NS | V198: NS | Y198: NS
A199: Plymouth | B199: GREAT HERRING | C199: 12.5 | D199: 2022-09-19 | H199: 13.5 | I199: 2 | J199: 0.1481481481 | O199: 22.72 | P199: 7.2 | Q199: 6.31 | R199: 9.9 | S199: 4.748986227 | T199: 4.632370495 | U199: 9.381356722 | V199: 3.688205127 | W199: 114.2375878 | X199: 0.1142375878 | Y199: 27.07896 | Z199: 379.286869 | AA199: 0.379286869
A200: Plymouth | B200: GREAT HERRING | C200: 0.5 | D200: 2022-10-06 | F200: 4 | H200: 13 | I200: 2.4 | J200: 0.1846153846 | K200: ND | L200: 6 | M200: ND | N200: ND | O200: 16.59 | P200: 9.44 | Q200: 6.47 | R200: 11.9 | S200: 4.908403704 | T200: 2.145584324 | U200: 7.053988028 | V200: 0.6018724922 | W200: 18.64225533 | X200: 0.01864225533 | Y200: 24.80335651 | Z200: 347.4131736 | AA200: 0.3474131736
A201: Plymouth | B201: GREAT HERRING | C201: 1 | D201: 2022-10-06 | H201: 13 | I201: 2.4 | J201: 0.1846153846 | O201: 16.6 | P201: 9.46 | Q201: NS | R201: NS | S201: NS | T201: NS | U201: NS | V201: NS | Y201: NS
A202: Plymouth | B202: GREAT HERRING | C202: 2 | D202: 2022-10-06 | H202: 13 | I202: 2.4 | J202: 0.1846153846 | O202: 16.59 | P202: 9.45 | Q202: NS | R202: NS | S202: NS | T202: NS | U202: NS | V202: NS | Y202: NS
... 140 more rows

Sheet PALS POND DATA 2021
A1: Town | B1: Pond | C1: Depth (m) | D1: Date | E1: QC | F1: Number of Samples | G1: Sample Time | H1: Total Depth (m) | I1: Secchi Depth (m) | J1: % Secchi | K1: Water Color | L1: Weather | M1: Wind | N1: Plants | O1: Temp C | P1: DO (mg/L) | Q1: pH | R1: Alk (mg CaCO3/L) | S1: CHLA (ug/L) | T1: Phaeo (ug/L) | U1: T-pig ug/L | V1: TP (uM) | W1: TP (µg/L) | X1: TP (mg/L) | Y1: TN (uM) | Z1: TN (ug/L) | AA1: TN (mg/L) | AB1: Notes
A2: Plymouth | B2: Big Sandy Pond | C2: 0.5 | D2: 2021-08-24 | F2: 3 | G2: 10:55:00 | H2: 11 | I2: 4.8 | J2: 0.4363636364 | K2: clear | L2: 3 | M2: 2 | N2: ND | O2: 26.08 | P2: 8.32 | Q2: 6.32 | R2: 5.3 | S2: 0.7930379747 | T2: 1.078929109 | U2: 1.871967083 | V2: 0.4130409846 | W2: =V2*30.973762 -> 12.79343315 | X2: =W2/1000 -> 0.01279343315 | Y2: 34.72569469 | Z2: =Y2*14.0067 -> 486.3923879 | AA2: =Z2/1000 -> 0.4863923879
A3: Plymouth | B3: Big Sandy Pond | C3: 1 | D3: 2021-08-24 | O3: 26.07 | P3: 8.33 | Q3: NS | R3: NS | S3: NS | T3: NS | U3: NS | V3: NS | W3: NS | X3: NS | Y3: NS | Z3: NS | AA3: NS
A4: Plymouth | B4: Big Sandy Pond | C4: 2 | D4: 2021-08-24 | O4: 26.05 | P4: 8.23 | Q4: NS | R4: NS | S4: NS | T4: NS | U4: NS | V4: NS | W4: NS | X4: NS | Y4: NS | Z4: NS | AA4: NS
A5: Plymouth | B5: Big Sandy Pond | C5: 3 | D5: 2021-08-24 | G5: 10:58:00 | O5: 26.06 | P5: 8.47 | Q5: 6.27 | R5: 5.5 | S5: 0.9403164557 | T5: 0.9602906276 | U5: 1.900607083 | V5: 0.4130409846 | W5: =V5*30.973762 -> 12.79343315 | X5: =W5/1000 -> 0.01279343315 | Y5: 29.59376267 | Z5: =Y5*14.0067 -> 414.5109556 | AA5: =Z5/1000 -> 0.4145109556
A6: Plymouth | B6: Big Sandy Pond | C6: 4 | D6: 2021-08-24 | O6: 26.02 | P6: 8.35 | Q6: NS | R6: NS | S6: NS | T6: NS | U6: NS | V6: NS | W6: NS | X6: NS | Y6: NS | Z6: NS | AA6: NS
A7: Plymouth | B7: Big Sandy Pond | C7: 5 | D7: 2021-08-24 | O7: 25.96 | P7: 8.2 | Q7: NS | R7: NS | S7: NS | T7: NS | U7: NS | V7: NS | W7: NS | X7: NS | Y7: NS | Z7: NS | AA7: NS
A8: Plymouth | B8: Big Sandy Pond | C8: 6 | D8: 2021-08-24 | O8: 25.95 | P8: 8.28 | Q8: NS | R8: NS | S8: NS | T8: NS | U8: NS | V8: NS | W8: NS | X8: NS | Y8: NS | Z8: NS | AA8: NS
A9: Plymouth | B9: Big Sandy Pond | C9: 7 | D9: 2021-08-24 | O9: 25.82 | P9: 8.23 | Q9: NS | R9: NS | S9: NS | T9: NS | U9: NS | V9: NS | W9: NS | X9: NS | Y9: NS | Z9: NS | AA9: NS
A10: Plymouth | B10: Big Sandy Pond | C10: 8 | D10: 2021-08-24 | O10: 25.83 | P10: 8.25 | Q10: NS | R10: NS | S10: NS | T10: NS | U10: NS | V10: NS | W10: NS | X10: NS | Y10: NS | Z10: NS | AA10: NS
A11: Plymouth | B11: Big Sandy Pond | C11: 9 | D11: 2021-08-24 | G11: 11:00:00 | O11: 20.91 | P11: 4.3 | Q11: 6.07 | R11: 5.7 | S11: 1.207683544 | T11: 0.981113539 | U11: 2.188797083 | V11: 0.4818811487 | W11: 14.92567201 | X11: =W11/1000 -> 0.01492567201 | Y11: 32.91442457 | Z11: =Y11*14.0067 -> 461.0224706 | AA11: =Z11/1000 -> 0.4610224706
A12: Plymouth | B12: Big Sandy Pond | C12: 10 | D12: 2021-08-24 | G12: 11:05:00 | O12: 17.8 | P12: 2.2 | Q12: 5.86 | R12: 5.8 | S12: 1.153303797 | T12: 1.423923286 | U12: 2.577227083 | V12: 0.4818811487 | W12: 14.92567201 | X12: 0.01492567201 | Y12: 30.80127609 | Z12: 431.4242338 | AA12: 0.4314242338
A13: Plymouth | B13: Billington Sea 2 (West) | C13: 0.5 | D13: 2021-05-26 | F13: 4 | G13: 12:20:00 | H13: 2.1 | I13: 2.1 | J13: 1 | K13: brown | L13: 2 | M13: 3 | N13: no indication of cyanobacteria | O13: 20.91 | P13: 8.48 | Q13: NS | R13: NS | S13: NS | T13: NS | U13: NS | V13: 0.8021554736 | W13: 24.84577273 | X13: 0.02484577273 | Y13: 69.44170543 | Z13: 972.6491354 | AA13: 0.9726491354
A14: Plymouth | B14: Billington Sea 2 (West) | C14: 1 | D14: 2021-05-26 | O14: 20.84 | P14: 8.72 | Q14: 6.92 | R14: 27.5 | S14: 3.510791667 | T14: 1.008 | U14: 4.518791667 | V14: NS | W14: NS | X14: NS | Y14: NS | Z14: NS | AA14: NS
A15: Plymouth | B15: Billington Sea 2 (West) | C15: 1.5 | D15: 2021-05-26 | G15: 12:25:00 | O15: 20.4 | P15: 8.84 | Q15: 6.86 | R15: 24.7 | S15: 4.067058333 | T15: 0.9333333333 | U15: 5.000391667 | V15: 1.036117487 | W15: 32.09245644 | X15: =W15/1000 -> 0.03209245644 | Y15: 60.08347645 | Z15: =Y15*14.0067 -> 841.5712295 | AA15: =Z15/1000 -> 0.8415712295
A16: Plymouth | B16: Billington Sea 2 (West) | C16: 0.5 | D16: 2021-07-13 | F16: 5 | G16: 12:20:00 | H16: 2 | I16: 2 | J16: 1 | K16: BLUE | L16: 3 | M16: 2 | N16: ND | O16: 22.16 | P16: 8.88 | Q16: 6.76 | R16: 27.9 | S16: 3.871058333 | T16: 0.5693333333 | U16: 4.440391667 | V16: 0.6195614768 | W16: 19.19014973 | X16: 0.01919014973 | Y16: 88.15816339 | Z16: 1234.804947 | AA16: =Z16/1000 -> 1.234804947
A17: Plymouth | B17: Billington Sea 2 (West) | C17: 1 | D17: 2021-07-13 | O17: 22.15 | P17: 8.61 | Q17: NS | R17: NS | S17: NS | T17: NS | U17: NS | V17: NS | W17: NS | X17: NS | Y17: NS | Z17: NS | AA17: NS
A18: Plymouth | B18: Billington Sea 2 (West) | C18: 1.5 | D18: 2021-07-13 | G18: 12:25:00 | O18: 21.97 | P18: 8.59 | Q18: 6.63 | R18: 27.1 | S18: 3.475325 | T18: 0.9706666667 | U18: 4.445991667 | V18: 0.7353091842 | W18: 22.77529167 | X18: =W18/1000 -> 0.02277529167 | Y18: 72.76236732 | Z18: =Y18*14.0067 -> 1019.16065 | AA18: =Z18/1000 -> 1.01916065
A19: Plymouth | B19: Billington Sea 2 (West) | C19: 0.5 | D19: 2021-08-24 | E19: Sample | F19: 5 | G19: 10:15:00 | H19: 2 | I19: 2 | J19: 1 | K19: clear | L19: 3 | M19: 2 | N19: ND | O19: 25.04 | P19: 7.82 | Q19: 6.54 | R19: 27.3 | S19: 2.283949367 | T19: 1.795087716 | U19: 4.079037083 | V19: 0.6195614768 | W19: 19.19014973 | X19: 0.01919014973 | Y19: 79.70556947 | Z19: 1116.412 | AA19: 1.116412
A20: Plymouth | B20: Billington Sea 2 (West) | C20: 0.5 | D20: 2021-08-24 | E20: FD | G20: 10:18:00 | O20: 25.04 | P20: 7.82 | Q20: 6.56 | R20: 27.4 | S20: 1.794531646 | T20: 2.996925438 | U20: 4.791457083 | V20: 3.308891329 | W20: 102.4888125 | X20: 0.1024888125 | Y20: 74.57363745 | Z20: 1044.530568 | AA20: 1.044530568
A21: Plymouth | B21: Billington Sea 2 (West) | C21: 1 | D21: 2021-08-24 | O21: 25.05 | P21: 7.94 | Q21: NS | R21: NS | S21: NS | T21: NS | U21: NS | V21: NS | W21: NS | X21: NS | Y21: NS | Z21: NS | AA21: NS
A22: Plymouth | B22: Billington Sea 2 (West) | C22: 1.5 | D22: 2021-08-24 | G22: 10:20:00 | O22: 25.05 | P22: 7.86 | Q22: 6.58 | R22: 28.7 | S22: 2.036974684 | T22: 2.3051924 | U22: 4.342167083 | V22: 0.6195614768 | W22: 19.19014973 | X22: =W22/1000 -> 0.01919014973 | Y22: 80.00744782 | Z22: =Y22*14.0067 -> 1120.640319 | AA22: =Z22/1000 -> 1.120640319
A23: PLYMOUTH | B23: Billington Sea 2 (West) | C23: 0.5 | D23: 2021-09-21 | E23: SAMPLE | F23: 3 | G23: 12:50:00 | H23: 2 | I23: 2 | J23: 1 | K23: NA | L23: PT. CLOUDY | M23: LIGHT BREEZE | N23: NA | O23: 22.16 | P23: 8.03 | Q23: 6.78 | R23: 27 | S23: 1.794531646 | T23: 1.896783979 | U23: 3.691315625 | V23: 0.7687323289 | W23: 23.8105322 | X23: 0.0238105322 | Y23: 88.15816339 | Z23: 1234.804947 | AA23: 1.234804947
A24: PLYMOUTH | B24: Billington Sea 2 (West) | C24: 0.5 | D24: 2021-09-21 | E24: FD | G24: 12:52:00 | O24: 22.16 | P24: 8.03 | Q24: 6.83 | R24: 27.2 | S24: 1.699367089 | T24: 2.051018536 | U24: 3.750385625 | V24: 0.6884016409 | W24: 21.32238859 | X24: 0.02132238859 | Y24: 40.46138342 | Z24: 566.7304592 | AA24: 0.5667304592
A25: PLYMOUTH | B25: Billington Sea 2 (West) | C25: 1 | D25: 2021-09-21 | O25: 20.46 | P25: 9.74 | Q25: NS | R25: NS | S25: NS | T25: NS | U25: NS | V25: NS | W25: NS | X25: NS | Y25: NS | Z25: NS | AA25: NS
A26: PLYMOUTH | B26: Billington Sea 2 (West) | C26: 1.5 | D26: 2021-09-21 | G26: 12:55:00 | O26: 19.78 | P26: 9.84 | Q26: 6.73 | R26: 26.3 | S26: 1.794531646 | T26: 2.559978979 | U26: 4.354510625 | V26: 0.6195614768 | W26: 19.19014973 | X26: =W26/1000 -> 0.01919014973 | Y26: 52.23 | Z26: =Y26*14.0067 -> 731.569941 | AA26: =Z26/1000 -> 0.731569941
A27: Plymouth | B27: Billington Sea 5 (East) | C27: 0.5 | D27: 2021-05-26 | E27: Sample | F27: 3 | G27: 12:12:00 | O27: 21.1 | P27: 8.5 | Q27: 6.94 | R27: 24.7 | S27: 3.872925 | T27: 0.3826666667 | U27: 4.255591667 | V27: 0.9358480526 | W27: 28.98673485 | X27: 0.02898673485 | Y27: 62.49850328 | Z27: 875.3977859 | AA27: 0.8753977859
A28: Plymouth | B28: Billington Sea 5 (East) | C28: 0.5 | D28: 2021-05-26 | E28: FD | G28: 12:10:00 | O28: 21.1 | P28: 8.5 | Q28: 7.02 | R28: 24.2 | S28: 3.861725 | T28: 0.2986666667 | U28: 4.160391667 | V28: 0.6195614768 | W28: 19.19014973 | X28: 0.01919014973 | Y28: 36.83884317 | Z28: 515.9906247 | AA28: 0.5159906247
A29: Plymouth | B29: Billington Sea 5 (East) | C29: 1 | D29: 2021-05-26 | O29: 21.12 | P29: 8.54 | Q29: NS | R29: NS | S29: NS | T29: NS | U29: NS | V29: NS | W29: NS | X29: NS | Y29: NS | Z29: NS | AA29: NS
A30: Plymouth | B30: Billington Sea 5 (East) | C30: 1.5 | D30: 2021-05-26 | O30: 21.11 | P30: 8.54 | Q30: NS | R30: NS | S30: NS | T30: NS | U30: NS | V30: NS | W30: NS | X30: NS | Y30: NS | Z30: NS | AA30: NS
A31: Plymouth | B31: Billington Sea 5 (East) | C31: 2 | D31: 2021-05-26 | O31: 21.07 | P31: 8.45 | Q31: NS | R31: NS | S31: NS | T31: NS | U31: NS | V31: NS | W31: NS | X31: NS | Y31: NS | Z31: NS | AA31: NS
A32: Plymouth | B32: Billington Sea 5 (East) | C32: 2.5 | D32: 2021-05-26 | G32: 12:15:00 | O32: 21.07 | P32: 8.54 | Q32: 6.97 | R32: 23.9 | S32: 3.477191667 | T32: 0.784 | U32: 4.261191667 | V32: 1.002694342 | W32: 31.05721591 | X32: =W32/1000 -> 0.03105721591 | Y32: 40.46138342 | Z32: =Y32*14.0067 -> 566.7304592 | AA32: =Z32/1000 -> 0.5667304592
A33: Plymouth | B33: Billington Sea 5 (East) | C33: 3 | D33: 2021-05-26 | O33: 21.1 | P33: 8.65 | Q33: NS | R33: NS | S33: NS | T33: NS | U33: NS | V33: NS | W33: NS | X33: NS | Y33: NS | Z33: NS | AA33: NS
A34: Plymouth | B34: Billington Sea 5 (East) | C34: 0.5 | D34: 2021-07-13 | E34: Sample | G34: 12:05:00 | O34: 22.13 | P34: 8.43 | Q34: 6.82 | R34: 26.3 | S34: 5.851591667 | T34: 0.644 | U34: 6.495591667 | V34: 0.7353091842 | W34: 22.77529167 | X34: =W34/1000 -> 0.02277529167 | Y34: 35.93320811 | Z34: =Y34*14.0067 -> 503.305666 | AA34: =Z34/1000 -> 0.503305666
A35: Plymouth | B35: Billington Sea 5 (East) | C35: 0.5 | D35: 2021-07-13 | E35: FD | G35: 12:05:00 | O35: 22.13 | P35: 8.43 | Q35: 6.85 | R35: 25.5 | S35: 6.172658333 | T35: 0.1773333333 | U35: 6.349991667 | V35: 0.8690017631 | W35: 26.91625379 | X35: 0.02691625379 | Y35: 56.4609362 | Z35: 790.831395 | AA35: 0.790831395
A36: Plymouth | B36: Billington Sea 5 (East) | C36: 1 | D36: 2021-07-13 | O36: 22.13 | P36: 8.17 | Q36: NS | R36: NS | S36: NS | T36: NS | U36: NS | V36: NS | W36: NS | X36: NS | Y36: NS | Z36: NS | AA36: NS
A37: Plymouth | B37: Billington Sea 5 (East) | C37: 1.5 | D37: 2021-07-13 | O37: 23.11 | P37: 8.05 | Q37: NS | R37: NS | S37: NS | T37: NS | U37: NS | V37: NS | W37: NS | X37: NS | Y37: NS | Z37: NS | AA37: NS
A38: Plymouth | B38: Billington Sea 5 (East) | C38: 2 | D38: 2021-07-13 | O38: 23.07 | P38: 8.12 | Q38: NS | R38: NS | S38: NS | T38: NS | U38: NS | V38: NS | W38: NS | X38: NS | Y38: NS | Z38: NS | AA38: NS
A39: Plymouth | B39: Billington Sea 5 (East) | C39: 2.5 | D39: 2021-07-13 | O39: 22.95 | P39: 8.02 | Q39: NS | R39: NS | S39: NS | T39: NS | U39: NS | V39: NS | W39: NS | X39: NS | Y39: NS | Z39: NS | AA39: NS
A40: Plymouth | B40: Billington Sea 5 (East) | C40: 3 | D40: 2021-07-13 | G40: 12:08:00 | O40: 22.95 | P40: 7.99 | Q40: 6.84 | R40: 25.8 | S40: 5.834791667 | T40: 0.252 | U40: 6.086791667 | V40: 0.7353091842 | W40: 22.77529167 | X40: NS | Y40: 50.12149076 | Z40: =Y40*14.0067 -> 702.0366846 | AA40: =Z40/1000 -> 0.7020366846
A41: Plymouth | B41: Billington Sea 5 (East) | C41: 0.5 | D41: 2021-08-24 | F41: 3 | G41: 10:05:00 | O41: 25.72 | P41: 7.81 | Q41: 6.63 | R41: 24.7 | S41: 1.393481013 | T41: 1.600816071 | U41: 2.994297083 | V41: 0.6195614768 | W41: 19.19014973 | X41: =W41/1000 -> 0.01919014973 | Y41: 44.98955874 | Z41: 630.1552523 | AA41: 0.6301552523
A42: Plymouth | B42: Billington Sea 5 (East) | C42: 1 | D42: 2021-08-24 | O42: 25.73 | P42: 7.81 | Q42: NS | R42: NS | S42: NS | T42: NS | U42: NS | V42: NS | W42: NS | X42: NS | Y42: NS | Z42: NS | AA42: NS
A43: Plymouth | B43: Billington Sea 5 (East) | C43: 1.5 | D43: 2021-08-24 | O43: 25.73 | P43: 7.75 | Q43: NS | R43: NS | S43: NS | T43: NS | U43: NS | V43: NS | W43: NS | X43: NS | Y43: NS | Z43: NS | AA43: NS
A44: Plymouth | B44: Billington Sea 5 (East) | C44: 2 | D44: 2021-08-24 | O44: 25.71 | P44: 7.83 | Q44: NS | R44: NS | S44: NS | T44: NS | U44: NS | V44: NS | W44: NS | X44: NS | Y44: NS | Z44: NS | AA44: NS
A45: Plymouth | B45: Billington Sea 5 (East) | C45: 2.5 | D45: 2021-08-24 | O45: 25.65 | P45: 7.83 | Q45: NS | R45: NS | S45: NS | T45: NS | U45: NS | V45: NS | W45: NS | X45: NS | Y45: NS | Z45: NS | AA45: NS
A46: Plymouth | B46: Billington Sea 5 (East) | C46: 3 | D46: 2021-08-24 | G46: 10:08:00 | O46: 25.64 | P46: 7.7 | Q46: 6.53 | R46: 22.6 | S46: 16.14398734 | T46: 31.42772391 | U46: 47.57171125 | V46: 4.144469947 | W46: 128.3698258 | X46: =W46/1000 -> 0.1283698258 | Y46: 70.64921884 | Z46: =Y46*14.0067 -> 989.5624136 | AA46: =Z46/1000 -> 0.9895624136
A47: PLYMOUTH | B47: Billington Sea 5 (East) | C47: 0.5 | D47: 2021-09-21 | E47: SAMPLE | F47: 3 | G47: 12:40:00 | H47: 3.3 | I47: 2.7 | J47: 0.8181818182 | K47: NA | L47: PT. CLOUDY | M47: LIGHT BREEZE | N47: NA | O47: 22.16 | P47: 7.75 | Q47: 6.74 | R47: 25 | S47: 1.03321519 | T47: 3.511930435 | U47: 4.545145625 | V47: 0.8021554736 | W47: 24.84577273 | X47: 0.02484577273 | Y47: 69.44170543 | Z47: 972.6491354 | AA47: 0.9726491354
A48: PLYMOUTH | B48: Billington Sea 5 (East) | C48: 0.5 | D48: 2021-09-21 | E48: FD | G48: 12:42:00 | O48: 22.16 | P48: 7.75 | Q48: 6.81 | R48: 24.6 | S48: 1.587208861 | T48: 2.297426764 | U48: 3.884635625 | V48: 0.9358480526 | W48: 28.98673485 | X48: 0.02898673485 | Y48: 73.66800239 | Z48: 1031.845609 | AA48: 1.031845609
A49: PLYMOUTH | B49: Billington Sea 5 (East) | C49: 1 | D49: 2021-09-21 | O49: 22.04 | P49: 7.8 | Q49: NS | R49: NS | S49: NS | T49: NS | U49: NS | V49: NS | W49: NS | X49: NS | Y49: NS | Z49: NS | AA49: NS
A50: PLYMOUTH | B50: Billington Sea 5 (East) | C50: 1.5 | D50: 2021-09-21 | O50: 21.73 | P50: 7.3 | Q50: NS | R50: NS | S50: NS | T50: NS | U50: NS | V50: NS | W50: NS | X50: NS | Y50: NS | Z50: NS | AA50: NS
A51: PLYMOUTH | B51: Billington Sea 5 (East) | C51: 2 | D51: 2021-09-21 | O51: 21.7 | P51: 7.25 | Q51: NS | R51: NS | S51: NS | T51: NS | U51: NS | V51: NS | W51: NS | X51: NS | Y51: NS | Z51: NS | AA51: NS
A52: PLYMOUTH | B52: Billington Sea 5 (East) | C52: 2.5 | D52: 2021-09-21 | O52: 21.69 | P52: 7.14 | Q52: NS | R52: NS | S52: NS | T52: NS | U52: NS | V52: NS | W52: NS | X52: NS | Y52: NS | Z52: NS | AA52: NS
A53: PLYMOUTH | B53: Billington Sea 5 (East) | C53: 3 | D53: 2021-09-21 | G53: 12:45:00 | O53: 21.7 | P53: 7.24 | Q53: 6.75 | R53: 24.7 | S53: 0.5981772152 | T53: 4.68802841 | U53: 5.286205625 | V53: 1.069540632 | W53: 33.12769697 | X53: =W53/1000 -> 0.03312769697 | Y53: 80.158387 | Z53: =Y53*14.0067 -> 1122.754479 | AA53: =Z53/1000 -> 1.122754479
A54: PLYMOUTH | B54: Bloody Pond | C54: 0.5 | D54: 2021-09-08 | F54: 2 | G54: 11:30:00 | H54: 10.3 | I54: 4.05 | J54: 0.3932038835 | K54: BLUE,GREEN | L54: CLOUDLESS | M54: LIGHT BREEZE | N54: NA | O54: 24 | P54: 9.090360144 | Q54: 6.18 | R54: 4.3 | S54: 10.84533333 | T54: 1.38425 | U54: 12.22958333 | V54: 0.4818811487 | W54: 14.92567201 | X54: 0.01492567201 | Y54: 16.09980024 | Z54: 225.505072 | AA54: 0.225505072
A55: PLYMOUTH | B55: Bloody Pond | C55: 1 | D55: 2021-09-08 | O55: 24 | P55: 9.090360144 | Q55: NS | R55: NS | S55: NS | T55: NS | U55: NS | V55: NS | W55: NS | X55: NS | Y55: NS | Z55: NS | AA55: NS
A56: PLYMOUTH | B56: Bloody Pond | C56: 1.5 | D56: 2021-09-08 | O56: 23.9 | P56: 9.023048102 | Q56: NS | R56: NS | S56: NS | T56: NS | U56: NS | V56: NS | W56: NS | X56: NS | Y56: NS | Z56: NS | AA56: NS
A57: PLYMOUTH | B57: Bloody Pond | C57: 2 | D57: 2021-09-08 | O57: 23.9 | P57: 9.023048102 | Q57: NS | R57: NS | S57: NS | T57: NS | U57: NS | V57: NS | W57: NS | X57: NS | Y57: NS | Z57: NS | AA57: NS
A58: PLYMOUTH | B58: Bloody Pond | C58: 2.5 | D58: 2021-09-08 | O58: 23.9 | P58: 9.023048102 | Q58: NS | R58: NS | S58: NS | T58: NS | U58: NS | V58: NS | W58: NS | X58: NS | Y58: NS | Z58: NS | AA58: NS
A59: PLYMOUTH | B59: Bloody Pond | C59: 3 | D59: 2021-09-08 | O59: 23.9 | P59: 8.770065445 | Q59: NS | R59: NS | S59: NS | T59: NS | U59: NS | V59: NS | W59: NS | X59: NS | Y59: NS | Z59: NS | AA59: NS
A60: PLYMOUTH | B60: Bloody Pond | C60: 3.5 | D60: 2021-09-08 | O60: 23.8 | P60: 9.039962121 | Q60: NS | R60: NS | S60: NS | T60: NS | U60: NS | V60: NS | W60: NS | X60: NS | Y60: NS | Z60: NS | AA60: NS
A61: PLYMOUTH | B61: Bloody Pond | C61: 4 | D61: 2021-09-08 | O61: 23.8 | P61: 9.039962121 | Q61: NS | R61: NS | S61: NS | T61: NS | U61: NS | V61: NS | W61: NS | X61: NS | Y61: NS | Z61: NS | AA61: NS
A62: PLYMOUTH | B62: Bloody Pond | C62: 4.5 | D62: 2021-09-08 | O62: 23.8 | P62: 9.124447749 | Q62: NS | R62: NS | S62: NS | T62: NS | U62: NS | V62: NS | W62: NS | X62: NS | Y62: NS | Z62: NS | AA62: NS
A63: PLYMOUTH | B63: Bloody Pond | C63: 5 | D63: 2021-09-08 | O63: 23.8 | P63: 8.870990867 | Q63: NS | R63: NS | S63: NS | T63: NS | U63: NS | V63: NS | W63: NS | X63: NS | Y63: NS | Z63: NS | AA63: NS
A64: PLYMOUTH | B64: Bloody Pond | C64: 5.5 | D64: 2021-09-08 | O64: 23.8 | P64: 9.124447749 | Q64: NS | R64: NS | S64: NS | T64: NS | U64: NS | V64: NS | W64: NS | X64: NS | Y64: NS | Z64: NS | AA64: NS
A65: PLYMOUTH | B65: Bloody Pond | C65: 6 | D65: 2021-09-08 | O65: 23.7 | P65: 9.056932501 | Q65: NS | R65: NS | S65: NS | T65: NS | U65: NS | V65: NS | W65: NS | X65: NS | Y65: NS | Z65: NS | AA65: NS
A66: PLYMOUTH | B66: Bloody Pond | C66: 6.5 | D66: 2021-09-08 | O66: 23.7 | P66: 8.972288272 | Q66: NS | R66: NS | S66: NS | T66: NS | U66: NS | V66: NS | W66: NS | X66: NS | Y66: NS | Z66: NS | AA66: NS
A67: PLYMOUTH | B67: Bloody Pond | C67: 7 | D67: 2021-09-08 | O67: 23.7 | P67: 8.972288272 | Q67: NS | R67: NS | S67: NS | T67: NS | U67: NS | V67: NS | W67: NS | X67: NS | Y67: NS | Z67: NS | AA67: NS
A68: PLYMOUTH | B68: Bloody Pond | C68: 7.5 | D68: 2021-09-08 | O68: 23.7 | P68: 8.972288272 | Q68: NS | R68: NS | S68: NS | T68: NS | U68: NS | V68: NS | W68: NS | X68: NS | Y68: NS | Z68: NS | AA68: NS
A69: PLYMOUTH | B69: Bloody Pond | C69: 8 | D69: 2021-09-08 | O69: 23.6 | P69: 8.734746102 | Q69: NS | R69: NS | S69: NS | T69: NS | U69: NS | V69: NS | W69: NS | X69: NS | Y69: NS | Z69: NS | AA69: NS
A70: PLYMOUTH | B70: Bloody Pond | C70: 8.5 | D70: 2021-09-08 | O70: 23.2 | P70: 8.544523771 | Q70: NS | R70: NS | S70: NS | T70: NS | U70: NS | V70: NS | W70: NS | X70: NS | Y70: NS | Z70: NS | AA70: NS
A71: PLYMOUTH | B71: Bloody Pond | C71: 9 | D71: 2021-09-08 | G71: 11:30:00 | O71: 21.5 | P71: 7.767989677 | Q71: 6.36 | R71: 5.7 | S71: 9.096888889 | T71: 4.439633333 | U71: 13.53652222 | V71: 0.6195614768 | W71: =V71*30.973762 -> 19.19014973 | X71: =W71/1000 -> 0.01919014973 | Y71: 18.93745677 | Z71: =Y71*14.0067 -> 265.2512757 | AA71: =Z71/1000 -> 0.2652512757
A72: PLYMOUTH | B72: Bloody Pond | C72: 9.5 | D72: 2021-09-08 | O72: 19 | P72: 4.822901091 | Q72: NS | R72: NS | S72: NS | T72: NS | U72: NS | V72: NS | W72: NS | X72: NS | Y72: NS | Z72: NS | AA72: NS
A73: Plymouth | B73: Center Hill | C73: 0.5 | D73: 2021-05-10 | F73: 2 | G73: 13:27:00 | H73: 3.9 | I73: 2.67 | J73: 0.6846153846 | K73: brown | L73: 3 | M73: 2 | N73: 10-25% emergent grasses, up to 10% floating algae | O73: 16.5 | P73: 14.3 | Q73: 6.98 | R73: 41.4 | S73: 1.278258333 | T73: 0.1493333333 | U73: 1.427591667 | V73: 0.4818811487 | W73: 14.92567201 | X73: =W73/1000 -> 0.01492567201 | Y73: 14.04702743 | Z73: =Y73*14.0067 -> 196.7524991 | AA73: =Z73/1000 -> 0.1967524991
A74: Plymouth | B74: Center Hill | C74: 1 | D74: 2021-05-10 | O74: 16.1 | P74: 12 | Q74: NS | R74: NS | S74: NS | T74: NS | U74: NS | V74: NS | W74: NS | X74: NS | Y74: NS | Z74: NS | AA74: NS
A75: Plymouth | B75: Center Hill | C75: 1.5 | D75: 2021-05-10 | O75: 19.2 | P75: 15.6 | Q75: NS | R75: NS | S75: NS | T75: NS | U75: NS | V75: NS | W75: NS | X75: NS | Y75: NS | Z75: NS | AA75: NS
A76: Plymouth | B76: Center Hill | C76: 2 | D76: 2021-05-10 | O76: 21.7 | P76: 13.3 | Q76: NS | R76: NS | S76: NS | T76: NS | U76: NS | V76: NS | W76: NS | X76: NS | Y76: NS | Z76: NS | AA76: NS
A77: Plymouth | B77: Center Hill | C77: 2.5 | D77: 2021-05-10 | O77: 21.4 | P77: 10.2 | Q77: NS | R77: NS | S77: NS | T77: NS | U77: NS | V77: NS | W77: NS | X77: NS | Y77: NS | Z77: NS | AA77: NS
A78: Plymouth | B78: Center Hill | C78: 3 | D78: 2021-05-10 | G78: 13:30:00 | O78: 19.6 | P78: 2.2 | Q78: 6.94 | R78: 204.3 | S78: 1256.7877 | T78: 1.978666667 | U78: 1258.766367 | V78: 10.58561047 | W78: 327.8761794 | X78: =W78/1000 -> 0.3278761794 | Y78: 183.8536017 | Z78: =Y78*14.0067 -> 2575.182243 | AA78: =Z78/1000 -> 2.575182243
A79: Plymouth | B79: Center Hill | C79: 3.5 | D79: 2021-05-10 | O79: 15.7 | P79: 0 | Q79: NS | R79: NS | S79: NS | T79: NS | U79: NS | V79: NS | W79: NS | X79: NS | Y79: NS | Z79: NS | AA79: NS
A80: Plymouth | B80: Center Hill | C80: 4 | D80: 2021-05-10 | O80: 14.5 | P80: 0 | Q80: NS | R80: NS | S80: NS | T80: NS | U80: NS | V80: NS | W80: NS | X80: NS | Y80: NS | Z80: NS | AA80: NS
A81: PLYMOUTH | B81: Gallows Pond | C81: 0.5 | D81: 2021-09-08 | F81: 3 | G81: 08:36:00 | H81: 9.2 | I81: 5.4 | J81: 0.5869565217 | K81: GREEN | L81: PT. CLOUDY | M81: LIGHT BREEZE | N81: NA | O81: 23.9 | P81: 7.5 | Q81: 5.82 | R81: 2.9 | S81: 3.758222222 | T81: 3.498833333 | U81: 7.257055556 | V81: 0.4818811487 | W81: 14.92567201 | X81: =W81/1000 -> 0.01492567201 | Y81: 23.85807394 | Z81: =Y81*14.0067 -> 334.1728843 | AA81: =Z81/1000 -> 0.3341728843
A82: PLYMOUTH | B82: Gallows Pond | C82: 1 | D82: 2021-09-08 | O82: 23.9 | P82: 9.8 | Q82: NS | R82: NS | S82: NS | T82: NS | U82: NS | V82: NS | W82: NS | X82: NS | Y82: NS | Z82: NS | AA82: NS
A83: PLYMOUTH | B83: Gallows Pond | C83: 2 | D83: 2021-09-08 | O83: 23.9 | P83: 10.6 | Q83: NS | R83: NS | S83: NS | T83: NS | U83: NS | V83: NS | W83: NS | X83: NS | Y83: NS | Z83: NS | AA83: NS
A84: PLYMOUTH | B84: Gallows Pond | C84: 3 | D84: 2021-09-08 | G84: 09:00:00 | O84: 23.9 | P84: 11.6 | Q84: 5.7 | R84: 2.5 | S84: 4.791111111 | T84: 3.347011111 | U84: 8.138122222 | V84: 2.205927552 | W84: 68.325875 | X84: =W84/1000 -> 0.068325875 | Y84: 19.7525832 | Z84: =Y84*14.0067 -> 276.6685071 | AA84: =Z84/1000 -> 0.2766685071
A85: PLYMOUTH | B85: Gallows Pond | C85: 4 | D85: 2021-09-08 | O85: 23.9 | P85: 11.7 | Q85: NS | R85: NS | S85: NS | T85: NS | U85: NS | V85: NS | W85: NS | X85: NS | Y85: NS | Z85: NS | AA85: NS
A86: PLYMOUTH | B86: Gallows Pond | C86: 5 | D86: 2021-09-08 | O86: 23.8 | P86: 11.6 | Q86: NS | R86: NS | S86: NS | T86: NS | U86: NS | V86: NS | W86: NS | X86: NS | Y86: NS | Z86: NS | AA86: NS
A87: PLYMOUTH | B87: Gallows Pond | C87: 6 | D87: 2021-09-08 | O87: 23.8 | P87: 11.7 | Q87: NS | R87: NS | S87: NS | T87: NS | U87: NS | V87: NS | W87: NS | X87: NS | Y87: NS | Z87: NS | AA87: NS
A88: PLYMOUTH | B88: Gallows Pond | C88: 7 | D88: 2021-09-08 | O88: 23.7 | P88: 11.7 | Q88: NS | R88: NS | S88: NS | T88: NS | U88: NS | V88: NS | W88: NS | X88: NS | Y88: NS | Z88: NS | AA88: NS
A89: PLYMOUTH | B89: Gallows Pond | C89: 8 | D89: 2021-09-08 | O89: 23.6 | P89: 11.6 | Q89: NS | R89: NS | S89: NS | T89: NS | U89: NS | V89: NS | W89: NS | X89: NS | Y89: NS | Z89: NS | AA89: NS
A90: PLYMOUTH | B90: Gallows Pond | C90: 9 | D90: 2021-09-08 | G90: 09:20:00 | O90: 21.9 | P90: 7.3 | Q90: 6.01 | R90: 3.8 | S90: 6.881777778 | T90: 5.228611111 | U90: 12.11038889 | V90: 2.941236737 | W90: 91.10116667 | X90: =W90/1000 -> 0.09110116667 | Y90: 19.20914729 | Z90: =Y90*14.0067 -> 269.0567633 | AA90: =Z90/1000 -> 0.2690567633
A91: PLYMOUTH | B91: Halfway Pond | C91: 0.5 | D91: 2021-09-14 | F91: 2 | G91: 11:15:00 | H91: 3.9 | I91: 3.9 | J91: 1 | K91: BROWN/GREEN | L91: CLOUDLESS | M91: STEADY WIND | N91: <1% WATERLILIES, FLOATING ALGAE, AND EMERGENT GRASSES | O91: 22.8 | P91: 7.7 | Q91: 6.01 | R91: 7.7 | S91: 6.072888889 | T91: 1.886033333 | U91: 7.958922222 | V91: 0.5851413948 | W91: 18.1240303 | X91: 0.0181240303 | Y91: 23.85807394 | Z91: 334.1728843 | AA91: 0.3341728843
A92: PLYMOUTH | B92: Halfway Pond | C92: 1 | D92: 2021-09-14 | O92: 22.8 | P92: 7.7 | Q92: NS | R92: NS | S92: NS | T92: NS | U92: NS | V92: NS | W92: NS | X92: NS | Y92: NS | Z92: NS | AA92: NS
A93: PLYMOUTH | B93: Halfway Pond | C93: 1.5 | D93: 2021-09-14 | O93: 22.8 | P93: 7.8 | Q93: NS | R93: NS | S93: NS | T93: NS | U93: NS | V93: NS | W93: NS | X93: NS | Y93: NS | Z93: NS | AA93: NS
A94: PLYMOUTH | B94: Halfway Pond | C94: 2 | D94: 2021-09-14 | O94: 22.7 | P94: 7.6 | Q94: NS | R94: NS | S94: NS | T94: NS | U94: NS | V94: NS | W94: NS | X94: NS | Y94: NS | Z94: NS | AA94: NS
A95: PLYMOUTH | B95: Halfway Pond | C95: 2.5 | D95: 2021-09-14 | O95: 22.6 | P95: 7.5 | Q95: NS | R95: NS | S95: NS | T95: NS | U95: NS | V95: NS | W95: NS | X95: NS | Y95: NS | Z95: NS | AA95: NS
A96: PLYMOUTH | B96: Halfway Pond | C96: 3 | D96: 2021-09-14 | G96: 11:25:00 | O96: 22.5 | P96: 7.4 | Q96: 6.04 | R96: 7.3 | S96: 5.077333333 | T96: 3.060788889 | U96: 8.138122222 | V96: 0.7018860394 | W96: 21.74005114 | X96: =W96/1000 -> 0.02174005114 | Y96: 29.59376267 | Z96: =Y96*14.0067 -> 414.5109556 | AA96: =Z96/1000 -> 0.4145109556
A97: PLYMOUTH | B97: Halfway Pond | C97: 3.5 | D97: 2021-09-14 | O97: 22.4 | P97: 7 | Q97: NS | R97: NS | S97: NS | T97: NS | U97: NS | V97: NS | W97: NS | X97: NS | Y97: NS | Z97: NS | AA97: NS
A98: Plymouth | B98: Island Pond | C98: 0.5 | D98: 2021-07-29 | F98: 2 | G98: 11:20:00 | H98: 6.5 | I98: 3.35 | J98: 0.5153846154 | K98: clear | L98: ND | M98: ND | N98: ND | O98: 26.22 | P98: 7.96 | Q98: 6.9 | R98: 13.9 | S98: 8.586666667 | T98: 4.365725 | U98: 12.95239167 | V98: 0.3442008205 | W98: 10.66119429 | X98: =W98/1000 -> 0.01066119429 | Y98: 29.59376267 | Z98: =Y98*14.0067 -> 414.5109556 | AA98: =Z98/1000 -> 0.4145109556
A99: Plymouth | B99: Island Pond | C99: 1 | D99: 2021-07-29 | O99: 26.23 | P99: 7.9 | Q99: NS | R99: NS | S99: NS | T99: NS | U99: NS | V99: NS | W99: NS | X99: NS | Y99: NS | Z99: NS | AA99: NS
A100: Plymouth | B100: Island Pond | C100: 2 | D100: 2021-07-29 | O100: 26.19 | P100: 8.01 | Q100: NS | R100: NS | S100: NS | T100: NS | U100: NS | V100: NS | W100: NS | X100: NS | Y100: NS | Z100: NS | AA100: NS
A101: Plymouth | B101: Island Pond | C101: 3 | D101: 2021-07-29 | O101: 26.11 | P101: 7.96 | Q101: NS | R101: NS | S101: NS | T101: NS | U101: NS | V101: NS | W101: NS | X101: NS | Y101: NS | Z101: NS | AA101: NS
A102: Plymouth | B102: Island Pond | C102: 4 | D102: 2021-07-29 | O102: 25.92 | P102: 7.95 | Q102: NS | R102: NS | S102: NS | T102: NS | U102: NS | V102: NS | W102: NS | X102: NS | Y102: NS | Z102: NS | AA102: NS
A103: Plymouth | B103: Island Pond | C103: 5 | D103: 2021-07-29 | O103: 25.24 | P103: 7.55 | Q103: NS | R103: NS | S103: NS | T103: NS | U103: NS | V103: NS | W103: NS | X103: NS | Y103: NS | Z103: NS | AA103: NS
A104: Plymouth | B104: Island Pond | C104: 6 | D104: 2021-07-29 | G104: 11:25:00 | O104: 24.18 | P104: 5.65 | Q104: 6.36 | R104: 13.5 | S104: 4.76 | T104: 1.197991667 | U104: 5.957991667 | V104: 0.4818811487 | W104: 14.92567201 | X104: =W104/1000 -> 0.01492567201 | Y104: 27.48061419 | Z104: =Y104*14.0067 -> 384.9127188 | AA104: =Z104/1000 -> 0.3849127188
A105: Plymouth | B105: Island Pond | C105: 0.5 | D105: 2021-08-24 | E105: Sample | F105: 3 | G105: 11:40:00 | H105: 6.5 | I105: 3.66 | J105: 0.5630769231 | K105: clear | L105: 3 | M105: 3 | N105: ND | O105: 26.51 | P105: 8.25 | Q105: 6.5 | R105: 13 | S105: 1.064936709 | T105: 0.8553603745 | U105: 1.920297083 | V105: 0.3442008205 | W105: 10.66119429 | X105: 0.01066119429 | Y105: 22.95243888 | Z105: 321.4879256 | AA105: 0.3214879256
A106: Plymouth | B106: Island Pond | C106: 0.5 | D106: 2021-08-24 | E106: FD | G106: 11:42:00 | O106: 26.51 | P106: 8.25 | Q106: 6.48 | R106: 12.4 | S106: 1.096658228 | T106: 1.118988855 | U106: 2.215647083 | V106: 0.6195614768 | W106: 19.19014973 | X106: 0.01919014973 | Y106: 25.97122242 | Z106: 363.7711211 | AA106: 0.3637711211
A107: Plymouth | B107: Island Pond | C107: 1 | D107: 2021-08-24 | O107: 26.51 | P107: 8.26 | Q107: NS | R107: NS | S107: NS | T107: NS | U107: NS | V107: NS | W107: NS | X107: NS | Y107: NS | Z107: NS | AA107: NS
A108: Plymouth | B108: Island Pond | C108: 2 | D108: 2021-08-24 | O108: 26.49 | P108: 8.21 | Q108: NS | R108: NS | S108: NS | T108: NS | U108: NS | V108: NS | W108: NS | X108: NS | Y108: NS | Z108: NS | AA108: NS
A109: Plymouth | B109: Island Pond | C109: 3 | D109: 2021-08-24 | O109: 26.48 | P109: 8.1 | Q109: NS | R109: NS | S109: NS | T109: NS | U109: NS | V109: NS | W109: NS | X109: NS | Y109: NS | Z109: NS | AA109: NS
A110: Plymouth | B110: Island Pond | C110: 4 | D110: 2021-08-24 | O110: 26.47 | P110: 8.16 | Q110: NS | R110: NS | S110: NS | T110: NS | U110: NS | V110: NS | W110: NS | X110: NS | Y110: NS | Z110: NS | AA110: NS
A111: Plymouth | B111: Island Pond | C111: 5 | D111: 2021-08-24 | O111: 26.35 | P111: 8.17 | Q111: NS | R111: NS | S111: NS | T111: NS | U111: NS | V111: NS | W111: NS | X111: NS | Y111: NS | Z111: NS | AA111: NS
A112: Plymouth | B112: Island Pond | C112: 6 | D112: 2021-08-24 | G112: 11:50:00 | O112: 23.79 | P112: 3 | Q112: 6.46 | R112: 13.3 | S112: 1.223544304 | T112: 1.251466321 | U112: 2.475010625 | V112: 1.83827296 | W112: 56.93822917 | X112: =W112/1000 -> 0.05693822917 | Y112: 29.29188432 | Z112: =Y112*14.0067 -> 410.2826361 | AA112: =Z112/1000 -> 0.4102826361
A113: PLYMOUTH | B113: LITTLE LONG | C113: 0.5 | D113: 2021-09-08 | F113: 2 | G113: 13:00:00 | H113: 2.4 | I113: 2.1 | J113: 0.875 | K113: BROWN,GREEN | L113: CLOUDLESS | M113: STEADY WIND | N113: NA | O113: 22.6 | P113: 10.8 | Q113: 6.5 | R113: 11.9 | S113: 6.010666667 | T113: 2.351455556 | U113: 8.362122222 | V113: 0.6884016409 | W113: 21.32238859 | X113: 0.02132238859 | Y113: 38.95199165 | Z113: 545.5888614 | AA113: 0.5455888614
A114: PLYMOUTH | B114: LITTLE LONG | C114: 1 | D114: 2021-09-08 | O114: 22.5 | P114: 10.9 | Q114: NS | R114: NS | S114: NS | T114: NS | U114: NS | V114: NS | W114: NS | X114: NS | Y114: NS | Z114: NS | AA114: NS
A115: PLYMOUTH | B115: LITTLE LONG | C115: 2 | D115: 2021-09-08 | G115: 13:00:00 | O115: 21.8 | P115: 11.5 | Q115: 6.46 | R115: 11.9 | S115: 4.592 | T115: 2.762122222 | U115: 7.354122222 | V115: 0.6884016409 | W115: 21.32238859 | X115: =W115/1000 -> 0.02132238859 | Y115: 45.29143709 | Z115: =Y115*14.0067 -> 634.3835719 | AA115: =Z115/1000 -> 0.6343835719
A116: PLYMOUTH | B116: Long Pond | C116: 0.5 | D116: 2021-09-14 | F116: 2 | G116: 12:50:00 | H116: 26.7 | I116: 5.1 | J116: 0.191011236 | K116: SLIGHT GREEN | L116: CLOUDLESS | M116: LIGHT BREEZE | N116: <1% WATERLILIES, FLOATING ALGAE, AND EMERGENT GRASSES | O116: 23.8 | P116: 7.8 | Q116: 6.38 | R116: 12.1 | S116: 4.231111111 | T116: 0.2408777778 | U116: 4.471988889 | V116: 0.3442008205 | W116: 10.66119429 | X116: =W116/1000 -> 0.01066119429 | Y116: 20.8392904 | Z116: 291.8896888 | AA116: 0.2918896888
A117: PLYMOUTH | B117: Long Pond | C117: 1 | D117: 2021-09-14 | O117: 23.8 | P117: 7.8 | Q117: NS | R117: NS | S117: NS | T117: NS | U117: NS | V117: NS | W117: NS | X117: NS | Y117: NS | Z117: NS | AA117: NS
A118: PLYMOUTH | B118: Long Pond | C118: 2 | D118: 2021-09-14 | O118: 23.8 | P118: 7.8 | Q118: NS | R118: NS | S118: NS | T118: NS | U118: NS | V118: NS | W118: NS | X118: NS | Y118: NS | Z118: NS | AA118: NS
A119: PLYMOUTH | B119: Long Pond | C119: 3 | D119: 2021-09-14 | G119: 13:10:00 | O119: 23.8 | P119: 7.9 | Q119: 6.3 | R119: 12.6 | S119: 4.928 | T119: 0.8133222222 | U119: 5.741322222 | V119: 0.3442008205 | W119: 10.66119429 | X119: =W119/1000 -> 0.01066119429 | Y119: 25.66934407 | Z119: =Y119*14.0067 -> 359.5428015 | AA119: =Z119/1000 -> 0.3595428015
A120: PLYMOUTH | B120: Long Pond | C120: 4 | D120: 2021-09-14 | O120: 23.8 | P120: 7.8 | Q120: NS | R120: NS | S120: NS | T120: NS | U120: NS | V120: NS | W120: NS | X120: NS | Y120: NS | Z120: NS | AA120: NS
A121: PLYMOUTH | B121: Long Pond | C121: 5 | D121: 2021-09-14 | O121: 23.7 | P121: 8.1 | Q121: NS | R121: NS | S121: NS | T121: NS | U121: NS | V121: NS | W121: NS | X121: NS | Y121: NS | Z121: NS | AA121: NS
A122: PLYMOUTH | B122: Long Pond | C122: 6 | D122: 2021-09-14 | O122: 23.7 | P122: 8 | Q122: NS | R122: NS | S122: NS | T122: NS | U122: NS | V122: NS | W122: NS | X122: NS | Y122: NS | Z122: NS | AA122: NS
A123: PLYMOUTH | B123: Long Pond | C123: 7 | D123: 2021-09-14 | O123: 23.7 | P123: 8 | Q123: NS | R123: NS | S123: NS | T123: NS | U123: NS | V123: NS | W123: NS | X123: NS | Y123: NS | Z123: NS | AA123: NS
A124: PLYMOUTH | B124: Long Pond | C124: 8 | D124: 2021-09-14 | O124: 23 | P124: 8 | Q124: NS | R124: NS | S124: NS | T124: NS | U124: NS | V124: NS | W124: NS | X124: NS | Y124: NS | Z124: NS | AA124: NS
A125: PLYMOUTH | B125: Long Pond | C125: 9 | D125: 2021-09-14 | G125: 13:25:00 | O125: 23.5 | P125: 8.1 | Q125: 6.31 | R125: 14.2 | S125: 7.242666667 | T125: 1.694388889 | U125: 8.937055556 | V125: 0.3442008205 | W125: 10.66119429 | X125: =W125/1000 -> 0.01066119429 | Y125: 24.1599523 | Z125: =Y125*14.0067 -> 338.4012038 | AA125: =Z125/1000 -> 0.3384012038
A126: PLYMOUTH | B126: Long Pond | C126: 10 | D126: 2021-09-14 | O126: 20.8 | P126: 9 | Q126: NS | R126: NS | S126: NS | T126: NS | U126: NS | V126: NS | W126: NS | X126: NS | Y126: NS | Z126: NS | AA126: NS
A127: PLYMOUTH | B127: Long Pond | C127: 11 | D127: 2021-09-14 | O127: 17.1 | P127: 11.3 | Q127: NS | R127: NS | S127: NS | T127: NS | U127: NS | V127: NS | W127: NS | X127: NS | Y127: NS | Z127: NS | AA127: NS
A128: PLYMOUTH | B128: Long Pond | C128: 12 | D128: 2021-09-14 | O128: 15.2 | P128: 11.2 | Q128: NS | R128: NS | S128: NS | T128: NS | U128: NS | V128: NS | W128: NS | X128: NS | Y128: NS | Z128: NS | AA128: NS
A129: PLYMOUTH | B129: Long Pond | C129: 13 | D129: 2021-09-14 | O129: 15.7 | P129: 11.5 | Q129: NS | R129: NS | S129: NS | T129: NS | U129: NS | V129: NS | W129: NS | X129: NS | Y129: NS | Z129: NS | AA129: NS
A130: PLYMOUTH | B130: Long Pond | C130: 14 | D130: 2021-09-14 | O130: 11.3 | P130: 5.9 | Q130: NS | R130: NS | S130: NS | T130: NS | U130: NS | V130: NS | W130: NS | X130: NS | Y130: NS | Z130: NS | AA130: NS
A131: PLYMOUTH | B131: Long Pond | C131: 15 | D131: 2021-09-14 | O131: 10.1 | P131: 3 | Q131: NS | R131: NS | S131: NS | T131: NS | U131: NS | V131: NS | W131: NS | X131: NS | Y131: NS | Z131: NS | AA131: NS
A132: PLYMOUTH | B132: Long Pond | C132: 20 | D132: 2021-09-14 | O132: 7.9 | P132: 0.9 | Q132: NS | R132: NS | S132: NS | T132: NS | U132: NS | V132: NS | W132: NS | X132: NS | Y132: NS | Z132: NS | AA132: NS
A133: PLYMOUTH | B133: Long Pond | C133: 25 | D133: 2021-09-14 | G133: 13:35:00 | O133: 7.5 | P133: 0.8 | Q133: 5.79 | R133: 13.6 | S133: 6.222222222 | T133: 8.449233333 | U133: 14.67145556 | V133: 0.8021554736 | W133: =V133*30.973762 -> 24.84577273 | X133: =W133/1000 -> 0.02484577273 | Y133: 44.68768038 | Z133: =Y133*14.0067 -> 625.9269328 | AA133: =Z133/1000 -> 0.6259269328
A134: PLYMOUTH | B134: Round Pond | C134: 0.5 | D134: 2021-09-14 | F134: 2 | G134: 08:30:00 | H134: 6.8 | I134: 6.8 | J134: 1 | K134: GREEN | L134: CLOUDLESS; BRIGHT SUN | M134: CLAM | N134: <1% WATERLILIES, FLOATING ALGAE, AND EMERGENT GRASSES | O134: 23.7 | P134: 6.9 | Q134: 5.82 | R134: 3.7 | S134: 2.24 | T134: 1.201588889 | U134: 3.441588889 | V134: 0.3097807384 | W134: 9.595074864 | X134: 0.009595074864 | Y134: 9.790542636 | Z134: 137.1331935 | AA134: 0.1371331935
A135: PLYMOUTH | B135: Round Pond | C135: 1 | D135: 2021-09-14 | O135: 23.7 | P135: 7.2 | Q135: NS | R135: NS | S135: NS | T135: NS | U135: NS | V135: NS | W135: NS | X135: NS | Y135: NS | Z135: NS | AA135: NS
A136: PLYMOUTH | B136: Round Pond | C136: 2 | D136: 2021-09-14 | O136: 23.7 | P136: 6.9 | Q136: NS | R136: NS | S136: NS | T136: NS | U136: NS | V136: NS | W136: NS | X136: NS | Y136: NS | Z136: NS | AA136: NS
A137: PLYMOUTH | B137: Round Pond | C137: 3 | D137: 2021-09-14 | O137: 23.7 | P137: 6.9 | Q137: NS | R137: NS | S137: NS | T137: NS | U137: NS | V137: NS | W137: NS | X137: NS | Y137: NS | Z137: NS | AA137: NS
A138: PLYMOUTH | B138: Round Pond | C138: 4 | D138: 2021-09-14 | O138: 23.7 | P138: 6.9 | Q138: NS | R138: NS | S138: NS | T138: NS | U138: NS | V138: NS | W138: NS | X138: NS | Y138: NS | Z138: NS | AA138: NS
A139: PLYMOUTH | B139: Round Pond | C139: 5 | D139: 2021-09-14 | O139: 23.7 | P139: 6.9 | Q139: NS | R139: NS | S139: NS | T139: NS | U139: NS | V139: NS | W139: NS | X139: NS | Y139: NS | Z139: NS | AA139: NS
A140: PLYMOUTH | B140: Round Pond | C140: 6 | D140: 2021-09-14 | G140: 08:50:00 | O140: 23.6 | P140: 6.3 | Q140: 5.77 | R140: 3.2 | S140: 2.924444444 | T140: 1.779011111 | U140: 4.703455556 | V140: 0.2753606564 | W140: 8.528955435 | X140: =W140/1000 -> 0.008528955435 | Y140: 12.17538163 | Z140: =Y140*14.0067 -> 170.5369179 | AA140: =Z140/1000 -> 0.1705369179
A141: PLYMOUTH | B141: Savery Pond | C141: 0.5 | D141: 2021-05-24 | F141: 2 | G141: 07:50:00 | H141: 3.7 | I141: 3.31 | J141: 0.8945945946 | K141: CLEAR | L141: CLOUDLESS | M141: CALM | N141: WATERLILLIES UP TO 25%,EMERGENT GRASSES, SEDGES | O141: 21 | P141: 5.8 | Q141: 5.89 | R141: 4.9 | S141: 0.3415727848 | T141: 0.5925275277 | U141: 0.9341003125 | V141: 0.6072511472 | W141: 18.80885251 | X141: 0.01880885251 | Y141: 21.44304711 | Z141: 300.3463279 | AA141: 0.3003463279
A142: PLYMOUTH | B142: Savery Pond | C142: 1 | D142: 2021-05-24 | O142: 21.3 | P142: 5.5 | Q142: NS | R142: NS | S142: NS | T142: NS | U142: NS | V142: NS | W142: NS | X142: NS | Y142: NS | Z142: NS | AA142: NS
A143: PLYMOUTH | B143: Savery Pond | C143: 1.5 | D143: 2021-05-24 | O143: 21.3 | P143: 5.5 | Q143: NS | R143: NS | S143: NS | T143: NS | U143: NS | V143: NS | W143: NS | X143: NS | Y143: NS | Z143: NS | AA143: NS
A144: PLYMOUTH | B144: Savery Pond | C144: 2 | D144: 2021-05-24 | G144: 07:45:00 | O144: 21.3 | P144: 5.4 | Q144: 5.91 | R144: 4.8 | S144: 0.1971265823 | T144: 0.9155262302 | U144: 1.112652812 | V144: 0.765 | W144: 23.69492793 | X144: =W144/1000 -> 0.02369492793 | Y144: 38.04635659 | Z144: =Y144*14.0067 -> 532.9039028 | AA144: =Z144/1000 -> 0.5329039028
A145: Plymouth | B145: Savery Pond | C145: 0.5 | D145: 2021-06-17 | F145: 2 | G145: 10:20:00 | H145: 3.7 | I145: 2.97 | J145: 0.8027027027 | K145: CLEAR | L145: 2 | M145: 1 | N145: up to 10% waterlilies and emergent grasses | O145: 23.3 | P145: 7.4 | Q145: 5.5 | R145: 4.2 | S145: 5.08025 | T145: 2.333333333 | U145: 7.413583333 | V145: 0.8021554736 | W145: 24.84577273 | X145: 0.02484577273 | Y145: 17.63937984 | Z145: 247.0695017 | AA145: 0.2470695017
A146: Plymouth | B146: Savery Pond | C146: 1 | D146: 2021-06-17 | O146: 23.2 | P146: 7.4 | Q146: NS | R146: NS | S146: NS | T146: NS | U146: NS | V146: NS | W146: NS | X146: NS | Y146: NS | Z146: NS | AA146: NS
A147: Plymouth | B147: Savery Pond | C147: 1.5 | D147: 2021-06-17 | O147: 23 | P147: 7.35 | Q147: NS | R147: NS | S147: NS | T147: NS | U147: NS | V147: NS | W147: NS | X147: NS | Y147: NS | Z147: NS | AA147: NS
A148: Plymouth | B148: Savery Pond | C148: 2 | D148: 2021-06-17 | O148: 22.8 | P148: 7.27 | Q148: NS | R148: NS | S148: NS | T148: NS | U148: NS | V148: NS | W148: NS | X148: NS | Y148: NS | Z148: NS | AA148: NS
A149: Plymouth | B149: Savery Pond | C149: 2.5 | D149: 2021-06-17 | G149: 10:25:00 | O149: 22.6 | P149: 6.62 | Q149: 5.61 | R149: 6.1 | S149: 16.128 | T149: 9.485583333 | U149: 25.61358333 | V149: 0.7353091842 | W149: 22.77529167 | X149: =W149/1000 -> 0.02277529167 | Y149: 21.74492546 | Z149: =Y149*14.0067 -> 304.5746475 | AA149: =Z149/1000 -> 0.3045746475
A150: Plymouth | B150: Savery Pond | C150: 3 | D150: 2021-06-17 | O150: 22.1 | P150: 4.5 | Q150: NS | R150: NS | S150: NS | T150: NS | U150: NS | V150: NS | W150: NS | X150: NS | Y150: NS | Z150: NS | AA150: NS
A151: Plymouth | B151: Savery Pond | C151: 0.5 | D151: 2021-07-21 | F151: 2 | G151: 09:30:00 | H151: 3.6 | I151: 2.775 | J151: 0.7708333333 | K151: CLEAR | L151: 5 | M151: 1 | N151: ND | O151: 26.4 | P151: 8 | Q151: 5.71 | R151: 5.4 | S151: 10.12666667 | T151: 7.003325 | U151: 17.12999167 | V151: 0.8355786184 | W151: 25.88101326 | X151: =W151/1000 -> 0.02588101326 | Y151: 26.27310078 | Z151: =Y151*14.0067 -> 367.9994407 | AA151: =Z151/1000 -> 0.3679994407
A152: Plymouth | B152: Savery Pond | C152: 1 | D152: 2021-07-21 | O152: 26.4 | P152: 7.7 | Q152: NS | R152: NS | S152: NS | T152: NS | U152: NS | V152: NS | W152: NS | X152: NS | Y152: NS | Z152: NS | AA152: NS
A153: Plymouth | B153: Savery Pond | C153: 1.5 | D153: 2021-07-21 | O153: 25.9 | P153: 7.3 | Q153: NS | R153: NS | S153: NS | T153: NS | U153: NS | V153: NS | W153: NS | X153: NS | Y153: NS | Z153: NS | AA153: NS
A154: Plymouth | B154: Savery Pond | C154: 2 | D154: 2021-07-21 | O154: 25.5 | P154: 6.6 | Q154: NS | R154: NS | S154: NS | T154: NS | U154: NS | V154: NS | W154: NS | X154: NS | Y154: NS | Z154: NS | AA154: NS
A155: Plymouth | B155: Savery Pond | C155: 2.5 | D155: 2021-07-21 | O155: 25 | P155: 5.5 | Q155: NS | R155: NS | S155: NS | T155: NS | U155: NS | V155: NS | W155: NS | X155: NS | Y155: NS | Z155: NS | AA155: NS
A156: Plymouth | B156: Savery Pond | C156: 3 | D156: 2021-07-21 | G156: 09:35:00 | O156: 23.8 | P156: 3 | Q156: 5.51 | R156: 6.6 | S156: 18.48933333 | T156: 18.20705833 | U156: 36.69639167 | V156: 1.136386921 | W156: 35.19817803 | X156: =W156/1000 -> 0.03519817803 | Y156: 30.19751938 | Z156: =Y156*14.0067 -> 422.9675947 | AA156: =Z156/1000 -> 0.4229675947
A157: PLYMOUTH | B157: Savery Pond | C157: 0.5 | D157: 2021-08-31 | F157: 2 | G157: 09:25:00 | H157: 3.4 | I157: 3.25 | J157: 0.9558823529 | K157: CLEAR | L157: PT. CLOUDY | M157: LIGTH BREEZE | N157: UP TO 10% WATERLILLIES & FLOATING ALGAE | O157: 25.5 | P157: 7.4 | Q157: 5.79 | R157: 12.6 | S157: 1.865905063 | T157: 2.735625562 | U157: 4.601530625 | V157: 0.6884016409 | W157: 21.32238859 | X157: 0.02132238859 | Y157: 29.59376267 | Z157: 414.5109556 | AA157: =Z157/1000 -> 0.4145109556
A158: PLYMOUTH | B158: Savery Pond | C158: 1 | D158: 2021-08-31 | O158: 25.5 | P158: 7.2 | Q158: 5.79 | R158: 12.6 | S158: NS | T158: NS | U158: NS | V158: NS | W158: NS | X158: NS | Y158: NS | Z158: NS | AA158: NS
A159: PLYMOUTH | B159: Savery Pond | C159: 1.5 | D159: 2021-08-31 | O159: 25.5 | P159: 7.1 | Q159: NS | R159: NS | S159: NS | T159: NS | U159: NS | V159: NS | W159: NS | X159: NS | Y159: NS | Z159: NS | AA159: NS
A160: PLYMOUTH | B160: Savery Pond | C160: 2 | D160: 2021-08-31 | O160: 25.5 | P160: 6.9 | Q160: NS | R160: NS | S160: NS | T160: NS | U160: NS | V160: NS | W160: NS | X160: NS | Y160: NS | Z160: NS | AA160: NS
A161: PLYMOUTH | B161: Savery Pond | C161: 2.5 | D161: 2021-08-31 | O161: 25.5 | P161: 6.8 | Q161: 5.79 | R161: 12 | S161: NS | T161: NS | U161: NS | V161: NS | W161: NS | X161: NS | Y161: NS | Z161: NS | AA161: NS
A162: PLYMOUTH | B162: Savery Pond | C162: 3 | D162: 2021-08-31 | G162: 09:30:00 | O162: 25.4 | P162: 6.9 | Q162: 5.79 | R162: 12 | S162: 1.825120253 | T162: 2.540130372 | U162: 4.365250625 | V162: 0.7353091842 | W162: 22.77529167 | X162: =W162/1000 -> 0.02277529167 | Y162: 31.70691115 | Z162: =Y162*14.0067 -> 444.1091924 | AA162: =Z162/1000 -> 0.4441091924
A163: PLYMOUTH | B163: Savery Pond | C163: 0.5 | D163: 2021-09-27 | F163: 2 | G163: 09:30:00 | H163: 3.5 | I163: 3.2 | J163: 0.9142857143 | K163: CLEAR | L163: CLOUDLESS | M163: LIGHT BREEZE | N163: UP TO 10% WATERLILIES AND EMERGENT GRASSES. <1% FLOATING ALGAE | O163: 21.2 | P163: 6.8 | Q163: 5.62 | R163: 4.9 | S163: 0.7930379747 | T163: 3.688749109 | U163: 4.481787083 | V163: 0.6884016409 | W163: 21.32238859 | X163: 0.02132238859 | Y163: 30.49939773 | Z163: 427.1959142 | AA163: 0.4271959142
A164: PLYMOUTH | B164: Savery Pond | C164: 1 | D164: 2021-09-27 | O164: 21.5 | P164: 6.7 | Q164: NS | R164: NS | S164: NS | T164: NS | U164: NS | V164: NS | W164: NS | X164: NS | Y164: NS | Z164: NS | AA164: NS
A165: PLYMOUTH | B165: Savery Pond | C165: 1.5 | D165: 2021-09-27 | O165: 21.6 | P165: 6.6 | Q165: NS | R165: NS | S165: NS | T165: NS | U165: NS | V165: NS | W165: NS | X165: NS | Y165: NS | Z165: NS | AA165: NS
A166: PLYMOUTH | B166: Savery Pond | C166: 2 | D166: 2021-09-27 | O166: 21.7 | P166: 6.6 | Q166: NS | R166: NS | S166: NS | T166: NS | U166: NS | V166: NS | W166: NS | X166: NS | Y166: NS | Z166: NS | AA166: NS
A167: PLYMOUTH | B167: Savery Pond | C167: 2.5 | D167: 2021-09-27 | O167: 21.7 | P167: 6.4 | Q167: NS | R167: NS | S167: NS | T167: NS | U167: NS | V167: NS | W167: NS | X167: NS | Y167: NS | Z167: NS | AA167: NS
A168: PLYMOUTH | B168: Savery Pond | C168: 3 | D168: 2021-09-27 | G168: 09:37:00 | O168: 21.6 | P168: 6.3 | Q168: 5.96 | R168: 4.5 | S168: 0.7953037975 | T168: 3.022393286 | U168: 3.817697083 | V168: 0.6195614768 | W168: 19.19014973 | X168: =W168/1000 -> 0.01919014973 | Y168: 25.36746571 | Z168: =Y168*14.0067 -> 355.314482 | AA168: =Z168/1000 -> 0.355314482

Sheet PALS LHP 2021 Data
A1: Town | B1: Pond | C1: Depth (m) | D1: Date | E1: QC | F1: # of Samples | G1: Sample Time | H1: Total Depth (m) | I1: Secchi Depth (m) | J1: % Secchi | K1: Temp C | L1: DO (mg/L) | M1: pH | N1: Alk (mg CaCO3/L) | O1: PO4 (uM) | P1: NH4 (uM) | Q1: TP (uM) | R1: whole waterTN (uM) | S1: CHLA (ug/L) | T1: Phaeo (ug/L) | U1: T-pig ug/L | V1: Water Color | W1: Weather | X1: Wind | Y1: Plants | Z1: Notes
A2: Plymouth | B2: Little Herring | C2: 0.15 | D2: 2021-04-22 | F2: 3 | G2: 08:27:00 | H2: 1.33 | I2: 1.33 | J2: 1 | K2: 13 | L2: 10.55 | M2: 7.55 | N2: 22.4 | O2: 0.0523138833 | P2: 0.3161130003 | Q2: 0.8738312061 | R2: 58.38374296 | S2: 2.361333333 | T2: 1.496658333 | U2: 3.857991667 | V2: blue/green | W2: 2 | X2: 3 | Y2: <1%
A3: Plymouth | B3: Little Herring | C3: 0.5 | D3: 2021-04-22 | K3: 13 | L3: 10.57
A4: Plymouth | B4: Little Herring | C4: 1 | D4: 2021-04-22 | K4: 13 | L4: 10.64 | M4: 7.71 | N4: 21.2 | O4: -0.0004024144869 | P4: 0.4110646089 | Q4: 0.7583333333 | R4: 33.93716809 | S4: 2.706666667 | T4: 2.120125 | U4: 4.826791667
A5: Plymouth | B5: Little Herring | C5: 0.15 | D5: 2021-04-24 | F5: 2 | G5: 14:55:00 | H5: 1.45 | I5: 1.45 | J5: 1 | K5: 14.3 | L5: 12.94 | M5: 7.61 | N5: 18.5 | O5: 0.09565217391 | P5: NS | Q5: 0.806613421 | R5: 31.92392075 | S5: 1.308125 | T5: 1.474666667 | U5: 2.782791667 | V5: dark green | W5: 1 | X5: 1 | Y5: <1% | Z5: FLUX
A6: Plymouth | B6: Little Herring | C6: 0.5 | D6: 2021-04-24 | K6: 14.1 | L6: 13.07
A7: Plymouth | B7: Little Herring | C7: 1 | D7: 2021-04-24 | K7: 14.1 | L7: 13.32 | M7: 8.4 | N7: 20 | O7: 0.1443935927 | P7: 0.09565217391 | Q7: 0.7583333333 | R7: 51.7687874 | S7: 1.638525 | T7: 1.054666667 | U7: 2.693191667
A8: Plymouth | B8: Little Herring | C8: 0.15 | D8: 2021-04-28 | F8: 3 | G8: 11:22:00 | H8: 1.4 | I8: 1.4 | J8: 1 | K8: 14.5 | L8: 13.09 | M8: 8.89 | N8: 21.8 | O8: 0.09565217391 | Q8: 0.6204545455 | R8: 41.41494393 | S8: 1.601191667 | T8: 0.952 | U8: 2.553191667 | V8: dark green | W8: 3 | X8: 1 | Y8: <1%
A9: Plymouth | B9: Little Herring | C9: 0.5 | D9: 2021-04-28 | K9: 14.4 | L9: 13.35
A10: Plymouth | B10: Little Herring | C10: 1 | D10: 2021-04-28 | K10: 14.3 | L10: 13.73 | M10: 8.79 | N10: 23.2 | O10: 0.09565217391 | Q10: 0.6204545455 | R10: 37.38844925 | S10: 1.606791667 | T10: 1.596 | U10: 3.202791667
A11: Plymouth | B11: Little Herring | C11: 0.15 | D11: 2021-05-12 | F11: 3 | G11: 09:01:00 | H11: 1.4 | I11: 1.4 | J11: 1 | K11: 15.7 | L11: 12.11 | M11: 6.71 | N11: 23.9 | O11: 0.05 | Q11: 0.7360851698 | R11: 41.99015746 | S11: 2.331058333 | T11: 0.7093333333 | U11: 3.040391667 | V11: dark green | W11: 1 | X11: 3 | Y11: green filamentous algae all over bottom
A12: Plymouth | B12: Little Herring | C12: 0.5 | D12: 2021-05-12 | K12: 15.8 | L12: 12.12
A13: Plymouth | B13: Little Herring | C13: 1 | D13: 2021-05-12 | K13: 15.8 | L13: 12.11 | M13: 6.78 | N13: 22.9 | O13: 0.04766641163 | Q13: 0.8030020034 | R13: 43.14058451 | S13: 2.409458333 | T13: 0.3453333333 | U13: 2.754791667
A14: Plymouth | B14: Little Herring | C14: 0.15 | D14: 2021-06-16 | F14: 4 | G14: 11:32:00 | H14: 1.4 | I14: 1.4 | J14: 1 | M14: 6.58 | N14: 25.4 | O14: 0.0737037037 | Q14: 1.070669338 | R14: 53.35062 | S14: 2.305333333 | T14: 5.203858333 | U14: 7.509191667 | V14: dark green/black bottom | W14: 2 | X14: 3 | Y14: up to 10% floating rafts of green filamentous algae (~6 inch diameter) | Z14: meter wasn't working (DO/temp profile for june to follow)
A15: Plymouth | B15: Little Herring | C15: 0.5 | D15: 2021-06-16 | M15: 6.56 | N15: 25.4 | O15: 0.1240740741 | Q15: 1.204503005 | R15: 62.41023764 | S15: 2.417333333 | T15: 5.058258333 | U15: 7.475591667 | Z15: meter wasn't working (DO/temp profile for june to follow)
A16: Plymouth | B16: Little Herring | C16: 1 | D16: 2021-06-16 | M16: 6.59 | N16: 24.4 | O16: 0.02333333333 | Q16: 1.137586172 | R16: 49.18032654 | S16: 4.144 | T16: 4.104391667 | U16: 8.248391667 | Z16: meter wasn't working (DO/temp profile for june to follow)
A17: Plymouth | B17: Little Herring | C17: 0.15 | D17: 2021-06-26 | F17: 0 | G17: 08:12:00 | H17: 1.39 | I17: 1.39 | J17: 1 | K17: 22.8 | L17: 8.6 | V17: dark green/black bottom | W17: 2 | X17: 2 | Z17: DO/temp profile only
A18: Plymouth | B18: Little Herring | C18: 0.5 | D18: 2021-06-26 | K18: 22.8 | L18: 8.51
A19: Plymouth | B19: Little Herring | C19: 1 | D19: 2021-06-26 | K19: 22.7 | L19: 8.34
A20: Plymouth | B20: Little Herring | C20: 0.15 | D20: 2021-07-14 | F20: 4 | G20: 12:05:00 | H20: 1.4 | I20: 1.4 | J20: 1 | K20: 21.9 | L20: 8.71 | M20: 6.34 | N20: 21.6 | O20: 0.02739726027 | Q20: 0.8030020034 | R20: 56.17030928 | S20: 7.946477778 | T20: 0.7217777778 | U20: 8.668255556 | V20: Clear | W20: 3 | X20: 2
A21: Plymouth | B21: Little Herring | C21: 0.5 | D21: 2021-07-14 | K21: 21.9 | L21: 8.67 | M21: 6.36 | N21: 20.5 | O21: 0.02739726027 | Q21: 0.9368356707 | R21: 34.39195876 | S21: 6.692077778 | T21: 0.7964444444 | U21: 7.488522222
A22: Plymouth | B22: Little Herring | C22: 1 | D22: 2021-07-14 | K22: 20.1 | L22: 8.67 | M22: 6.29 | N22: 20.5 | O22: 0.02739726027 | Q22: 0.869918837 | R22: 58.40398625 | S22: 6.420788889 | T22: 1.082666667 | U22: 7.503455556
A23: Plymouth | B23: Little Herring | C23: 0.15 | D23: 2021-08-18 | F23: 4 | G23: 11:55:00 | H23: 1.4 | I23: 1.4 | J23: 1 | K23: 25.8 | L23: 9.62 | M23: 6.65 | N23: 19.9 | O23: 0.007228915663 | Q23: 0.066 | R23: 43.88508591 | S23: 25.52355556 | T23: 0.025 | U23: 25.54855556 | V23: clear/green | W23: 2 | X23: 2 | Y23: <1%
A24: Plymouth | B24: Little Herring | C24: 0.5 | D24: 2021-08-18 | K24: 25.7 | L24: 9.69 | M24: 6.66 | N24: 21.1 | O24: 0.007228915663 | Q24: 0.8030020034 | R24: 46.95639175 | S24: 24.752 | T24: 0.025 | U24: 24.777
A25: Plymouth | B25: Little Herring | C25: 1 | D25: 2021-08-18 | K25: 25.5 | L25: 9.69 | M25: 6.66 | N25: 20.2 | O25: 0.007228915663 | Q25: 0.8364604202 | R25: 45.83955326 | S25: 16.25244444 | T25: 4.952344444 | U25: 21.20478889
A26: Plymouth | B26: Little Herring | C26: 0.15 | D26: 2021-09-15 | F26: 4 | G26: 11:23:00 | H26: 1.42 | I26: 1.42 | J26: 1 | K26: 23 | L26: 9.44 | M26: 6.23 | N26: 18.5 | O26: 0.03794068271 | Q26: 0.6610743225 | R26: 47.20284507 | S26: 7.392 | T26: 4.912522222 | U26: 12.30452222 | V26: clear/dark green | W26: 2 | X26: 3 | Y26: <1%
A27: Plymouth | B27: Little Herring | C27: 0.5 | D27: 2021-09-15 | K27: 22.9 | L27: 9.57 | M27: 6.18 | N27: 18.7 | O27: 0.05 | Q27: 0.6610743225 | R27: 49.99957917 | S27: 6.968888889 | T27: 6.8887 | U27: 13.85758889
A28: Plymouth | B28: Little Herring | C28: 1 | D28: 2021-09-15 | K28: 22.8 | L28: 9.63 | M28: 6.2 | N28: 10.1 | O28: 0.05 | Q28: 0.6610743225 | R28: 47.51359331 | S28: 8.860444444 | T28: 4.638744444 | U28: 13.49918889
A29: Plymouth | B29: Little Herring | C29: 0.15 | D29: 2021-10-14 | F29: 4 | G29: 11:23:00 | H29: 1.45 | I29: 1.45 | J29: 1 | K29: 18.2 | L29: 10.34 | M29: 5.86 | N29: 8.7 | O29: 0.09102482495 | Q29: 0.6610743225 | R29: 58.38978146 | S29: 7.046666667 | T29: 8.000125 | U29: 15.04679167 | V29: clear/dark green | W29: 1 | X29: 2 | Y29: <1%
A30: Plymouth | B30: Little Herring | C30: 0.5 | D30: 2021-10-14 | K30: 18.1 | L30: 10.52 | M30: 6.92 | N30: 18.6 | O30: 0.09102482495 | Q30: 0.9368356707 | R30: 58.8559 | S30: 8.988 | T30: 4.333991667 | U30: 13.32199167
A31: Plymouth | B31: Little Herring | C31: 1 | D31: 2021-10-14 | K31: 18 | L31: 11.12 | M31: 6.8 | N31: 18.2 | O31: 0.09102482495 | Q31: 0.6610743225 | R31: 55.28229913 | S31: 6.841333333 | T31: 6.732658333 | U31: 13.57399167

Sheet PALS GHP 2021 DATA
A1: Town | B1: Pond | C1: Depth (m) | D1: Date | E1: QC | F1: # of Samples | G1: Sample Time | H1: Total Depth (m) | I1: Secchi Depth (m) | J1: % Secchi | K1: Temp C | L1: DO (mg/L) | M1: Winkler DO (mg/L) | N1: pH | O1: Alk (mg CaCO3/L) | P1: PO4 (uM) | Q1: NH4 (uM) | R1: NOx (uM) | S1: DIN (uM) | T1: DON (uM) | U1: TDN (uM) | V1: TP (uM) | W1: TN (uM) | X1: whole waterTN (uM) | Y1: CHLA (ug/L) | Z1: Phaeo (ug/L) | AA1: T-pig ug/L | AB1: POC (uM) | AC1: PON (uM) | AD1: C/N | AE1: Water Color | AF1: Weather | AG1: Wind | AH1: Plants | AI1: Notes
A2: Plymouth | B2: Great Herring | C2: 0.5 | D2: 2021-04-20 | F2: 9 | G2: 08:25:00 | H2: =42.1/3.281 -> 12.83145383 | I2: 7.2 | J2: =I2/H2 -> 0.5611211401 | K2: 11.4 | L2: 10.27 | M2: NS | N2: 6.35 | O2: 10.8 | P2: 0.075 | Q2: 1.794574335 | R2: NS | S2: NS | T2: NS | U2: NS | V2: 0.2757575758 | W2: NS | X2: 30.48588693 | Y2: 0.3266666667 | Z2: 0.316925 | AA2: 0.6435916667 | AB2: 24.6795134 | AC2: 2.403797898 | AD2: 10.26688367 | AE2: blue/green | AF2: 2 | AG2: 3 | AH2: <1% | AI2: anchor would not hold son 4/20 so went back out on 4/21 to measure DO and temp profile; winklers were collected 4/20 at 11 and 12m
A3: Plymouth | B3: Great Herring | C3: 1 | D3: 2021-04-20 | K3: 11.4 | L3: 10.27 | M3: NS | N3: 6.37 | O3: 11.1 | P3: 0.05 | Q3: 0.025 | R3: NS | S3: NS | T3: NS | U3: NS | V3: 0.2757575758 | W3: NS | X3: 33.0743478 | Y3: 0.552125 | Z3: 0.1306666667 | AA3: 0.6827916667 | AB3: 24.484462 | AC3: 2.280596411 | AD3: 10.73599076
A4: Plymouth | B4: Great Herring | C4: 2 | D4: 2021-04-20 | K4: 11.3 | L4: 10.27 | M4: NS | N4: 6.38 | O4: 10.4 | P4: 0.05 | Q4: 0.1106550062 | R4: NS | S4: NS | T4: NS | U4: NS | V4: 0.3446969697 | W4: NS | X4: 29.33545988 | Y4: 0.6211916667 | Z4: 0.252 | AA4: 0.8731916667 | AB4: 30.22852657 | AC4: 3.143006819 | AD4: 9.617709511
A5: Plymouth | B5: Great Herring | C5: 3 | D5: 2021-04-20 | K5: 11.3 | L5: 10.27 | M5: NS | N5: 6.36 | O5: 10.2 | P5: 0.05 | Q5: 0.025 | R5: NS | S5: NS | T5: NS | U5: NS | V5: 0.4481060606 | W5: NS | X5: 33.0743478 | Y5: 0.9011916667 | Z5: 0.14 | AA5: 1.041191667 | AB5: 25.13819084 | AC5: 2.435282722 | AD5: 10.32249381
A6: Plymouth | B6: Great Herring | C6: 4 | D6: 2021-04-20 | K6: 11.4 | L6: 10.26 | M6: NS | N6: NS | O6: NS | P6: NS | Q6: NS | R6: NS | S6: NS | T6: NS | U6: NS | V6: NS | W6: NS | X6: NS | Y6: NS | Z6: NS | AA6: NS | AB6: NS | AC6: NS | AD6: NS
A7: Plymouth | B7: Great Herring | C7: 5 | D7: 2021-04-20 | K7: 11.3 | L7: 10.26 | M7: NS | N7: NS | O7: NS | P7: NS | Q7: NS | R7: NS | S7: NS | T7: NS | U7: NS | V7: NS | W7: NS | X7: NS | Y7: NS | Z7: NS | AA7: NS | AB7: NS | AC7: NS | AD7: NS
A8: Plymouth | B8: Great Herring | C8: 6 | D8: 2021-04-20 | K8: 11.2 | L8: 10.25 | M8: NS | N8: NS | O8: NS | P8: NS | Q8: NS | R8: NS | S8: NS | T8: NS | U8: NS | V8: NS | W8: NS | X8: NS | Y8: NS | Z8: NS | AA8: NS | AB8: NS | AC8: NS | AD8: NS
A9: Plymouth | B9: Great Herring | C9: 7 | D9: 2021-04-20 | K9: 11.2 | L9: 10.25 | M9: NS | N9: NS | O9: NS | P9: NS | Q9: NS | R9: NS | S9: NS | T9: NS | U9: NS | V9: NS | W9: NS | X9: NS | Y9: NS | Z9: NS | AA9: NS | AB9: NS | AC9: NS | AD9: NS
A10: Plymouth | B10: Great Herring | C10: 8 | D10: 2021-04-20 | K10: 11.2 | L10: 10.23 | M10: NS | N10: 6.37 | O10: 11.9 | P10: 0.025 | Q10: 0.025 | R10: NS | S10: NS | T10: NS | U10: NS | V10: 0.2757575758 | W10: NS | X10: 36.52562896 | Y10: 0.8582583333 | Z10: 0.2613333333 | AA10: 1.119591667 | AB10: 28.32832481 | AC10: 2.435282722 | AD10: 11.63245834
A11: Plymouth | B11: Great Herring | C11: 9 | D11: 2021-04-20 | K11: 11.2 | L11: 10.19 | M11: NS | N11: 6.4 | O11: 11 | P11: -5.551115123e-17 | Q11: 0.025 | R11: NS | S11: NS | T11: NS | U11: NS | V11: 0.2757575758 | W11: NS | X11: 23.29571785 | Y11: 0.5670583333 | Z11: 0.2333333333 | AA11: 0.8003916667 | AB11: 31.64464396 | AC11: 3.420894617 | AD11: 9.250400117
A12: Plymouth | B12: Great Herring | C12: 10 | D12: 2021-04-20 | K12: 11.2 | L12: 10.19 | M12: NS | N12: 6.42 | O12: 11 | P12: 0.05 | Q12: 0.025 | R12: NS | S12: NS | T12: NS | U12: NS | V12: 0.4136363636 | W12: NS | X12: 27.46602 | Y12: 0.333725 | Z12: 0.2986666667 | AA12: 0.6323916667 | AB12: 28.74794976 | AC12: 3.051290156 | AD12: 9.421571954
A13: Plymouth | B13: Great Herring | C13: 11 | D13: 2021-04-20 | K13: ND | L13: 10.4736 | M13: 10.4736 | N13: 6.4 | O13: 10.4 | P13: 0.075 | Q13: 0.2016776727 | R13: NS | S13: NS | T13: NS | U13: NS | V13: 0.5515151515 | W13: NS | X13: 23.87093138 | Y13: 0.4214583333 | Z13: 0.1493333333 | AA13: 0.5707916667 | AB13: 31.35763189 | AC13: 2.92808867 | AD13: 10.70924942
A14: Plymouth | B14: Great Herring | C14: 12 | D14: 2021-04-20 | K14: ND | L14: 10.6304 | M14: 10.6304 | N14: 6.4 | O14: 11 | P14: 0.05 | Q14: 0.01963233982 | R14: NS | S14: NS | T14: NS | U14: NS | V14: 0.3446969697 | W14: NS | X14: 42.85297775 | Y14: 1.877458333 | Z14: 0.025 | AA14: 1.902458333 | AB14: 35.73390658 | AC14: 3.48249536 | AD14: 10.26100623
A15: Plymouth | B15: Great Herring | C15: 0.5 | D15: 2021-05-13 | F15: 9 | G15: 09:30:00 | H15: 12.65 | I15: 4.6 | J15: 0.3636363636 | K15: 15.4 | L15: 10.39 | M15: NS | N15: 6.26 | O15: 11.1 | P15: 0.05 | Q15: NS | R15: NS | S15: NS | T15: NS | U15: NS | V15: 0.440716215 | W15: NS | X15: 16.01926675 | Y15: 0.4998583333 | Z15: 0.9053333333 | AA15: 1.405191667 | AB15: NS | AC15: NS | AD15: NS | AE15: green | AF15: 1 | AG15: 1 | AH15: <1%
A16: Plymouth | B16: Great Herring | C16: 1 | D16: 2021-05-13 | K16: 15.1 | L16: 10.43 | M16: NS | N16: 6.17 | O16: 11.1 | P16: 0.05 | Q16: NS | R16: NS | S16: NS | T16: NS | U16: NS | V16: 0.3672635125 | W16: NS | X16: 30.61836035 | Y16: 0.7462583333 | Z16: 0.5413333333 | AA16: 1.287591667 | AB16: NS | AC16: NS | AD16: NS
A17: Plymouth | B17: Great Herring | C17: 2 | D17: 2021-05-13 | K17: 15 | L17: 10.47 | M17: NS | N17: 6.45 | O17: 11.1 | P17: 0.05 | Q17: NS | R17: NS | S17: NS | T17: NS | U17: NS | V17: 0.440716215 | W17: NS | X17: 21.85768404 | Y17: 6.748 | Z17: 0.025 | AA17: 6.773 | AB17: NS | AC17: NS | AD17: NS
A18: Plymouth | B18: Great Herring | C18: 3 | D18: 2021-05-13 | K18: 14.9 | L18: 10.46 | M18: NS | N18: 6.2 | O18: 12 | P18: 0.05 | Q18: NS | R18: NS | S18: NS | T18: NS | U18: NS | V18: 0.3672635125 | W18: NS | X18: 19.26922317 | Y18: 1.148 | Z18: 0.6995916667 | AA18: 1.847591667 | AB18: NS | AC18: NS | AD18: NS
A19: Plymouth | B19: Great Herring | C19: 4 | D19: 2021-05-13 | K19: 14.8 | L19: 10.38 | M19: NS | N19: NS | O19: NS | P19: NS | Q19: NS | R19: NS | S19: NS | T19: NS | U19: NS | V19: NS | W19: NS | X19: NS | Y19: NS | Z19: NS | AA19: NS | AB19: NS | AC19: NS | AD19: NS
A20: Plymouth | B20: Great Herring | C20: 5 | D20: 2021-05-13 | K20: 14.7 | L20: 10.38 | M20: NS | N20: NS | O20: NS | P20: NS | Q20: NS | R20: NS | S20: NS | T20: NS | U20: NS | V20: NS | W20: NS | X20: NS | Y20: NS | Z20: NS | AA20: NS | AB20: NS | AC20: NS | AD20: NS
A21: Plymouth | B21: Great Herring | C21: 6 | D21: 2021-05-13 | K21: 14.6 | L21: 10.45 | M21: NS | N21: NS | O21: NS | P21: NS | Q21: NS | R21: NS | S21: NS | T21: NS | U21: NS | V21: NS | W21: NS | X21: NS | Y21: NS | Z21: NS | AA21: NS | AB21: NS | AC21: NS | AD21: NS
A22: Plymouth | B22: Great Herring | C22: 7 | D22: 2021-05-13 | K22: 14.5 | L22: 10.4 | M22: NS | N22: NS | O22: NS | P22: NS | Q22: NS | R22: NS | S22: NS | T22: NS | U22: NS | V22: NS | W22: NS | X22: NS | Y22: NS | Z22: NS | AA22: NS | AB22: NS | AC22: NS | AD22: NS
A23: Plymouth | B23: Great Herring | C23: 8 | D23: 2021-05-13 | K23: 14.4 | L23: 10.33 | M23: NS | N23: 6.11 | O23: 11.3 | P23: 0.05 | Q23: NS | R23: NS | S23: NS | T23: NS | U23: NS | V23: 0.5141689175 | W23: NS | X23: 33.49442798 | Y23: 4.022666667 | Z23: 1.733725 | AA23: 5.756391667 | AB23: NS | AC23: NS | AD23: NS
A24: Plymouth | B24: Great Herring | C24: 9 | D24: 2021-05-13 | K24: 14.4 | L24: 10.09 | M24: NS | N24: 6.11 | O24: 12.1 | P24: 0.04766641163 | Q24: NS | R24: NS | S24: NS | T24: NS | U24: NS | V24: 0.4774425662 | W24: NS | X24: 19.8444367 | Y24: 4.106666667 | Z24: 0.389725 | AA24: 4.496391667 | AB24: NS | AC24: NS | AD24: NS
A25: Plymouth | B25: Great Herring | C25: 10 | D25: 2021-05-13 | K25: 14.3 | L25: 9.81 | M25: NS | N25: 6.13 | O25: 11.5 | P25: 0.05 | Q25: NS | R25: NS | S25: NS | T25: NS | U25: NS | V25: 0.4774425662 | W25: NS | X25: 17.74490733 | Y25: 3.070666667 | Z25: 1.795325 | AA25: 4.865991667 | AB25: NS | AC25: NS | AD25: NS
A26: Plymouth | B26: Great Herring | C26: 11 | D26: 2021-05-13 | K26: 14.3 | L26: 9.76 | M26: NS | N26: 6.16 | O26: 11.2 | P26: 0.05 | Q26: NS | R26: NS | S26: NS | T26: NS | U26: NS | V26: 0.9368356707 | W26: NS | X26: 33.0743478 | Y26: 3.649333333 | Z26: 3.210258333 | AA26: 6.859591667 | AB26: NS | AC26: NS | AD26: NS
A27: Plymouth | B27: Great Herring | C27: 11.65 | D27: 2021-05-13 | K27: 14.3 | L27: 9.77 | M27: NS | N27: 6.09 | O27: 11.7 | P27: 0.05 | Q27: NS | R27: NS | S27: NS | T27: NS | U27: NS | V27: 0.5141689175 | W27: NS | X27: 26.74699901 | Y27: 2.744 | Z27: 2.956391667 | AA27: 5.700391667 | AB27: NS | AC27: NS | AD27: NS
A28: Plymouth | B28: Great Herring | C28: 0.5 | D28: 2021-06-16 | F28: 9 | G28: 09:07:00 | H28: 13.1 | I28: 3.5 | J28: 0.2671755725 | M28: NS | N28: 6.34 | O28: 11.2 | P28: 0.02333333333 | Q28: NS | R28: NS | S28: NS | T28: NS | U28: NS | V28: 0.5141689175 | W28: NS | X28: 17.0546511 | Y28: 2.314666667 | Z28: 0.109725 | AA28: 2.424391667 | AB28: NS | AC28: NS | AD28: NS | AE28: green | AF28: 3 | AG28: 2 | AH28: <1% | AI28: meter wasn't working (DO/temp profile for june to follow)
A29: Plymouth | B29: Great Herring | C29: 1 | D29: 2021-06-16 | M29: NS | N29: 6.43 | O29: 11.9 | P29: 0.02333333333 | Q29: NS | R29: NS | S29: NS | T29: NS | U29: NS | V29: 0.5141689175 | W29: NS | X29: 18.98161641 | Y29: 1.185333333 | Z29: 0.8078583333 | AA29: 1.993191667 | AB29: NS | AC29: NS | AD29: NS | AI29: meter wasn't working (DO/temp profile for june to follow)
A30: Plymouth | B30: Great Herring | C30: 2 | D30: 2021-06-16 | M30: NS | N30: 6.46 | O30: 11.3 | P30: 0.02333333333 | Q30: NS | R30: NS | S30: NS | T30: NS | U30: NS | V30: 0.5141689175 | W30: NS | X30: 22.1067354 | Y30: 2.062666667 | Z30: 0.272125 | AA30: 2.334791667 | AB30: NS | AC30: NS | AD30: NS | AI30: meter wasn't working (DO/temp profile for june to follow)
A31: Plymouth | B31: Great Herring | C31: 3 | D31: 2021-06-16 | M31: NS | N31: 6.47 | O31: 11.5 | P31: 0.02333333333 | Q31: NS | R31: NS | S31: NS | T31: NS | U31: NS | V31: 0.5141689175 | W31: NS | X31: 29.92460481 | Y31: 1.726666667 | Z31: 0.826525 | AA31: 2.553191667 | AB31: NS | AC31: NS | AD31: NS | AI31: meter wasn't working (DO/temp profile for june to follow)
A32: Plymouth | B32: Great Herring | C32: 8 | D32: 2021-06-16 | M32: NS | N32: 6.12 | O32: 12.6 | P32: 0.02333333333 | Q32: NS | R32: NS | S32: NS | T32: NS | U32: NS | V32: 0.58762162 | W32: NS | X32: 25.45725086 | Y32: 6.468 | Z32: 2.883591667 | AA32: 9.351591667 | AB32: NS | AC32: NS | AD32: NS | AI32: meter wasn't working (DO/temp profile for june to follow)
A33: Plymouth | B33: Great Herring | C33: 9 | D33: 2021-06-16 | M33: NS | N33: 6.14 | O33: 13 | P33: 0.0737037037 | Q33: NS | R33: NS | S33: NS | T33: NS | U33: NS | V33: 0.869918837 | W33: NS | X33: 23.22357388 | Y33: 6.673333333 | Z33: 4.705458333 | AA33: 11.37879167 | AB33: NS | AC33: NS | AD33: NS | AI33: meter wasn't working (DO/temp profile for june to follow)
A34: Plymouth | B34: Great Herring | C34: 10 | D34: 2021-06-16 | M34: NS | N34: 6.07 | O34: 13.6 | P34: 0.0737037037 | Q34: NS | R34: NS | S34: NS | T34: NS | U34: NS | V34: 0.8030020034 | W34: NS | X34: 30.48302405 | Y34: 4.690525 | Z34: 3.266666667 | AA34: 7.957191667 | AB34: NS | AC34: NS | AD34: NS | AI34: meter wasn't working (DO/temp profile for june to follow)
A35: Plymouth | B35: Great Herring | C35: 11 | D35: 2021-06-16 | M35: NS | N35: 6.08 | O35: 13 | P35: 0.04851851852 | Q35: NS | R35: NS | S35: NS | T35: NS | U35: NS | V35: 0.6691683362 | W35: NS | X35: 19.03542955 | Y35: 3.452925 | Z35: 2.734666667 | AA35: 6.187591667 | AB35: NS | AC35: NS | AD35: NS | AI35: meter wasn't working (DO/temp profile for june to follow)
A36: Plymouth | B36: Great Herring | C36: 12 | D36: 2021-06-16 | M36: NS | N36: 6.06 | O36: 14.6 | P36: 0.09888888889 | Q36: NS | R36: NS | S36: NS | T36: NS | U36: NS | V36: 0.9033772538 | W36: NS | X36: 23.78199313 | Y36: 5.069458333 | Z36: 3.873333333 | AA36: 8.942791667 | AB36: NS | AC36: NS | AD36: NS | AI36: meter wasn't working (DO/temp profile for june to follow)
A37: Plymouth | B37: Great Herring | C37: 0.5 | D37: 2021-06-25 | F37: 0 | G37: 08:15:00 | H37: 13.71 | I37: 3.2 | J37: 0.2334062728 | K37: 23 | L37: 9.08 | AE37: green | AF37: 6 | AG37: 1 | AH37: <1% | AI37: DO/temp profile only
A38: Plymouth | B38: Great Herring | C38: 1 | D38: 2021-06-25 | K38: 23.1 | L38: 9.1
A39: Plymouth | B39: Great Herring | C39: 2 | D39: 2021-06-25 | K39: 23.1 | L39: 9.1
A40: Plymouth | B40: Great Herring | C40: 3 | D40: 2021-06-25 | K40: 23.1 | L40: 9.08
A41: Plymouth | B41: Great Herring | C41: 4 | D41: 2021-06-25 | K41: 23 | L41: 9.06
A42: Plymouth | B42: Great Herring | C42: 5 | D42: 2021-06-25 | K42: 22.9 | L42: 8.99
A43: Plymouth | B43: Great Herring | C43: 6 | D43: 2021-06-25 | K43: 22.83 | L43: 8.93
A44: Plymouth | B44: Great Herring | C44: 7 | D44: 2021-06-25 | K44: 22.6 | L44: 8.7
A45: Plymouth | B45: Great Herring | C45: 8 | D45: 2021-06-25 | K45: 20.1 | L45: 4.95
A46: Plymouth | B46: Great Herring | C46: 9 | D46: 2021-06-25 | K46: 18.9 | L46: 2.79
A47: Plymouth | B47: Great Herring | C47: 10 | D47: 2021-06-25 | K47: 18.7 | L47: 2.39
A48: Plymouth | B48: Great Herring | C48: 11 | D48: 2021-06-25 | K48: 18.6 | L48: 2.13
A49: Plymouth | B49: Great Herring | C49: 12 | D49: 2021-06-25 | K49: 18.3 | L49: 1.66
A50: Plymouth | B50: Great Herring | C50: 12.75 | D50: 2021-06-25 | K50: 18.2 | L50: 1.25
A51: Plymouth | B51: Great Herring | C51: 0.5 | D51: 2021-07-14 | F51: 10 | G51: 09:39:00 | H51: 13.6 | I51: 3.45 | K51: 23 | L51: 8.74 | M51: NS | N51: 6.45 | O51: 11.5 | P51: 0.02739726027 | Q51: NS | R51: NS | S51: NS | T51: NS | U51: NS | V51: 0.6691683362 | W51: NS | X51: 25.45725086 | Y51: 4.368 | Z51: 3.889588889 | AA51: 8.257588889 | AB51: NS | AC51: NS | AD51: NS | AE51: Green | AF51: 3 | AG51: 2
A52: Plymouth | B52: Great Herring | C52: 1 | D52: 2021-07-14 | K52: 23.9 | L52: 8.7 | M52: NS | N52: 6.47 | O52: 12.2 | P52: 0.02739726027 | Q52: NS | R52: NS | S52: NS | T52: NS | U52: NS | V52: 0.6691683362 | W52: NS | X52: 24.61962199 | Y52: 4.215633333 | Z52: 3.758222222 | AA52: 7.973855556 | AB52: NS | AC52: NS | AD52: NS
A53: Plymouth | B53: Great Herring | C53: 2 | D53: 2021-07-14 | K53: 23.9 | L53: 8.55 | M53: NS | N53: 6.47 | O53: 11.7 | P53: 0.02739726027 | Q53: NS | R53: NS | S53: NS | T53: NS | U53: NS | V53: 0.7360851698 | W53: NS | X53: 24.61962199 | Y53: 4.621322222 | Z53: 3.770666667 | AA53: 8.391988889 | AB53: NS | AC53: NS | AD53: NS
A54: Plymouth | B54: Great Herring | C54: 3 | D54: 2021-07-14 | K54: 23 | L54: 8.27 | M54: NS | N54: 6.44 | O54: 11.1 | P54: 0.02739726027 | Q54: NS | R54: NS | S54: NS | T54: NS | U54: NS | V54: 0.6691683362 | W54: NS | X54: 23.50278351 | Y54: 19.712 | Z54: 5.718922222 | AA54: 25.43092222 | AB54: NS | AC54: NS | AD54: NS
A55: Plymouth | B55: Great Herring | C55: 4 | D55: 2021-07-14 | K55: 23 | L55: 8.25 | M55: NS | N55: NS | O55: NS | P55: NS | Q55: NS | R55: NS | S55: NS | T55: NS | U55: NS | V55: NS | W55: NS | X55: NS | Y55: NS | Z55: NS | AA55: NS | AB55: NS | AC55: NS | AD55: NS
A56: Plymouth | B56: Great Herring | C56: 5 | D56: 2021-07-14 | K56: 23 | L56: 8.26 | M56: NS | N56: NS | O56: NS | P56: NS | Q56: NS | R56: NS | S56: NS | T56: NS | U56: NS | V56: NS | W56: NS | X56: NS | Y56: NS | Z56: NS | AA56: NS | AB56: NS | AC56: NS | AD56: NS
A57: Plymouth | B57: Great Herring | C57: 6 | D57: 2021-07-14 | K57: 23 | L57: 7.83 | M57: NS | N57: NS | O57: NS | P57: NS | Q57: NS | R57: NS | S57: NS | T57: NS | U57: NS | V57: NS | W57: NS | X57: NS | Y57: NS | Z57: NS | AA57: NS | AB57: NS | AC57: NS | AD57: NS
A58: Plymouth | B58: Great Herring | C58: 7 | D58: 2021-07-14 | K58: 22.9 | L58: 6.95 | M58: NS | N58: NS | O58: NS | P58: NS | Q58: NS | R58: NS | S58: NS | T58: NS | U58: NS | V58: NS | W58: NS | X58: NS | Y58: NS | Z58: NS | AA58: NS | AB58: NS | AC58: NS | AD58: NS
A59: Plymouth | B59: Great Herring | C59: 8 | D59: 2021-07-14 | K59: 22.8 | L59: 5.89 | M59: NS | N59: 6.02 | O59: 11.3 | P59: 0.02739726027 | Q59: NS | R59: NS | S59: NS | T59: NS | U59: NS | V59: 0.5141689175 | W59: NS | X59: 27.13251 | Y59: 16.09066667 | Z59: 9.459722222 | AA59: 25.55038889 | AB59: NS | AC59: NS | AD59: NS
A60: Plymouth | B60: Great Herring | C60: 9 | D60: 2021-07-14 | K60: 22.7 | L60: 4.9 | M60: NS | N60: 6.1 | O60: 12.7 | P60: 0.02739726027 | Q60: NS | R60: NS | S60: NS | T60: NS | U60: NS | V60: 0.7360851698 | W60: NS | X60: 33.27512027 | Y60: 11.78932222 | Z60: 7.242666667 | AA60: 19.03198889 | AB60: NS | AC60: NS | AD60: NS
A61: Plymouth | B61: Great Herring | C61: 10 | D61: 2021-07-14 | K61: 22.5 | L61: 4.05 | M61: NS | N61: 6.06 | O61: 13.3 | P61: 0.08082191781 | Q61: NS | R61: NS | S61: NS | T61: NS | U61: NS | V61: 0.869918837 | W61: NS | X61: 39.41773196 | Y61: 12.15021111 | Z61: 7.404444444 | AA61: 19.55465556 | AB61: NS | AC61: NS | AD61: NS
A62: Plymouth | B62: Great Herring | C62: 11 | D62: 2021-07-14 | K62: 22.2 | L62: 2.56 | M62: NS | N62: 6.08 | O62: 14.2 | P62: 0.08082191781 | Q62: NS | R62: NS | S62: NS | T62: NS | U62: NS | V62: 1.070669338 | W62: NS | X62: 37.74247423 | Y62: 13.84265556 | Z62: 6.048 | AA62: 19.89065556 | AB62: NS | AC62: NS | AD62: NS
A63: Plymouth | B63: Great Herring | C63: 12 | D63: 2021-07-14 | K63: 20.9 | L63: 0.53 | M63: 1.3376 | N63: 5.98 | O63: 17.7 | P63: 0.1876712329 | Q63: NS | R63: NS | S63: NS | T63: NS | U63: NS | V63: 2.777048595 | X63: 62.03371134 | Y63: 20.23466667 | Z63: 24.74398889 | AA63: 44.97865556 | AB63: NS | AC63: NS | AD63: NS
A64: Plymouth | B64: Great Herring | C64: 12.6 | D64: 2021-07-14 | K64: 18.6 | L64: 0.73 | M64: NS | N64: NS | O64: NS | P64: NS | Q64: NS | R64: NS | S64: NS | T64: NS | U64: NS | V64: NS | W64: NS | X64: NS | Y64: NS | Z64: NS | AA64: NS | AB64: NS | AC64: NS | AD64: NS
A65: Plymouth | B65: Great Herring | C65: 0.5 | D65: 2021-08-18 | F65: 10 | G65: 09:30:00 | H65: 13 | I65: 2.9 | J65: 0.2230769231 | K65: 25.6 | L65: 8.93 | M65: NS | N65: 6.62 | O65: 10.8 | P65: 0.007228915663 | Q65: NS | R65: NS | S65: NS | T65: NS | U65: NS | V65: 0.702626753 | W65: NS | X65: 21.82752577 | Y65: 18.00711111 | Z65: 0.8232777778 | AA65: 18.83038889 | AB65: NS | AC65: NS | AD65: NS | AE65: dark brown/green | AF65: 2 | AG65: 2 | AH65: <1%
A66: Plymouth | B66: Great Herring | C66: 1 | D66: 2021-08-18 | K66: 25.7 | L66: 8.9 | M66: NS | N66: 6.52 | O66: 10.1 | P66: 0.007228915663 | Q66: NS | R66: NS | S66: NS | T66: NS | U66: NS | V66: 1.101790537 | W66: NS | X66: 22.66515464 | Y66: 14.42311111 | Z66: 3.720344444 | AA66: 18.14345556 | AB66: NS | AC66: NS | AD66: NS
A67: Plymouth | B67: Great Herring | C67: 2 | D67: 2021-08-18 | K67: 25.7 | L67: 8.9 | M67: NS | N67: 6.65 | O67: 10.8 | P67: 0.007228915663 | Q67: NS | R67: NS | S67: NS | T67: NS | U67: NS | V67: 0.6610743225 | W67: NS | X67: 21.82752577 | Y67: 14.95822222 | Z67: 3.1479 | AA67: 18.10612222 | AB67: NS | AC67: NS | AD67: NS
A68: Plymouth | B68: Great Herring | C68: 3 | D68: 2021-08-18 | K68: 25.7 | L68: 8.88 | M68: NS | N68: 6.62 | O68: 10.5 | P68: 0.007228915663 | Q68: NS | R68: NS | S68: NS | T68: NS | U68: NS | V68: 0.6691683362 | W68: NS | X68: 20.15226804 | Y68: 17.55911111 | Z68: 0.4499444444 | AA68: 18.00905556 | AB68: NS | AC68: NS | AD68: NS
A69: Plymouth | B69: Great Herring | C69: 4 | D69: 2021-08-18 | K69: 25.7 | L69: 8.86 | M69: NS | N69: NS | O69: NS | P69: NS | Q69: NS | R69: NS | S69: NS | T69: NS | U69: NS | V69: NS | W69: NS | X69: NS | Y69: NS | Z69: NS | AA69: NS | AB69: NS | AC69: NS | AD69: NS
A70: Plymouth | B70: Great Herring | C70: 5 | D70: 2021-08-18 | K70: 25.7 | L70: 8.85 | M70: NS | N70: NS | O70: NS | P70: NS | Q70: NS | R70: NS | S70: NS | T70: NS | U70: NS | V70: NS | W70: NS | X70: NS | Y70: NS | Z70: NS | AA70: NS | AB70: NS | AC70: NS | AD70: NS
A71: Plymouth | B71: Great Herring | C71: 6 | D71: 2021-08-18 | K71: 25.6 | L71: 8.62 | M71: NS | N71: NS | O71: NS | P71: NS | Q71: NS | R71: NS | S71: NS | T71: NS | U71: NS | V71: NS | W71: NS | X71: NS | Y71: NS | Z71: NS | AA71: NS | AB71: NS | AC71: NS | AD71: NS
A72: Plymouth | B72: Great Herring | C72: 7 | D72: 2021-08-18 | K72: 25 | L72: 5.75 | M72: NS | N72: NS | O72: NS | P72: NS | Q72: NS | R72: NS | S72: NS | T72: NS | U72: NS | V72: NS | W72: NS | X72: NS | Y72: NS | Z72: NS | AA72: NS | AB72: NS | AC72: NS | AD72: NS
A73: Plymouth | B73: Great Herring | C73: 8 | D73: 2021-08-18 | K73: 24.6 | L73: 3.22 | M73: NS | N73: 6.14 | O73: 11.8 | P73: 0.007228915663 | Q73: NS | R73: NS | S73: NS | T73: NS | U73: NS | V73: 1.104127755 | W73: NS | X73: 23.22357388 | Y73: 29.26933333 | Z73: 8.869855556 | AA73: 38.13918889 | AB73: NS | AC73: NS | AD73: NS
A74: Plymouth | B74: Great Herring | C74: 9 | D74: 2021-08-18 | K74: 24.2 | L74: 0.52 | M74: NS | N74: 6.06 | O74: 12.6 | P74: 0.343373494 | Q74: NS | R74: NS | S74: NS | T74: NS | U74: NS | V74: 0.4039898637 | W74: NS | X74: 26.57408935 | Y74: 26.13333333 | Z74: 7.719988889 | AA74: 33.85332222 | AB74: NS | AC74: NS | AD74: NS
A75: Plymouth | B75: Great Herring | C75: 10 | D75: 2021-08-18 | K75: 24.1 | L75: 0.15 | M75: NS | N75: 6 | O75: 13.3 | P75: 0.06325301205 | Q75: NS | R75: NS | S75: NS | T75: NS | U75: NS | V75: 1.873671341 | W75: NS | X75: 24.34041237 | Y75: 22.16301111 | Z75: 13.71377778 | AA75: 35.87678889 | AB75: NS | AC75: NS | AD75: NS
A76: Plymouth | B76: Great Herring | C76: 11 | D76: 2021-08-18 | K76: 23.8 | L76: 0.07 | M76: NS | N76: 6.03 | O76: 14 | P76: 0.2313253012 | Q76: NS | R76: NS | S76: NS | T76: NS | U76: NS | V76: 1.940588175 | W76: NS | X76: 27.69092784 | Y76: 21.35466667 | Z76: 8.690655556 | AA76: 30.04532222 | AB76: NS | AC76: NS | AD76: NS
A77: Plymouth | B77: Great Herring | C77: 12 | D77: 2021-08-18 | K77: 23.2 | L77: 0.03 | M77: 0 | N77: 6.07 | O77: 19.9 | P77: 2.220958203 | Q77: NS | R77: NS | S77: NS | T77: NS | U77: NS | V77: 4.148843684 | X77: 50.58611684 | Y77: 16.016 | Z77: 13.92478889 | AA77: 29.94078889 | AB77: NS | AC77: NS | AD77: NS
A78: Plymouth | B78: Great Herring | C78: 0.5 | D78: 2021-09-15 | G78: 09:15:00 | H78: 13.5 | I78: 2.6 | J78: 0.1925925926 | K78: 23.5 | L78: 8.75 | M78: NS | N78: 6.18 | O78: 10.1 | P78: 0.03794068271 | Q78: NS | R78: NS | S78: NS | T78: NS | U78: NS | V78: 0.6691683362 | W78: NS | X78: 20.10559916 | Y78: 15.94133333 | Z78: 4.255455556 | AA78: 20.19678889 | AB78: NS | AC78: NS | AD78: NS | AE78: brown | AF78: 3 | AG78: 3 | AH78: <1%
A79: Plymouth | B79: Great Herring | C79: 1 | D79: 2021-09-15 | K79: 23.5 | L79: 8.72 | M79: NS | N79: 6.24 | O79: 10.2 | P79: 0.03794068271 | Q79: NS | R79: NS | S79: NS | T79: NS | U79: NS | V79: 0.9368356707 | W79: NS | X79: 21.65934032 | Y79: 16.33955556 | Z79: 2.4087 | AA79: 18.74825556 | AB79: NS | AC79: NS | AD79: NS
A80: Plymouth | B80: Great Herring | C80: 2 | D80: 2021-09-15 | K80: 23.5 | L80: 8.74 | M80: NS | N80: 6.33 | O80: 10 | P80: 0.03794068271 | Q80: NS | R80: NS | S80: NS | T80: NS | U80: NS | V80: 1.137586172 | W80: NS | X80: 20.91354456 | Y80: 16.70044444 | Z80: 3.085677778 | AA80: 19.78612222 | AB80: NS | AC80: NS | AD80: NS
A81: Plymouth | B81: Great Herring | C81: 3 | D81: 2021-09-15 | K81: 23.5 | L81: 8.72 | M81: NS | N81: 6.29 | O81: 10 | P81: 0.03794068271 | Q81: NS | R81: NS | S81: NS | T81: NS | U81: NS | V81: 0.7360851698 | W81: NS | X81: 21.73703 | Y81: 14.59733333 | Z81: 5.136522222 | AA81: 19.73385556 | AB81: NS | AC81: NS | AD81: NS
A82: Plymouth | B82: Great Herring | C82: 4 | D82: 2021-09-15 | K82: 23.5 | L82: 8.67 | M82: NS | N82: NS | O82: NS | P82: NS | Q82: NS | R82: NS | S82: NS | T82: NS | U82: NS | V82: NS | W82: NS | X82: NS | Y82: NS | Z82: NS | AA82: NS | AB82: NS | AC82: NS | AD82: NS
A83: Plymouth | B83: Great Herring | C83: 5 | D83: 2021-09-15 | K83: 23.5 | L83: 8.66 | M83: NS | N83: NS | O83: NS | P83: NS | Q83: NS | R83: NS | S83: NS | T83: NS | U83: NS | V83: NS | W83: NS | X83: NS | Y83: NS | Z83: NS | AA83: NS | AB83: NS | AC83: NS | AD83: NS
A84: Plymouth | B84: Great Herring | C84: 6 | D84: 2021-09-15 | K84: 23.5 | L84: 8.44 | M84: NS | N84: NS | O84: NS | P84: NS | Q84: NS | R84: NS | S84: NS | T84: NS | U84: NS | V84: NS | W84: NS | X84: NS | Y84: NS | Z84: NS | AA84: NS | AB84: NS | AC84: NS | AD84: NS
A85: Plymouth | B85: Great Herring | C85: 7 | D85: 2021-09-15 | K85: 23.5 | L85: 8.33 | M85: NS | N85: NS | O85: NS | P85: NS | Q85: NS | R85: NS | S85: NS | T85: NS | U85: NS | V85: NS | W85: NS | X85: NS | Y85: NS | Z85: NS | AA85: NS | AB85: NS | AC85: NS | AD85: NS
A86: Plymouth | B86: Great Herring | C86: 8 | D86: 2021-09-15 | K86: 23.4 | L86: 7.82 | M86: NS | N86: 6.22 | O86: 10 | P86: 0.1099608282 | Q86: NS | R86: NS | S86: NS | T86: NS | U86: NS | V86: 0.7360851698 | W86: NS | X86: 21.22429279 | Y86: 16.86222222 | Z86: 2.759633333 | AA86: 19.62185556 | AB86: NS | AC86: NS | AD86: NS
A87: Plymouth | B87: Great Herring | C87: 9 | D87: 2021-09-15 | K87: 23.4 | L87: 7.54 | M87: NS | N87: 6.13 | O87: 10.3 | P87: 0.03794068271 | Q87: NS | R87: NS | S87: NS | T87: NS | U87: NS | V87: 0.7360851698 | W87: NS | X87: 26.22734 | Y87: 17.696 | Z87: 7.010655556 | AA87: 24.70665556 | AB87: NS | AC87: NS | AD87: NS
A88: Plymouth | B88: Great Herring | C88: 10 | D88: 2021-09-15 | K88: 23.3 | L88: 7.24 | M88: NS | N88: 6.18 | O88: 10.4 | P88: 0.03794068271 | Q88: NS | R88: NS | S88: NS | T88: NS | U88: NS | V88: 1.003752504 | W88: NS | X88: 22.65373467 | Y88: 16.352 | Z88: 9.676255556 | AA88: 26.02825556 | AB88: NS | AC88: NS | AD88: NS
A89: Plymouth | B89: Great Herring | C89: 11 | D89: 2021-09-15 | K89: 23.3 | L89: 7.15 | M89: NS | N89: 6.05 | O89: 10.2 | P89: 0.06194739787 | Q89: NS | R89: NS | S89: NS | T89: NS | U89: NS | V89: 0.9368356707 | W89: NS | X89: 26.69346169 | Y89: 13.78844444 | Z89: 12.97154444 | AA89: 26.75998889 | AB89: NS | AC89: NS | AD89: NS
A90: Plymouth | B90: Great Herring | C90: 12 | D90: 2021-09-15 | K90: 23.2 | L90: 6.02 | M90: NS | N90: 6.08 | O90: 10.6 | P90: 0.03794068271 | Q90: NS | R90: NS | S90: NS | T90: NS | U90: NS | V90: 0.869918837 | W90: NS | X90: 25.13972053 | Y90: 15.15733333 | Z90: 8.660788889 | AA90: 23.81812222 | AB90: NS | AC90: NS | AD90: NS
A91: Plymouth | B91: Great Herring | C91: 12.5 | D91: 2021-09-15 | K91: 23.2 | L91: 0.53 | M91: 6.8096 | N91: 6.08 | O91: 23.3 | P91: 0.03794068271 | Q91: NS | R91: NS | S91: NS | T91: NS | U91: NS | V91: 1.070669338 | X91: 25.13972053 | Y91: 16.15288889 | Z91: 12.88443333 | AA91: 29.03732222 | AB91: NS | AC91: NS | AD91: NS
A92: Plymouth | B92: Great Herring | C92: 0.5 | D92: 2021-10-14 | F92: 9 | G92: 09:30:00 | H92: 12.5 | I92: 2.2 | J92: 0.176 | K92: 19.5 | L92: 8.94 | M92: NS | N92: 6.61 | O92: 10.1 | P92: 0.09102482495 | Q92: NS | R92: NS | S92: NS | T92: NS | U92: NS | V92: 0.6691683362 | W92: NS | X92: 21.13106832 | Y92: 25.816 | Z92: 2.099591667 | AA92: 27.91559167 | AB92: NS | AC92: NS | AD92: NS | AE92: green | AF92: 1 | AG92: 1 | AH92: <1%
A93: Plymouth | B93: Great Herring | C93: 1 | D93: 2021-10-14 | K93: 19.5 | L93: 8.94 | M93: NS | N93: 6.61 | O93: 10.68 | P93: 0.09102482495 | Q93: NS | R93: NS | S93: NS | T93: NS | U93: NS | V93: 0.7360851698 | W93: NS | X93: 22.65373467 | Y93: 24.70533333 | Z93: 3.781458333 | AA93: 28.48679167 | AB93: NS | AC93: NS | AD93: NS | AI93: changed from 9.94
A94: Plymouth | B94: Great Herring | C94: 2 | D94: 2021-10-14 | K94: 19.5 | L94: 8.93 | M94: NS | N94: 6.61 | O94: 9.9 | P94: 0.1425843412 | Q94: NS | R94: NS | S94: NS | T94: NS | U94: NS | V94: 0.6691683362 | W94: NS | X94: 22.34298643 | Y94: 30.66 | Z94: 0.6155916667 | AA94: 31.27559167 | AB94: NS | AC94: NS | AD94: NS
A95: Plymouth | B95: Great Herring | C95: 3 | D95: 2021-10-14 | K95: 19.5 | L95: 8.84 | M95: NS | N95: 6.6 | O95: 10.1 | P95: 0.1168045831 | Q95: NS | R95: NS | S95: NS | T95: NS | U95: NS | V95: 0.6610743225 | W95: NS | X95: 23.27523113 | Y95: 30.70666667 | Z95: 3.531325 | AA95: 34.23799167 | AB95: NS | AC95: NS | AD95: NS
A96: Plymouth | B96: Great Herring | C96: 4 | D96: 2021-10-14 | K96: 19.4 | L96: 8.67 | M96: NS | N96: NS | O96: NS | P96: NS | Q96: NS | R96: NS | S96: NS | T96: NS | U96: NS | V96: NS | W96: NS | X96: NS | Y96: NS | Z96: NS | AA96: NS | AB96: NS | AC96: NS | AD96: NS
A97: Plymouth | B97: Great Herring | C97: 5 | D97: 2021-10-14 | K97: 19.3 | L97: 8.56 | M97: NS | N97: NS | O97: NS | P97: NS | Q97: NS | R97: NS | S97: NS | T97: NS | U97: NS | V97: NS | W97: NS | X97: NS | Y97: NS | Z97: NS | AA97: NS | AB97: NS | AC97: NS | AD97: NS
A98: Plymouth | B98: Great Herring | C98: 6 | D98: 2021-10-14 | K98: 19.3 | L98: 8.48 | M98: NS | N98: NS | O98: NS | P98: NS | Q98: NS | R98: NS | S98: NS | T98: NS | U98: NS | V98: NS | W98: NS | X98: NS | Y98: NS | Z98: NS | AA98: NS | AB98: NS | AC98: NS | AD98: NS
A99: Plymouth | B99: Great Herring | C99: 7 | D99: 2021-10-14 | K99: 19.3 | L99: 8.354 | M99: NS | N99: NS | O99: NS | P99: NS | Q99: NS | R99: NS | S99: NS | T99: NS | U99: NS | V99: NS | W99: NS | X99: NS | Y99: NS | Z99: NS | AA99: NS | AB99: NS | AC99: NS | AD99: NS
A100: Plymouth | B100: Great Herring | C100: 8 | D100: 2021-10-14 | K100: 19.2 | L100: 8.05 | M100: NS | N100: 6.48 | O100: 10.1 | P100: 0.09102482495 | Q100: NS | R100: NS | S100: NS | T100: NS | U100: NS | V100: 0.6691683362 | W100: NS | X100: 23.58597936 | Y100: 30.95866667 | Z100: 5.530525 | AA100: 36.48919167 | AB100: NS | AC100: NS | AD100: NS
A101: Plymouth | B101: Great Herring | C101: 9 | D101: 2021-10-14 | K101: 19.2 | L101: 7.82 | M101: NS | N101: 6.45 | O101: 9.9 | P101: 0.4003819223 | Q101: NS | R101: NS | S101: NS | T101: NS | U101: NS | V101: 0.6691683362 | W101: NS | X101: 22.65373467 | Y101: 30.128 | Z101: 7.419591667 | AA101: 37.54759167 | AB101: NS | AC101: NS | AD101: NS
A102: Plymouth | B102: Great Herring | C102: 10 | D102: 2021-10-14 | K102: 19.1 | L102: 7.48 | M102: NS | N102: 6.41 | O102: 9.9 | P102: 0.09102482495 | Q102: NS | R102: NS | S102: NS | T102: NS | U102: NS | V102: 0.7360851698 | W102: NS | X102: 33.84067105 | Y102: 27.84133333 | Z102: 7.303858333 | AA102: 35.14519167 | AB102: NS | AC102: NS | AD102: NS
A103: Plymouth | B103: Great Herring | C103: 11 | D103: 2021-10-14 | K103: ND | L103: ND | M103: NS | N103: 6.38 | O103: 9.9 | P103: 0.1425843412 | Q103: NS | R103: NS | S103: NS | T103: NS | U103: NS | V103: 0.7360851698 | W103: NS | X103: 22.8868 | Y103: 30.30533333 | Z103: 9.605458333 | AA103: 39.91079167 | AB103: NS | AC103: NS | AD103: NS
A104: Plymouth | B104: Great Herring | C104: 11.5 | D104: 2021-10-14 | K104: ND | L104: ND | M104: NS | N104: 6.38 | O104: 9.1 | P104: 0.09102482495 | Q104: NS | R104: NS | S104: NS | T104: NS | U104: NS | V104: 8.474599917 | W104: NS | X104: 257.890147 | Y104: 22.848 | Z104: 24.42679167 | AA104: 47.27479167 | AB104: NS | AC104: NS | AD104: NS

Sheet PALS POND DATA 2020
A1: Town | B1: Pond | C1: Depth (m) | D1: Date | E1: QC | F1: Number of Samples | G1: Total Depth (m) | H1: Secchi Depth (m) | I1: % Secchi | J1: Water Color | K1: Weather | L1: Wind | M1: Plants | N1: Temp C | O1: DO (mg/L) | P1: pH | Q1: Alk (mg CaCO3/L) | R1: CHLA (ug/L) | S1: Phaeo (ug/L) | T1: T-pig ug/L | U1: TP (uM) | V1: TP (µg/L) | W1: TP (mg/L) | X1: TN (uM) | Y1: TN (ug/L) | Z1: TN (mg/L) | AA1: Notes
A2: PLYMOUTH | B2: GREAT HERRING | C2: 0.5 | D2: 2020-05-26 | E2: SAMPLE | F2: 4 | G2: 13 | H2: 5 | I2: =H2/G2 -> 0.3846153846 | J2: GREEN | K2: 3 | L2: 1 | M2: LESS THAN 1% OR NONE (WATERLILIES, FLOATING ALGAE, EMERGENT GRASSES/SEDGES) | N2: 16.6 | O2: 10.8 | P2: 6.48 | Q2: 10.9 | R2: 0.868 | S2: 0.025 | T2: =R2+S2 -> 0.893 | U2: 0.619840213 | V2: =U2*30.973762 -> 19.19878324 | W2: =V2/1000 -> 0.01919878324 | X2: 40.06760112 | Y2: =X2*14.0067 -> 561.2148685 | Z2: =Y2/1000 -> 0.5612148685 | AA2: DRIFTED TO 34.5FT ON WAY UP. STARTED AT 42 FT.
A3: PLYMOUTH | B3: GREAT HERRING | C3: 1 | D3: 2020-05-26 | N3: 16.49 | O3: 11.33
A4: PLYMOUTH | B4: GREAT HERRING | C4: 2 | D4: 2020-05-26 | N4: 16.4 | O4: 12.9
A5: PLYMOUTH | B5: GREAT HERRING | C5: 3 | D5: 2020-05-26 | E5: SAMPLE | N5: 16.3 | O5: 13.5 | P5: 6.56 | Q5: 10.9 | R5: 1.428 | S5: 0.025 | T5: =R5+S5 -> 1.453 | U5: 0.4567243675 | V5: =U5*30.973762 -> 14.14647186 | W5: =V5/1000 -> 0.01414647186 | X5: 40.06760112 | Y5: =X5*14.0067 -> 561.2148685 | Z5: =Y5/1000 -> 0.5612148685
A6: PLYMOUTH | B6: GREAT HERRING | C6: 4 | D6: 2020-05-26 | N6: 16 | O6: 13.6
A7: PLYMOUTH | B7: GREAT HERRING | C7: 5 | D7: 2020-05-26 | N7: 15.8 | O7: 13.3
A8: PLYMOUTH | B8: GREAT HERRING | C8: 6 | D8: 2020-05-26 | N8: 15.7 | O8: 13.2
A9: PLYMOUTH | B9: GREAT HERRING | C9: 7 | D9: 2020-05-26 | N9: 15.7 | O9: 13
A10: PLYMOUTH | B10: GREAT HERRING | C10: 8 | D10: 2020-05-26 | N10: 15.6 | O10: 12.9
A11: PLYMOUTH | B11: GREAT HERRING | C11: 9 | D11: 2020-05-26 | E11: SAMPLE | N11: 15.6 | O11: 12.9 | P11: 6.39 | Q11: 11.5 | R11: 1.876 | S11: 0.1792 | T11: =R11+S11 -> 2.0552 | U11: 0.5219707057 | V11: =U11*30.973762 -> 16.16739641 | W11: =V11/1000 -> 0.01616739641 | X11: 40.06760112 | Y11: =X11*14.0067 -> 561.2148685 | Z11: =Y11/1000 -> 0.5612148685
A12: PLYMOUTH | B12: GREAT HERRING | C12: 10 | D12: 2020-05-26 | N12: 15.5 | O12: 12.8
A13: PLYMOUTH | B13: GREAT HERRING | C13: 11 | D13: 2020-05-26 | N13: 15.5 | O13: 9.01
A14: PLYMOUTH | B14: GREAT HERRING | C14: 11.5 | D14: 2020-05-26 | E14: SAMPLE | N14: 15.5 | O14: 9.255 | P14: 6.39 | Q14: 10.9 | R14: 1.670666667 | S14: 0.6645333333 | T14: =R14+S14 -> 2.3352 | U14: 0.5219707057 | V14: =U14*30.973762 -> 16.16739641 | W14: =V14/1000 -> 0.01616739641 | X14: 41.55818689 | Y14: =X14*14.0067 -> 582.0930563 | Z14: =Y14/1000 -> 0.5820930563
A15: PLYMOUTH | B15: GREAT HERRING | C15: 12 | D15: 2020-05-26 | N15: 15.5 | O15: 9.5
A16: PLYMOUTH | B16: GREAT HERRING | C16: 13 | D16: 2020-05-26 | N16: 15.4 | O16: 7.7
A17: PLYMOUTH | B17: GREAT HERRING | C17: 0.5 | D17: 2020-08-20 | E17: SAMPLE | F17: ND | G17: ND | H17: ND | I17: ND | J17: ND | K17: ND | L17: ND | M17: ND | N17: ND | O17: ND | P17: 6.5 | Q17: 13.8 | R17: 9.426666667 | S17: 0.025 | T17: =R17+S17 -> 9.451666667 | U17: 0.9439603944 | V17: =U17*30.973762 -> 29.23800459 | W17: =V17/1000 -> 0.02923800459 | X17: 33.66433453 | Y17: =X17*14.0067 -> 471.5262345 | Z17: =Y17/1000 -> 0.4715262345 | AA17: CYANOBACTERIA BLOOM
A18: PLYMOUTH | B18: GREAT HERRING | C18: 0.5 | D18: 2020-08-20 | E18: FD | N18: ND | O18: ND | P18: 6.64 | Q18: 14.4 | R18: 9.389333333 | S18: 0.025 | T18: 9.414333333 | U18: 0.9789218905 | V18: 30.32089365 | W18: 0.03032089365 | X18: 30.67271108 | Y18: 429.6234622 | Z18: 0.4296234622
A19: PLYMOUTH | B19: GREAT HERRING | C19: 3 | D19: 2020-08-20 | N19: ND | O19: ND | P19: 6.57 | Q19: 14.3 | R19: 8.493333333 | S19: 9.359466667 | T19: 17.8528 | U19: 0.9439603944 | V19: 29.23800459 | W19: 0.02923800459 | X19: 30.07438638 | Y19: 421.2429078 | Z19: 0.4212429078
A20: PLYMOUTH | B20: GREAT HERRING | C20: 9 | D20: 2020-08-20 | N20: ND | O20: ND | P20: 6.55 | Q20: 13.8 | R20: 6.365333333 | S20: 1.642666667 | T20: 8.008 | U20: 0.9089988983 | V20: 28.15511553 | W20: 0.02815511553 | X20: 27.98024997 | Y20: 391.9109672 | Z20: 0.3919109672
A21: PLYMOUTH | B21: GREAT HERRING | C21: B | D21: 2020-08-20 | N21: ND | O21: ND | P21: 6.51 | Q21: 14.2 | R21: machine error | S21: machine error | T21: machine error | U21: 1.678151812 | V21: 51.97867483 | W21: 0.05197867483 | X21: 32.1685228 | Y21: 450.5748483 | Z21: 0.4505748483
A22: PLYMOUTH | B22: GALLOWS | C22: 0.5 | D22: 2020-09-02 | E22: SAMPLE | F22: 3 | G22: 9.3 | H22: 5.8 | I22: =H22/G22 -> 0.623655914 | J22: GREEN/BROWN | K22: 2 | L22: 1 | M22: LESS THAN 1% OR NONE (WATERLILIES, FLOATING ALGAE, EMERGENT GRASSES/SEDGES) | N22: 23.8 | O22: 8.7 | P22: 6.02 | Q22: 4.2 | R22: 0.3416 | S22: 0.112 | T22: 0.4536 | U22: 0.7127501464 | V22: 22.0765534 | W22: 0.0220765534 | X22: 22.74491 | Y22: 318.5811309 | Z22: 0.3185811309
A23: PLYMOUTH | B23: GALLOWS | C23: 1 | D23: 2020-09-02 | N23: 23.9 | O23: 8.9
A24: PLYMOUTH | B24: GALLOWS | C24: 2 | D24: 2020-09-02 | N24: 23.9 | O24: 8.9
A25: PLYMOUTH | B25: GALLOWS | C25: 3 | D25: 2020-09-02 | E25: SAMPLE | N25: 23.9 | O25: 9 | P25: 5.96 | Q25: 3.5 | R25: 0.4666666667 | S25: 0.03733333333 | T25: =R25+S25 -> 0.504 | U25: 0.4751667643 | V25: =U25*30.973762 -> 14.71770227 | W25: =V25/1000 -> 0.01471770227 | X25: 16.43258343 | Y25: =X25*14.0067 -> 230.1662664 | Z25: =Y25/1000 -> 0.2301662664
A26: PLYMOUTH | B26: GALLOWS | C26: 4 | D26: 2020-09-02 | N26: 23.9 | O26: 9.1
A27: PLYMOUTH | B27: GALLOWS | C27: 5 | D27: 2020-09-02 | N27: 23.9 | O27: 9
A28: PLYMOUTH | B28: GALLOWS | C28: 6 | D28: 2020-09-02 | N28: 23.8 | O28: 8.7
A29: PLYMOUTH | B29: GALLOWS | C29: 7 | D29: 2020-09-02 | N29: 23.8 | O29: 8.7
A30: PLYMOUTH | B30: GALLOWS | C30: 8 | D30: 2020-09-02 | E30: SAMPLE | N30: 22.4 | O30: 3.1 | P30: 5.65 | Q30: 6.1 | R30: 1.922666667 | S30: 0.025 | T30: =R30+S30 -> 1.947666667 | U30: 0.7691529139 | V30: =U30*30.973762 -> 23.8235593 | W30: =V30/1000 -> 0.0238235593 | X30: 16.91124319 | Y30: =X30*14.0067 -> 236.8707099 | Z30: =Y30/1000 -> 0.2368707099
A31: PLYMOUTH | B31: HALFWAY | C31: 0.5 | D31: 2020-09-02 | E31: SAMPLE | F31: 2 | G31: 4.2 | H31: 0.671 | I31: =H31/G31 -> 0.1597619048 | J31: GREEN | K31: 2 | L31: 3 | M31: LESS THAN 1% OR NONE (WATERLILIES AND FLOATING ALGAE), UP TO 10% EMERGENT GRASSES) | N31: 22.8 | O31: 11.8 | P31: 6.5 | Q31: 11.1 | R31: 3.8192 | S31: 0.025 | T31: =R31+S31 -> 3.8442 | U31: 1.398459844 | V31: =U31*30.973762 -> 43.31556236 | W31: =V31/1000 -> 0.04331556236 | X31: 83.92360856 | Y31: =X31*14.0067 -> 1175.492808 | Z31: =Y31/1000 -> 1.175492808
A32: PLYMOUTH | B32: HALFWAY | C32: 1 | D32: 2020-09-02 | N32: 22.7 | O32: 11.6
A33: PLYMOUTH | B33: HALFWAY | C33: 2 | D33: 2020-09-02 | N33: 22.5 | O33: 11.3
A34: PLYMOUTH | B34: HALFWAY | C34: 3 | D34: 2020-09-02 | N34: 22.2 | O34: 11
A35: PLYMOUTH | B35: HALFWAY | C35: 3.5 | D35: 2020-09-02 | E35: SAMPLE | N35: ND | O35: ND | P35: 6.51 | Q35: 10.4 | R35: 4.4912 | S35: 0.025 | T35: =R35+S35 -> 4.5162 | U35: 1.328536851 | V35: =U35*30.973762 -> 41.14978424 | W35: =V35/1000 -> 0.04114978424 | X35: 68.3671666 | Y35: =X35*14.0067 -> 957.5983924 | Z35: =Y35/1000 -> 0.9575983924
A36: PLYMOUTH | B36: HALFWAY | C36: 4 | D36: 2020-09-02 | N36: 20.7 | O36: 7.1
A37: PLYMOUTH | B37: ROUND | C37: 0.5 | D37: 2020-09-02 | E37: SAMPLE | F37: 2 | G37: 6.8 | H37: 5.12 | I37: =H37/G37 -> 0.7529411765 | J37: ND | K37: 2 | L37: 2 | M37: LESS THAN 1% OR NONE (WATERLILIES, FLOATING ALGAE, EMERGENT GRASSES/SEDGES) | N37: 23.8 | O37: 8.1 | P37: 6.04 | Q37: 3.9 | R37: 3.406666667 | S37: 0.025 | T37: =R37+S37 -> 3.431666667 | U37: 0.3167778429 | V37: =U37*30.973762 -> 9.811801512 | W37: =V37/1000 -> 0.009811801512 | X37: 14.18886584 | Y37: =X37*14.0067 -> 198.7391872 | Z37: =Y37/1000 -> 0.1987391872
A38: PLYMOUTH | B38: ROUND | C38: 1 | D38: 2020-09-02 | N38: 23.9 | O38: 8.5
A39: PLYMOUTH | B39: ROUND | C39: 2 | D39: 2020-09-02 | N39: 23.9 | O39: 8.5
A40: PLYMOUTH | B40: ROUND | C40: 3 | D40: 2020-09-02 | N40: 23.8 | O40: 8.5
A41: PLYMOUTH | B41: ROUND | C41: 4 | D41: 2020-09-02 | N41: 23.8 | O41: 8.4
A42: PLYMOUTH | B42: ROUND | C42: 5 | D42: 2020-09-02 | N42: 23.8 | O42: 8.5
A43: PLYMOUTH | B43: ROUND | C43: 6 | D43: 2020-09-02 | E43: SAMPLE | N43: 23.7 | O43: 8.3 | P43: 6.02 | Q43: 3.2 | R43: 10.668 | S43: 4.8272 | T43: =R43+S43 -> 15.4952 | U43: 0.4751667643 | V43: =U43*30.973762 -> 14.71770227 | W43: =V43/1000 -> 0.01471770227 | X43: 20.20202899 | Y43: =X43*14.0067 -> 282.9637594 | Z43: =Y43/1000 -> 0.2829637594
A44: PLYMOUTH | B44: BLOODY | C44: 0.5 | D44: 2020-09-03 | E44: ND | F44: ND | G44: ND | H44: ND | I44: ND | J44: ND | K44: ND | L44: ND | M44: ND | N44: ND | O44: ND | P44: 6.43 | Q44: 6.4 | R44: 0.07466666667 | S44: 0.025 | T44: 0.09966666667 | U44: 0.3959723036 | V44: 12.26475189 | W44: 0.01226475189 | X44: 16.10350485 | Y44: 225.5569614 | Z44: 0.2255569614
A45: PLYMOUTH | B45: BLOODY | C45: 3 | D45: 2020-09-03 | N45: ND | O45: ND | P45: 6.38 | Q45: 6.8 | R45: 0.112 | S45: 0.025 | T45: 0.137 | U45: 0.3563750732 | V45: 11.0382767 | W45: 0.0110382767 | X45: 17.38990294 | Y45: 243.5751535 | Z45: 0.2435751535
A46: PLYMOUTH | B46: BLOODY | C46: B | D46: 2020-09-03 | N46: ND | O46: ND | P46: 5.67 | Q46: 5.9 | R46: 0.7392 | S46: 0.168 | T46: 0.9072 | U46: 0.9089988983 | V46: 28.15511553 | W46: 0.02815511553 | X46: 30.67271108 | Y46: 429.6234622 | Z46: 0.4296234622
A47: PLYMOUTH | B47: LITTLE | C47: S | D47: 2020-09-03 | E47: ND | F47: ND | G47: ND | H47: ND | I47: ND | J47: ND | K47: ND | L47: ND | M47: ND | N47: ND | O47: ND | P47: 6.51 | Q47: 14.1 | R47: 0.8512 | S47: 0.056 | T47: 0.9072 | U47: 1.013883387 | V47: 31.40378271 | W47: 0.03140378271 | X47: 39.64758144 | Y47: 555.3317789 | Z47: 0.5553317789
A48: PLYMOUTH | B48: LITTLE | C48: B | D48: 2020-09-03 | N48: ND | O48: ND | P48: 6.58 | Q48: 14.1 | R48: 0.1456 | S48: 0.448 | T48: 0.5936 | U48: 0.8390759061 | V48: 25.98933742 | W48: 0.02598933742 | X48: 38.15176971 | Y48: 534.3803928 | Z48: 0.5343803928
A49: PLYMOUTH | B49: LONG | C49: 0.5 | D49: 2020-09-03 | E49: ND | F49: ND | G49: ND | H49: ND | I49: ND | J49: ND | K49: ND | L49: ND | M49: ND | N49: ND | O49: ND | P49: 6.91 | Q49: 13 | R49: 0.06471111111 | S49: 0.09955555556 | T49: 0.1642666667 | U49: 0.4751667643 | V49: 14.71770227 | W49: 0.01471770227 | X49: 24.68946417 | Y49: 345.8179177 | Z49: 0.3458179177
A50: PLYMOUTH | B50: LONG | C50: 3 | D50: 2020-09-03 | N50: ND | O50: ND | P50: 6.85 | Q50: 13.7 | R50: 0.08213333333 | S50: 0.07466666667 | T50: 0.1568 | U50: 0.4355695339 | V50: 13.49122708 | W50: 0.01349122708 | X50: 25.73653 | Y50: 360.4838548 | Z50: 0.3604838548
A51: PLYMOUTH | B51: LONG | C51: 9 | D51: 2020-09-03 | N51: ND | O51: ND | P51: 6.31 | Q51: 12.8 | R51: 1.008 | S51: 0.504 | T51: 1.512 | U51: 0.7919446072 | V51: 24.52950378 | W51: 0.02452950378 | X51: 48.6224518 | Y51: 681.0400956 | Z51: 0.6810400956
A52: PLYMOUTH | B52: LONG | C52: B | D52: 2020-09-03 | N52: ND | O52: ND | P52: 6.02 | Q52: 16.8 | R52: 0.6309333333 | S52: 0.07466666667 | T52: 0.7056 | U52: 0.9789218905 | V52: 30.32089365 | W52: 0.03032089365 | X52: 50.11826353 | Y52: 701.9914818 | Z52: 0.7019914818
A53: PLYMOUTH | B53: GREAT HERRING | C53: 0.5 | D53: 2020-10-07 | E53: SAMPLE | F53: 5 | G53: 11.95 | H53: 4 | I53: =H53/G53 -> 0.3347280335 | J53: BROWN | K53: 2 | L53: 4 | M53: ND | N53: ND | O53: ND | P53: 6.57 | Q53: 11.3 | R53: 5.637333333 | S53: 0.9986666667 | T53: 6.636 | U53: 0.5600691443 | V53: 17.34744838 | W53: 0.01734744838 | X53: 20.50119133 | Y53: 287.1540366 | Z53: 0.2871540366
A54: PLYMOUTH | B54: GREAT HERRING | C54: 0.5 | D54: 2020-10-07 | E54: FD | N54: ND | O54: ND | P54: 6.54 | Q54: 10.6 | R54: 5.525333333 | S54: 0.9594666667 | T54: 6.4848 | U54: 0.5289541919 | V54: 16.38370125 | W54: 0.01638370125 | X54: 18.10789257 | Y54: 253.6318188 | Z54: 0.2536318188
A55: PLYMOUTH | B55: GREAT HERRING | C55: 3 | D55: 2020-10-07 | N55: ND | O55: ND | P55: 6.39 | Q55: 10 | R55: 5.562666667 | S55: 1.011733333 | T55: 6.5744 | U55: 0.7141653078 | V55: 22.12038627 | W55: 0.02212038627 | X55: 21.69784071 | Y55: 303.9151455 | Z55: 0.3039151455
A56: PLYMOUTH | B56: GREAT HERRING | C56: 9 | D56: 2020-10-07 | N56: ND | O56: ND | P56: 6.33 | Q56: 9.8 | R56: 5.665333333 | S56: 1.021066667 | T56: 6.6864 | U56: 0.9089376645 | V56: 28.15321889 | W56: 0.02815321889 | X56: 19.0053796 | Y56: 266.2026505 | Z56: 0.2662026505
A57: PLYMOUTH | B57: GREAT HERRING | C57: 11.95 | D57: 2020-10-07 | N57: ND | O57: ND | P57: 6.38 | Q57: 11 | R57: 6.281333333 | S57: 0.6234666667 | T57: 6.9048 | U57: 0.5600691443 | V57: 17.34744838 | W57: 0.01734744838 | X57: 24.09113948 | Y57: 337.4373633 | Z57: 0.3374373633

Sheet PALS POND DATA 2019
A1: Coastal Systems Group | J1: Weather Conditions: | L1: Wind:
A2: SMAST | J2: 1 | K2: Cloudless | L2: 1 | M2: Calm
A3: Umass Dartmouth | J3: 2 | K3: Pt. Cloudy | L3: 2 | M3: Light Breeze
A4: 706 Rodney French Blvd | J4: 3 | K4: Overcast | L4: 3 | M4: Steady Wind
A5: New Bedford, Ma 02744 | J5: 4 | K5: Rain | L5: 4 | M5: Strong Wind
A6: Plymouth Ponds 2019 | J6: 5 | K6: Fog/Haze
J7: 6 | K7: Drizzle
A8: Key | J8: 7 | K8: Intermit. Rain
A9: NS = No Sample
A10: ND = No Data
A11: TBD = To be determined
A14: Town | B14: Pond | C14: Depth (m) | D14: Date | E14: QC | F14: Number of Samples | G14: Total Depth (m) | H14: Secchi Depth (m) | I14: % Secchi | J14: Water Color | K14: Weather | L14: Wind | M14: Plants | N14: Temp C | O14: DO (mg/L) | P14: pH | Q14: Alk (mg CaCO3/L) | R14: CHLA (ug/L) | S14: Phaeo (ug/L) | T14: T-pig ug/L | U14: TP (uM) | V14: TP (µg/L) | W14: TP (mg/L) | X14: TN (uM) | Y14: TN (ug/L) | Z14: TN (mg/L) | AA14: Notes
A15: PLYMOUTH | B15: GREAT HERRING | C15: 0.5 | D15: 2019-04-24 | F15: 4 | G15: 12.5 | H15: 3.26 | I15: 0.2608 | J15: BROWN | K15: 2 | L15: 2 | M15: NONE | N15: 13.02 | O15: 5.7 | P15: 6.71 | Q15: 14.3 | R15: 10.08291139 | S15: 0.1200886076 | T15: 10.203 | U15: 0.3922243094 | X15: 37.48680365
A16: PLYMOUTH | B16: GREAT HERRING | C16: 1 | D16: 2019-04-24 | N16: 12.91 | O16: 6.7 | P16: NS | Q16: NS | R16: NS | S16: NS | T16: NS | U16: NS | X16: NS
A17: PLYMOUTH | B17: GREAT HERRING | C17: 2 | D17: 2019-04-24 | N17: 12.92 | O17: 7 | P17: NS | Q17: NS | R17: NS | S17: NS | T17: NS | U17: NS | X17: NS
A18: PLYMOUTH | B18: GREAT HERRING | C18: 3 | D18: 2019-04-24 | N18: 12.91 | O18: 7.25 | P18: 6.68 | Q18: 14.1 | R18: 9.403164557 | S18: 0.710335443 | T18: 10.1135 | U18: 0.3922243094 | V18: =U18*30.973762 -> 12.14866241 | W18: =V18/1000 -> 0.01214866241 | X18: 38.00050228 | Y18: =X18*14.0067 -> 532.2616353 | Z18: =Y18/1000 -> 0.5322616353
A19: PLYMOUTH | B19: GREAT HERRING | C19: 4 | D19: 2019-04-24 | N19: 12.89 | O19: 7.93 | P19: NS | Q19: NS | R19: NS | S19: NS | T19: NS | U19: NS | X19: NS
A20: PLYMOUTH | B20: GREAT HERRING | C20: 5 | D20: 2019-04-24 | N20: 12.89 | O20: 8.25 | P20: NS | Q20: NS | R20: NS | S20: NS | T20: NS | U20: NS | X20: NS
A21: PLYMOUTH | B21: GREAT HERRING | C21: 6 | D21: 2019-04-24 | N21: 12.88 | O21: 8.24 | P21: NS | Q21: NS | R21: NS | S21: NS | T21: NS | U21: NS | X21: NS
A22: PLYMOUTH | B22: GREAT HERRING | C22: 7 | D22: 2019-04-24 | N22: 12.88 | O22: 8.08 | P22: NS | Q22: NS | R22: NS | S22: NS | T22: NS | U22: NS | X22: NS
A23: PLYMOUTH | B23: GREAT HERRING | C23: 8 | D23: 2019-04-24 | N23: 12.87 | O23: 8.05 | P23: NS | Q23: NS | R23: NS | S23: NS | T23: NS | U23: NS | X23: NS
A24: PLYMOUTH | B24: GREAT HERRING | C24: 9 | D24: 2019-04-24 | N24: 12.87 | O24: 8.4 | P24: 6.72 | Q24: 13.6 | R24: 10.98924051 | S24: 0.7352594937 | T24: 11.7245 | U24: 0.3137794475 | V24: =U24*30.973762 -> 9.718929927 | W24: =V24/1000 -> 0.009718929927 | X24: 40.0552968 | Y24: =X24*14.0067 -> 561.0425257 | Z24: =Y24/1000 -> 0.5610425257
A25: PLYMOUTH | B25: GREAT HERRING | C25: 10 | D25: 2019-04-24 | N25: 12.85 | O25: 7.96 | P25: NS | Q25: NS | R25: NS | S25: NS | T25: NS | U25: NS | X25: NS
A26: PLYMOUTH | B26: GREAT HERRING | C26: 11 | D26: 2019-04-24 | N26: 12.82 | O26: 9.02 | P26: 6.88 | Q26: 13.8 | R26: 9.516455696 | S26: 0.4180443038 | T26: 9.9345 | U26: 0.3137794475 | V26: =U26*30.973762 -> 9.718929927 | W26: =V26/1000 -> 0.009718929927 | X26: 38.00050228 | Y26: =X26*14.0067 -> 532.2616353 | Z26: =Y26/1000 -> 0.5322616353
A27: PLYMOUTH | B27: GREAT HERRING | C27: 12 | D27: 2019-04-24 | N27: 12.78 | O27: 0.86 | P27: NS | Q27: NS | R27: NS | S27: NS | T27: NS | U27: NS | X27: NS
A28: PLYMOUTH | B28: SAVERY | C28: 0.5 | D28: 2019-07-09 | F28: 2 | G28: 3.9 | H28: 1.9 | I28: 0.4871794872 | J28: BROWN WITH SPECKS OF GREEN | K28: 1 | L28: ND | M28: WATERLILIES 10% TO 25%; EMERGENT GRASSES/SEDGES OF SURFACE UP TO 10%; FLOATING ALGAE ON POND SURFACES LESS THAN 15 OR NONE | N28: 25.93 | O28: 5.9 | P28: 6.09 | Q28: 6.7 | R28: 13.18708861 | S28: 0.5601113924 | T28: 13.7472 | U28: 0.9849363452 | V28: =U28*30.973762 -> 30.50718394 | W28: =V28/1000 -> 0.03050718394 | X28: 29.81974185 | Y28: =X28*14.0067 -> 417.6761782 | Z28: =Y28/1000 -> 0.4176761782 | AA28: SPECKS OF GREEN IN WATER, POLLEN OR BEGINNING OF BLOOM?
A29: PLYMOUTH | B29: SAVERY | C29: 1 | D29: 2019-07-09 | N29: 25.73 | O29: 6.18 | P29: NS | Q29: NS | R29: NS | S29: NS | T29: NS | U29: NS | X29: NS
A30: PLYMOUTH | B30: SAVERY | C30: 1.5 | D30: 2019-07-09 | N30: 25.61 | O30: 6.33 | P30: NS | Q30: NS | R30: NS | S30: NS | T30: NS | U30: NS | X30: NS
A31: PLYMOUTH | B31: SAVERY | C31: 2 | D31: 2019-07-09 | N31: 25.43 | O31: 6.19 | P31: NS | Q31: NS | R31: NS | S31: NS | T31: NS | U31: NS | X31: NS
A32: PLYMOUTH | B32: SAVERY | C32: 2.5 | D32: 2019-07-09 | N32: 24.02 | O32: 5.92 | P32: NS | Q32: NS | R32: NS | S32: NS | T32: NS | U32: NS | X32: NS
A33: PLYMOUTH | B33: SAVERY | C33: 2.9 | D33: 2019-07-09 | N33: ND | O33: ND | P33: 5.74 | Q33: 7.9 | R33: 30.81518987 | S33: 0.3308101266 | T33: 31.146 | U33: 1.96987269 | V33: =U33*30.973762 -> 61.01436788 | W33: =V33/1000 -> 0.06101436788 | X33: 27.06078735 | Y33: =X33*14.0067 -> 379.0323302 | Z33: =Y33/1000 -> 0.3790323302
A34: PLYMOUTH | B34: SAVERY | C34: 3 | D34: 2019-07-09 | N34: 22.98 | O34: 5.51 | P34: NS | Q34: NS | R34: NS | S34: NS | T34: NS | U34: NS | X34: NS
A35: PLYMOUTH | B35: SAVERY | C35: 3.5 | D35: 2019-07-09 | N35: 21.33 | O35: 1.11 | P35: NS | Q35: NS | R35: NS | S35: NS | T35: NS | U35: NS | X35: NS
A36: PLYMOUTH | B36: GREAT HERRING | C36: 0.5 | D36: 2019-07-16 | F36: 4 | G36: 13.5 | H36: ND | I36: ND | J36: BROWN, GREEN | K36: 1 | L36: 1 | M36: NONE | N36: ND | O36: ND | P36: 7.05 | Q36: 14.3 | R36: machine error | S36: machine error | T36: machine error | U36: 0.6767731043 | V36: =U36*30.973762 -> 20.96220906 | W36: =V36/1000 -> 0.02096220906 | X36: 23.57579219 | Y36: =X36*14.0067 -> 330.2190485 | Z36: =Y36/1000 -> 0.3302190485
A37: PLYMOUTH | B37: GREAT HERRING | C37: 3 | D37: 2019-07-16 | N37: ND | O37: ND | P37: 6.1 | Q37: 13.8 | R37: 8.836708861 | S37: 0.7397911392 | T37: 9.5765 | U37: 0.5988673903 | V37: 18.54917602 | W37: 0.01854917602 | X37: 20.75875444 | Y37: 290.7616458 | Z37: 0.2907616458
A38: PLYMOUTH | B38: GREAT HERRING | C38: 9 | D38: 2019-07-16 | N38: ND | O38: ND | P38: 6.06 | Q38: 18.7 | R38: 5.211392405 | S38: 4.723107595 | T38: 9.9345 | U38: 0.9261105638 | V38: 28.68512819 | W38: 0.02868512819 | X38: 36.35410778 | Y38: 509.2010814 | Z38: 0.5092010814
A39: PLYMOUTH | B39: GREAT HERRING | C39: B | D39: 2019-07-16 | N39: ND | O39: ND | P39: 5.86 | Q39: 23.5 | R39: 2.152531646 | S39: 6.099368354 | T39: 8.2519 | U39: 1.923460402 | V39: 59.5768047 | W39: 0.0595768047 | X39: 40.41993546 | Y39: 566.1499101 | Z39: 0.5661499101
A40: PLYMOUTH | B40: LITTLE HERRING | C40: 0.5 | D40: 2019-07-16 | E40: SAMPLE | F40: 2 | G40: ND | H40: ND | I40: ND | J40: CLEAR | K40: 2 | L40: 1 | M40: NONE | N40: ND | O40: ND | P40: 7.02 | Q40: 17 | R40: 1.52943038 | S40: 2.76656962 | T40: 4.296 | U40: 0.5988673903 | V40: 18.54917602 | W40: 0.01854917602 | X40: 45.6474282 | Y40: 639.3698326 | Z40: 0.6393698326
A41: PLYMOUTH | B41: LITTLE HERRING | C41: 0.5 | D41: 2019-07-16 | E41: FD | N41: ND | O41: ND | P41: 6.45 | Q41: 16 | R41: 1.937278481 | S41: 1.660621519 | T41: 3.5979 | U41: 0.6767731043 | V41: 20.96220906 | W41: 0.02096220906 | X41: 42.74326557 | Y41: 598.6920979 | Z41: 0.5986920979
A42: PLYMOUTH | B42: BOOT | C42: 0.5 | D42: 2019-08-07 | F42: 4 | G42: 10.2 | H42: 3.35 | I42: 0.3284313725 | J42: CLEAR; BROWN | K42: 2 | L42: 3 | M42: NONE | N42: 27.35 | O42: 5.92 | P42: 6.13 | Q42: 5.7 | R42: 4.690253165 | S42: 0.7871468354 | T42: 5.4774 | U42: 0.7738785569 | V42: 23.96993024 | W42: 0.02396993024 | X42: 27.05648331 | Y42: 378.9720448 | Z42: 0.3789720448 | AA42: NO CHAIN OF CUSTODY; WATER CRYSTAL CLEAR ON SHORE EDGES
A43: PLYMOUTH | B43: BOOT | C43: 1 | D43: 2019-08-07 | N43: 27.26 | O43: 6.41 | P43: NS | Q43: NS | R43: NS | S43: NS | T43: NS | U43: NS | X43: NS
A44: PLYMOUTH | B44: BOOT | C44: 2 | D44: 2019-08-07 | N44: 27.21 | O44: 6.92 | P44: NS | Q44: NS | R44: NS | S44: NS | T44: NS | U44: NS | X44: NS
A45: PLYMOUTH | B45: BOOT | C45: 3 | D45: 2019-08-07 | N45: 27.13 | O45: 7.11 | P45: 6.13 | Q45: 5.6 | R45: 5.959113924 | S45: 0.8786860759 | T45: 6.8378 | U45: 0.4924681726 | V45: =U45*30.973762 -> 15.25359197 | W45: =V45/1000 -> 0.01525359197 | X45: 22.89040433 | Y45: =X45*14.0067 -> 320.6190263 | Z45: =Y45/1000 -> 0.3206190263
A46: PLYMOUTH | B46: BOOT | C46: 4 | D46: 2019-08-07 | N46: 25.78 | O46: 7.93 | P46: NS | Q46: NS | R46: NS | S46: NS | T46: NS | U46: NS | X46: NS
A47: PLYMOUTH | B47: BOOT | C47: 5 | D47: 2019-08-07 | N47: 22.15 | O47: 8.26 | P47: NS | Q47: NS | R47: NS | S47: NS | T47: NS | U47: NS | X47: NS
A48: PLYMOUTH | B48: BOOT | C48: 6 | D48: 2019-08-07 | N48: 18.47 | O48: 0.55 | P48: 6.07 | Q48: 5.6 | R48: 11.78227848 | S48: 0.568721519 | T48: 12.351 | U48: 0.7035259608 | V48: =U48*30.973762 -> 21.79084567 | W48: =V48/1000 -> 0.02179084567 | X48: 23.84950165 | Y48: =X48*14.0067 -> 334.0528147 | Z48: =Y48/1000 -> 0.3340528147
A49: PLYMOUTH | B49: BOOT | C49: 7 | D49: 2019-08-07 | N49: 15.73 | O49: 0.58 | P49: NS | Q49: NS | R49: NS | S49: NS | T49: NS | U49: NS | X49: NS
A50: PLYMOUTH | B50: BOOT | C50: 8 | D50: 2019-08-07 | N50: 13.87 | O50: 0.6 | P50: NS | Q50: NS | R50: NS | S50: NS | T50: NS | U50: NS | X50: NS
A51: PLYMOUTH | B51: BOOT | C51: 9 | D51: 2019-08-07 | N51: 12.32 | O51: 0.62 | P51: 5.97 | Q51: 15.9 | R51: 32.17468354 | S51: 48.01731646 | T51: 80.192 | U51: 2.954809035 | V51: =U51*30.973762 -> 91.52155182 | W51: =V51/1000 -> 0.09152155182 | X51: 57.9274283 | Y51: =X51*14.0067 -> 811.37211 | Z51: =Y51/1000 -> 0.81137211
A52: PLYMOUTH | B52: BOOT | C52: 9.5 | D52: 2019-08-07 | N52: 11.95 | O52: 0.63 | P52: NS | Q52: NS | R52: NS | S52: NS | T52: NS | U52: NS | X52: NS
A53: PLYMOUTH | B53: GREAT HERRING | C53: 0.5 | D53: 2019-08-26 | F53: 4 | G53: 13.5 | H53: 3 | I53: 0.2222222222 | J53: CLEAR; BROWN | K53: 2 | L53: 2 | M53: NONE | N53: 24.47 | O53: ND | P53: 6.36 | Q53: 12.7 | R53: 5.959113924 | S53: 2.042186076 | T53: 8.0013 | U53: 0.6331733647 | V53: =U53*30.973762 -> 19.6117611 | W53: =V53/1000 -> 0.0196117611 | X53: 16.72196838 | Y53: =X53*14.0067 -> 234.2195945 | Z53: =Y53/1000 -> 0.2342195945
A54: PLYMOUTH | B54: GREAT HERRING | C54: 1 | D54: 2019-08-26 | N54: 24.49 | O54: 6.8 | P54: NS | Q54: NS | R54: NS | S54: NS | T54: NS | U54: NS | X54: NS
A55: PLYMOUTH | B55: GREAT HERRING | C55: 2 | D55: 2019-08-26 | N55: 24.5 | O55: 6.8 | P55: NS | Q55: NS | R55: NS | S55: NS | T55: NS | U55: NS | X55: NS
A56: PLYMOUTH | B56: GREAT HERRING | C56: 3 | D56: 2019-08-26 | N56: 24.5 | O56: 6.83 | P56: 6.43 | Q56: 11.8 | R56: 6.910759494 | S56: 2.665740506 | T56: 9.5765 | U56: 0.7035259608 | V56: =U56*30.973762 -> 21.79084567 | W56: =V56/1000 -> 0.02179084567 | X56: 29.2389933 | Y56: =X56*14.0067 -> 409.5418075 | Z56: =Y56/1000 -> 0.4095418075
A57: PLYMOUTH | B57: GREAT HERRING | C57: 4 | D57: 2019-08-26 | N57: 24.5 | O57: 6.82 | P57: NS | Q57: NS | R57: NS | S57: NS | T57: NS | U57: NS | X57: NS
A58: PLYMOUTH | B58: GREAT HERRING | C58: 5 | D58: 2019-08-26 | N58: 24.5 | O58: 6.81 | P58: NS | Q58: NS | R58: NS | S58: NS | T58: NS | U58: NS | X58: NS
A59: PLYMOUTH | B59: GREAT HERRING | C59: 6 | D59: 2019-08-26 | N59: 24.5 | O59: 6.65 | P59: NS | Q59: NS | R59: NS | S59: NS | T59: NS | U59: NS | X59: NS
A60: PLYMOUTH | B60: GREAT HERRING | C60: 7 | D60: 2019-08-26 | N60: 24.49 | O60: 6.74 | P60: NS | Q60: NS | R60: NS | S60: NS | T60: NS | U60: NS | X60: NS
A61: PLYMOUTH | B61: GREAT HERRING | C61: 8 | D61: 2019-08-26 | N61: 24.49 | O61: 6.76 | P61: NS | Q61: NS | R61: NS | S61: NS | T61: NS | U61: NS | X61: NS
A62: PLYMOUTH | B62: GREAT HERRING | C62: 9 | D62: 2019-08-26 | N62: 24.47 | O62: 6.77 | P62: 6.5 | Q62: 12.6 | R62: 5.777848101 | S62: 3.888151899 | T62: 9.666 | U62: 0.7035259608 | V62: =U62*30.973762 -> 21.79084567 | W62: =V62/1000 -> 0.02179084567 | X62: 25.85 | Y62: =X62*14.0067 -> 362.073195 | Z62: =Y62/1000 -> 0.362073195
A63: PLYMOUTH | B63: GREAT HERRING | C63: 10 | D63: 2019-08-26 | N63: 24.44 | O63: 6.77 | P63: NS | Q63: NS | R63: NS | S63: NS | T63: NS | U63: NS | X63: NS
A64: PLYMOUTH | B64: GREAT HERRING | C64: 11 | D64: 2019-08-26 | N64: 20.81 | O64: 1.92 | P64: NS | Q64: NS | R64: NS | S64: NS | T64: NS | U64: NS | X64: NS
A65: PLYMOUTH | B65: GREAT HERRING | C65: 12 | D65: 2019-08-26 | N65: 19.78 | O65: 1.28 | P65: NS | Q65: NS | R65: NS | S65: NS | T65: NS | U65: NS | X65: NS
A66: PLYMOUTH | B66: GREAT HERRING | C66: 13 | D66: 2019-08-26 | N66: 19.35 | O66: 0.98 | P66: 6.27 | Q66: 50.2 | R66: 0.025 | S66: 76.50097468 | T66: 76.52597468 | U66: 2.180930479 | V66: =U66*30.973762 -> 67.55162158 | W66: =V66/1000 -> 0.06755162158 | X66: 98.50318813 | Y66: =X66*14.0067 -> 1379.704605 | Z66: =Y66/1000 -> 1.379704605 | AA66: may have hit btm or in floc layer
A67: PLYMOUTH | B67: LITTLE HERRING | C67: 0.5 | D67: 2019-08-26 | E67: SAMPLE | F67: 2 | G67: ND | H67: ND | I67: ND | J67: CLEAR | K67: 2 | L67: 2 | M67: NONE | N67: ND | O67: ND | P67: 6.36 | Q67: 19.8 | R67: 9.063291139 | S67: 4.719708861 | T67: 13.783 | U67: 0.9145837491 | V67: =U67*30.973762 -> 28.32809937 | W67: =V67/1000 -> 0.02832809937 | X67: 43.3240981 | Y67: =X67*14.0067 -> 606.8276448 | Z67: =Y67/1000 -> 0.6068276448
A68: PLYMOUTH | B68: LITTLE HERRING | C68: 0.5 | D68: 2019-08-26 | E68: FD | N68: ND | O68: ND | P68: 6.5 | Q68: 20.6 | R68: 9.629746835 | S68: 4.869253165 | T68: 14.499 | U68: 0.9145837491 | V68: =U68*30.973762 -> 28.32809937 | W68: =V68/1000 -> 0.02832809937 | X68: 52.32700226 | Y68: =X68*14.0067 -> 732.9286225 | Z68: =Y68/1000 -> 0.7329286225
A69: PLYMOUTH | B69: BOOT | C69: 0.5 | D69: 2019-08-29 | F69: 4 | G69: 10 | H69: 3.96 | I69: 0.396 | J69: CLEAR | K69: 3 | L69: 2 | M69: EMERGENT GRASSES/SEDGES OF SURFACE UP TO 10% | N69: 24.19 | O69: 5.25 | P69: 6.1 | Q69: 6.6 | R69: 2.265822785 | S69: 1.278377215 | T69: 3.5442 | U69: 0.4924681726 | V69: =U69*30.973762 -> 15.25359197 | W69: =V69/1000 -> 0.01525359197 | X69: 20.28285849 | Y69: =X69*14.0067 -> 284.095914 | Z69: =Y69/1000 -> 0.284095914 | AA69: D.O. METER SEEMS LOW; HEAVY RAIN EVE/AM OF 8/28-8/29
A70: PLYMOUTH | B70: BOOT | C70: 1 | D70: 2019-08-29 | N70: 24.2 | O70: 5.17 | P70: NS | Q70: NS | R70: NS | S70: NS | T70: NS | U70: NS | X70: NS
A71: PLYMOUTH | B71: BOOT | C71: 2 | D71: 2019-08-29 | N71: 24.19 | O71: 5.34 | P71: NS | Q71: NS | R71: NS | S71: NS | T71: NS | U71: NS | X71: NS
A72: PLYMOUTH | B72: BOOT | C72: 3 | D72: 2019-08-29 | N72: 24.18 | O72: 5.46 | P72: 6.17 | Q72: 6.3 | R72: 2.866265823 | S72: 0.7226841772 | T72: 3.58895 | U72: 0.4221155765 | V72: =U72*30.973762 -> 13.0745074 | W72: =V72/1000 -> 0.0130745074 | X72: 21.90133521 | Y72: =X72*14.0067 -> 306.7654319 | Z72: =Y72/1000 -> 0.3067654319
A73: PLYMOUTH | B73: BOOT | C73: 4 | D73: 2019-08-29 | N73: 24.12 | O73: 5.22 | P73: NS | Q73: NS | R73: NS | S73: NS | T73: NS | U73: NS | X73: NS
A74: PLYMOUTH | B74: BOOT | C74: 5 | D74: 2019-08-29 | N74: 23.39 | O74: 4.25 | P74: NS | Q74: NS | R74: NS | S74: NS | T74: NS | U74: NS | X74: NS
A75: PLYMOUTH | B75: BOOT | C75: 6 | D75: 2019-08-29 | N75: 20.31 | O75: 0.61 | P75: 5.93 | Q75: 7.3 | R75: 18.57974684 | S75: 7.375253165 | T75: 25.955 | U75: 0.9849363452 | V75: =U75*30.973762 -> 30.50718394 | W75: =V75/1000 -> 0.03050718394 | X75: 28.25535496 | Y75: =X75*14.0067 -> 395.7642803 | Z75: =Y75/1000 -> 0.3957642803
A76: PLYMOUTH | B76: BOOT | C76: 7 | D76: 2019-08-29 | N76: 15.49 | O76: 0.67 | P76: NS | Q76: NS | R76: NS | S76: NS | T76: NS | U76: NS | X76: NS
A77: PLYMOUTH | B77: BOOT | C77: 8 | D77: 2019-08-29 | N77: 13.43 | O77: 0.7 | P77: NS | Q77: NS | R77: NS | S77: NS | T77: NS | U77: NS | X77: NS
A78: PLYMOUTH | B78: BOOT | C78: 9 | D78: 2019-08-29 | N78: 12.26 | O78: 0.72 | P78: 5.84 | Q78: 9.3 | R78: 8.383544304 | S78: 20.0774557 | T78: 28.461 | U78: 1.055288941 | V78: =U78*30.973762 -> 32.68626851 | W78: =V78/1000 -> 0.03268626851 | X78: 37.24689234 | Y78: =X78*14.0067 -> 521.7060469 | Z78: =Y78/1000 -> 0.5217060469
A79: PLYMOUTH | B79: BOOT | C79: 9.5 | D79: 2019-08-29 | N79: 11.76 | O79: 0.72 | P79: NS | Q79: NS | R79: NS | S79: NS | T79: NS | U79: NS | X79: NS
A80: PLYMOUTH | B80: BLOODY | C80: 0.5 | D80: 2019-08-29 | F80: 4 | G80: 11.5 | H80: 4.55 | I80: 0.3956521739 | J80: BLUE/GREEN | K80: 2 | L80: 2 | M80: NONE | N80: 24.6 | O80: 7.94 | P80: 6.26 | Q80: 5.6 | R80: 1.801329114 | S80: 0.3108708861 | T80: 2.1122 | U80: 0.3517629804 | V80: =U80*30.973762 -> 10.89542284 | W80: =V80/1000 -> 0.01089542284 | X80: 12.59805744 | Y80: =X80*14.0067 -> 176.4572111 | Z80: =Y80/1000 -> 0.1764572111
A81: PLYMOUTH | B81: BLOODY | C81: 1 | D81: 2019-08-29 | N81: 24.6 | O81: 7.7 | P81: NS | Q81: NS | R81: NS | S81: NS | T81: NS | U81: NS | X81: NS
A82: PLYMOUTH | B82: BLOODY | C82: 1.5 | D82: 2019-08-29 | N82: 24.6 | O82: 7.7 | P82: NS | Q82: NS | R82: NS | S82: NS | T82: NS | U82: NS | X82: NS
A83: PLYMOUTH | B83: BLOODY | C83: 2 | D83: 2019-08-29 | N83: 24.6 | O83: 7.88 | P83: NS | Q83: NS | R83: NS | S83: NS | T83: NS | U83: NS | X83: NS
A84: PLYMOUTH | B84: BLOODY | C84: 3 | D84: 2019-08-29 | N84: 24.6 | O84: 7.88 | P84: 6.26 | Q84: 5.3 | R84: 1.84664557 | S84: 0.2566044304 | T84: 2.10325 | U84: 0.4221155765 | V84: =U84*30.973762 -> 13.0745074 | W84: =V84/1000 -> 0.0130745074 | X84: 12.62709906 | Y84: =X84*14.0067 -> 176.8639885 | Z84: =Y84/1000 -> 0.1768639885
A85: PLYMOUTH | B85: BLOODY | C85: 4 | D85: 2019-08-29 | N85: 24.5 | O85: 7.91 | P85: NS | Q85: NS | R85: NS | S85: NS | T85: NS | U85: NS | X85: NS
A86: PLYMOUTH | B86: BLOODY | C86: 5 | D86: 2019-08-29 | N86: 24.5 | O86: 8 | P86: NS | Q86: NS | R86: NS | S86: NS | T86: NS | U86: NS | X86: NS
A87: PLYMOUTH | B87: BLOODY | C87: 6 | D87: 2019-08-29 | N87: 24.5 | O87: 7.91 | P87: 6.21 | Q87: 5.3 | R87: NS | S87: NS | T87: NS | U87: NS | X87: NS
A88: PLYMOUTH | B88: BLOODY | C88: 7 | D88: 2019-08-29 | N88: 24.5 | O88: 7.9 | P88: NS | Q88: NS | R88: NS | S88: NS | T88: NS | U88: NS | X88: NS
A89: PLYMOUTH | B89: BLOODY | C89: 8 | D89: 2019-08-29 | N89: 23.61 | O89: 7.72 | P89: NS | Q89: NS | R89: NS | S89: NS | T89: NS | U89: NS | X89: NS
A90: PLYMOUTH | B90: BLOODY | C90: 9 | D90: 2019-08-29 | N90: 18.24 | O90: 6.42 | P90: NS | Q90: NS | R90: 4.644936709 | S90: 4.484063291 | T90: 9.129 | U90: 1.547757114 | V90: =U90*30.973762 -> 47.93986048 | W90: =V90/1000 -> 0.04793986048 | X90: 15.6474282 | Y90: =X90*14.0067 -> 219.1688326 | Z90: =Y90/1000 -> 0.2191688326
A91: PLYMOUTH | B91: BLOODY | C91: 10 | D91: 2019-08-29 | N91: 15.72 | O91: 3.21 | P91: 5.78 | Q91: 8 | R91: 6.344303797 | S91: 4.395696203 | T91: 10.74 | U91: 3.517629804 | V91: =U91*30.973762 -> 108.9542284 | W91: =V91/1000 -> 0.1089542284 | X91: 19.27763149 | Y91: =X91*14.0067 -> 270.016001 | Z91: =Y91/1000 -> 0.270016001
A92: PLYMOUTH | B92: BLOODY | C92: 11 | D92: 2019-08-29 | N92: 16 | O92: 1.86 | P92: NS | Q92: NS | R92: NS | S92: NS | T92: NS | U92: NS | X92: NS
A93: PLYMOUTH | B93: GALLOWS POND | C93: 0.5 | D93: 2019-08-29 | F93: 3 | G93: 8.8 | H93: 7.01 | I93: 0.7965909091 | J93: GREEN | K93: 3 | L93: 2 | M93: NONE | N93: 24.3 | O93: 7.5 | P93: 5.87 | Q93: 3.1 | R93: 1.699367089 | S93: 0.7618829114 | T93: 2.46125 | U93: 0.5276444706 | V93: =U93*30.973762 -> 16.34313425 | W93: =V93/1000 -> 0.01634313425 | X93: 20.68615037 | Y93: =X93*14.0067 -> 289.7447024 | Z93: =Y93/1000 -> 0.2897447024
A94: PLYMOUTH | B94: GALLOWS POND | C94: 1 | D94: 2019-08-29 | N94: 24.5 | O94: 7.5 | P94: NS | Q94: NS | R94: NS | S94: NS | T94: NS | U94: NS | X94: NS
A95: PLYMOUTH | B95: GALLOWS POND | C95: 2 | D95: 2019-08-29 | N95: 24.5 | O95: 7.49 | P95: NS | Q95: NS | R95: NS | S95: NS | T95: NS | U95: NS | X95: NS
A96: PLYMOUTH | B96: GALLOWS POND | C96: 3 | D96: 2019-08-29 | N96: 24.5 | O96: 7.42 | P96: 5.97 | Q96: 3.8 | R96: 1.654050633 | S96: 0.6460993671 | T96: 2.30015 | U96: 0.4221155765 | V96: =U96*30.973762 -> 13.0745074 | W96: =V96/1000 -> 0.0130745074 | X96: 12.39476605 | Y96: =X96*14.0067 -> 173.6097697 | Z96: =Y96/1000 -> 0.1736097697
A97: PLYMOUTH | B97: GALLOWS POND | C97: 4 | D97: 2019-08-29 | N97: 24.4 | O97: 7.47 | P97: NS | Q97: NS | R97: NS | S97: NS | T97: NS | U97: NS | X97: NS
A98: PLYMOUTH | B98: GALLOWS POND | C98: 5 | D98: 2019-08-29 | N98: 24.4 | O98: 7.51 | P98: NS | Q98: NS | R98: NS | S98: NS | T98: NS | U98: NS | X98: NS
A99: PLYMOUTH | B99: GALLOWS POND | C99: 6 | D99: 2019-08-29 | N99: 24.4 | O99: 7.58 | P99: NS | Q99: NS | R99: NS | S99: NS | T99: NS | U99: NS | X99: NS
A100: PLYMOUTH | B100: GALLOWS POND | C100: 7 | D100: 2019-08-29 | N100: 23.9 | O100: 7.54 | P100: NS | Q100: NS | R100: NS | S100: NS | T100: NS | U100: NS | X100: NS
A101: PLYMOUTH | B101: GALLOWS POND | C101: 7.8 | D101: 2019-08-29 | N101: ND | O101: ND | P101: 5.81 | Q101: 4.9 | R101: 2.956898734 | S101: 2.815851266 | T101: 5.77275 | U101: 0.7035259608 | V101: =U101*30.973762 -> 21.79084567 | W101: =V101/1000 -> 0.02179084567 | X101: 11.7848919 | Y101: =X101*14.0067 -> 165.0674454 | Z101: =Y101/1000 -> 0.1650674454
A102: PLYMOUTH | B102: GALLOWS POND | C102: 8 | D102: 2019-08-29 | N102: 20.3 | O102: 8.2 | P102: NS | Q102: NS | R102: NS | S102: NS | T102: NS | U102: NS | X102: NS
A103: PLYMOUTH | B103: HALFWAY | C103: 0.5 | D103: 2019-08-29 | F103: 2 | G103: 3.7 | H103: 2.6 | I103: 0.7027027027 | J103: ND | K103: ND | L103: ND | M103: NONE | N103: 23.26 | O103: 8.1 | P103: 6.34 | Q103: 8.1 | R103: 8.519493671 | S103: 1.576106329 | T103: 10.0956 | U103: 0.844231153 | V103: =U103*30.973762 -> 26.14901481 | W103: =V103/1000 -> 0.02614901481 | X103: 13.875889 | Y103: =X103*14.0067 -> 194.3554144 | Z103: =Y103/1000 -> 0.1943554144 | AA103: CYANOBACTERIA BLOOM @ WEST SIDE OF POND
A104: PLYMOUTH | B104: HALFWAY | C104: 1 | D104: 2019-08-29 | N104: 23.25 | O104: 8.1 | P104: NS | Q104: NS | R104: NS | S104: NS | T104: NS | U104: NS | X104: NS
A105: PLYMOUTH | B105: HALFWAY | C105: 2 | D105: 2019-08-29 | N105: 23.22 | O105: 8.06 | P105: 6.38 | Q105: 8.5 | R105: 18.57974684 | S105: 2.900253165 | T105: 21.48 | U105: 1.266346729 | V105: =U105*30.973762 -> 39.22352221 | W105: =V105/1000 -> 0.03922352221 | X105: 25.02787351 | Y105: =X105*14.0067 -> 350.5579159 | Z105: =Y105/1000 -> 0.3505579159
A106: PLYMOUTH | B106: HALFWAY | C106: 3 | D106: 2019-08-29 | N106: 23.16 | O106: 8.1 | P106: NS | Q106: NS | R106: NS | S106: NS | T106: NS | U106: NS | X106: NS
A107: PLYMOUTH | B107: SAVERY | C107: 0.5 | D107: 2019-08-29 | F107: 2 | G107: 3.5 | H107: 2.13 | I107: 0.6085714286 | J107: BROWN | K107: 3 | L107: 2 | M107: WATERLILES 5%; EMERGENT GRASSES/SEDGES OF SURFACE UP TO 10% | N107: 23.32 | O107: 4.45 | P107: 6.39 | Q107: 8.3 | R107: 6.706835443 | S107: 2.332664557 | T107: 9.0395 | U107: 0.809054855 | V107: =U107*30.973762 -> 25.05947252 | W107: =V107/1000 -> 0.02505947252 | X107: 14.48576315 | Y107: =X107*14.0067 -> 202.8977387 | Z107: =Y107/1000 -> 0.2028977387 | AA107: D.O. METER SEEMS LOW; HEAVY RAIN 8/28-8/29 A.M.
A108: PLYMOUTH | B108: SAVERY | C108: 1 | D108: 2019-08-29 | N108: 23.3 | O108: 4.65 | P108: NS | Q108: NS | R108: NS | S108: NS | T108: NS | U108: NS | X108: NS
A109: PLYMOUTH | B109: SAVERY | C109: 1.5 | D109: 2019-08-29 | N109: 23.11 | O109: 4.53 | P109: NS | Q109: NS | R109: NS | S109: NS | T109: NS | U109: NS | X109: NS
A110: PLYMOUTH | B110: SAVERY | C110: 2 | D110: 2019-08-29 | N110: 23 | O110: 4.39 | P110: NS | Q110: NS | R110: NS | S110: NS | T110: NS | U110: NS | X110: NS
A111: PLYMOUTH | B111: SAVERY | C111: 2.5 | D111: 2019-08-29 | N111: 23 | O111: 4.21 | P111: 6.23 | Q111: 8.2 | R111: 5.302025316 | S111: 2.717174684 | T111: 8.0192 | U111: 0.7035259608 | V111: =U111*30.973762 -> 21.79084567 | W111: =V111/1000 -> 0.02179084567 | X111: 21.13629558 | Y111: =X111*14.0067 -> 296.0497513 | Z111: =Y111/1000 -> 0.2960497513
A112: PLYMOUTH | B112: SAVERY | C112: 3 | D112: 2019-08-29 | N112: 22.8 | O112: 3.83 | P112: NS | Q112: NS | R112: NS | S112: NS | T112: NS | U112: NS | X112: NS
A113: PLYMOUTH | B113: BILLINGTON SEA WEST SIDE SITE 2 | C113: 0.5 | D113: 2019-09-03 | F113: 2 | G113: 2.3 | H113: 0.85 | I113: 0.3695652174 | J113: GREN | K113: 1 | L113: 1 | M113: ND | N113: 23.51 | O113: 10.09 | P113: 7.9 | Q113: 26.9 | R113: 24.47088608 | S113: 0.025 | T113: 24.49588608 | U113: 1.336699326 | V113: =U113*30.973762 -> 41.40260678 | W113: =V113/1000 -> 0.04140260678 | X113: 44.48576315 | Y113: =X113*14.0067 -> 623.0987387 | Z113: =Y113/1000 -> 0.6230987387
A114: PLYMOUTH | B114: BILLINGTON SEA WEST SIDE SITE 2 | C114: 1 | D114: 2019-09-03 | N114: 23.42 | O114: 10.53 | P114: NS | Q114: NS | R114: NS | S114: NS | T114: NS | U114: NS | X114: NS
A115: PLYMOUTH | B115: BILLINGTON SEA WEST SIDE SITE 2 | C115: 2 | D115: 2019-09-03 | N115: 22.6 | O115: 10.36 | P115: NS | Q115: NS | R115: NS | S115: NS | T115: NS | U115: NS | X115: NS
A116: PLYMOUTH | B116: BILLINGTON SEA WEST SIDE SITE 2 | C116: B | D116: 2019-09-03 | N116: ND | O116: ND | P116: 7.91 | Q116: 28.3 | R116: 21.29873418 | S116: 0.025 | T116: 21.32373418 | U116: 1.195994133 | V116: =U116*30.973762 -> 37.04443764 | W116: =V116/1000 -> 0.03704443764 | X116: 60.3134495 | Y116: =X116*14.0067 -> 844.7923931 | Z116: =Y116/1000 -> 0.8447923931
A117: PLYMOUTH | B117: BILLINGTON SEA EAST SIDE SITE 5 | C117: 0.5 | D117: 2019-09-03 | F117: 2 | G117: 3.7 | H117: 0.8 | I117: 0.2162162162 | J117: BROWN, GREEN | K117: 1 | L117: 1 | M117: ND | N117: 24.2 | O117: 9.1 | P117: 8.05 | Q117: 28.4 | R117: 30.13544304 | S117: 0.025 | T117: 30.16044304 | U117: 1.266346729 | V117: =U117*30.973762 -> 39.22352221 | W117: =V117/1000 -> 0.03922352221 | X117: 34.03077767 | Y117: =X117*14.0067 -> 476.6588936 | Z117: =Y117/1000 -> 0.4766588936 | AA117: CYANOBACTERIA BLOOM - WHITE/GREEN PARTICLES IN ENTIRE POND
A118: PLYMOUTH | B118: BILLINGTON SEA EAST SIDE SITE 5 | C118: 1 | D118: 2019-09-03 | N118: 23.66 | O118: 9.2 | P118: NS | Q118: NS | R118: NS | S118: NS | T118: NS | U118: NS | X118: NS
A119: PLYMOUTH | B119: BILLINGTON SEA EAST SIDE SITE 5 | C119: 2 | D119: 2019-09-03 | N119: 23.48 | O119: 9.34 | P119: NS | Q119: NS | R119: NS | S119: NS | T119: NS | U119: NS | X119: NS
A120: PLYMOUTH | B120: BILLINGTON SEA EAST SIDE SITE 5 | C120: 3 | D120: 2019-09-03 | N120: 23.08 | O120: 7.67 | P120: NS | Q120: NS | R120: NS | S120: NS | T120: NS | U120: NS | X120: NS
A121: PLYMOUTH | B121: BILLINGTON SEA EAST SIDE SITE 5 | C121: B | D121: 2019-09-03 | N121: ND | O121: ND | P121: 7.95 | Q121: 28.9 | R121: 24.69746835 | S121: 0.025 | T121: 24.72246835 | U121: 1.336699326 | V121: =U121*30.973762 -> 41.40260678 | W121: =V121/1000 -> 0.04140260678 | X121: 40.71035173 | Y121: =X121*14.0067 -> 570.2176835 | Z121: =Y121/1000 -> 0.5702176835
A122: PLYMOUTH | B122: LITTLE LONG | C122: 0.5 | D122: 2019-09-03 | F122: 2 | G122: 2.4 | H122: 2.25 | I122: 0.9375 | J122: BROWN, GREEN | K122: 1 | L122: 1 | M122: NONE | N122: 22.36 | O122: 10.5 | P122: 6.7 | Q122: 13.3 | R122: 7.522531646 | S122: 2.053968354 | T122: 9.5765 | U122: 0.7387022589 | V122: =U122*30.973762 -> 22.88038796 | W122: =V122/1000 -> 0.02288038796 | X122: 46.80909326 | Y122: =X122*14.0067 -> 655.6409265 | Z122: =Y122/1000 -> 0.6556409265
A123: PLYMOUTH | B123: LITTLE LONG | C123: 1 | D123: 2019-09-03 | N123: 22.36 | O123: 10.11 | P123: NS | Q123: NS | R123: NS | S123: NS | T123: NS | U123: NS | X123: NS
A124: PLYMOUTH | B124: LITTLE LONG | C124: 1.5 | D124: 2019-09-03 | N124: 22.23 | O124: 9.84 | P124: NS | Q124: NS | R124: NS | S124: NS | T124: NS | U124: NS | X124: NS
A125: PLYMOUTH | B125: LITTLE LONG | C125: 2 | D125: 2019-09-03 | N125: 21.93 | O125: 9.15 | P125: NS | Q125: NS | R125: NS | S125: NS | T125: NS | U125: NS | X125: NS
A126: PLYMOUTH | B126: LITTLE LONG | C126: B | D126: 2019-09-03 | N126: ND | O126: ND | P126: 6.46 | Q126: 13.5 | R126: 8.927341772 | S126: 2.994058228 | T126: 11.9214 | U126: 0.844231153 | V126: =U126*30.973762 -> 26.14901481 | W126: =V126/1000 -> 0.02614901481 | X126: 36.9349403 | Y126: =X126*14.0067 -> 517.3366283 | Z126: =Y126/1000 -> 0.5173366283
A127: PLYMOUTH | B127: LONG | C127: 0.5 | D127: 2019-09-03 | F127: 4 | G127: ND | H127: ND | I127: ND | N127: ND | O127: ND | P127: 6.89 | Q127: 12.6 | R127: 2.900253165 | S127: 0.2859468354 | T127: 3.1862 | U127: 0.4221155765 | V127: 13.0745074 | W127: 0.0130745074 | X127: 19.85846402 | Y127: 278.151548 | Z127: 0.278151548
A128: PLYMOUTH | B128: LONG | C128: 3 | D128: 2019-09-03 | N128: ND | O128: ND | P128: 6.93 | Q128: 13 | R128: 2.820949367 | S128: 0.07885063291 | T128: 2.8998 | U128: 0.3517629804 | V128: 10.89542284 | W128: 0.01089542284 | X128: 23.57579219 | Y128: 330.2190485 | Z128: 0.3302190485
A129: PLYMOUTH | B129: LONG | C129: 9 | D129: 2019-09-03 | N129: ND | O129: ND | P129: 7.21 | Q129: 12.4 | R129: 3.783924051 | S129: 0.08247594937 | T129: 3.8664 | U129: 0.3517629804 | V129: 10.89542284 | W129: 0.01089542284 | X129: 37.80618909 | Y129: 529.5399488 | Z129: 0.5295399488
A130: PLYMOUTH | B130: LONG | C130: B | D130: 2019-09-03 | N130: ND | O130: ND | P130: 5.9 | Q130: 13.1 | R130: 4.259746835 | S130: 2.739153165 | T130: 6.9989 | U130: 0.7738785569 | V130: 23.96993024 | W130: 0.02396993024 | X130: 37.80618909 | Y130: 529.5399488 | Z130: 0.5295399488
A131: PLYMOUTH | B131: ROUND | C131: 0.5 | D131: 2019-09-03 | F131: 4 | G131: ND | H131: ND | I131: ND | J131: GREENISH BROWN | K131: 1 | L131: 2 | M131: NONE | N131: 24.81 | O131: 6.34 | P131: 5.84 | Q131: 3.1 | R131: 1.47278481 | S131: 0.8184151899 | T131: 2.2912 | U131: 0.2814103843 | V131: 8.716338269 | W131: 0.008716338269 | X131: 10.32555018 | Y131: 144.6268837 | Z131: 0.1446268837
A132: PLYMOUTH | B132: ROUND | C132: 1 | D132: 2019-09-03 | N132: 24.82 | O132: 6.38 | P132: NS | Q132: NS | R132: NS | S132: NS | T132: NS | U132: NS | X132: NS
A133: PLYMOUTH | B133: ROUND | C133: 2 | D133: 2019-09-03 | N133: 24.82 | O133: 6.42 | P133: NS | Q133: NS | R133: NS | S133: NS | T133: NS | U133: NS | X133: NS
A134: PLYMOUTH | B134: ROUND | C134: 3 | D134: 2019-09-03 | N134: 24.81 | O134: 6.51 | P134: NS | Q134: NS | R134: NS | S134: NS | T134: NS | U134: NS | X134: NS
A135: PLYMOUTH | B135: ROUND | C135: 4 | D135: 2019-09-03 | N135: 24.79 | O135: 6.44 | P135: 5.8 | Q135: 3.1 | R135: 1.200886076 | S135: 0.7054639241 | T135: 1.90635 | U135: 0.2814103843 | V135: =U135*30.973762 -> 8.716338269 | W135: =V135/1000 -> 0.008716338269 | X135: 10.41993546 | Y135: =X135*14.0067 -> 145.9489101 | Z135: =Y135/1000 -> 0.1459489101
A136: PLYMOUTH | B136: ROUND | C136: 5 | D136: 2019-09-03 | N136: 24.78 | O136: 6.44 | P136: NS | Q136: NS | R136: NS | S136: NS | T136: NS | U136: NS | X136: NS
A137: PLYMOUTH | B137: BILLINGTON SEA WEST SIDE SITE 2 | D137: 2019-09-27 | F137: 2 | G137: 2.5 | H137: 1.49 | I137: 0.596 | J137: BROWN, GREEN, BLUE | K137: 1 | L137: 2 | M137: NONE | N137: ND | O137: ND | P137: 7.16 | Q137: 27.9 | R137: 12.57531646 | S137: 0.2231835443 | T137: 12.7985 | U137: 1.279502489 | V137: =U137*30.973762 -> 39.63100556 | W137: =V137/1000 -> 0.03963100556 | X137: 46.80909326 | Y137: =X137*14.0067 -> 655.6409265 | Z137: =Y137/1000 -> 0.6556409265 | AA137: CYANO BLOOM PRESENT
A138: PLYMOUTH | B138: BILLINGTON SEA WEST SIDE SITE 2 | D138: 2019-09-27 | N138: ND | O138: ND | P138: 7.21 | Q138: 27.2 | R138: 13.14177215 | S138: 0.025 | T138: 13.16677215 | U138: 1.023601991 | V138: 31.70480445 | W138: 0.03170480445 | X138: 65.10531784 | Y138: 911.9106555 | Z138: 0.9119106555
A139: PLYMOUTH | B139: BILLINGTON SEA EAST SIDE SITE 5 | D139: 2019-09-27 | F139: 2 | G139: 3.5 | H139: 1.22 | I139: 0.3485714286 | J139: BROWN, BLUE/GREEN | K139: 1 | L139: 2 | M139: ND | N139: ND | O139: ND | P139: 7.91 | Q139: 27.7 | R139: 16.20063291 | S139: 0.025 | T139: 16.22563291 | U139: 1.169830847 | V139: 36.23406223 | W139: 0.03623406223 | X139: 31.12661504 | Y139: 435.9811588 | Z139: 0.4359811588 | AA139: CYANO BLOOM PRESENT
A140: PLYMOUTH | B140: BILLINGTON SEA EAST SIDE SITE 5 | D140: 2019-09-27 | N140: ND | O140: ND | P140: 8 | Q140: 27.3 | R140: 16.20063291 | S140: 0.025 | T140: 16.22563291 | U140: 1.169830847 | V140: 36.23406223 | W140: 0.03623406223 | X140: 47.97075831 | Y140: 671.9120204 | Z140: 0.6719120204
A141: PLYMOUTH | B141: SAVERY | C141: 0.5 | D141: 2019-09-27 | F141: 2 | G141: 3.5 | H141: 2.89 | I141: 0.8257142857 | J141: CLEAR/BROWN | K141: 1 | L141: 2 | M141: WATERLILIES UP TO 10%; FLOATING ALGAE ON POND SURFACE LESS THAN 1% OR NONE; EMERGENT GRASSES/SEDGES OF SURFACE UP TO 10% | P141: 6.21 | Q141: 6.7 | R141: 3.874556962 | S141: 1.414893038 | T141: 5.28945 | U141: 0.6945870653 | V141: 21.51397445 | W141: 0.02151397445 | X141: 25.02787351 | Y141: 350.5579159 | Z141: 0.3505579159 | AA141: D.O. PROBE CHANGE AND CALIBRATED BUT READING TOO LOW-DID NOT COLLECT
A142: PLYMOUTH | B142: SAVERY | C142: 2.5 | D142: 2019-09-27 | N142: ND | O142: ND | P142: 6.08 | Q142: 6.2 | R142: 3.557341772 | S142: 1.445708228 | T142: 5.00305 | U142: 0.8408159212 | V142: 26.04323223 | W142: 0.02604323223 | X142: 32.28828009 | Y142: 452.2522527 | Z142: 0.4522522527
A143: PLYMOUTH | B143: GREAT HERRING | C143: 0.5 | D143: 2019-10-08 | F143: 4 | G143: 14 | H143: 2.7 | I143: 0.1928571429 | J143: CLEAR/BROWN | K143: 3 | L143: 1 | M143: NONE | N143: 18.55 | O143: 11.63 | P143: 6.21 | Q143: 8.9 | R143: 7.024050633 | S143: 2.373449367 | T143: 9.3975 | U143: 0.6945870653 | V143: 21.51397445 | W143: 0.02151397445 | X143: 20.30860923 | Y143: =X143*14.0067 -> 284.4565969 | Z143: =Y143/1000 -> 0.2844565969
A144: PLYMOUTH | B144: GREAT HERRING | C144: 1 | D144: 2019-10-08 | N144: 18.48 | O144: 10.85 | P144: NS | Q144: NS | R144: NS | S144: NS | T144: NS | U144: NS | X144: NS
A145: PLYMOUTH | B145: GREAT HERRING | C145: 2 | D145: 2019-10-08 | N145: 18.48 | O145: 10.73 | P145: NS | Q145: NS | R145: NS | S145: NS | T145: NS | U145: NS | X145: NS
A146: PLYMOUTH | B146: GREAT HERRING | C146: 3 | D146: 2019-10-08 | N146: 18.48 | O146: 10.68 | P146: 6.17 | Q146: 8.5 | R146: 6.355632911 | S146: 2.316917089 | T146: 8.67255 | U146: 0.609682024 | V146: =U146*30.973762 -> 18.88414591 | W146: =V146/1000 -> 0.01888414591 | X146: 21.31054534 | Y146: =X146*14.0067 -> 298.4904154 | Z146: =Y146/1000 -> 0.2984904154
A147: PLYMOUTH | B147: GREAT HERRING | C147: 4 | D147: 2019-10-08 | N147: 18.48 | O147: 10.61 | P147: NS | Q147: NS | R147: NS | S147: NS | T147: NS | U147: NS | X147: NS
A148: PLYMOUTH | B148: GREAT HERRING | C148: 5 | D148: 2019-10-08 | N148: 18.48 | O148: 10.69 | P148: NS | Q148: NS | R148: NS | S148: NS | T148: NS | U148: NS | X148: NS
A149: PLYMOUTH | B149: GREAT HERRING | C149: 6 | D149: 2019-10-08 | N149: 18.48 | O149: 10.58 | P149: NS | Q149: NS | R149: NS | S149: NS | T149: NS | U149: NS | X149: NS
A150: PLYMOUTH | B150: GREAT HERRING | C150: 7 | D150: 2019-10-08 | N150: 18.48 | O150: 10.53 | P150: NS | Q150: NS | R150: NS | S150: NS | T150: NS | U150: NS | X150: NS
A151: PLYMOUTH | B151: GREAT HERRING | C151: 8 | D151: 2019-10-08 | N151: 18.48 | O151: 10.45 | P151: NS | Q151: NS | R151: NS | S151: NS | T151: NS | U151: NS | X151: NS
A152: PLYMOUTH | B152: GREAT HERRING | C152: 9 | D152: 2019-10-08 | N152: 18.48 | O152: 10.24 | P152: 6.15 | Q152: 8 | R152: 6.061075949 | S152: 2.754674051 | T152: 8.81575 | U152: 0.8042587072 | V152: =U152*30.973762 -> 24.91091778 | W152: =V152/1000 -> 0.02491091778 | X152: 20.70067118 | Y152: =X152*14.0067 -> 289.9480911 | Z152: =Y152/1000 -> 0.2899480911
A153: PLYMOUTH | B153: GREAT HERRING | C153: 10 | D153: 2019-10-08 | N153: 18.48 | O153: 10.34 | P153: NS | Q153: NS | R153: NS | S153: NS | T153: NS | U153: NS | X153: NS
A154: PLYMOUTH | B154: GREAT HERRING | C154: 11 | D154: 2019-10-08 | N154: 18.48 | O154: 10.32 | P154: 6.28 | Q154: 9 | R154: 5.891139241 | S154: 3.148360759 | T154: 9.0395 | U154: 0.6858922771 | V154: =U154*30.973762 -> 21.24466415 | W154: =V154/1000 -> 0.02124466415 | X154: 16.66388512 | Y154: =X154*14.0067 -> 233.4060398 | Z154: =Y154/1000 -> 0.2334060398
A155: PLYMOUTH | B155: GREAT HERRING | C155: 12 | D155: 2019-10-08 | N155: 18.48 | O155: 10.29 | P155: NS | Q155: NS | R155: NS | S155: NS | T155: NS | U155: NS | X155: NS
A156: PLYMOUTH | B156: LITTLE HERRING | C156: 0.5 | D156: 2019-10-08 | E156: SAMPLE | F156: 2 | G156: ND | H156: ND | I156: ND | J156: CLEAR | K156: 3 | L156: 1 | M156: NONE | N156: ND | O156: ND | P156: 6.42 | Q156: 17.3 | R156: 1.73335443 | S156: 4.11994557 | T156: 5.8533 | U156: 0.609682024 | V156: =U156*30.973762 -> 18.88414591 | W156: =V156/1000 -> 0.01888414591 | X156: 52.036586 | Y156: =X156*14.0067 -> 728.8608491 | Z156: =Y156/1000 -> 0.7288608491
A157: PLYMOUTH | B157: LITTLE HERRING | C157: 0.5 | D157: 2019-10-08 | E157: FD | N157: ND | O157: ND | P157: 6.44 | Q157: 16.8 | R157: 1.948607595 | S157: 4.101592405 | T157: 6.0502 | U157: 0.5715768975 | V157: =U157*30.973762 -> 17.70388679 | W157: =V157/1000 -> 0.01770388679 | X157: 55.52158116 | Y157: =X157*14.0067 -> 777.6741308 | Z157: =Y157/1000 -> 0.7776741308

Sheet PALS POND DATA 2018
A1: Key
A2: NS = No Sample
A3: ND = No Data
A4: TBD = To be determined
A5: Town | B5: Pond | C5: Depth (m) | D5: Date | E5: QC | F5: Number of Samples | G5: Total Depth (m) | H5: Secchi Depth (m) | I5: % Secchi | J5: Water Color | K5: Weather | L5: Wind | M5: Plants | N5: Temp C | O5: DO (mg/L) | P5: pH | Q5: Alk (mg CaCO3/L) | R5: CHLA (ug/L) | S5: Phaeo (ug/L) | T5: T-pig ug/L | U5: TP (uM) | V5: TP (µg/L) | W5: TP (mg/L) | X5: TN (uM) | Y5: TN (ug/L) | Z5: TN (mg/L) | AA5: Notes
A6: PLYMOUTH | B6: GREAT HERRING | C6: 0.5 | D6: 2018-06-26 | F6: 4 | G6: 13.5 | H6: 8.5 | I6: 0.6296296296 | J6: brown | K6: 1 | L6: 2 | M6: <1% | N6: ND | O6: ND | P6: 6.71 | Q6: 13 | R6: 7.669810127 | S6: 0.025 | T6: 7.694810127 | U6: 0.6044138091 | V6: =U6*30.973762 -> 18.72096947 | W6: =V6/1000 -> 0.01872096947 | X6: 26.8671205 | Y6: =X6*14.0067 -> 376.3196967 | Z6: =Y6/1000 -> 0.3763196967
A7: PLYMOUTH | B7: GREAT HERRING | C7: 3 | D7: 2018-06-26 | N7: ND | O7: ND | P7: 6.73 | Q7: 12.8 | R7: 6.933417722 | S7: 1.014182278 | T7: 7.9476 | U7: 0.6386263185 | V7: =U7*30.973762 -> 19.7806596 | W7: =V7/1000 -> 0.0197806596 | X7: 26.57493268 | Y7: =X7*14.0067 -> 372.2271095 | Z7: =Y7/1000 -> 0.3722271095
A8: PLYMOUTH | B8: GREAT HERRING | C8: 9 | D8: 2018-06-26 | N8: ND | O8: ND | P8: 6.69 | Q8: 15.8 | R8: 5.347341772 | S8: 1.257758228 | T8: 6.6051 | U8: 0.6386263185 | V8: 19.7806596 | W8: 0.0197806596 | X8: 39.43119677 | Y8: 552.3009439 | Z8: 0.5523009439
A9: PLYMOUTH | B9: GREAT HERRING | C9: 12.5 | D9: 2018-06-26 | N9: ND | O9: ND | P9: 6.56 | Q9: 13.9 | R9: 3.965189873 | S9: 2.389310127 | T9: 6.3545 | U9: 0.86214553 | V9: 26.70389045 | W9: 0.02670389045 | X9: 32.71087691 | Y9: 458.1714395 | Z9: 0.4581714395
A10: PLYMOUTH | B10: LITTLE HERRING | C10: 0.5 | D10: 2018-07-23 | E10: SAMPLE | F10: 2 | G10: 1 | H10: 1 | I10: 1 | J10: clear | K10: 2 | L10: 3 | M10: <1% | N10: ND | O10: ND | P10: 6.55 | Q10: 21.56 | R10: 6.117721519 | S10: 4.264278481 | T10: 10.382 | U10: 0.7024889503 | V10: 21.75872556 | W10: 0.02175872556 | X10: 56.37809036 | Y10: 789.6709982 | Z10: 0.7896709982
A11: PLYMOUTH | B11: LITTLE HERRING | C11: 0.5 | D11: 2018-07-23 | E11: FD | N11: ND | O11: ND | P11: 6.57 | Q11: 20.6 | R11: 6.344303797 | S11: 5.827696203 | T11: 12.172 | U11: 0.7663515822 | V11: 23.73679151 | W11: 0.02373679151 | X11: 48.19683139 | Y11: 675.0785582 | Z11: 0.6750785582
A12: PLYMOUTH | B12: GREAT HERRING | C12: 0.5 | D12: 2018-08-07 | F12: 4 | G12: 13 | H12: 3.3 | I12: 0.2538461538 | J12: brown | K12: 2 | L12: 1 | M12: <1% | N12: 27.64 | O12: 9.36 | P12: 6.69 | Q12: 10.5 | R12: 7.16 | S12: 1.0561 | T12: 8.2161 | U12: 0.5372567192 | V12: 16.64086175 | W12: 0.01664086175 | X12: 17.83851685 | Y12: 249.8587539 | Z12: 0.2498587539
A13: PLYMOUTH | B13: GREAT HERRING | C13: 1 | D13: 2018-08-07 | N13: 27.63 | O13: 9.36 | P13: NS | Q13: NS | R13: NS | S13: NS | T13: NS | U13: NS | X13: NS
A14: PLYMOUTH | B14: GREAT HERRING | C14: 2 | D14: 2018-08-07 | N14: 27.54 | O14: 9.3 | P14: NS | Q14: NS | R14: NS | S14: NS | T14: NS | U14: NS | X14: NS
A15: PLYMOUTH | B15: GREAT HERRING | C15: 3 | D15: 2018-08-07 | N15: 27.46 | O15: 9.22 | P15: 6.81 | Q15: 9.9 | R15: 8.021012658 | S15: 0.8573873418 | T15: 8.8784 | U15: 0.6044138091 | V15: 18.72096947 | W15: 0.01872096947 | X15: 19.32867473 | Y15: 270.7309484 | Z15: 0.2707309484
A16: PLYMOUTH | B16: GREAT HERRING | C16: 4 | D16: 2018-08-07 | N16: 27.3 | O16: 9.03 | P16: NS | Q16: NS | R16: NS | S16: NS | T16: NS | U16: NS | X16: NS
A17: PLYMOUTH | B17: GREAT HERRING | C17: 5 | D17: 2018-08-07 | N17: 27.1 | O17: 8.74 | P17: NS | Q17: NS | R17: NS | S17: NS | T17: NS | U17: NS | X17: NS
A18: PLYMOUTH | B18: GREAT HERRING | C18: 6 | D18: 2018-08-07 | N18: 26.96 | O18: 8.71 | P18: NS | Q18: NS | R18: NS | S18: NS | T18: NS | U18: NS | X18: NS
A19: PLYMOUTH | B19: GREAT HERRING | C19: 7 | D19: 2018-08-07 | N19: 26.61 | O19: 8.54 | P19: NS | Q19: NS | R19: NS | S19: NS | T19: NS | U19: NS | X19: NS
A20: PLYMOUTH | B20: GREAT HERRING | C20: 8 | D20: 2018-08-07 | N20: 25.65 | O20: 4.25 | P20: NS | Q20: NS | R20: NS | S20: NS | T20: NS | U20: NS | X20: NS
A21: PLYMOUTH | B21: GREAT HERRING | C21: 9 | D21: 2018-08-07 | N21: 24.98 | O21: 1.75 | P21: 6.1 | Q21: 8.4 | R21: 8.610126582 | S21: 5.441373418 | T21: 14.0515 | U21: 0.7663515822 | V21: 23.73679151 | W21: 0.02373679151 | X21: 25.11399358 | Y21: 351.7641738 | Z21: 0.3517641738
A22: PLYMOUTH | B22: GREAT HERRING | C22: 10 | D22: 2018-08-07 | N22: 23.89 | O22: 1.05 | P22: NS | Q22: NS | R22: NS | S22: NS | T22: NS | U22: NS | X22: NS
A23: PLYMOUTH | B23: GREAT HERRING | C23: 11 | D23: 2018-08-07 | N23: 23.16 | O23: 0.83 | P23: NS | Q23: NS | R23: NS | S23: NS | T23: NS | U23: NS | X23: NS
A24: PLYMOUTH | B24: GREAT HERRING | C24: 12 | D24: 2018-08-07 | N24: 22.95 | O24: 0.45 | P24: 6.64 | Q24: 13.4 | R24: 3.398734177 | S24: 43.94676582 | T24: 47.3455 | U24: 2.043604219 | V24: 63.29811071 | W24: 0.06329811071 | X24: 53.16402433 | Y24: 744.6525396 | Z24: 0.7446525396
A25: PLYMOUTH | B25: GREAT HERRING | C25: 12.5 | D25: 2018-08-07 | N25: 22.91 | O25: 0.36 | P25: NS | Q25: NS | R25: NS | S25: NS | T25: NS | U25: NS | X25: NS
A26: PLYMOUTH | B26: TOWN BROOK 1 | D26: 2018-08-20 | F26: 1 | G26: NA | H26: NA | I26: NA | J26: ND | K26: ND | L26: ND | M26: >50% fanwort; 25-50% floating algae | N26: ND | O26: ND | P26: NS | Q26: NS | R26: 4.191772152 | S26: 6.816727848 | T26: 11.0085 | U26: 1.500771848 | V26: 46.48455005 | W26: 0.04648455005 | X26: 43.52182626 | Y26: 609.5971639 | Z26: 0.6095971639
A27: PLYMOUTH | B27: TOWN BROOK 2 | D27: 2018-08-20 | F27: 1 | G27: NA | H27: NA | I27: NA | J27: ND | K27: ND | L27: ND | M27: <1% | N27: ND | O27: ND | P27: NS | Q27: NS | R27: 1.336835443 | S27: 2.108914557 | T27: 3.44575 | U27: 0.7024889503 | V27: 21.75872556 | W27: 0.02175872556 | X27: 37.38588203 | Y27: 523.6528338 | Z27: 0.5236528338
A28: PLYMOUTH | B28: TOWN BROOK 3 | D28: 2018-08-20 | F28: 1 | G28: NA | H28: NA | I28: NA | J28: ND | K28: ND | L28: ND | M28: <1% | N28: ND | O28: ND | P28: NS | Q28: NS | R28: 1.903291139 | S28: 3.055008861 | T28: 4.9583 | U28: 0.8940768459 | V28: 27.69292343 | W28: 0.02769292343 | X28: 30.95774998 | Y28: 433.6159167 | Z28: 0.4336159167
A29: PLYMOUTH | B29: TOWN BROOK 6 | D29: 2018-08-20 | F29: 1 | G29: NA | H29: NA | I29: NA | J29: ND | K29: ND | L29: ND | M29: <1% | N29: ND | O29: ND | P29: NS | Q29: NS | R29: 1.688037975 | S29: 2.160462025 | T29: 3.8485 | U29: 1.309183953 | V29: 40.55035217 | W29: 0.04055035217 | X29: 60.17653202 | Y29: 842.8746311 | Z29: 0.8428746311
A30: PLYMOUTH | B30: GREAT HERRING | C30: 0.15 | D30: 2018-08-30 | F30: 4 | G30: 12.7 | H30: 3.55 | I30: 0.2795275591 | J30: blue | K30: 1 | L30: 2 | M30: <1% | N30: ND | O30: ND | P30: 6.82 | Q30: 9.5 | R30: 7.341265823 | S30: 0.2841341772 | T30: 7.6254 | U30: 0.6044138091 | V30: 18.72096947 | W30: 0.01872096947 | X30: 18.77351787 | Y30: 262.9550328 | Z30: 0.2629550328 | AA30: N 41 47.843; W 70 33.833
A31: PLYMOUTH | B31: GREAT HERRING | C31: 3 | D31: 2018-08-30 | M31: <1% | N31: ND | O31: ND | P31: 6.8 | Q31: 9.1 | R31: 9.856329114 | S31: 0.9731708861 | T31: 10.8295 | U31: 0.6386263185 | V31: 19.7806596 | W31: 0.0197806596 | X31: 20.96492653 | Y31: 293.6494364 | Z31: 0.2936494364
A32: PLYMOUTH | B32: GREAT HERRING | C32: 9 | D32: 2018-08-30 | M32: <1% | N32: ND | O32: ND | P32: 6.45 | Q32: 10.2 | R32: 12.57531646 | S32: 5.861683544 | T32: 18.437 | U32: 0.830214214 | V32: 25.71485747 | W32: 0.02571485747 | X32: 22.07524024 | Y32: 309.2012675 | Z32: 0.3092012675
A33: PLYMOUTH | B33: GREAT HERRING | C33: 11.7 | D33: 2018-08-30 | M33: <1% | N33: ND | O33: ND | P33: 6.57 | Q33: 10.5 | R33: 9.856329114 | S33: 6.701170886 | T33: 16.5575 | U33: 0.9579394777 | V33: 29.67098939 | W33: 0.02967098939 | X33: 26.2827 | Y33: 368.1338941 | Z33: 0.3681338941
A34: PLYMOUTH | B34: LITTLE HERRING | C34: 0.5 | D34: 2018-08-30 | E34: SAMPLE | F34: 2 | G34: ND | H34: ND | I34: ND | J34: clear | K34: 1 | L34: 1 | M34: <1% | N34: ND | O34: ND | P34: 6.66 | Q34: 19.4 | R34: 5.517278481 | S34: 0.595571519 | T34: 6.11285 | U34: 0.7024889503 | V34: 21.75872556 | W34: 0.02175872556 | X34: 30.95774998 | Y34: 433.6159167 | Z34: 0.4336159167
A35: PLYMOUTH | B35: LITTLE HERRING | C35: 0.5 | D35: 2018-08-30 | E35: FD | M35: <1% | N35: ND | O35: ND | P35: 6.54 | Q35: 18.1 | R35: 5.483291139 | S35: 0.6564088608 | T35: 6.1397 | U35: 0.7663515822 | V35: 23.73679151 | W35: 0.02373679151 | X35: 31.54212562 | Y35: 441.801091 | Z35: 0.441801091

Sheet PALS POND DATA 2017
A1: Key
A2: NS = No Sample
A3: ND = No Data
A4: TBD = To be determined
A5: Town | B5: Pond | C5: Depth (m) | D5: Date | E5: QC | F5: Number of Samples | G5: Total Depth (m) | H5: Secchi Depth (m) | I5: % Secchi | J5: Water Color | K5: Weather | L5: Wind | M5: Plants | N5: Temp C | O5: DO (mg/L) | P5: pH | Q5: Alk (mg CaCO3/L) | R5: CHLA (ug/L) | S5: Phaeo (ug/L) | T5: T-pig ug/L | U5: TP (uM) | V5: TP (µg/L) | W5: TP (mg/L) | X5: TN (uM) | Y5: TN (ug/L) | Z5: TN (mg/L) | AA5: Notes
A6: PLYMOUTH | B6: GREAT HERRING POND | C6: 0.5 | D6: 2017-04-18 | F6: 1 | G6: 11.9 | H6: 4 | I6: =H6/G6 -> 0.3361344538 | J6: GREEN | K6: PT. CLOUDY | L6: LIGHT BREEZE | M6: NONE | N6: 11.66 | O6: 11.05 | P6: 6.94 | Q6: 10.7 | R6: 2.220506329 | S6: 0.2854936709 | T6: =R6+S6 -> 2.506 | U6: 0.5366317793 | V6: =U6*30.973762 -> 16.62150501 | W6: =V6/1000 -> 0.01662150501 | X6: 36.36466403 | Y6: =X6*14.0067 -> 509.3489397 | Z6: =Y6/1000 -> 0.5093489397 | AA6: GPS: GH-10/41 47.850, 70 33.835
A7: PLYMOUTH | B7: GREAT HERRING POND | C7: 1 | D7: 2017-04-18 | G7: 11.9 | H7: 4 | I7: 0.3361344538 | J7: GREEN | K7: PT. CLOUDY | L7: LIGHT BREEZE | M7: NONE | N7: 11.67 | O7: 11.15 | U7: NS | X7: NS
A8: PLYMOUTH | B8: GREAT HERRING POND | C8: 1.5 | D8: 2017-04-18 | G8: 11.9 | H8: 4 | I8: 0.3361344538 | J8: GREEN | K8: PT. CLOUDY | L8: LIGHT BREEZE | M8: NONE | N8: 11.64 | O8: 11.19 | U8: NS | X8: NS
A9: PLYMOUTH | B9: GREAT HERRING POND | C9: 2 | D9: 2017-04-18 | G9: 11.9 | H9: 4 | I9: 0.3361344538 | J9: GREEN | K9: PT. CLOUDY | L9: LIGHT BREEZE | M9: NONE | N9: 11.6 | O9: 11.26 | U9: NS | X9: NS
A10: PLYMOUTH | B10: GREAT HERRING POND | C10: 2.5 | D10: 2017-04-18 | G10: 11.9 | H10: 4 | I10: 0.3361344538 | J10: GREEN | K10: PT. CLOUDY | L10: LIGHT BREEZE | M10: NONE | N10: 11.4 | O10: 11.25 | U10: NS | X10: NS
A11: PLYMOUTH | B11: GREAT HERRING POND | C11: 3 | D11: 2017-04-18 | F11: 1 | G11: 11.9 | H11: 4 | I11: 0.3361344538 | J11: GREEN | K11: PT. CLOUDY | L11: LIGHT BREEZE | M11: NONE | N11: 11.34 | O11: 11.22 | P11: 6.79 | Q11: 7.6 | R11: 1.336835443 | S11: 1.455564557 | T11: =R11+S11 -> 2.7924 | U11: 0.6037107517 | V11: =U11*30.973762 -> 18.69919314 | W11: =V11/1000 -> 0.01869919314 | X11: 45.25794466 | Y11: =X11*14.0067 -> 633.9144535 | Z11: =Y11/1000 -> 0.6339144535
A12: PLYMOUTH | B12: GREAT HERRING POND | C12: 3.5 | D12: 2017-04-18 | G12: 11.9 | H12: 4 | I12: 0.3361344538 | J12: GREEN | K12: PT. CLOUDY | L12: LIGHT BREEZE | M12: NONE | N12: 11.35 | O12: 11.26 | U12: NS | X12: NS
A13: PLYMOUTH | B13: GREAT HERRING POND | C13: 4 | D13: 2017-04-18 | G13: 11.9 | H13: 4 | I13: 0.3361344538 | J13: GREEN | K13: PT. CLOUDY | L13: LIGHT BREEZE | M13: NONE | N13: 11.44 | O13: 11.15 | U13: NS | X13: NS
A14: PLYMOUTH | B14: GREAT HERRING POND | C14: 4.5 | D14: 2017-04-18 | G14: 11.9 | H14: 4 | I14: 0.3361344538 | J14: GREEN | K14: PT. CLOUDY | L14: LIGHT BREEZE | M14: NONE | N14: 11.4 | O14: 11.2 | U14: NS | X14: NS
A15: PLYMOUTH | B15: GREAT HERRING POND | C15: 5 | D15: 2017-04-18 | G15: 11.9 | H15: 4 | I15: 0.3361344538 | J15: GREEN | K15: PT. CLOUDY | L15: LIGHT BREEZE | M15: NONE | N15: 11.7 | O15: 11.21 | U15: NS | X15: NS
A16: PLYMOUTH | B16: GREAT HERRING POND | C16: 5.5 | D16: 2017-04-18 | G16: 11.9 | H16: 4 | I16: 0.3361344538 | J16: GREEN | K16: PT. CLOUDY | L16: LIGHT BREEZE | M16: NONE | N16: 11.39 | O16: 11.18 | U16: NS | X16: NS
A17: PLYMOUTH | B17: GREAT HERRING POND | C17: 6 | D17: 2017-04-18 | G17: 11.9 | H17: 4 | I17: 0.3361344538 | J17: GREEN | K17: PT. CLOUDY | L17: LIGHT BREEZE | M17: NONE | N17: 11.37 | O17: 11.2 | U17: NS | X17: NS
A18: PLYMOUTH | B18: GREAT HERRING POND | C18: 6.5 | D18: 2017-04-18 | G18: 11.9 | H18: 4 | I18: 0.3361344538 | J18: GREEN | K18: PT. CLOUDY | L18: LIGHT BREEZE | M18: NONE | N18: 11.42 | O18: 11.17 | U18: NS | X18: NS
A19: PLYMOUTH | B19: GREAT HERRING POND | C19: 7 | D19: 2017-04-18 | G19: 11.9 | H19: 4 | I19: 0.3361344538 | J19: GREEN | K19: PT. CLOUDY | L19: LIGHT BREEZE | M19: NONE | N19: 11.39 | O19: 11.21 | U19: NS | X19: NS
A20: PLYMOUTH | B20: GREAT HERRING POND | C20: 7.5 | D20: 2017-04-18 | G20: 11.9 | H20: 4 | I20: 0.3361344538 | J20: GREEN | K20: PT. CLOUDY | L20: LIGHT BREEZE | M20: NONE | N20: 11.3 | O20: 11.22 | U20: NS | X20: NS
A21: PLYMOUTH | B21: GREAT HERRING POND | C21: 8 | D21: 2017-04-18 | G21: 11.9 | H21: 4 | I21: 0.3361344538 | J21: GREEN | K21: PT. CLOUDY | L21: LIGHT BREEZE | M21: NONE | N21: 11.22 | O21: 11.23 | U21: NS | X21: NS
A22: PLYMOUTH | B22: GREAT HERRING POND | C22: 8.5 | D22: 2017-04-18 | G22: 11.9 | H22: 4 | I22: 0.3361344538 | J22: GREEN | K22: PT. CLOUDY | L22: LIGHT BREEZE | M22: NONE | N22: 11.22 | O22: 11.26 | U22: NS | X22: NS
A23: PLYMOUTH | B23: GREAT HERRING POND | C23: 9 | D23: 2017-04-18 | F23: 1 | G23: 11.9 | H23: 4 | I23: 0.3361344538 | J23: GREEN | K23: PT. CLOUDY | L23: LIGHT BREEZE | M23: NONE | N23: 10.92 | O23: 11.27 | P23: 6.87 | Q23: 6.7 | R23: 1.314177215 | S23: 1.487172785 | T23: =R23+S23 -> 2.80135 | U23: 0.8573822339 | V23: =U23*30.973762 -> 26.55635326 | W23: =V23/1000 -> 0.02655635326 | X23: 38.14332016 | Y23: =X23*14.0067 -> 534.2620425 | Z23: =Y23/1000 -> 0.5342620425
A24: PLYMOUTH | B24: GREAT HERRING POND | C24: 9.5 | D24: 2017-04-18 | G24: 11.9 | H24: 4 | I24: 0.3361344538 | J24: GREEN | K24: PT. CLOUDY | L24: LIGHT BREEZE | M24: NONE | N24: 10.92 | O24: 11.21 | U24: NS | X24: NS
A25: PLYMOUTH | B25: GREAT HERRING POND | C25: 10 | D25: 2017-04-18 | G25: 11.9 | H25: 4 | I25: 0.3361344538 | J25: GREEN | K25: PT. CLOUDY | L25: LIGHT BREEZE | M25: NONE | N25: 10.91 | O25: 11.22 | U25: NS | X25: NS
A26: PLYMOUTH | B26: GREAT HERRING POND | C26: 10.5 | D26: 2017-04-18 | F26: 1 | G26: 11.9 | H26: 4 | I26: 0.3361344538 | J26: GREEN | K26: PT. CLOUDY | L26: LIGHT BREEZE | M26: NONE | N26: 10.91 | O26: 11.13 | P26: 6.92 | Q26: 7 | R26: 2.662341772 | S26: 0.6670582278 | T26: =R26+S26 -> 3.3294 | U26: 0.6037107517 | V26: =U26*30.973762 -> 18.69919314 | W26: =V26/1000 -> 0.01869919314 | X26: 35.47533597 | Y26: =X26*14.0067 -> 496.8923883 | Z26: =Y26/1000 -> 0.4968923883
A27: PLYMOUTH | B27: GREAT HERRING POND | C27: 11 | D27: 2017-04-18 | G27: 11.9 | H27: 4 | I27: 0.3361344538 | J27: GREEN | K27: PT. CLOUDY | L27: LIGHT BREEZE | M27: NONE | N27: 10.9 | O27: 11.14 | U27: NS | X27: NS
A28: PLYMOUTH | B28: GALLOWS POND | C28: 0.5 | D28: 2017-05-01 | G28: 10.4 | H28: 8.18 | I28: 0.7865384615 | M28: NONE | N28: 12.3 | O28: 12.8 | AA28: GPS: 41.863398 -70.615800
A29: PLYMOUTH | B29: GALLOWS POND | C29: 1 | D29: 2017-05-01 | G29: 10.4 | H29: 8.18 | I29: 0.7865384615 | M29: NONE | N29: 12.3 | O29: 13
A30: PLYMOUTH | B30: GALLOWS POND | C30: 2 | D30: 2017-05-01 | G30: 10.4 | H30: 8.18 | I30: 0.7865384615 | M30: NONE | N30: 12.3 | O30: 13.2
A31: PLYMOUTH | B31: GALLOWS POND | C31: 3 | D31: 2017-05-01 | G31: 10.4 | H31: 8.18 | I31: 0.7865384615 | M31: NONE | N31: 12.3 | O31: 13.4
A32: PLYMOUTH | B32: GALLOWS POND | C32: 4 | D32: 2017-05-01 | G32: 10.4 | H32: 8.18 | I32: 0.7865384615 | M32: NONE | N32: 11.4 | O32: 14.1
A33: PLYMOUTH | B33: GALLOWS POND | C33: 5 | D33: 2017-05-01 | G33: 10.4 | H33: 8.18 | I33: 0.7865384615 | M33: NONE | N33: 10.3 | O33: 14.9
A34: PLYMOUTH | B34: GALLOWS POND | C34: 6 | D34: 2017-05-01 | G34: 10.4 | H34: 8.18 | I34: 0.7865384615 | M34: NONE | N34: 9.5 | O34: 15.2
A35: PLYMOUTH | B35: GALLOWS POND | C35: 7 | D35: 2017-05-01 | G35: 10.4 | H35: 8.18 | I35: 0.7865384615 | M35: NONE | N35: 9.2 | O35: 15.3
A36: PLYMOUTH | B36: GALLOWS POND | C36: 8 | D36: 2017-05-01 | G36: 10.4 | H36: 8.18 | I36: 0.7865384615 | M36: NONE | N36: 8.9 | O36: 14
A37: PLYMOUTH | B37: GALLOWS POND | C37: 9 | D37: 2017-05-01 | G37: 10.4 | H37: 8.18 | I37: 0.7865384615 | M37: NONE | N37: 8.8 | O37: 14
A38: PLYMOUTH | B38: GALLOWS POND | C38: 9.5 | D38: 2017-05-01 | G38: 10.4 | H38: 8.18 | I38: 0.7865384615 | M38: NONE | N38: 8.8 | O38: 14.8
A39: PLYMOUTH | B39: ROUND POND | C39: 0.5 | D39: 2017-05-01 | G39: 7.2 | H39: 7.2 | I39: 1 | J39: BLUE GREEN | K39: PT. CLOUDY | L39: LIGHT BREEZE | M39: NONE | N39: 12.8 | O39: 11.5 | AA39: GPS: 41.852474 -70.604057
A40: PLYMOUTH | B40: ROUND POND | C40: 1 | D40: 2017-05-01 | G40: 7.2 | H40: 7.2 | I40: =H40/G40 -> 1 | J40: BLUE GREEN | K40: PT. CLOUDY | L40: LIGHT BREEZE | M40: NONE | N40: 12.8 | O40: 11.6
A41: PLYMOUTH | B41: ROUND POND | C41: 2 | D41: 2017-05-01 | G41: 7.2 | H41: 7.2 | I41: 1 | J41: BLUE GREEN | K41: PT. CLOUDY | L41: LIGHT BREEZE | M41: NONE | N41: 12.7 | O41: 11.4
A42: PLYMOUTH | B42: ROUND POND | C42: 3 | D42: 2017-05-01 | G42: 7.2 | H42: 7.2 | I42: 1 | J42: BLUE GREEN | K42: PT. CLOUDY | L42: LIGHT BREEZE | M42: NONE | N42: 12.7 | O42: 11.6
A43: PLYMOUTH | B43: ROUND POND | C43: 4 | D43: 2017-05-01 | G43: 7.2 | H43: 7.2 | I43: 1 | J43: BLUE GREEN | K43: PT. CLOUDY | L43: LIGHT BREEZE | M43: NONE | N43: 12.4 | O43: 12.3
A44: PLYMOUTH | B44: ROUND POND | C44: 5 | D44: 2017-05-01 | G44: 7.2 | H44: 7.2 | I44: 1 | J44: BLUE GREEN | K44: PT. CLOUDY | L44: LIGHT BREEZE | M44: NONE | N44: 12.2 | O44: 12.7
A45: PLYMOUTH | B45: ROUND POND | C45: 6 | D45: 2017-05-01 | G45: 7.2 | H45: 7.2 | I45: 1 | J45: BLUE GREEN | K45: PT. CLOUDY | L45: LIGHT BREEZE | M45: NONE | N45: 12 | O45: 13.3
A46: PLYMOUTH | B46: ROUND POND | C46: 7 | D46: 2017-05-01 | G46: 7.2 | H46: 7.2 | I46: 1 | J46: BLUE GREEN | K46: PT. CLOUDY | L46: LIGHT BREEZE | M46: NONE | N46: 12 | O46: 13.7
A47: PLYMOUTH | B47: BLOODY POND | C47: 0.5 | D47: 2017-05-01 | G47: 11.1 | H47: 4.95 | I47: =H47/G47 -> 0.4459459459 | J47: BLUE GREEN | K47: PT. CLOUDY | L47: LIGHT BREEZE | M47: NONE | N47: 12.5 | O47: 14.7 | AA47: GPS: 41.846753 -70.584461
A48: PLYMOUTH | B48: BLOODY POND | C48: 1 | D48: 2017-05-01 | G48: 11.1 | H48: 4.95 | I48: =H48/G48 -> 0.4459459459 | J48: BLUE GREEN | K48: PT. CLOUDY | L48: LIGHT BREEZE | M48: NONE | N48: 12.4 | O48: 14.4
A49: PLYMOUTH | B49: BLOODY POND | C49: 2 | D49: 2017-05-01 | G49: 11.1 | H49: 4.95 | I49: 0.4459459459 | J49: BLUE GREEN | K49: PT. CLOUDY | L49: LIGHT BREEZE | M49: NONE | N49: 12.4 | O49: 14.3
A50: PLYMOUTH | B50: BLOODY POND | C50: 3 | D50: 2017-05-01 | G50: 11.1 | H50: 4.95 | I50: 0.4459459459 | J50: BLUE GREEN | K50: PT. CLOUDY | L50: LIGHT BREEZE | M50: NONE | N50: 12.4 | O50: 14.2
A51: PLYMOUTH | B51: BLOODY POND | C51: 4 | D51: 2017-05-01 | G51: 11.1 | H51: 4.95 | I51: 0.4459459459 | J51: BLUE GREEN | K51: PT. CLOUDY | L51: LIGHT BREEZE | M51: NONE | N51: 12.1 | O51: 14.1
A52: PLYMOUTH | B52: BLOODY POND | C52: 5 | D52: 2017-05-01 | G52: 11.1 | H52: 4.95 | I52: 0.4459459459 | J52: BLUE GREEN | K52: PT. CLOUDY | L52: LIGHT BREEZE | M52: NONE | N52: 11.1 | O52: 15
A53: PLYMOUTH | B53: BLOODY POND | C53: 6 | D53: 2017-05-01 | G53: 11.1 | H53: 4.95 | I53: 0.4459459459 | J53: BLUE GREEN | K53: PT. CLOUDY | L53: LIGHT BREEZE | M53: NONE | N53: 9.8 | O53: 17.1
A54: PLYMOUTH | B54: BLOODY POND | C54: 7 | D54: 2017-05-01 | G54: 11.1 | H54: 4.95 | I54: 0.4459459459 | J54: BLUE GREEN | K54: PT. CLOUDY | L54: LIGHT BREEZE | M54: NONE | N54: 9.2 | O54: 17.1
A55: PLYMOUTH | B55: BLOODY POND | C55: 8 | D55: 2017-05-01 | G55: 11.1 | H55: 4.95 | I55: 0.4459459459 | J55: BLUE GREEN | K55: PT. CLOUDY | L55: LIGHT BREEZE | M55: NONE | N55: 8.9 | O55: 16.4
A56: PLYMOUTH | B56: BLOODY POND | C56: 9 | D56: 2017-05-01 | G56: 11.1 | H56: 4.95 | I56: 0.4459459459 | J56: BLUE GREEN | K56: PT. CLOUDY | L56: LIGHT BREEZE | M56: NONE | N56: 8.7 | O56: 15.4
A57: PLYMOUTH | B57: BLOODY POND | C57: 10 | D57: 2017-05-01 | G57: 11.1 | H57: 4.95 | I57: 0.4459459459 | J57: BLUE GREEN | K57: PT. CLOUDY | L57: LIGHT BREEZE | M57: NONE | N57: 8.6 | O57: 14.9
A58: PLYMOUTH | B58: BLOODY POND | C58: 11 | D58: 2017-05-01 | G58: 11.1 | H58: 4.95 | I58: 0.4459459459 | J58: BLUE GREEN | K58: PT. CLOUDY | L58: LIGHT BREEZE | M58: NONE | N58: 8.6 | O58: 11.6
A59: PLYMOUTH | B59: LITTLE LONG POND | C59: 0.5 | D59: 2017-05-01 | G59: 2.4 | H59: 2.3 | I59: 0.9583333333 | J59: BLUE GREEN | K59: CLOUDLESS | L59: LIGHT BREEZE | M59: NONE | N59: 14.6 | O59: 13.7 | AA59: GPS: 41.869774 -70.613002
A60: PLYMOUTH | B60: LITTLE LONG POND | C60: 1 | D60: 2017-05-01 | G60: 2.4 | H60: 2.3 | I60: =H60/G60 -> 0.9583333333 | J60: BLUE GREEN | K60: CLOUDLESS | L60: LIGHT BREEZE | M60: NONE | N60: 14.3 | O60: 13.6
A61: PLYMOUTH | B61: LITTLE LONG POND | C61: 1.5 | D61: 2017-05-01 | G61: 2.4 | H61: 2.3 | I61: 0.9583333333 | J61: BLUE GREEN | K61: CLOUDLESS | L61: LIGHT BREEZE | M61: NONE | N61: 13.8 | O61: 14
A62: PLYMOUTH | B62: LITTLE LONG POND | C62: 2 | D62: 2017-05-01 | G62: 2.4 | H62: 2.3 | I62: 0.9583333333 | J62: BLUE GREEN | K62: CLOUDLESS | L62: LIGHT BREEZE | M62: NONE | N62: 13.8 | O62: 13.9
A63: PLYMOUTH | B63: LITTLE LONG POND | C63: 2.5 | D63: 2017-05-01 | G63: 2.4 | H63: 2.3 | I63: 0.9583333333 | J63: BLUE GREEN | K63: CLOUDLESS | L63: LIGHT BREEZE | M63: NONE | N63: 13.8 | O63: 14.4
A64: PLYMOUTH | B64: LONG POND | C64: NA | D64: 2017-05-02 | G64: 33 | H64: 4.4 | I64: 0.1333333333 | J64: GREEN | K64: PT. CLOUDY | L64: LIGHT BREEZE | M64: NONE | N64: NA | O64: NA | AA64: GPS: 41.859314 -70.603450
A65: PLYMOUTH | B65: HALFWAY POND | C65: 0.5 | D65: 2017-05-02 | G65: 4.1 | H65: 3.6 | I65: 0.8780487805 | J65: GREEN | K65: PT. CLOUDY | L65: LIGHT BREEZE | M65: NONE | N65: 13.9 | O65: 14.2 | AA65: GPS: 41.848405 -70.617485
A66: PLYMOUTH | B66: HALFWAY POND | C66: 1 | D66: 2017-05-02 | G66: 4.1 | H66: 3.6 | I66: =H66/G66 -> 0.8780487805 | J66: GREEN | K66: PT. CLOUDY | L66: LIGHT BREEZE | M66: NONE | N66: 13.6 | O66: 13.8
A67: PLYMOUTH | B67: HALFWAY POND | C67: 1.5 | D67: 2017-05-02 | G67: 4.1 | H67: 3.6 | I67: 0.8780487805 | J67: GREEN | K67: PT. CLOUDY | L67: LIGHT BREEZE | M67: NONE | N67: 13.3 | O67: 13.74
A68: PLYMOUTH | B68: HALFWAY POND | C68: 2 | D68: 2017-05-02 | G68: 4.1 | H68: 3.6 | I68: 0.8780487805 | J68: GREEN | K68: PT. CLOUDY | L68: LIGHT BREEZE | M68: NONE | N68: 13.3 | O68: 13.3
A69: PLYMOUTH | B69: HALFWAY POND | C69: 2.5 | D69: 2017-05-02 | G69: 4.1 | H69: 3.6 | I69: 0.8780487805 | J69: GREEN | K69: PT. CLOUDY | L69: LIGHT BREEZE | M69: NONE | N69: 13.3 | O69: 13.3
A70: PLYMOUTH | B70: HALFWAY POND | C70: 3 | D70: 2017-05-02 | G70: 4.1 | H70: 3.6 | I70: 0.8780487805 | J70: GREEN | K70: PT. CLOUDY | L70: LIGHT BREEZE | M70: NONE | N70: 13.3 | O70: 13
A71: PLYMOUTH | B71: HALFWAY POND | C71: 3.5 | D71: 2017-05-02 | G71: 4.1 | H71: 3.6 | I71: 0.8780487805 | J71: GREEN | K71: PT. CLOUDY | L71: LIGHT BREEZE | M71: NONE | N71: 13.3 | O71: 13.1
A72: PLYMOUTH | B72: LITTLE LONG POND | C72: 0.5 | D72: 2017-05-12 | G72: 2.4 | H72: 1.7 | I72: 0.7083333333 | J72: BLUE GREEN | K72: OVERCAST | L72: LIGHT BREEZE | M72: NONE | N72: 15.1 | O72: 11.4
A73: PLYMOUTH | B73: LITTLE LONG POND | C73: 1 | D73: 2017-05-12 | G73: 2.4 | H73: 1.7 | I73: =H73/G73 -> 0.7083333333 | J73: BLUE GREEN | K73: OVERCAST | L73: LIGHT BREEZE | M73: NONE | N73: 15.1 | O73: 11.5
A74: PLYMOUTH | B74: LITTLE LONG POND | C74: 1.5 | D74: 2017-05-12 | G74: 2.4 | H74: 1.7 | I74: =H74/G74 -> 0.7083333333 | J74: BLUE GREEN | K74: OVERCAST | L74: LIGHT BREEZE | M74: NONE | N74: 15.1 | O74: 11.6
A75: PLYMOUTH | B75: LITTLE LONG POND | C75: 2 | D75: 2017-05-12 | G75: 2.4 | H75: 1.7 | I75: =H75/G75 -> 0.7083333333 | J75: BLUE GREEN | K75: OVERCAST | L75: LIGHT BREEZE | M75: NONE | N75: 15.1 | O75: 11.6
A76: PLYMOUTH | B76: BLOODY POND | C76: 0.5 | D76: 2017-05-12 | G76: 11.58 | H76: 3.4 | I76: =H76/G76 -> 0.2936096718 | J76: BLUE GREEN | K76: OVERCAST | L76: LIGHT BREEZE | M76: NONE | N76: 14.8 | O76: 10.5
A77: PLYMOUTH | B77: BLOODY POND | C77: 1 | D77: 2017-05-12 | G77: 11.58 | H77: 3.4 | I77: =H77/G77 -> 0.2936096718 | J77: BLUE GREEN | K77: OVERCAST | L77: LIGHT BREEZE | M77: NONE | N77: 14.8 | O77: 10.4
A78: PLYMOUTH | B78: BLOODY POND | C78: 2 | D78: 2017-05-12 | G78: 11.58 | H78: 3.4 | I78: 0.2936096718 | J78: BLUE GREEN | K78: OVERCAST | L78: LIGHT BREEZE | M78: NONE | N78: 14.8 | O78: 11.1
A79: PLYMOUTH | B79: BLOODY POND | C79: 3 | D79: 2017-05-12 | G79: 11.58 | H79: 3.4 | I79: 0.2936096718 | J79: BLUE GREEN | K79: OVERCAST | L79: LIGHT BREEZE | M79: NONE | N79: 14.8 | O79: 11
A80: PLYMOUTH | B80: BLOODY POND | C80: 4 | D80: 2017-05-12 | G80: 11.58 | H80: 3.4 | I80: 0.2936096718 | J80: BLUE GREEN | K80: OVERCAST | L80: LIGHT BREEZE | M80: NONE | N80: 14.8 | O80: 10.8
A81: PLYMOUTH | B81: BLOODY POND | C81: 5 | D81: 2017-05-12 | G81: 11.58 | H81: 3.4 | I81: 0.2936096718 | J81: BLUE GREEN | K81: OVERCAST | L81: LIGHT BREEZE | M81: NONE | N81: 14.8 | O81: 10.4
A82: PLYMOUTH | B82: BLOODY POND | C82: 6 | D82: 2017-05-12 | G82: 11.58 | H82: 3.4 | I82: 0.2936096718 | J82: BLUE GREEN | K82: OVERCAST | L82: LIGHT BREEZE | M82: NONE | N82: 13.1 | O82: 12
A83: PLYMOUTH | B83: BLOODY POND | C83: 7 | D83: 2017-05-12 | G83: 11.58 | H83: 3.4 | I83: 0.2936096718 | J83: BLUE GREEN | K83: OVERCAST | L83: LIGHT BREEZE | M83: NONE | N83: 10.2 | O83: 13.7
A84: PLYMOUTH | B84: BLOODY POND | C84: 8 | D84: 2017-05-12 | G84: 11.58 | H84: 3.4 | I84: 0.2936096718 | J84: BLUE GREEN | K84: OVERCAST | L84: LIGHT BREEZE | M84: NONE | N84: 9.1 | O84: 13.5
A85: PLYMOUTH | B85: BLOODY POND | C85: 9 | D85: 2017-05-12 | G85: 11.58 | H85: 3.4 | I85: 0.2936096718 | J85: BLUE GREEN | K85: OVERCAST | L85: LIGHT BREEZE | M85: NONE | N85: 8.7 | O85: 12.5
A86: PLYMOUTH | B86: BLOODY POND | C86: 10 | D86: 2017-05-12 | G86: 11.58 | H86: 3.4 | I86: 0.2936096718 | J86: BLUE GREEN | K86: OVERCAST | L86: LIGHT BREEZE | M86: NONE | N86: 8.5 | O86: 12
A87: PLYMOUTH | B87: BLOODY POND | C87: 11 | D87: 2017-05-12 | G87: 11.58 | H87: 3.4 | I87: 0.2936096718 | J87: BLUE GREEN | K87: OVERCAST | L87: LIGHT BREEZE | M87: NONE | N87: 8.3 | O87: 9
A88: PLYMOUTH | B88: ROUND POND | C88: 0.5 | D88: 2017-05-13 | G88: 6.1 | H88: 6.1 | I88: 1 | J88: BLUE GREEN | K88: OVERCAST | L88: STEADY WIND | M88: NONE | N88: 15.3 | O88: 10.1 | AA88: GPS: 41.852316 -70.604442
A89: PLYMOUTH | B89: ROUND POND | C89: 1 | D89: 2017-05-13 | G89: 6.1 | H89: 6.1 | I89: =H89/G89 -> 1 | J89: BLUE GREEN | K89: OVERCAST | L89: STEADY WIND | M89: NONE | N89: 15.3 | O89: 10.1
A90: PLYMOUTH | B90: ROUND POND | C90: 2 | D90: 2017-05-13 | G90: 6.1 | H90: 6.1 | I90: 1 | J90: BLUE GREEN | K90: OVERCAST | L90: STEADY WIND | M90: NONE | N90: 15.3 | O90: 10
A91: PLYMOUTH | B91: ROUND POND | C91: 3 | D91: 2017-05-13 | G91: 6.1 | H91: 6.1 | I91: 1 | J91: BLUE GREEN | K91: OVERCAST | L91: STEADY WIND | M91: NONE | N91: 15.3 | O91: 10
A92: PLYMOUTH | B92: ROUND POND | C92: 4 | D92: 2017-05-13 | G92: 6.1 | H92: 6.1 | I92: 1 | J92: BLUE GREEN | K92: OVERCAST | L92: STEADY WIND | M92: NONE | N92: 15.2 | O92: 10.3
A93: PLYMOUTH | B93: ROUND POND | C93: 5 | D93: 2017-05-13 | G93: 6.1 | H93: 6.1 | I93: 1 | J93: BLUE GREEN | K93: OVERCAST | L93: STEADY WIND | M93: NONE | N93: 15.2 | O93: 9.6
A94: PLYMOUTH | B94: ROUND POND | C94: 6 | D94: 2017-05-13 | G94: 6.1 | H94: 6.1 | I94: 1 | J94: BLUE GREEN | K94: OVERCAST | L94: STEADY WIND | M94: NONE | N94: 15.2 | O94: 9.4
A95: PLYMOUTH | B95: LONG POND | C95: 0.5 | D95: 2017-05-13 | G95: 32.6 | H95: 7 | I95: 0.2147239264 | J95: GREEN | K95: OVERCAST | L95: STEADY WIND | M95: NONE | N95: 14.1 | O95: 10.4 | AA95: GPS: 41.859390 -70.603382
A96: PLYMOUTH | B96: LONG POND | C96: 1 | D96: 2017-05-13 | G96: 32.6 | H96: 7 | I96: =H96/G96 -> 0.2147239264 | J96: GREEN | K96: OVERCAST | L96: STEADY WIND | M96: NONE | N96: 14.2 | O96: 10.6
A97: PLYMOUTH | B97: LONG POND | C97: 2 | D97: 2017-05-13 | G97: 32.6 | H97: 7 | I97: 0.2147239264 | J97: GREEN | K97: OVERCAST | L97: STEADY WIND | M97: NONE | N97: 14.2 | O97: 10.6
A98: PLYMOUTH | B98: LONG POND | C98: 3 | D98: 2017-05-13 | G98: 32.6 | H98: 7 | I98: 0.2147239264 | J98: GREEN | K98: OVERCAST | L98: STEADY WIND | M98: NONE | N98: 14.2 | O98: 10.7
A99: PLYMOUTH | B99: LONG POND | C99: 4 | D99: 2017-05-13 | G99: 32.6 | H99: 7 | I99: 0.2147239264 | J99: GREEN | K99: OVERCAST | L99: STEADY WIND | M99: NONE | N99: 14.1 | O99: 10.4
A100: PLYMOUTH | B100: LONG POND | C100: 5 | D100: 2017-05-13 | G100: 32.6 | H100: 7 | I100: 0.2147239264 | J100: GREEN | K100: OVERCAST | L100: STEADY WIND | M100: NONE | N100: 14 | O100: 10.4
A101: PLYMOUTH | B101: LONG POND | C101: 6 | D101: 2017-05-13 | G101: 32.6 | H101: 7 | I101: 0.2147239264 | J101: GREEN | K101: OVERCAST | L101: STEADY WIND | M101: NONE | N101: 14 | O101: 10.4
A102: PLYMOUTH | B102: LONG POND | C102: 7 | D102: 2017-05-13 | G102: 32.6 | H102: 7 | I102: 0.2147239264 | J102: GREEN | K102: OVERCAST | L102: STEADY WIND | M102: NONE | N102: 12.4 | O102: 11.3
A103: PLYMOUTH | B103: LONG POND | C103: 8 | D103: 2017-05-13 | G103: 32.6 | H103: 7 | I103: 0.2147239264 | J103: GREEN | K103: OVERCAST | L103: STEADY WIND | M103: NONE | N103: 10.3 | O103: 12.5
A104: PLYMOUTH | B104: LONG POND | C104: 9 | D104: 2017-05-13 | G104: 32.6 | H104: 7 | I104: 0.2147239264 | J104: GREEN | K104: OVERCAST | L104: STEADY WIND | M104: NONE | N104: 8.2 | O104: 15.3
A105: PLYMOUTH | B105: LONG POND | C105: 10 | D105: 2017-05-13 | G105: 32.6 | H105: 7 | I105: 0.2147239264 | J105: GREEN | K105: OVERCAST | L105: STEADY WIND | M105: NONE | N105: 7.4 | O105: 15.7
A106: PLYMOUTH | B106: LONG POND | C106: 11 | D106: 2017-05-13 | G106: 32.6 | H106: 7 | I106: 0.2147239264 | J106: GREEN | K106: OVERCAST | L106: STEADY WIND | M106: NONE | N106: 6.9 | O106: 15.7
A107: PLYMOUTH | B107: LONG POND | C107: 12 | D107: 2017-05-13 | G107: 32.6 | H107: 7 | I107: 0.2147239264 | J107: GREEN | K107: OVERCAST | L107: STEADY WIND | M107: NONE | N107: 6.4 | O107: 15.1
A108: PLYMOUTH | B108: LONG POND | C108: 13 | D108: 2017-05-13 | G108: 32.6 | H108: 7 | I108: 0.2147239264 | J108: GREEN | K108: OVERCAST | L108: STEADY WIND | M108: NONE | N108: 6.1 | O108: 14.1
A109: PLYMOUTH | B109: LONG POND | C109: 14 | D109: 2017-05-13 | G109: 32.6 | H109: 7 | I109: 0.2147239264 | J109: GREEN | K109: OVERCAST | L109: STEADY WIND | M109: NONE | N109: 6 | O109: 14
A110: PLYMOUTH | B110: LONG POND | C110: 15 | D110: 2017-05-13 | G110: 32.6 | H110: 7 | I110: 0.2147239264 | J110: GREEN | K110: OVERCAST | L110: STEADY WIND | M110: NONE | N110: 5.8 | O110: 13.5
A111: PLYMOUTH | B111: LONG POND | C111: 16 | D111: 2017-05-13 | G111: 32.6 | H111: 7 | I111: 0.2147239264 | J111: GREEN | K111: OVERCAST | L111: STEADY WIND | M111: NONE | N111: 5.7 | O111: 13.3
A112: PLYMOUTH | B112: LONG POND | C112: 17 | D112: 2017-05-13 | G112: 32.6 | H112: 7 | I112: 0.2147239264 | J112: GREEN | K112: OVERCAST | L112: STEADY WIND | M112: NONE | N112: 5.7 | O112: 13.1
A113: PLYMOUTH | B113: LONG POND | C113: 18 | D113: 2017-05-13 | G113: 32.6 | H113: 7 | I113: 0.2147239264 | J113: GREEN | K113: OVERCAST | L113: STEADY WIND | M113: NONE | N113: 5.7 | O113: 13.3
A114: PLYMOUTH | B114: LONG POND | C114: 19 | D114: 2017-05-13 | G114: 32.6 | H114: 7 | I114: 0.2147239264 | J114: GREEN | K114: OVERCAST | L114: STEADY WIND | M114: NONE | N114: 5.6 | O114: 13.3
A115: PLYMOUTH | B115: LONG POND | C115: 20 | D115: 2017-05-13 | G115: 32.6 | H115: 7 | I115: 0.2147239264 | J115: GREEN | K115: OVERCAST | L115: STEADY WIND | M115: NONE | N115: 5.6 | O115: 13.3
A116: PLYMOUTH | B116: LONG POND | C116: 21 | D116: 2017-05-13 | G116: 32.6 | H116: 7 | I116: 0.2147239264 | J116: GREEN | K116: OVERCAST | L116: STEADY WIND | M116: NONE | N116: 5.6 | O116: 13.3
A117: PLYMOUTH | B117: LONG POND | C117: 22 | D117: 2017-05-13 | G117: 32.6 | H117: 7 | I117: 0.2147239264 | J117: GREEN | K117: OVERCAST | L117: STEADY WIND | M117: NONE | N117: 5.5 | O117: 13.4
A118: PLYMOUTH | B118: LONG POND | C118: 23 | D118: 2017-05-13 | G118: 32.6 | H118: 7 | I118: 0.2147239264 | J118: GREEN | K118: OVERCAST | L118: STEADY WIND | M118: NONE | N118: 5.5 | O118: 13.3
A119: PLYMOUTH | B119: LONG POND | C119: 24 | D119: 2017-05-13 | G119: 32.6 | H119: 7 | I119: 0.2147239264 | J119: GREEN | K119: OVERCAST | L119: STEADY WIND | M119: NONE | N119: 5.5 | O119: 13
A120: PLYMOUTH | B120: LONG POND | C120: 25 | D120: 2017-05-13 | G120: 32.6 | H120: 7 | I120: 0.2147239264 | J120: GREEN | K120: OVERCAST | L120: STEADY WIND | M120: NONE | N120: 5.5 | O120: 12.7
A121: PLYMOUTH | B121: LONG POND | C121: 26 | D121: 2017-05-13 | G121: 32.6 | H121: 7 | I121: 0.2147239264 | J121: GREEN | K121: OVERCAST | L121: STEADY WIND | M121: NONE | N121: 5.5 | O121: 12.6
A122: PLYMOUTH | B122: LONG POND | C122: 27 | D122: 2017-05-13 | G122: 32.6 | H122: 7 | I122: 0.2147239264 | J122: GREEN | K122: OVERCAST | L122: STEADY WIND | M122: NONE | N122: 5.5 | O122: 12.4
A123: PLYMOUTH | B123: LONG POND | C123: 28 | D123: 2017-05-13 | G123: 32.6 | H123: 7 | I123: 0.2147239264 | J123: GREEN | K123: OVERCAST | L123: STEADY WIND | M123: NONE | N123: 5.5 | O123: 12.3
A124: PLYMOUTH | B124: LONG POND | C124: 29 | D124: 2017-05-13 | G124: 32.6 | H124: 7 | I124: 0.2147239264 | J124: GREEN | K124: OVERCAST | L124: STEADY WIND | M124: NONE | N124: 5.5 | O124: 12.1
A125: PLYMOUTH | B125: LONG POND | C125: 30 | D125: 2017-05-13 | G125: 32.6 | H125: 7 | I125: 0.2147239264 | J125: GREEN | K125: OVERCAST | L125: STEADY WIND | M125: NONE | N125: 5.5 | O125: 12.1
A126: PLYMOUTH | B126: HALFWAY POND | C126: 0.5 | D126: 2017-05-16 | G126: 4.1 | H126: 1.9 | I126: 0.4634146341 | J126: BROWN GREEN | K126: PT. CLOUDY | L126: LIGHT BREEZE | M126: NONE | N126: 13.6 | O126: 10.8
A127: PLYMOUTH | B127: HALFWAY POND | C127: 1 | D127: 2017-05-16 | G127: 4.1 | H127: 1.9 | I127: =H127/G127 -> 0.4634146341 | J127: BROWN GREEN | K127: PT. CLOUDY | L127: LIGHT BREEZE | M127: NONE | N127: 13.5 | O127: 10.8
A128: PLYMOUTH | B128: HALFWAY POND | C128: 2 | D128: 2017-05-16 | G128: 4.1 | H128: 1.9 | I128: =H128/G128 -> 0.4634146341 | J128: BROWN GREEN | K128: PT. CLOUDY | L128: LIGHT BREEZE | M128: NONE | N128: 13.5 | O128: 10.8
A129: PLYMOUTH | B129: HALFWAY POND | C129: 3 | D129: 2017-05-16 | G129: 4.1 | H129: 1.9 | I129: =H129/G129 -> 0.4634146341 | J129: BROWN GREEN | K129: PT. CLOUDY | L129: LIGHT BREEZE | M129: NONE | N129: 13.5 | O129: 10.7
A130: PLYMOUTH | B130: HALFWAY POND | C130: 3.5 | D130: 2017-05-16 | G130: 4.1 | H130: 1.9 | I130: =H130/G130 -> 0.4634146341 | J130: BROWN GREEN | K130: PT. CLOUDY | L130: LIGHT BREEZE | M130: NONE | N130: 13.5 | O130: 10.8
A131: PLYMOUTH | B131: GALLOWS POND | C131: 0.5 | D131: 2017-05-16 | G131: 9.6 | H131: 6.8 | I131: =H131/G131 -> 0.7083333333 | K131: PT CLOUDY | L131: LIGHT BREEZE | M131: NONE | N131: 13.8 | O131: 9.6
A132: PLYMOUTH | B132: GALLOWS POND | C132: 1 | D132: 2017-05-16 | G132: 9.6 | H132: 6.8 | I132: =H132/G132 -> 0.7083333333 | K132: PT CLOUDY | L132: LIGHT BREEZE | M132: NONE | N132: 13.7 | O132: 9.8
A133: PLYMOUTH | B133: GALLOWS POND | C133: 2 | D133: 2017-05-16 | G133: 9.6 | H133: 6.8 | I133: 0.7083333333 | K133: PT CLOUDY | L133: LIGHT BREEZE | M133: NONE | N133: 13.7 | O133: 9.8
A134: PLYMOUTH | B134: GALLOWS POND | C134: 3 | D134: 2017-05-16 | G134: 9.6 | H134: 6.8 | I134: 0.7083333333 | K134: PT CLOUDY | L134: LIGHT BREEZE | M134: NONE | N134: 13.7 | O134: 9.8
A135: PLYMOUTH | B135: GALLOWS POND | C135: 4 | D135: 2017-05-16 | G135: 9.6 | H135: 6.8 | I135: 0.7083333333 | K135: PT CLOUDY | L135: LIGHT BREEZE | M135: NONE | N135: 13.6 | O135: 9.8
A136: PLYMOUTH | B136: GALLOWS POND | C136: 5 | D136: 2017-05-16 | G136: 9.6 | H136: 6.8 | I136: 0.7083333333 | K136: PT CLOUDY | L136: LIGHT BREEZE | M136: NONE | N136: 13.6 | O136: 9.8
A137: PLYMOUTH | B137: GALLOWS POND | C137: 6 | D137: 2017-05-16 | G137: 9.6 | H137: 6.8 | I137: 0.7083333333 | K137: PT CLOUDY | L137: LIGHT BREEZE | M137: NONE | N137: 10.7 | O137: 11.4
A138: PLYMOUTH | B138: GALLOWS POND | C138: 7 | D138: 2017-05-16 | G138: 9.6 | H138: 6.8 | I138: 0.7083333333 | K138: PT CLOUDY | L138: LIGHT BREEZE | M138: NONE | N138: 9.3 | O138: 12.8
A139: PLYMOUTH | B139: GALLOWS POND | C139: 8 | D139: 2017-05-16 | G139: 9.6 | H139: 6.8 | I139: 0.7083333333 | K139: PT CLOUDY | L139: LIGHT BREEZE | M139: NONE | N139: 8.7 | O139: 11.1
A140: PLYMOUTH | B140: GALLOWS POND | C140: 9 | D140: 2017-05-16 | G140: 9.6 | H140: 6.8 | I140: 0.7083333333 | K140: PT CLOUDY | L140: LIGHT BREEZE | M140: NONE | N140: 8.5 | O140: 9.2
A141: PLYMOUTH | B141: GREAT HERRING POND | C141: 0.5 | D141: 2017-05-23 | E141: SAMPLE | F141: 1 | G141: 11.7 | H141: 3.5 | I141: =H141/G141 -> 0.2991452991 | J141: ND | K141: ND | L141: ND | M141: NONE | N141: 17.11 | O141: 12.4 | P141: 6.85 | Q141: 13.8 | R141: 3.31943038 | S141: 0.2605696203 | T141: =R141+S141 -> 3.58 | U141: 0.6466459454 | V141: =U141*30.973762 -> 20.02905761 | W141: =V141/1000 -> 0.02002905761 | X141: 56.16579282 | Y141: =X141*14.0067 -> 786.6974103 | Z141: =Y141/1000 -> 0.7866974103 | AA141: GPS: 41 47.843, 70 33.833
A142: PLYMOUTH | B142: GREAT HERRING POND | C142: 0.5 | D142: 2017-05-23 | E142: FD | F142: 1 | G142: 11.7 | H142: 3.5 | I142: 0.2991452991 | J142: ND | K142: ND | L142: ND | M142: NONE | N142: 17.11 | O142: 12.4 | P142: 6.79 | Q142: 13.4 | R142: 4.112468354 | S142: 0.025 | T142: =R142+S142 -> 4.137468354 | U142: 1.103569728 | V142: =U142*30.973762 -> 34.18170609 | W142: =V142/1000 -> 0.03418170609 | X142: 38.69951642 | Y142: =X142*14.0067 -> 542.0525166 | Z142: =Y142/1000 -> 0.5420525166
A143: PLYMOUTH | B143: GREAT HERRING POND | C143: 1 | D143: 2017-05-23 | G143: 11.7 | H143: 3.5 | I143: 0.2991452991 | J143: ND | K143: ND | L143: ND | M143: NONE | N143: 17.11 | O143: 12.26 | U143: NS | X143: NS
A144: PLYMOUTH | B144: GREAT HERRING POND | C144: 1.5 | D144: 2017-05-23 | G144: 11.7 | H144: 3.5 | I144: 0.2991452991 | J144: ND | K144: ND | L144: ND | M144: NONE | N144: 17.09 | O144: 10.96 | U144: NS | X144: NS
A145: PLYMOUTH | B145: GREAT HERRING POND | C145: 2 | D145: 2017-05-23 | G145: 11.7 | H145: 3.5 | I145: 0.2991452991 | J145: ND | K145: ND | L145: ND | M145: NONE | N145: 17.09 | O145: 10.09 | U145: NS | X145: NS
A146: PLYMOUTH | B146: GREAT HERRING POND | C146: 2.5 | D146: 2017-05-23 | G146: 11.7 | H146: 3.5 | I146: 0.2991452991 | J146: ND | K146: ND | L146: ND | M146: NONE | N146: 17.07 | O146: 9.86 | U146: NS | X146: NS
A147: PLYMOUTH | B147: GREAT HERRING POND | C147: 3 | D147: 2017-05-23 | F147: 1 | G147: 11.7 | H147: 3.5 | I147: 0.2991452991 | J147: ND | K147: ND | L147: ND | M147: NONE | N147: 17.03 | O147: 9.41 | P147: 6.86 | Q147: 13.8 | R147: 3.376075949 | S147: 0.4187240506 | T147: =R147+S147 -> 3.7948 | U147: 0.5836848156 | V147: =U147*30.973762 -> 18.07891456 | W147: =V147/1000 -> 0.01807891456 | X147: 45.85083004 | Y147: =X147*14.0067 -> 642.2188211 | Z147: =Y147/1000 -> 0.6422188211
A148: PLYMOUTH | B148: GREAT HERRING POND | C148: 3.5 | D148: 2017-05-23 | G148: 11.7 | H148: 3.5 | I148: 0.2991452991 | J148: ND | K148: ND | L148: ND | M148: NONE | N148: 17.02 | O148: 10.4 | U148: NS | X148: NS
A149: PLYMOUTH | B149: GREAT HERRING POND | C149: 4 | D149: 2017-05-23 | G149: 11.7 | H149: 3.5 | I149: 0.2991452991 | J149: ND | K149: ND | L149: ND | M149: NONE | N149: 17.01 | O149: 10.21 | U149: NS | X149: NS
A150: PLYMOUTH | B150: GREAT HERRING POND | C150: 4.5 | D150: 2017-05-23 | G150: 11.7 | H150: 3.5 | I150: 0.2991452991 | J150: ND | K150: ND | L150: ND | M150: NONE | N150: 16.95 | O150: 9.83 | U150: NS | X150: NS
A151: PLYMOUTH | B151: GREAT HERRING POND | C151: 5 | D151: 2017-05-23 | G151: 11.7 | H151: 3.5 | I151: 0.2991452991 | J151: ND | K151: ND | L151: ND | M151: NONE | N151: 16.94 | O151: 9.07 | U151: NS | X151: NS
A152: PLYMOUTH | B152: GREAT HERRING POND | C152: 5.5 | D152: 2017-05-23 | G152: 11.7 | H152: 3.5 | I152: 0.2991452991 | J152: ND | K152: ND | L152: ND | M152: NONE | N152: 16.94 | O152: 9.01 | U152: NS | X152: NS
A153: PLYMOUTH | B153: GREAT HERRING POND | C153: 6 | D153: 2017-05-23 | G153: 11.7 | H153: 3.5 | I153: 0.2991452991 | J153: ND | K153: ND | L153: ND | M153: NONE | N153: 16.93 | O153: 8.87 | U153: NS | X153: NS
A154: PLYMOUTH | B154: GREAT HERRING POND | C154: 6.5 | D154: 2017-05-23 | G154: 11.7 | H154: 3.5 | I154: 0.2991452991 | J154: ND | K154: ND | L154: ND | M154: NONE | N154: 16.43 | O154: 8.71 | U154: NS | X154: NS
A155: PLYMOUTH | B155: GREAT HERRING POND | C155: 7 | D155: 2017-05-23 | G155: 11.7 | H155: 3.5 | I155: 0.2991452991 | J155: ND | K155: ND | L155: ND | M155: NONE | N155: 16.25 | O155: 8.63 | U155: NS | X155: NS
A156: PLYMOUTH | B156: GREAT HERRING POND | C156: 7.5 | D156: 2017-05-23 | G156: 11.7 | H156: 3.5 | I156: 0.2991452991 | J156: ND | K156: ND | L156: ND | M156: NONE | N156: 15.98 | O156: 8.55 | U156: NS | X156: NS
A157: PLYMOUTH | B157: GREAT HERRING POND | C157: 8 | D157: 2017-05-23 | G157: 11.7 | H157: 3.5 | I157: 0.2991452991 | J157: ND | K157: ND | L157: ND | M157: NONE | N157: 15.72 | O157: 7.91 | U157: NS | X157: NS
A158: PLYMOUTH | B158: GREAT HERRING POND | C158: 8.5 | D158: 2017-05-23 | G158: 11.7 | H158: 3.5 | I158: 0.2991452991 | J158: ND | K158: ND | L158: ND | M158: NONE | N158: 15.5 | O158: 7.53 | U158: NS | X158: NS
A159: PLYMOUTH | B159: GREAT HERRING POND | C159: 9 | D159: 2017-05-23 | F159: 1 | G159: 11.7 | H159: 3.5 | I159: 0.2991452991 | J159: ND | K159: ND | L159: ND | M159: NONE | N159: 15.43 | O159: 7.16 | P159: 6.62 | Q159: 13.8 | R159: 8.95 | S159: 2.7745 | T159: =R159+S159 -> 11.7245 | U159: 0.7240227822 | V159: =U159*30.973762 -> 22.42570934 | W159: =V159/1000 -> 0.02242570934 | X159: 36.66110672 | Y159: =X159*14.0067 -> 513.5011235 | Z159: =Y159/1000 -> 0.5135011235
A160: PLYMOUTH | B160: GREAT HERRING POND | C160: 9.5 | D160: 2017-05-23 | F160: 1 | G160: 11.7 | H160: 3.5 | I160: 0.2991452991 | J160: ND | K160: ND | L160: ND | M160: NONE | N160: 15.33 | O160: 0 | P160: 6.77 | Q160: 14.5 | R160: 6.638860759 | S160: 1.362439241 | T160: =R160+S160 -> 8.0013 | U160: 0.7240227822 | V160: =U160*30.973762 -> 22.42570934 | W160: =V160/1000 -> 0.02242570934 | X160: 37.55043478 | Y160: =X160*14.0067 -> 525.9576749 | Z160: =Y160/1000 -> 0.5259576749
A161: PLYMOUTH | B161: GREAT HERRING POND | C161: 0.5 | D161: 2017-06-14 | F161: 1 | G161: 11.5 | H161: 3.5 | I161: 0.3043478261 | J161: BROWN | K161: PT. CLOUDY | L161: STEADY WIND | M161: NONE | N161: ND | O161: ND | P161: 7 | Q161: 16.8 | R161: 3.466708861 | S161: 0.2676786392 | T161: =R161+S161 -> 3.7343875 | U161: 1.14403054 | V161: =U161*30.973762 -> 35.43492966 | W161: =V161/1000 -> 0.03543492966 | X161: 37.16846288 | Y161: =X161*14.0067 -> 520.607509 | Z161: =Y161/1000 -> 0.520607509 | AA161: GPS: 41 477.845, -70 33.833; HANNA PPRONE NOT FUNCTIONING
A162: PLYMOUTH | B162: GREAT HERRING POND | C162: 1 | D162: 2017-06-14 | G162: 11.5 | H162: 3.5 | I162: 0.3043478261 | J162: BROWN | K162: PT. CLOUDY | L162: STEADY WIND | M162: NONE | N162: ND | O162: ND | U162: NS | X162: NS
A163: PLYMOUTH | B163: GREAT HERRING POND | C163: 2 | D163: 2017-06-14 | G163: 11.5 | H163: 3.5 | I163: 0.3043478261 | J163: BROWN | K163: PT. CLOUDY | L163: STEADY WIND | M163: NONE | N163: ND | O163: ND | U163: NS | X163: NS
A164: PLYMOUTH | B164: GREAT HERRING POND | C164: 3 | D164: 2017-06-14 | F164: 1 | G164: 11.5 | H164: 3.5 | I164: 0.3043478261 | J164: BROWN | K164: PT. CLOUDY | L164: STEADY WIND | M164: NONE | N164: ND | O164: ND | P164: 6.74 | Q164: 13.9 | R164: 3.086050633 | S164: 0.025 | T164: =R164+S164 -> 3.111050633 | U164: 0.722545604 | V164: =U164*30.973762 -> 22.37995557 | W164: =V164/1000 -> 0.02237995557 | X164: 36.57989786 | Y164: =X164*14.0067 -> 512.3636553 | Z164: =Y164/1000 -> 0.5123636553
A165: PLYMOUTH | B165: GREAT HERRING POND | C165: 4 | D165: 2017-06-14 | G165: 11.5 | H165: 3.5 | I165: 0.3043478261 | J165: BROWN | K165: PT. CLOUDY | L165: STEADY WIND | M165: NONE | N165: ND | O165: ND | U165: NS | X165: NS
A166: PLYMOUTH | B166: GREAT HERRING POND | C166: 5 | D166: 2017-06-14 | G166: 11.5 | H166: 3.5 | I166: 0.3043478261 | J166: BROWN | K166: PT. CLOUDY | L166: STEADY WIND | M166: NONE | N166: ND | O166: ND | U166: NS | X166: NS
A167: PLYMOUTH | B167: GREAT HERRING POND | C167: 6 | D167: 2017-06-14 | G167: 11.5 | H167: 3.5 | I167: 0.3043478261 | J167: BROWN | K167: PT. CLOUDY | L167: STEADY WIND | M167: NONE | N167: ND | O167: ND | U167: NS | X167: NS
A168: PLYMOUTH | B168: GREAT HERRING POND | C168: 7 | D168: 2017-06-14 | G168: 11.5 | H168: 3.5 | I168: 0.3043478261 | J168: BROWN | K168: PT. CLOUDY | L168: STEADY WIND | M168: NONE | N168: ND | O168: ND | U168: NS | X168: NS
A169: PLYMOUTH | B169: GREAT HERRING POND | C169: 8 | D169: 2017-06-14 | G169: 11.5 | H169: 3.5 | I169: 0.3043478261 | J169: BROWN | K169: PT. CLOUDY | L169: STEADY WIND | M169: NONE | N169: ND | O169: ND | U169: NS | X169: NS
A170: PLYMOUTH | B170: GREAT HERRING POND | C170: 9 | D170: 2017-06-14 | F170: 1 | G170: 11.5 | H170: 3.5 | I170: 0.3043478261 | J170: BROWN | K170: PT. CLOUDY | L170: STEADY WIND | M170: NONE | N170: ND | O170: ND | P170: 6.48 | Q170: 16.3 | R170: 5.723468354 | S170: 1.802139146 | T170: =R170+S170 -> 7.5256075 | U170: 1.565515475 | V170: =U170*30.973762 -> 48.48990374 | W170: =V170/1000 -> 0.04848990374 | X170: 40.69985301 | Y170: =X170*14.0067 -> 570.0706312 | Z170: =Y170/1000 -> 0.5700706312
A171: PLYMOUTH | B171: GREAT HERRING POND | C171: 10 | D171: 2017-06-14 | G171: 11.5 | H171: 3.5 | I171: 0.3043478261 | J171: BROWN | K171: PT. CLOUDY | L171: STEADY WIND | M171: NONE | N171: ND | O171: ND | U171: NS | X171: NS
A172: PLYMOUTH | B172: GREAT HERRING POND | C172: 11 | D172: 2017-06-14 | F172: 1 | G172: 11.5 | H172: 3.5 | I172: 0.3043478261 | J172: BROWN | K172: PT. CLOUDY | L172: STEADY WIND | M172: NONE | N172: ND | O172: ND | P172: 6.38 | Q172: 14.8 | R172: 5.934189873 | S172: 3.159457627 | T172: =R172+S172 -> 9.0936475 | U172: 1.23434874 | V172: =U172*30.973762 -> 38.2324241 | W172: =V172/1000 -> 0.0382324241 | X172: 43.34839562 | Y172: =X172*14.0067 -> 607.1679729 | Z172: =Y172/1000 -> 0.6071679729
A173: PLYMOUTH | B173: SAVERY POND | C173: 0.5 | D173: 2017-06-20 | F173: 1 | G173: 3 | H173: 1.7 | I173: 0.5666666667 | J173: GREENISH-BROWN | K173: PT. CLOUDY | L173: STEADY WIND | M173: UP TO 10%: WATERLILIES; LESS THAN 1% OR NONE: FLOATING ALGAE, EMERGENT GRASSES | N173: 28 | O173: 7.9 | P173: 6.55 | Q173: 6.7 | R173: 18.01329114 | S173: 4.295926361 | T173: =R173+S173 -> 22.3092175 | U173: 1.324666941 | V173: =U173*30.973762 -> 41.02991855 | W173: =V173/1000 -> 0.04102991855 | X173: 56.61684162 | Y173: =X173*14.0067 -> 793.0151155 | Z173: =Y173/1000 -> 0.7930151155
A174: PLYMOUTH | B174: SAVERY POND | C174: 1 | D174: 2017-06-20 | G174: 3 | H174: 1.7 | I174: 0.5666666667 | J174: GREENISH-BROWN | K174: PT. CLOUDY | L174: STEADY WIND | M174: UP TO 10%: WATERLILIES; LESS THAN 1% OR NONE: FLOATING ALGAE, EMERGENT GRASSES | N174: 27 | O174: 8.2 | U174: NS | X174: NS
A175: PLYMOUTH | B175: SAVERY POND | C175: 1.5 | D175: 2017-06-20 | G175: 3 | H175: 1.7 | I175: 0.5666666667 | J175: GREENISH-BROWN | K175: PT. CLOUDY | L175: STEADY WIND | M175: UP TO 10%: WATERLILIES; LESS THAN 1% OR NONE: FLOATING ALGAE, EMERGENT GRASSES | N175: 26 | O175: 8.4 | U175: NS | X175: NS
A176: PLYMOUTH | B176: SAVERY POND | C176: 2 | D176: 2017-06-20 | F176: 1 | G176: 3 | H176: 1.7 | I176: 0.5666666667 | J176: GREENISH-BROWN | K176: PT. CLOUDY | L176: STEADY WIND | M176: UP TO 10%: WATERLILIES; LESS THAN 1% OR NONE: FLOATING ALGAE, EMERGENT GRASSES | N176: 25 | O176: 8.5 | P176: 6.53 | Q176: 6.8 | R176: 19.63108861 | S176: 3.864898892 | T176: =R176+S176 -> 23.4959875 | U176: 1.505303342 | V176: =U176*30.973762 -> 46.62490744 | W176: =V176/1000 -> 0.04662490744 | X176: 57.76431293 | Y176: =X176*14.0067 -> 809.087402 | Z176: =Y176/1000 -> 0.809087402
A177: PLYMOUTH | B177: SAVERY POND | C177: 2.5 | D177: 2017-06-20 | G177: 3 | H177: 1.7 | I177: 0.5666666667 | J177: GREENISH-BROWN | K177: PT. CLOUDY | L177: STEADY WIND | M177: UP TO 10%: WATERLILIES; LESS THAN 1% OR NONE: FLOATING ALGAE, EMERGENT GRASSES | N177: 25 | O177: 8.4 | U177: NS | X177: NS
A178: PLYMOUTH | B178: SAVERY POND | C178: 3 | D178: 2017-06-20 | G178: 3 | H178: 1.7 | I178: 0.5666666667 | J178: GREENISH-BROWN | K178: PT. CLOUDY | L178: STEADY WIND | M178: UP TO 10%: WATERLILIES; LESS THAN 1% OR NONE: FLOATING ALGAE, EMERGENT GRASSES | N178: 24 | O178: 6 | U178: NS | X178: NS
A179: PLYMOUTH | B179: LITTLE LONG POND | C179: 0.5 | D179: 2017-06-23 | G179: 2.4 | H179: 2.2 | I179: 0.9166666667 | J179: BROWN | K179: PT. CLOUDY | L179: LIGHT BREEZE | M179: NONE | N179: 25.3 | O179: 9.6
A180: PLYMOUTH | B180: LITTLE LONG POND | C180: 1 | D180: 2017-06-23 | G180: 2.4 | H180: 2.2 | I180: 0.9166666667 | J180: BROWN | K180: PT. CLOUDY | L180: LIGHT BREEZE | M180: NONE | N180: 25.2 | O180: 9.8
A181: PLYMOUTH | B181: LITTLE LONG POND | C181: 1.5 | D181: 2017-06-23 | G181: 2.4 | H181: 2.2 | I181: 0.9166666667 | J181: BROWN | K181: PT. CLOUDY | L181: LIGHT BREEZE | M181: NONE | N181: 25.7 | O181: 9.9
A182: PLYMOUTH | B182: LITTLE LONG POND | C182: 2 | D182: 2017-06-23 | G182: 2.4 | H182: 2.2 | I182: 0.9166666667 | J182: BROWN | K182: PT. CLOUDY | L182: LIGHT BREEZE | M182: NONE | N182: 25.5 | O182: 10.3
A183: PLYMOUTH | B183: GALLOWS POND | C183: 0.5 | D183: 2017-06-23 | G183: 10 | H183: 3.5 | I183: 0.35 | J183: BLUE GREEN | L183: STEADY WIND | M183: EMERGENT UP TO 10% | N183: 25.2 | O183: 9.4
A184: PLYMOUTH | B184: GALLOWS POND | C184: 1 | D184: 2017-06-23 | G184: 10 | H184: 3.5 | I184: =H184/G184 -> 0.35 | J184: BLUE GREEN | L184: STEADY WIND | M184: EMERGENT UP TO 10% | N184: 25.1 | O184: 9.4
A185: PLYMOUTH | B185: GALLOWS POND | C185: 1.5 | D185: 2017-06-23 | G185: 10 | H185: 3.5 | I185: 0.35 | J185: BLUE GREEN | L185: STEADY WIND | M185: EMERGENT UP TO 10% | N185: 25.1 | O185: 9.4
A186: PLYMOUTH | B186: GALLOWS POND | C186: 2 | D186: 2017-06-23 | G186: 10 | H186: 3.5 | I186: 0.35 | J186: BLUE GREEN | L186: STEADY WIND | M186: EMERGENT UP TO 10% | N186: 25 | O186: 9.4
A187: PLYMOUTH | B187: GALLOWS POND | C187: 2.5 | D187: 2017-06-23 | G187: 10 | H187: 3.5 | I187: 0.35 | J187: BLUE GREEN | L187: STEADY WIND | M187: EMERGENT UP TO 10% | N187: 25 | O187: 9.4
A188: PLYMOUTH | B188: GALLOWS POND | C188: 3 | D188: 2017-06-23 | G188: 10 | H188: 3.5 | I188: 0.35 | J188: BLUE GREEN | L188: STEADY WIND | M188: EMERGENT UP TO 10% | N188: 25 | O188: 9.3
A189: PLYMOUTH | B189: GALLOWS POND | C189: 3.5 | D189: 2017-06-23 | G189: 10 | H189: 3.5 | I189: 0.35 | J189: BLUE GREEN | L189: STEADY WIND | M189: EMERGENT UP TO 10% | N189: 21.3 | O189: 10.3
A190: PLYMOUTH | B190: GALLOWS POND | C190: 4 | D190: 2017-06-23 | G190: 10 | H190: 3.5 | I190: 0.35 | J190: BLUE GREEN | L190: STEADY WIND | M190: EMERGENT UP TO 10% | N190: 19 | O190: 10.6
A191: PLYMOUTH | B191: GALLOWS POND | C191: 4.5 | D191: 2017-06-23 | G191: 10 | H191: 3.5 | I191: 0.35 | J191: BLUE GREEN | L191: STEADY WIND | M191: EMERGENT UP TO 10% | N191: 18 | O191: 11.2
A192: PLYMOUTH | B192: GALLOWS POND | C192: 5 | D192: 2017-06-23 | G192: 10 | H192: 3.5 | I192: 0.35 | J192: BLUE GREEN | L192: STEADY WIND | M192: EMERGENT UP TO 10% | N192: 16.8 | O192: 11.8
A193: PLYMOUTH | B193: GALLOWS POND | C193: 5.5 | D193: 2017-06-23 | G193: 10 | H193: 3.5 | I193: 0.35 | J193: BLUE GREEN | L193: STEADY WIND | M193: EMERGENT UP TO 10% | N193: 15.3 | O193: 12.6
A194: PLYMOUTH | B194: GALLOWS POND | C194: 6 | D194: 2017-06-23 | G194: 10 | H194: 3.5 | I194: 0.35 | J194: BLUE GREEN | L194: STEADY WIND | M194: EMERGENT UP TO 10% | N194: 13.7 | O194: 13.1
A195: PLYMOUTH | B195: GALLOWS POND | C195: 6.5 | D195: 2017-06-23 | G195: 10 | H195: 3.5 | I195: 0.35 | J195: BLUE GREEN | L195: STEADY WIND | M195: EMERGENT UP TO 10% | N195: 12.9 | O195: 13.6
A196: PLYMOUTH | B196: GALLOWS POND | C196: 7 | D196: 2017-06-23 | G196: 10 | H196: 3.5 | I196: 0.35 | J196: BLUE GREEN | L196: STEADY WIND | M196: EMERGENT UP TO 10% | N196: 12 | O196: 13.6
A197: PLYMOUTH | B197: GALLOWS POND | C197: 7.5 | D197: 2017-06-23 | G197: 10 | H197: 3.5 | I197: 0.35 | J197: BLUE GREEN | L197: STEADY WIND | M197: EMERGENT UP TO 10% | N197: 10.6 | O197: 11.7
A198: PLYMOUTH | B198: GALLOWS POND | C198: 8 | D198: 2017-06-23 | G198: 10 | H198: 3.5 | I198: 0.35 | J198: BLUE GREEN | L198: STEADY WIND | M198: EMERGENT UP TO 10% | N198: 10.2 | O198: 10.3
A199: PLYMOUTH | B199: GALLOWS POND | C199: 8.5 | D199: 2017-06-23 | G199: 10 | H199: 3.5 | I199: 0.35 | J199: BLUE GREEN | L199: STEADY WIND | M199: EMERGENT UP TO 10% | N199: 10 | O199: 8.8
A200: PLYMOUTH | B200: GALLOWS POND | C200: 9 | D200: 2017-06-23 | G200: 10 | H200: 3.5 | I200: 0.35 | J200: BLUE GREEN | L200: STEADY WIND | M200: EMERGENT UP TO 10% | N200: 9.8 | O200: 8.8
... 306 more rows

Sheet PALS POND DATA 2016
A1: Coastal Systems Group
A2: SMAST
A3: Umass Dartmouth
A4: 706 Rodney French Blvd
A5: New Bedford, Ma 02744
A6: Plymouth Ponds 2015
A8: Key
A9: NS = No Sample
A10: ND = No Data
A14: Town | B14: Pond | C14: Depth (m) | D14: Date | E14: QC | F14: Number of Samples | G14: Total Depth (m) | H14: Secchi Depth (m) | I14: % Secchi | J14: Water Color | K14: Weather | L14: Wind | M14: Plants | N14: Temp C | O14: DO (mg/L) | P14: pH | Q14: Alk (mg CaCO3/L) | R14: CHLA (ug/L) | S14: Phaeo (ug/L) | T14: T-pig ug/L | U14: TP (uM) | V14: TP (µg/L) | W14: TP (mg/L) | X14: TN (uM) | Y14: TN (ug/L) | Z14: TN (mg/L) | AA14: Notes
A15: PLYMOUTH | B15: SAVERY | C15: 0.5 | D15: 2016-05-31 | F15: 2 | G15: 3.8 | H15: 2.5 | I15: 0.6578947368 | J15: BROWN | K15: 3 | L15: 3 | M15: <1% WATERLILIES, <1% FLOATING ALGAE, UP TO 10% EMERGENT GRASSES, GRASSES AROUND POND EDGE | N15: 21.21 | O15: 8.63 | P15: 5.55 | Q15: 5.25 | R15: 2.10721519 | S15: 0.4793348101 | T15: 2.58655 | U15: 0.7747750174 | V15: =U15*30.973762 -> 23.99769699 | W15: =V15/1000 -> 0.02399769699 | X15: 30.25617625 | Y15: =X15*14.0067 -> 423.7891839 | Z15: =Y15/1000 -> 0.4237891839
A16: PLYMOUTH | B16: SAVERY | C16: 1 | D16: 2016-05-31 | N16: 21.22 | O16: 8.63
A17: PLYMOUTH | B17: SAVERY | C17: 1.5 | D17: 2016-05-31 | N17: 21.21 | O17: 8.62
A18: PLYMOUTH | B18: SAVERY | C18: 2 | D18: 2016-05-31 | N18: 21.21 | O18: 8.53
A19: PLYMOUTH | B19: SAVERY | C19: 2.5 | D19: 2016-05-31 | N19: 21.19 | O19: 8.53
A20: PLYMOUTH | B20: SAVERY | C20: 3 | D20: 2016-05-31 | N20: 21.09 | O20: 8.53 | P20: 5.67 | Q20: 5.26 | R20: 1.722025316 | S20: 0.5423246835 | T20: 2.26435 | U20: 0.7747750174 | V20: =U20*30.973762 -> 23.99769699 | W20: =V20/1000 -> 0.02399769699 | X20: 31.18952802 | Y20: =X20*14.0067 -> 436.8623622 | Z20: =Y20/1000 -> 0.4368623622
A21: PLYMOUTH | B21: SAVERY | C21: 3.5 | D21: 2016-05-31 | N21: 19.37 | O21: 7.34
A22: PLYMOUTH | B22: SAVERY | C22: 0.5 | D22: 2016-06-13 | F22: 2 | G22: 3.8 | H22: 1.4 | I22: 0.3684210526 | J22: GREEN | K22: 1 | L22: 2 | M22: 10-25% WATERLILIES | N22: 20.39 | O22: 8.34 | P22: 5.57 | Q22: 5.73 | R22: 8.394873418 | S22: 0.1881765823 | T22: 8.58305 | U22: 1.12694548 | V22: =U22*30.973762 -> 34.90574108 | W22: =V22/1000 -> 0.03490574108 | X22: 39.90081121 | Y22: =X22*14.0067 -> 558.8786924 | Z22: =Y22/1000 -> 0.5588786924 | AA22: SMALL WHITE/GREEN SPECKS OF ALGAE IN POND
A23: PLYMOUTH | B23: SAVERY | C23: 1 | D23: 2016-06-13 | N23: 20.33 | O23: 8.36
A24: PLYMOUTH | B24: SAVERY | C24: 1.5 | D24: 2016-06-13 | N24: 20.29 | O24: 8.37
A25: PLYMOUTH | B25: SAVERY | C25: 2 | D25: 2016-06-13 | N25: 20.11 | O25: 8.16
A26: PLYMOUTH | B26: SAVERY | C26: 2.5 | D26: 2016-06-13 | N26: 20.08 | O26: 8.09
A27: PLYMOUTH | B27: SAVERY | C27: 3 | D27: 2016-06-13 | N27: 19.96 | O27: 8 | P27: 5.73 | Q27: 5.3 | R27: 11.89556962 | S27: 0.09743037975 | T27: 11.993 | U27: 1.479115942 | V27: =U27*30.973762 -> 45.81378517 | W27: =V27/1000 -> 0.04581378517 | X27: 43.01198378 | Y27: =X27*14.0067 -> 602.4559532 | Z27: =Y27/1000 -> 0.6024559532
A28: PLYMOUTH | B28: SAVERY | C28: 3.5 | D28: 2016-06-13 | N28: 19.85 | O28: 6.5
A29: PLYMOUTH | B29: GREAT HERRING | C29: 0.5 | D29: 2016-06-14 | F29: 4 | G29: 12 | H29: 2.7 | I29: 0.225 | J29: GREEN | K29: 2 | L29: 3 | M29: <1% WATERLILIES, <1% FLOATING ALGAE, <1% EMERGENT GRASSES | N29: 20.08 | O29: 8.76 | P29: 5.67 | Q29: 12.66 | R29: 2.42443038 | S29: 0.025 | T29: 2.44943038 | U29: 0.524750119 | V29: =U29*30.973762 -> 16.2534853 | W29: =V29/1000 -> 0.0162534853 | X29: 49.55170326 | Y29: =X29*14.0067 -> 694.0558421 | Z29: =Y29/1000 -> 0.6940558421
A30: PLYMOUTH | B30: GREAT HERRING | C30: 1 | D30: 2016-06-14 | N30: 20.08 | O30: 8.62
A31: PLYMOUTH | B31: GREAT HERRING | C31: 2 | D31: 2016-06-14 | N31: 20.08 | O31: 8.69
A32: PLYMOUTH | B32: GREAT HERRING | C32: 3 | D32: 2016-06-14 | N32: 20.08 | O32: 8.75 | P32: 5.88 | Q32: 12.85 | R32: 2.05056962 | S32: 0.1958803797 | T32: 2.24645 | U32: 0.6297001428 | V32: =U32*30.973762 -> 19.50418235 | W32: =V32/1000 -> 0.01950418235 | X32: 36.676724 | Y32: =X32*14.0067 -> 513.71987 | Z32: =Y32/1000 -> 0.51371987
A33: PLYMOUTH | B33: GREAT HERRING | C33: 4 | D33: 2016-06-14 | N33: 20.05 | O33: 8.86
A34: PLYMOUTH | B34: GREAT HERRING | C34: 5 | D34: 2016-06-14 | N34: 20.05 | O34: 8.88
A35: PLYMOUTH | B35: GREAT HERRING | C35: 6 | D35: 2016-06-14 | N35: 20.02 | O35: 8.67
A36: PLYMOUTH | B36: GREAT HERRING | C36: 7 | D36: 2016-06-14 | N36: 20 | O36: 8.79
A37: PLYMOUTH | B37: GREAT HERRING | C37: 8 | D37: 2016-06-14 | N37: 19.97 | O37: 8.8
A38: PLYMOUTH | B38: GREAT HERRING | C38: 9 | D38: 2016-06-14 | N38: 19.2 | O38: 7.2 | P38: 5.84 | Q38: 12.91 | R38: 2.537721519 | S38: 0.147278481 | T38: 2.685 | U38: 0.4897667777 | V38: =U38*30.973762 -> 15.16991961 | W38: =V38/1000 -> 0.01516991961 | X38: 36.676724 | Y38: =X38*14.0067 -> 513.71987 | Z38: =Y38/1000 -> 0.51371987
A39: PLYMOUTH | B39: GREAT HERRING | C39: 10 | D39: 2016-06-14 | N39: 16.77 | O39: 4.05
A40: PLYMOUTH | B40: GREAT HERRING | C40: 11 | D40: 2016-06-14 | N40: 16.62 | O40: 3.23 | P40: 5.76 | Q40: 17.04 | R40: 1.019620253 | S40: 1.352129747 | T40: 2.37175 | U40: 0.7043409249 | V40: =U40*30.973762 -> 21.81608817 | W40: =V40/1000 -> 0.02181608817 | X40: 49.24515613 | Y40: =X40*14.0067 -> 689.7621284 | Z40: =Y40/1000 -> 0.6897621284
A41: PLYMOUTH | B41: LITTLE HERRING | C41: 0.5 | D41: 2016-06-14 | F41: 1 | G41: 1.5 | H41: ND | I41: ND | J41: BLUE/GREEN | K41: 1 | L41: 3 | M41: 10% WATERLILIES | N41: ND | O41: ND | P41: 5.98 | Q41: 19.54 | R41: 1.178227848 | S41: 1.050322152 | T41: 2.22855 | U41: 0.9508602486 | V41: =U41*30.973762 -> 29.45171904 | W41: =V41/1000 -> 0.02945171904 | X41: 55.68264577 | Y41: =X41*14.0067 -> 779.9301145 | Z41: =Y41/1000 -> 0.7799301145
A42: PLYMOUTH | B42: SAVERY | C42: 0.5 | D42: 2016-06-22 | E42: SAMPLE | F42: 3 | G42: 3.8 | H42: 1.35 | I42: 0.3552631579 | J42: BROWN | K42: ND | L42: ND | M42: 10% WATERLILIES | N42: 23.72 | O42: 9.09 | P42: 5.73 | Q42: 5.97 | R42: 6.876772152 | S42: 0.2205778481 | T42: 7.09735 | U42: 1.338247757 | V42: =U42*30.973762 -> 41.45056753 | W42: =V42/1000 -> 0.04145056753 | X42: 47.98985988 | Y42: =X42*14.0067 -> 672.1795704 | Z42: =Y42/1000 -> 0.6721795704
A43: PLYMOUTH | B43: SAVERY | C43: 0.5 | D43: 2016-06-22 | E43: FD | N43: 23.72 | O43: 9.09 | P43: 5.78 | Q43: 6.02 | R43: 5.777848101 | S43: 0.025 | T43: 5.802848101 | U43: 1.12694548 | V43: =U43*30.973762 -> 34.90574108 | W43: =V43/1000 -> 0.03490574108 | X43: 57.32337758 | Y43: =X43*14.0067 -> 802.9113528 | Z43: =Y43/1000 -> 0.8029113528
A44: PLYMOUTH | B44: SAVERY | C44: 1 | D44: 2016-06-22 | N44: 23.51 | O44: 9.18
A45: PLYMOUTH | B45: SAVERY | C45: 1.5 | D45: 2016-06-22 | N45: 22.95 | O45: 9.12
A46: PLYMOUTH | B46: SAVERY | C46: 2 | D46: 2016-06-22 | N46: 22.82 | O46: 8.87
A47: PLYMOUTH | B47: SAVERY | C47: 2.5 | D47: 2016-06-22 | N47: 22.5 | O47: 8.47
A48: PLYMOUTH | B48: SAVERY | C48: 3 | D48: 2016-06-22 | N48: 22.13 | O48: 7.21 | P48: 5.69 | Q48: 6.3 | R48: 7.443227848 | S48: 0.025 | T48: 7.468227848 | U48: 5.81081263 | V48: =U48*30.973762 -> 179.9827274 | W48: =V48/1000 -> 0.1799827274 | X48: 41.14528024 | Y48: =X48*14.0067 -> 576.3095967 | Z48: =Y48/1000 -> 0.5763095967
A49: PLYMOUTH | B49: SAVERY | C49: 3.5 | D49: 2016-06-22 | N49: 21.62 | O49: 4.7
A50: PLYMOUTH | B50: GREAT HERRING | C50: 0.5 | D50: 2016-07-12 | E50: SAMPLE | F50: 5 | G50: 11 | H50: 2.7 | I50: 0.2454545455 | J50: CLEAR/GREEN | K50: ND | L50: ND | M50: <1% WATERLILIES, <1% FLOATING ALGAE, <1% EMERGENT GRASSES | N50: 24.25 | O50: 9.98 | P50: NS | Q50: NS | R50: 2.696329114 | S50: 0.5346208861 | T50: 3.23095 | U50: 0.4897667777 | V50: =U50*30.973762 -> 15.16991961 | W50: =V50/1000 -> 0.01516991961 | X50: 28.55322518 | Y50: =X50*14.0067 -> 399.9364591 | Z50: =Y50/1000 -> 0.3999364591
A51: PLYMOUTH | B51: GREAT HERRING | C51: 0.5 | D51: 2016-07-12 | E51: FD | N51: 24.25 | O51: 9.98 | R51: 2.163860759 | S51: 0.4674392405 | T51: 2.6313 | U51: 0.4897667777 | V51: =U51*30.973762 -> 15.16991961 | W51: =V51/1000 -> 0.01516991961 | X51: 26.56066886 | Y51: =X51*14.0067 -> 372.0273205 | Z51: =Y51/1000 -> 0.3720273205
A52: PLYMOUTH | B52: GREAT HERRING | C52: 1 | D52: 2016-07-12 | N52: 23.99 | O52: 9.15
A53: PLYMOUTH | B53: GREAT HERRING | C53: 1.5 | D53: 2016-07-12 | N53: 23.76 | O53: 9.09
A54: PLYMOUTH | B54: GREAT HERRING | C54: 2 | D54: 2016-07-12 | N54: 23.65 | O54: 9.18
A55: PLYMOUTH | B55: GREAT HERRING | C55: 2.5 | D55: 2016-07-12 | N55: 23.55 | O55: 9
A56: PLYMOUTH | B56: GREAT HERRING | C56: 3 | D56: 2016-07-12 | N56: 23.49 | O56: 8.9 | P56: NS | Q56: NS | R56: 3.31943038 | S56: 1.30771962 | T56: 4.62715 | U56: 0.4198000952 | V56: =U56*30.973762 -> 13.00278824 | W56: =V56/1000 -> 0.01300278824 | X56: 27.6335838 | Y56: =X56*14.0067 -> 387.0553182 | Z56: =Y56/1000 -> 0.3870553182
A57: PLYMOUTH | B57: GREAT HERRING | C57: 3.5 | D57: 2016-07-12 | N57: 23.43 | O57: 8.99
A58: PLYMOUTH | B58: GREAT HERRING | C58: 4 | D58: 2016-07-12 | N58: 23.39 | O58: 8.7
A59: PLYMOUTH | B59: GREAT HERRING | C59: 4.5 | D59: 2016-07-12 | N59: 23.37 | O59: 8.8
A60: PLYMOUTH | B60: GREAT HERRING | C60: 5 | D60: 2016-07-12 | N60: 23.37 | O60: 8.89
A61: PLYMOUTH | B61: GREAT HERRING | C61: 5.5 | D61: 2016-07-12 | N61: 23.36 | O61: 8.86
A62: PLYMOUTH | B62: GREAT HERRING | C62: 6 | D62: 2016-07-12 | N62: 23.36 | O62: 8.97
A63: PLYMOUTH | B63: GREAT HERRING | C63: 6.5 | D63: 2016-07-12 | N63: 23.32 | O63: 8.73
A64: PLYMOUTH | B64: GREAT HERRING | C64: 7 | D64: 2016-07-12 | N64: 23.3 | O64: 8.66
A65: PLYMOUTH | B65: GREAT HERRING | C65: 7.5 | D65: 2016-07-12 | N65: 23.14 | O65: 8.02
A66: PLYMOUTH | B66: GREAT HERRING | C66: 8 | D66: 2016-07-12 | N66: 22.77 | O66: 3.24
A67: PLYMOUTH | B67: GREAT HERRING | C67: 8.5 | D67: 2016-07-12 | N67: 21.23 | O67: 3.27
A68: PLYMOUTH | B68: GREAT HERRING | C68: 9 | D68: 2016-07-12 | N68: 20.55 | O68: 2.43 | P68: NS | Q68: NS | R68: 3.274113924 | S68: 1.890036076 | T68: 5.16415 | U68: 0.8804261561 | V68: =U68*30.973762 -> 27.27011022 | W68: =V68/1000 -> 0.02727011022 | X68: 38.82255387 | Y68: =X68*14.0067 -> 543.7758653 | Z68: =Y68/1000 -> 0.5437758653
A69: PLYMOUTH | B69: GREAT HERRING | C69: 9.5 | D69: 2016-07-12 | N69: 20.07 | O69: 1.63
A70: PLYMOUTH | B70: GREAT HERRING | C70: 10 | D70: 2016-07-12 | N70: 20 | O70: 1.55
A71: PLYMOUTH | B71: GREAT HERRING | C71: 10.5 | D71: 2016-07-12 | N71: 19.93 | O71: 1.47 | R71: 1.257531646 | S71: 3.450168354 | T71: 4.7077 | U71: 1.197379572 | V71: =U71*30.973762 -> 37.0873499 | W71: =V71/1000 -> 0.0370873499 | X71: 50.47134464 | Y71: =X71*14.0067 -> 706.9369829 | Z71: =Y71/1000 -> 0.7069369829
A72: PLYMOUTH | B72: LITTLE HERRING | C72: 0.5 | D72: 2016-07-19 | E72: SAMPLE | F72: 2 | G72: 1.5 | H72: ND | I72: ND | J72: BLUE/GREEN | K72: 2 | L72: 1 | M72: 10% WATERLILIES, <1% FLOATING ALGAE, 10% EMERGENT GRASSES | N72: ND | O72: ND | P72: 6.38 | Q72: 22.8 | R72: 2.526392405 | S72: 1.384757595 | T72: 3.91115 | U72: 0.4897667777 | V72: =U72*30.973762 -> 15.16991961 | W72: =V72/1000 -> 0.01516991961 | X72: 54.14991014 | Y72: =X72*14.0067 -> 758.4615464 | Z72: =Y72/1000 -> 0.7584615464 | AA72: 44 SWANS
A73: PLYMOUTH | B73: LITTLE HERRING | C73: 0.5 | D73: 2016-07-19 | E73: FD | N73: ND | O73: ND | P73: 6.06 | Q73: 22.2 | R73: 2.594367089 | S73: 1.486832911 | T73: 4.0812 | U73: 0.4198000952 | V73: =U73*30.973762 -> 13.00278824 | W73: =V73/1000 -> 0.01300278824 | X73: 51.08443889 | Y73: =X73*14.0067 -> 715.5244102 | Z73: =Y73/1000 -> 0.7155244102
A74: PLYMOUTH | B74: SAVERY | C74: 0.5 | D74: 2016-07-26 | F74: 2 | G74: 3.9 | H74: 1.05 | I74: 0.2692307692 | J74: GREEN | K74: ND | L74: ND | M74: 10-25% WATERLILIES, 10-25% EMERGENT GRASSES, 10-25% POND WEED | N74: 26.76 | O74: 7.73 | P74: 6.14 | Q74: 9.1 | R74: 7.953037975 | S74: 0.025 | T74: 7.978037975 | U74: 0.8804261561 | V74: =U74*30.973762 -> 27.27011022 | W74: =V74/1000 -> 0.02727011022 | X74: 81.27940634 | Y74: =X74*14.0067 -> 1138.456261 | Z74: =Y74/1000 -> 1.138456261 | AA74: MA DPH ADVISORY NO SWIMMING, CYANOBACTERIA LEVELS EXCEED RECOMMENDED LEVELS
A75: PLYMOUTH | B75: SAVERY | C75: 1 | D75: 2016-07-26 | N75: 26.75 | O75: 7.4
A76: PLYMOUTH | B76: SAVERY | C76: 1.5 | D76: 2016-07-26 | N76: 26.64 | O76: 6.91
A77: PLYMOUTH | B77: SAVERY | C77: 2 | D77: 2016-07-26 | N77: 26.33 | O77: 5.61
A78: PLYMOUTH | B78: SAVERY | C78: 2.5 | D78: 2016-07-26 | N78: 25.42 | O78: 3.8
A79: PLYMOUTH | B79: SAVERY | C79: 3 | D79: 2016-07-26 | N79: 23.41 | O79: 2.13 | P79: 6 | Q79: 21.6 | R79: 6.140379747 | S79: 2.791720253 | T79: 8.9321 | U79: 1.091728434 | V79: =U79*30.973762 -> 33.81493667 | W79: =V79/1000 -> 0.03381493667 | X79: 113.9467183 | Y79: =X79*14.0067 -> 1596.017499 | Z79: =Y79/1000 -> 1.596017499
A80: PLYMOUTH | B80: SAVERY | C80: 3.5 | D80: 2016-07-26 | N80: 22.39 | O80: 1.85
A81: PLYMOUTH | B81: LITTLE HERRING | C81: 0.5 | D81: 2016-08-09 | F81: 1 | G81: 1.5 | H81: ND | I81: ND | J81: BLUE/GREEN | K81: 1 | L81: 1 | M81: <1% WATERLILIES, <1% FLOATING ALGAE, 10-25% EMERGENT GRASSES | N81: ND | O81: ND | P81: 6.61 | Q81: 22.3 | R81: 3.240126582 | S81: 1.172223418 | T81: 4.41235 | U81: 0.8804261561 | V81: =U81*30.973762 -> 27.27011022 | W81: =V81/1000 -> 0.02727011022 | X81: 49.24515613 | Y81: =X81*14.0067 -> 689.7621284 | Z81: =Y81/1000 -> 0.6897621284 | AA81: 4 OTTERS, DIVING TURTLES, >27 SWANS, SOME CANADA GEESE AND HERONS
A82: PLYMOUTH | B82: GREAT HERRING | C82: 0.5 | D82: 2016-08-09 | F82: 4 | G82: 11.5 | H82: 4 | I82: 0.347826087 | J82: GREEN | K82: 1 | L82: 2 | M82: <1% WATERLILIES, <1% FLOATING ALGAE | N82: 25.93 | O82: 8.16 | P82: 6.61 | Q82: 13.4 | R82: 2.685 | S82: 0.63545 | T82: 3.32045 | U82: 0.5597334603 | V82: =U82*30.973762 -> 17.33705098 | W82: =V82/1000 -> 0.01733705098 | X82: 27.69489323 | Y82: =X82*14.0067 -> 387.9140609 | Z82: =Y82/1000 -> 0.3879140609 | AA82: WATER LEVEL LOW DUE TO DROUGHT
A83: PLYMOUTH | B83: GREAT HERRING | C83: 1 | D83: 2016-08-09 | N83: 25.91 | O83: 7.98
A84: PLYMOUTH | B84: GREAT HERRING | C84: 1.5 | D84: 2016-08-09 | N84: 25.98 | O84: 7.97
A85: PLYMOUTH | B85: GREAT HERRING | C85: 2 | D85: 2016-08-09 | N85: 25.88 | O85: 7.66
A86: PLYMOUTH | B86: GREAT HERRING | C86: 2.5 | D86: 2016-08-09 | N86: 25.86 | O86: 7.63
A87: PLYMOUTH | B87: GREAT HERRING | C87: 3 | D87: 2016-08-09 | N87: 25.85 | O87: 7.51 | P87: 6.58 | Q87: 13 | R87: 2.730316456 | S87: 0.4916835443 | T87: 3.222 | U87: 0.4198000952 | V87: =U87*30.973762 -> 13.00278824 | W87: =V87/1000 -> 0.01300278824 | X87: 27.90947621 | Y87: =X87*14.0067 -> 390.9196605 | Z87: =Y87/1000 -> 0.3909196605
A88: PLYMOUTH | B88: GREAT HERRING | C88: 3.5 | D88: 2016-08-09 | N88: 25.84 | O88: 7.42
A89: PLYMOUTH | B89: GREAT HERRING | C89: 4 | D89: 2016-08-09 | N89: 25.84 | O89: 7.24
A90: PLYMOUTH | B90: GREAT HERRING | C90: 4.5 | D90: 2016-08-09 | N90: 25.82 | O90: 7.57
A91: PLYMOUTH | B91: GREAT HERRING | C91: 5 | D91: 2016-08-09 | N91: 25.82 | O91: 7.43
A92: PLYMOUTH | B92: GREAT HERRING | C92: 5.5 | D92: 2016-08-09 | N92: 25.82 | O92: 7.44
A93: PLYMOUTH | B93: GREAT HERRING | C93: 6 | D93: 2016-08-09 | N93: 25.82 | O93: 7.47
A94: PLYMOUTH | B94: GREAT HERRING | C94: 6.5 | D94: 2016-08-09 | N94: 25.82 | O94: 7.49
A95: PLYMOUTH | B95: GREAT HERRING | C95: 7 | D95: 2016-08-09 | N95: 25.82 | O95: 7.39
A96: PLYMOUTH | B96: GREAT HERRING | C96: 7.5 | D96: 2016-08-09 | N96: 25.82 | O96: 7.63
A97: PLYMOUTH | B97: GREAT HERRING | C97: 8 | D97: 2016-08-09 | N97: 25.82 | O97: 7.68
A98: PLYMOUTH | B98: GREAT HERRING | C98: 8.5 | D98: 2016-08-09 | N98: 25.74 | O98: 7.11
A99: PLYMOUTH | B99: GREAT HERRING | C99: 9 | D99: 2016-08-09 | N99: 25.65 | O99: 4.34 | P99: 6.57 | Q99: 12.7 | R99: 2.027911392 | S99: 0.8181886076 | T99: 2.8461 | U99: 0.5597334603 | V99: =U99*30.973762 -> 17.33705098 | W99: =V99/1000 -> 0.01733705098 | X99: 26.53001415 | Y99: =X99*14.0067 -> 371.5979492 | Z99: =Y99/1000 -> 0.3715979492
A100: PLYMOUTH | B100: GREAT HERRING | C100: 9.5 | D100: 2016-08-09 | N100: 24.93 | O100: 3.23
A101: PLYMOUTH | B101: GREAT HERRING | C101: 10 | D101: 2016-08-09 | N101: 24.7 | O101: 1.48
A102: PLYMOUTH | B102: GREAT HERRING | C102: 10.5 | D102: 2016-08-09 | N102: 24.7 | O102: 1.11 | P102: 6.31 | Q102: 18.4 | R102: 0.1812658228 | S102: 11.65063418 | T102: 11.8319 | U102: 0.8099920636 | V102: =U102*30.973762 -> 25.0885014 | W102: =V102/1000 -> 0.0250885014 | X102: 61.20049402 | Y102: =X102*14.0067 -> 857.2169596 | Z102: =Y102/1000 -> 0.8572169596
A103: PLYMOUTH | B103: SAVERY | C103: 0.5 | D103: 2016-08-10 | F103: 3 | G103: 3.5 | H103: 1.5 | I103: 0.4285714286 | J103: BROWN | K103: 3 | L103: 4 | M103: 10-25% WATERLILIES, <1%FLOATING ALGAE, 10% EMERGENT GRASSES | N103: 25.76 | O103: 8.18 | P103: 5.41 | Q103: 9.4 | R103: 5.902468354 | S103: 1.338081646 | T103: 7.24055 | U103: 1.303030711 | V103: =U103*30.973762 -> 40.35976312 | W103: =V103/1000 -> 0.04035976312 | X103: 66.65689528 | Y103: =X103*14.0067 -> 933.6431351 | Z103: =Y103/1000 -> 0.9336431351 | AA103: WATER LEVEL SLIGHTLY LOWER DUE TO LOW GROUNDWATER LEVELS
A104: PLYMOUTH | B104: SAVERY | C104: 1 | D104: 2016-08-10 | N104: 25.76 | O104: 7.96
A105: PLYMOUTH | B105: SAVERY | C105: 1.5 | D105: 2016-08-10 | N105: 25.76 | O105: 7.94
A106: PLYMOUTH | B106: SAVERY | C106: 2 | D106: 2016-08-10 | N106: 25.75 | O106: 7.74
A107: PLYMOUTH | B107: SAVERY | C107: 2.5 | D107: 2016-08-10 | E107: SAMPLE | N107: 25.75 | O107: 7.72 | P107: 6.35 | Q107: 9.4 | R107: 6.786139241 | S107: 1.635810759 | T107: 8.42195 | U107: 1.303030711 | V107: =U107*30.973762 -> 40.35976312 | W107: =V107/1000 -> 0.04035976312 | X107: 52.03438422 | Y107: =X107*14.0067 -> 728.8300094 | Z107: =Y107/1000 -> 0.7288300094
A108: PLYMOUTH | B108: SAVERY | C108: 2.5 | D108: 2016-08-10 | E108: FD | N108: 25.75 | O108: 7.72 | P108: 6.44 | Q108: 9.5 | R108: 6.049746835 | S108: 1.342953165 | T108: 7.3927 | U108: 0.8804261561 | V108: =U108*30.973762 -> 27.27011022 | W108: =V108/1000 -> 0.02727011022 | X108: 52.34550147 | Y108: =X108*14.0067 -> 733.1877355 | Z108: =Y108/1000 -> 0.7331877355
A109: PLYMOUTH | B109: SAVERY | C109: 3 | D109: 2016-08-10 | N109: 25.71 | O109: 5.91
A110: PLYMOUTH | B110: SAVERY | C110: 0.5 | D110: 2016-08-23 | F110: 2 | G110: 3.3 | H110: 1.5 | I110: 0.4545454545 | J110: BROWN | K110: 1 | L110: 2 | M110: 10-25% WATERLILIES | N110: 26.26 | O110: 6.4 | P110: 6.21 | Q110: 9.3 | R110: 14.50126582 | S110: 5.546734177 | T110: 20.048 | U110: 1.162162526 | V110: =U110*30.973762 -> 35.99654549 | W110: =V110/1000 -> 0.03599654549 | X110: 46.74539086 | Y110: =X110*14.0067 -> 654.7486661 | Z110: =Y110/1000 -> 0.6547486661 | AA110: MOSTLY WATERLILIES AND POND WEED AT EDGES
A111: PLYMOUTH | B111: SAVERY | C111: 1 | D111: 2016-08-23 | N111: 26.15 | O111: 6.6
A112: PLYMOUTH | B112: SAVERY | C112: 1.5 | D112: 2016-08-23 | N112: 25.99 | O112: 6.43
A113: PLYMOUTH | B113: SAVERY | C113: 2 | D113: 2016-08-23 | N113: 25.93 | O113: 6.43
A114: PLYMOUTH | B114: SAVERY | C114: 2.5 | D114: 2016-08-23 | N114: 25.91 | O114: 6.48 | P114: 6.17 | Q114: 11.1 | R114: 16.31392405 | S114: 2.839075949 | T114: 19.153 | U114: 1.056511387 | V114: =U114*30.973762 -> 32.72413226 | W114: =V114/1000 -> 0.03272413226 | X114: 45.81203909 | Y114: =X114*14.0067 -> 641.6754879 | Z114: =Y114/1000 -> 0.6416754879
A115: PLYMOUTH | B115: SAVERY | C115: 3 | D115: 2016-08-23 | N115: 25.71 | O115: 6.05
A116: PLYMOUTH | B116: KING'S | C116: 0.5 | D116: 2016-08-30 | F116: 2 | G116: 3.5 | H116: 2.2 | I116: 0.6285714286 | J116: BROWN | K116: ND | L116: ND | M116: >50% WATERLILIES, 25-50% EMERGENT GRASSES | N116: 25.21 | O116: ND | P116: 5.77 | Q116: 7.4 | R116: 0.9667510549 | S116: 0.9067822785 | T116: 1.873533333 | U116: 0.4198000952 | V116: =U116*30.973762 -> 13.00278824 | W116: =V116/1000 -> 0.01300278824 | X116: 36.676724 | Y116: =X116*14.0067 -> 513.71987 | Z116: =Y116/1000 -> 0.51371987 | AA116: DO PROBE NOT FUNCTIONING. 80% WATERLILY COVERAGE.
A117: PLYMOUTH | B117: KING'S | C117: 1 | D117: 2016-08-30 | N117: 24.75 | O117: ND
A118: PLYMOUTH | B118: KING'S | C118: 1.5 | D118: 2016-08-30 | N118: 24.56 | O118: ND
A119: PLYMOUTH | B119: KING'S | C119: 2 | D119: 2016-08-30 | N119: 24.47 | O119: ND
